Workbook

Sheet Menu
E2: National Cardiovascular Intelligence Network
C5: Outcome versus expenditure tool: cardiovascular
C9: Compare spending on cardiovascular disease to cardiovascular outcomes by Clinical Commissioning Group. To use this tool complete the drop down fields below and click on “go to chart”. A quadrant chart shows spending in 2012/13 and 2013/14 compared to outcomes in the same year. You can then use the buttons in the top menu to choose: • Summary for outcome data • Summary for expenditure data • CCG lookups – to see similar CCGs or Strategic Clinical Network (SCN) • Dashboard to compare data
B12: 1 | C12: Year required
B14: 2 | C14: Chosen CCG | L14: 1
C16: ="Select the expenditure and outcome indicators for the quadrant chart using "&GraphData!B1&" data" -> Select the expenditure and outcome indicators for the quadrant chart using 2012 - 2013 data
B17: 3 | C17: Expenditure | L17: 1
B19: 4 | C19: Outcome | L19: 1
B21: 5 | C21: Go to the chart
C23: NCVIN is hosted within the Public Health England Knowledge and Intelligence Team (Northern and Yorkshire). Please send your feedback about NCVIN to ncvin@phe.gov.uk
C24: Last updated: Jan 2015 Gateway number: 2104-639

Sheet Guide to tool
F2: National Cardiovascular Intelligence Network
C5: Outcome versus expenditure tool: cardiovascular
C8: Guide to using the tool
C9: This tool allows you to explore the relationship between expenditure on cardiovascular disease services and clinical outcomes. It shows the relative position of the selected Clinical Commissioning Group (CCG) in comparison to other CCGs with populations with similar risk factors for cardiovascular disease and all other CCGs.
C10: You can highlight any CCG on the chart by selecting one of 211 CCGs from the drop down list found under 'Identifying CCGs'. It is also possible to identify which CCG is represented by any particular point by clicking on the point on the chart; the name of the CCG will be shown.
C11: The quadrant chart
C12: The quadrant chart displays the outcome and expenditure indicators selected in the menu for the chosen CCG. The centre of the chart represents the value for England for the current year's data. The chosen CCG is represented by a red diamond. The position of all other CCGs are represented by grey circles. It is also possible to highlight those CCGs that belong to a similar group as the chosen CCG. These are represented by the blue/green circles. You can select to highlight those CCGs in the same CCG cluster group, the same deprivation decile or the same Strategic Clinical Network.
C13: Interpreting the results
C14: Caution should be used when interpreting the results of the charts presented in this tool. All the data included in the charts has been standardised using a statistical method called z-scores. Z-scores are a way of standardising data so that two indicators using different scales can be compared against each other. If the marker on the chart showing the CCG of interest is within the dotted line box the position of the CCG in relation to its expenditure and outcomes is not statistically significantly different from England. Any markers outside the box are statistically significantly different from England (using 95% confidence intervals).
C15: There are a number of factors other than the total amount of expenditure that might impact on the cardiovascular disease clinical outcomes in a CCG. These include how the money is spent (eg whether only the most cost-effective drugs are prescribed), whether systematic care is provided and the nature of other services such as patient education. CCGs should aim to have high outcomes at a low cost.
C17: Next steps
C18: The data presented in this tool are summary level indicators of expenditure and outcomes in cardiovascular disease care. More detailed local analysis of these data including at GP practice level might help to explain the relative position of the CCG. Local knowledge of other services relevant to cardiovascular disease care such as patient education might also help explain the relationship between expenditure and outcomes. A CCG with poor outcomes and/or high expenditure may seek to shift its relative position towards good outcomes and/or lower costs. However, they should consider that it is unlikely to be practical to move from a position of lower outcomes and low costs directly to high outcomes and low costs. It is likely that there will need to be investment in services and that there will be a time delay between this investment and changes in outcomes. This may lead to the CCG initially shifting to a position of high costs with lower outcomes then high costs with high outcomes. Once this position is reached it may be possible to look at the distribution of expenditure and identify areas for cost savings which will not have a detrimental impact on outcomes.
C19: In order to consider how to move a CCG towards a position of higher outcomes with lower expenditure, a detailed consideration of local services and the cost effectiveness evidence is needed. This could include considering the cost-effectiveness of prescribing patterns, the skill mix of staff delivering cardiovascular disease care services and the organisation of cardiovascular disease services. A finance department should be able to provide a more detailed breakdown of the spending within the cardiovascular disease programme budget. The cardiovascular disease element of the programme budget does not include spending on services provided directly by GP practices. This is included separately in the primary care element of the programme budgeting data. The cardiovascular disease programme budget data includes prescriptions for cardiovascular disease items issued in primary care. The prescribing lead should be able to provide more detailed data on prescribing.

Sheet Notes on data
F2: National Cardiovascular Intelligence Network
C5: Outcome versus expenditure tool: cardiovascular
C8: Notes on the data
C9: The data has been converted in to z-scores to allow comparisons to be made across indicators measured on different scales. A z-score of less than -1.96 indicates that we can be 95% certain that the measure is significantly lower than the England average. A z-score of more than 1.96 shows that we can be 95% certain that the measure is significantly greater than the England average. This boundary is shown as a dotted line on the chart. If the marker for the CCG is outside the dotted box they are statistically significantly different from the England average. England as a whole is at the intersection of the axis.
C10: Expenditure data
C12: Denominators for expenditure The expenditure measure denominator populations vary dependant on the particular measure selected. The majority of expenditure measures use the modelled percentage for total amount of people with cardiovascular disease in that CCG applied to that financial years total QOF GP registered population (all ages) to give a modelled number of people who have cardiovascular disease in each CCG. The modelled prevalence percentage of cardiovascular disease are taken from the national general practice profiles.
C13: http://fingertips.phe.org.uk/profile/general-practice/data
C15: Prescribing data
C16: The cost of prescribed items to treat cardiovascular disease has been provided by the Health and Social Care Information Centre. The data is for the period from April to March for the year selected. Data are presented as the total net ingredient cost (NIC) per person. Spend is the total number of prescriptions divided by the NIC. The prescribing data only covers items prescribed in primary care linked to a practice, not all primary care prescribing.
C17: Detailed prescribing data can be found by practice at | H17: www.hscic.gov.uk/gpprescribingdata
C19: Outcomes data
C20: Denominators for outcomes
C22: The denominator populations used varies dependant on the outcome measure selected.
C23: The admissions data uses GP registered populations from the QOF list sizes for all people all age groups for the CCG for 2012/13 and 2013/14 as the denominator.
C24: http://www.hscic.gov.uk/article/2021/Website-Search?productid=12972&q=qof+data&sort=Relevance&size=10&page=1&area=both#top
C26: The denominator for the under 75 mortality data uses the population figure taken from the HSCIC under 75 mortality CCG indicator 1.2 Sept 2013.
C27: https://indicators.ic.nhs.uk/download/Clinical%20Commissioning%20Group%20Indicators/Data/CCG_1.2_I00754_D_V4.xls
C29: The percentage measures use the related QOF denominator populations for each different indicator.
C30: http://www.hscic.gov.uk/article/2021/Website-Search?productid=12972&q=qof+data&sort=Relevance&size=10&page=1&area=both#top
C32: Hospital Episode Statistics
C33: Hospital episode statistics indicators are records of admissions for episodes of diagnosis or procedures linked to cardiovascular disease. This data is collected during a patient's time at hospital and is submitted to allow hospitals to be paid for the care they deliver. The clinical commissioning group is attributed by the home address of the patient recorded in their episode.
C34: Further data can be found at http://www.hscic.gov.uk/hes
C36: Quality and Outcomes framework
C37: The quality and outcomes framework (QOF) were introduced in 2004 as a voluntary incentive scheme for GP practices in the UK, rewarding them for how well they care for patients. The QOF contains groups of indicators, against which GP practices score points according to their level of achievement. NICE's role focuses on the clinical and public health domains in the QOF, which include a number of areas such as coronary heart disease and hypertension. There are a number of measures which are applicable to measuring outcomes such as chronic kidney disease, hypertension, stroke, coronary heart disease and peripheral arterial disease with ideal blood pressure and cholesterol measures.
C39: http://www.hscic.gov.uk/article/2021/Website-Search?productid=12972&q=qof&sort=Relevance&size=10&page=1&area=both#top
C41: National general practice profiles - the estimated prevalence of cardiovascular disease and coronary heart disease used in the models
C42: The estimated percentage of people with coronary heart disease, cardiovascular disease, hypertension and stroke has been calculated using a model developed at the Department of Primary Care and Social Medicine, Imperial College, London. The model was developed using data from the 2003-2004 Health Surveys for England. The model takes into account age, sex, ethnicity, smoking status and deprivation score. Full details can be found in
C44: http://www.apho.org.uk/resource/item.aspx?RID=111141
C45: http://www.apho.org.uk/resource/item.aspx?RID=111140
C46: http://www.apho.org.uk/resource/item.aspx?RID=111139
C47: http://www.apho.org.uk/resource/item.aspx?RID=111138
C49: Local authority and Primary Care Trusts results: 2009 mid-year population estimates by age, sex and ethnic group provided by Office of National Statistics, smoking status from Integrated Household Survey 2010/11 provided by dept of Health, IMD 2010 scores provided by the Department for Communities and Local Government. GP practice results: 2011 population by age and sex from Attribution Data Set (ADS) provided by Department of Health, ethnic distribution of population derived from hospital episode statistics by ERPHO, smoking status at Local Authority level from Integrated Household Survey 2010/11 provided by Department of Health, weighted IMD2010 score of practice population provided by Department of Health, ethnic distribution of population derived from hospital episode statistic by PHE eastern region knowledge and intelligence team.
C51: http://fingertips.phe.org.uk/profile/general-practice/data
C52: Comparison clusters commissioning for value closest 10 CCGs
C53: The Health and Social Care Information Centre for the commissioning for value programme for CCGs has created the commissioning for value packs which use a group of standardised variables to calculate the most similar CCGs for use as comparators. In the cardiovascular intelligence network the ten most similar CCG’s are used as a comparison to the user selected CCG. More information on the methodology for the creation of the classification and the full list of CCGs and their groups can be found at.
C54: http://www.rightcare.nhs.uk/index.php/commissioning-for-value
C55: ="The chosen CCG "&Lookup!CO3&" is part of a group of 10 similar CCG's which includes:" -> The chosen CCG NHS Airedale, Wharfedale and Craven is part of a group of 10 similar CCG's which includes:
D57: =Lookup!CO4 -> NHS Calderdale
D58: =Lookup!CO5 -> NHS South Kent Coast
D59: =Lookup!CO6 -> NHS East Staffordshire
D60: =Lookup!CO7 -> NHS Ashford
D61: =Lookup!CO8 -> NHS Harrogate and Rural District
D62: =Lookup!CO9 -> NHS West Essex
D63: =Lookup!CO10 -> NHS South West Lincolnshire
D64: =Lookup!CO11 -> NHS Great Yarmouth and Waveney
D65: =Lookup!CO12 -> NHS South Worcestershire
C67: Deprivation deciles
C68: Each CCG has been given an estimated deprivation value based on a population weighted average of the Index of Deprivation 2010 for each Lower Super Output Area (LSOA) lying within the CCG. The CCGs are then sorted by this weighted deprivation value and placed into ten groups of about 21 CCGs ranging from the most deprived to least deprived decile (the least deprived decile contains 22 CCGs).
C69: Use of crude rates in indicators
C71: The indicators used HES based indicators. The mortality and admission data are non age standardised.This was chosen as HSCIC prescription costs data are not identifiable at an age and geographically defined level. It would not be appropriate to compare age standardised outcome measures with non age standardised costs so crude rates have been applied.

Sheet Summary_Cost
B1: Summary of expenditure
M3: Key facts
B5: Compare spending on cardiovascular care in two Clinical Commissioning Groups (CCGs) to national, sub-national and cardiovascular disease cluster levels of spend. The summary expenditure information on this page gives context to any changes in spending levels a CCG may wish to consider after analysing the information in the quadrant chart and considering local factors affecting delivery of cardiovascular disease services. An example of the increase/reduction in expenditure require to ensure the CCG is in the highest or lowest 25% of national spend and average (median) spend is also shown. | M5: The following statements help to understand the scale of change in expenditure required to move the CCG from its current level. 1) A summary of the current position of the CCG. 2) The change required to move the CCG into the lowest 25% of CCGs nationally for spend per person with cardiovascular disease or item, if they are not already in this position. 3) The change required to move the CCG out of the highest 25% of CCGs nationally for spend per person with cardiovascular disease or item, if they are not already in this position.
B7: Year selection:
F9: 1 | M9: =B24 -> NHS Airedale, Wharfedale and Craven
L10: 1 | M10: ="The current "&LOWER(SummaryData!$D$5)&" in "&SummaryData!$E$10&" CCG is "&TEXT(E24,"£0.00")&" per person. This ranks the CCG "&SummaryData!$E$15&" CCGs."&" The CCGs total spend for this indicator in "&GraphData!B1&" was "&IF(SummaryData!E6=0," there was no spend on this item.","around ")&IF(SummaryData!E6=0,"",TEXT(SummaryData!$E$6,"£###,###")&".") -> The current spend on anti-arrhythmic drugs in NHS Airedale, Wharfedale and Craven CCG is £1.99 per person. This ranks the CCG 177 of 211 CCGs. The CCGs total spend for this indicator in 2012 - 2013 was around £30,000.
B11: Expenditure category:
F12: 1 | L12: 2 | M12: =""&(SummaryData!$D$5&IF(F12>4,""," per person with cardiovascular disease"))&" in "&SummaryData!$E$10&" for this CCG is currently "&SummaryData!$D$26&" the lowest 25% nationally. "&IF(SummaryData!$D$26="outside","If the CCG were to change commissioning/ prescribing practices to a level required to enter the lowest 25% of spending CCGs, then the CCG would have to "&IF(SummaryData!$D$26="outside","lower","")&" spend by "&TEXT(SummaryData!$E$26,"£0.00")&" per person with cardiovascular disease, the equivalent of "&TEXT(MROUND(SummaryData!$G$26,50),"£##,###")&".") -> Spend on anti-arrhythmic drugs per person with cardiovascular disease in NHS Airedale, Wharfedale and Craven for this CCG is currently outside the lowest 25% nationally. If the CCG were to change commissioning/ prescribing practices to a level required to enter the lowest 25% of spending CCGs, then the CCG would have to lower spend by £1.02 per person with cardiovascular disease, the equivalent of £10,700.
B14: Clinical Commissioning Group for Comparison:
F15: 19 | L15: 3 | M15: =""&(SummaryData!$D$5)&IF(F12>4,""," per person with cardiovascular disease in "&SummaryData!$E$10)&" for this CCG is currently "&SummaryData!$D$27&" the highest 25% nationally. "&IF(SummaryData!$D$27="within","If the CCG were to change commissioning/ prescribing practices to a level required to leave the highest 25% of spending CCGs, then the CCG would have to "&IF(SummaryData!$D$27="within","lower","")&" spend by "&IF(SummaryData!E27<=0.01,"less than a £0.01",TEXT(SummaryData!$E$27,"£0.00"))&" per person with cardiovascular disease, the equivalent of "&TEXT(MROUND(SummaryData!$G$27,25),"£##,###")&" overall.","") -> Spend on anti-arrhythmic drugs per person with cardiovascular disease in NHS Airedale, Wharfedale and Craven for this CCG is currently within the highest 25% nationally. If the CCG were to change commissioning/ prescribing practices to a level required to leave the highest 25% of spending CCGs, then the CCG would have to lower spend by £0.26 per person with cardiovascular disease, the equivalent of £2,725 overall.
B17: =INDEX(Lookup_CostName,MATCH(F12,Lookup_CostNo,0))&" per person with cardiovascular disease*" -> Spend on anti-arrhythmic drugs per person with cardiovascular disease*
E18: CCG cost* | F18: England ** | G18: Cluster group | I18: Strategic Clinical Network
G19: Chosen CCG: | H19: Comparator CCG: | I19: Chosen CCG: | J19: Comparator CCG | M19: =B25 -> NHS Bradford Districts
G20: =(SummaryData!G10) -> Closest 10 CCGs | H20: =(SummaryData!G11) -> Comparator Closest 10 CCGs | I20: =SummaryData!F10 -> Yorkshire and Northern | J20: =SummaryData!F11 -> Yorkshire and Northern | L20: 1 | M20: ="The current "&LOWER(SummaryData!D5)&" in "&SummaryData!E11&" CCG is "&TEXT(SummaryData!D19,"£0.00")&" per person. This ranks the CCG "&SummaryData!E20&" CCGs."&" The CCGs total spend for this indicator in "&GraphData!B1&" was "&IF(SummaryData!H6=0," there was no spend on this item.","around ")&IF(SummaryData!H6=0,"",TEXT(SummaryData!$H$6,"£###,###")&".") -> The current spend on anti-arrhythmic drugs in NHS Bradford Districts CCG is £1.23 per person. This ranks the CCG 97 of 211 CCGs. The CCGs total spend for this indicator in 2012 - 2013 was around £44,500.
B21: CCG which cuts off the lowest 25% of spending | F21: =SummaryData!E16 -> 0.971303118 | G21: =SummaryData!G16 -> 1.297168236 | H21: =SummaryData!G21 -> 1.015752314 | I21: =SummaryData!F16 -> 0.8200710571 | J21: =SummaryData!F21 -> 0.8200710571 | L21: 2 | M21: =""&(SummaryData!$D$5)&" per person with cardiovascular disease in "&SummaryData!$E$11&" CCG is currently "&SummaryData!$D$29&" the lowest 25% nationally. "&IF(SummaryData!$D$29="outside","If the CCG were to change commissioning/ prescribing practices to a level required to enter the lowest 25% of spending CCGs, then the CCG would have to "&IF(SummaryData!$D$29="outside","lower","")&" spend by "&IF(SummaryData!E29<=0.01,"less than a £0.01",TEXT(SummaryData!$E$29,"£0.00"))&" per person with cardiovascular disease, the equivalent of "&TEXT(MROUND(SummaryData!$G$29,50),"£##,###")&" overall.","") -> Spend on anti-arrhythmic drugs per person with cardiovascular disease in NHS Bradford Districts CCG is currently outside the lowest 25% nationally. If the CCG were to change commissioning/ prescribing practices to a level required to enter the lowest 25% of spending CCGs, then the CCG would have to lower spend by £0.26 per person with cardiovascular disease, the equivalent of £9,650 overall.
B22: Average (Median) | F22: =SummaryData!E17 -> 1.31323181 | G22: =SummaryData!G17 -> 1.429043232 | H22: =SummaryData!G22 -> 1.318612462 | I22: =SummaryData!F17 -> 1.065282117 | J22: =SummaryData!F22 -> 1.065282117
B23: CCG which cuts off the highest 25% of spending | F23: =SummaryData!E18 -> 1.732885293 | G23: =SummaryData!G18 -> 1.864107233 | H23: =SummaryData!G23 -> 1.465513851 | I23: =SummaryData!F18 -> 1.485983655 | J23: =SummaryData!F23 -> 1.485983655
B24: =INDEX(Lookup_CCGname,Menu_ChosenCCG) -> NHS Airedale, Wharfedale and Craven | E24: =SummaryData!D14 -> 1.994663011 | F24: =SummaryData!E15 -> 177 of 211 | G24: =SummaryData!G15 -> 9 of 10 | I24: =SummaryData!F15 -> 22 of 22 | L24: 3 | M24: =""&(SummaryData!$D$5)&" per person with cardiovascular disease in "&SummaryData!$E$11&" CCG is currently "&SummaryData!$D$30&" the highest 25% nationally. "&IF(SummaryData!$D$30="within","If the CCG were to change commissioning/ prescribing practices to a level required to leave the highest 25% of spending CCGs, then the CCG would have to "&IF(SummaryData!$D$30="within","lower","")&" spend by "&IF(SummaryData!E30<=0.01,"less than a £0.01",TEXT(SummaryData!$E$30,"£0.00"))&" per person with cardiovascular disease, the equivalent of "&TEXT(MROUND(SummaryData!$G$30,25),"£##,###")&" annually.","") -> Spend on anti-arrhythmic drugs per person with cardiovascular disease in NHS Bradford Districts CCG is currently outside the highest 25% nationally.
B25: =INDEX(Lookup_CCGname,F15) -> NHS Bradford Districts | E25: =SummaryData!D19 -> 1.233998317 | F25: =SummaryData!E20 -> 97 of 211 | H25: =SummaryData!G20 -> 5 of 10 | J25: =SummaryData!F20 -> 14 of 22
B28: * Numerator | C28: ="Net ingredient cost (all items in section 2 cardiovascular disease BNF) HSCIC GP Practice Prescribing Presentation-level Data "&GraphData!B1 &"" -> Net ingredient cost (all items in section 2 cardiovascular disease BNF) HSCIC GP Practice Prescribing Presentation-level Data 2012 - 2013
B29: * Denominator | C29: =IF(F12=13,"all items prescribed "&GraphData!B1&"", "The denominator population here is the modelled prevelance of cardiovascular disease "&ROUND(GraphData!G16,1)&"% for "&GraphData_ChosenCCG&" applied to the total "&GraphData!B1&" GP registered population (QOF "&GraphData!B1&")") -> The denominator population here is the modelled prevelance of cardiovascular disease 10.3% for NHS Airedale, Wharfedale and Craven applied to the total 2012 - 2013 GP registered population (QOF 2012 - 2013)
B31: ** Note for ranking data, the ideal is to aim for a low value in the ranking system in England/cluster group/Strategic Clinical Network.

Sheet SummaryData (hidden)
Q2: =$D$5 -> Spend on anti-arrhythmic drugs | U2: =$D$33 -> Under 75 mortality from cardiovascular disease | Y2: =C33 -> 1 | Z2: =Lookup!S1 -> 1 | AA2: =Y2+Z2+AE2 -> 0 | AB2: 6 | AC2: CHD | AD2: 5 | AE2: =IF(Z2=2,5,IF(Z2=3,-3,IF(Z2=4,7,-2))) -> -2 | AH2: =MAX(AF4:AF215) -> -0.0003114590537 | AI2: Max | AJ2: =MAX(T4:T215) -> 8.640836382
G3: rank change indicator | H3: =GraphData!AH3 -> -1 | K3: CCG | L3: CCG name | M3: SCN | N3: Cluster | O3: comparator | P3: Deciles | Q3: MATCH value (to speed up calculations) | R3: Num | S3: Den | T3: Cost Value | U3: MATCH value (to speed up calculations) | V3: Num | W3: Den | X3: Cost Value | Y3: Multiplier | Z3: donotdelete | AB3: 2 | AC3: stroke | AD3: 4 | AF3: Rank value for admissions data | AH3: =MIN(AF4:AF215) -> -0.001108048588 | AI3: Min | AJ3: =MIN(T4:T215) -> 0.1553031164
B4: Expenditure | C4: No. | D4: Name | F4: Chosen value | G4: Comp value | L4: England | R4: =SUMIF(T5:T215,">1",R5:R215) -> 6513693.75 | S4: =SUM(INDIRECT($D$7)) -> 6064249.946 | T4: =R4/S4 -> 1.074113667 | V4: =SUM(INDIRECT($D$34)) -> 33086 | W4: =SUM(INDIRECT($D$35)) -> 51740237 | X4: =IF(H3=-1,(V4/W4),(V4/W4)) -> 0.0006394636345 | Y4: =IF(GraphData!$N$3=-1,10000,1) -> 10000 | AB4: 1 | AC4: CKD | AD4: 5 | AF4: =X4*$H$3 -> -0.0006394636345 | AG4: =(X4*Y4)*10 -> 63.94636345
B5: Indicator | C5: =Summary_Cost!$F$12 -> 1 | D5: =INDEX(Lookup_CostName,MATCH($C$5,Lookup_CostNo,0)) -> Spend on anti-arrhythmic drugs | K5: 00C | L5: NHS Darlington | M5: =INDEX(Lookup_SCN,MATCH($K5,Lookup_CCGcode,0)) -> Northern England | N5: =INDEX(Lookup_Cluster,MATCH($K5,Lookup_CCGcode,0)) -> No | O5: =INDEX(Lookup_Comparator,MATCH($K5,Lookup_CCGcode,0)) -> No | P5: =INDEX(Lookup_Decile,MATCH($K5,Lookup_CCGcode,0)) -> 4 | Q5: =MATCH($K5,DataCost_CCGcode,0) -> 1 | R5: =INDEX(INDIRECT($D$6),Q5) -> 15726.8 | S5: =INDEX(INDIRECT($D$7),Q5) -> 10439.23032 | T5: =IFERROR(R5/S5,0) -> 1.506509534 | U5: =MATCH($K5,DataCost_CCGcode,0) -> 1 | V5: =INDEX(INDIRECT($D$34),U5) -> 69 | W5: =INDEX(INDIRECT($D$35),U5) -> 97489 | X5: =(V5/W5) -> 0.0007077721589 | Y5: =IF(GraphData!$N$3=-1,10000,1) -> 10000 | AB5: 7 | AC5: all | AD5: 8 | AF5: -0.0007077721589 | AG5: =(X5*Y5)*10 -> 70.77721589
B6: Numerator | D6: ="DataCost_"&INDEX(Lookup_CostNamedRng,MATCH($C5,Lookup_CostNo,0))&"_Num" -> DataCost_Ind9_Num | E6: =IFERROR(MROUND(F6,500),0) -> 30000 | F6: =INDEX(SummaryData_CostNum,MATCH($D$10,SummaryData_CCGcode,0)) -> 30248.84 | G6: =INDEX(SummaryData_CostNum,MATCH($D$11,SummaryData_CCGcode,0)) -> 44499.34 | H6: =IFERROR(MROUND(G6,500),0) -> 44500 | K6: 00D | L6: NHS Durham Dales, Easington and Sedgefield | M6: Northern England | N6: No | O6: No | P6: 2 | Q6: 2 | R6: =INDEX(INDIRECT($D$6),Q6) -> 49508.1 | S6: 26268.09015 | T6: 1.884724002 | U6: 2 | V6: 232 | W6: 263669 | X6: =(V6/W6) -> 0.0008798910756 | Y6: =IF(GraphData!$N$3=-1,10000,1) -> 10000 | AF6: -0.0008798910756 | AG6: 87.98910756
B7: Denominator | D7: ="DataCost_"&INDEX(Lookup_CostNamedRng,MATCH($C5,Lookup_CostNo,0))&"_Den" -> DataCost_Ind9_Den | F7: =INDEX(SummaryData_CostDen,MATCH($D$10,SummaryData_CCGcode,0)) -> 15164.88742 | G7: =INDEX(SummaryData_CostDen,MATCH($D$11,SummaryData_CCGcode,0)) -> 36061.10267 | K7: 00F | L7: NHS Gateshead | M7: Northern England | N7: No | O7: No | P7: 2 | Q7: 3 | R7: 31288.44 | S7: 19309.03135 | T7: 1.620404433 | U7: 3 | V7: 156 | W7: 187507 | X7: 0.0008319689398 | Y7: =IF(GraphData!$N$3=-1,10000,1) -> 10000 | AF7: -0.0008319689398 | AG7: 83.19689398
K8: 00G | L8: NHS Newcastle North and East | M8: Northern England | N8: No | O8: No | P8: 4 | Q8: 4 | R8: 6572.14 | S8: 18564.91729 | T8: 0.3540085796 | U8: 4 | V8: 65 | W8: 147213 | X8: 0.0004415370925 | Y8: =IF(GraphData!$N$3=-1,10000,1) -> 10000 | AF8: -0.0004415370925 | AG8: 44.15370925
C9: No. | D9: CCG | E9: CCG name | F9: SCN | G9: Cluster | H9: Deciles | K9: 00H | L9: NHS Newcastle West | M9: Northern England | N9: No | O9: No | P9: 2 | Q9: 5 | R9: 9900.63 | S9: 13433.46201 | T9: 0.7370125433 | U9: 5 | V9: 92 | W9: 122516 | X9: 0.0007509223285 | Y9: =IF(GraphData!$N$3=-1,10000,1) -> 10000 | AF9: -0.0007509223285 | AG9: 75.09223285
B10: Chosen CCG | C10: =Menu_ChosenCCG -> 1 | D10: =INDEX(Lookup_CCGcode,C10) -> 02N | E10: =INDEX(Lookup_CCGname,$C10) -> NHS Airedale, Wharfedale and Craven | F10: =INDEX(Lookup_SCN,MATCH($D10,Lookup_CCGcode,0)) -> Yorkshire and Northern | G10: =INDEX(Lookup_Cluster,MATCH($D10,Lookup_CCGcode,0)) -> Closest 10 CCGs | H10: =INDEX(Lookup_Decile,MATCH($D10,Lookup_CCGcode,0)) -> 6 | K10: 00J | L10: NHS North Durham | M10: Northern England | N10: No | O10: No | P10: 6 | Q10: 6 | R10: 40894.23 | S10: 25705.86423 | T10: 1.590852174 | U10: 6 | V10: 175 | W10: 230194 | X10: 0.0007602283291 | Y10: =IF(GraphData!$N$3=-1,10000,1) -> 10000 | AF10: -0.0007602283291 | AG10: 76.02283291
B11: Comparison CCG | C11: =Summary_Cost!$F$15 -> 19 | D11: =INDEX(Lookup_CCGcode,C11) -> 02R | E11: =INDEX(Lookup_CCGname,$C11) -> NHS Bradford Districts | F11: =INDEX(Lookup_SCN,MATCH($D11,Lookup_CCGcode,0)) -> Yorkshire and Northern | G11: =INDEX(Lookup_Comparator,MATCH($D11,Lookup_CCGcode,0)) -> Comparator Closest 10 CCGs | H11: =INDEX(Lookup_Decile,MATCH($D11,Lookup_CCGcode,0)) -> 2 | K11: 00K | L11: NHS Hartlepool and Stockton-On-Tees | M11: Northern England | N11: No | O11: No | P11: 3 | Q11: 7 | R11: 29176.2 | S11: 29453.96601 | T11: 0.9905694871 | U11: 7 | V11: 184 | W11: 269151 | X11: 0.0006836311216 | Y11: =IF(GraphData!$N$3=-1,10000,1) -> 10000 | AF11: -0.0006836311216 | AG11: 68.36311216
K12: 00L | L12: NHS Northumberland | M12: Northern England | N12: No | O12: No | P12: 6 | Q12: 8 | R12: 45480.58 | S12: 29405.9958 | T12: 1.546643083 | U12: 8 | V12: 208 | W12: 291073 | X12: 0.000714597369 | Y12: =IF(GraphData!$N$3=-1,10000,1) -> 10000 | AF12: -0.000714597369 | AG12: 71.4597369
D13: Cost | E13: Eng Cost | F13: SCN cost | G13: Cluster Cost | H13: Decile Cost | K13: 00M | L13: NHS South Tees | M13: Northern England | N13: No | O13: No | P13: 2 | Q13: 9 | R13: 39800.31 | S13: 28326.80884 | T13: 1.405040371 | U13: 9 | V13: 204 | W13: 268563 | X13: 0.0007595983065 | Y13: =IF(GraphData!$N$3=-1,10000,1) -> 10000 | AF13: -0.0007595983065 | AG13: 75.95983065
B14: Chosen CCG | D14: =INDEX(SummaryData_CostValue,MATCH($D$10,SummaryData_CCGcode,0)) -> 1.994663011 | K14: 00N | L14: NHS South Tyneside | M14: Northern England | N14: No | O14: No | P14: 3 | Q14: 10 | R14: 15718.78 | S14: 15038.45031 | T14: 1.045239348 | U14: 10 | V14: 122 | W14: 140547 | X14: 0.0008680370268 | Y14: =IF(GraphData!$N$3=-1,10000,1) -> 10000 | AF14: -0.0008680370268 | AG14: 86.80370268
B15: CCG rank | E15: =RANK($D14,SummaryData_CostValue,1)&" of 211" -> 177 of 211 | F15: =COUNTIF(SummaryData_SCN,$F10)-SUMPRODUCT((SummaryData_SCN=$F10)*(SummaryData_CostValue>$D14))&" of "&COUNTIF(SummaryData_SCN,$F10) -> 22 of 22 | G15: =COUNTIF(SummaryData_Cluster,$G10)-SUMPRODUCT((SummaryData_Cluster=$G10)*(SummaryData_CostValue>$D14))&" of "&COUNTIF(SummaryData_Cluster,$G10) -> 9 of 10 | H15: =COUNTIF($P$5:$P$215,$H10)-SUMPRODUCT(($P$5:$P$215=$H10)*(SummaryData_CostValue>$D14))&" of "&COUNTIF($P$5:$P$215,$H10) -> 18 of 21 | K15: 00P | L15: NHS Sunderland | M15: Northern England | N15: No | O15: No | P15: 3 | Q15: 11 | R15: 28367.02 | S15: 27647.28795 | T15: 1.026032645 | U15: 11 | V15: 204 | W15: 259618 | X15: 0.0007857698619 | Y15: =IF(GraphData!$N$3=-1,10000,1) -> 10000 | AF15: -0.0007857698619 | AG15: 78.57698619
B16: <25% of spending (Q1) | E16: =QUARTILE(SummaryData_CostValue,1) -> 0.971303118 | F16: =QUARTILE(IF(SummaryData_SCN=$F$10,SummaryData_CostValue),1) -> 0.8200710571 | G16: =QUARTILE(IF(SummaryData_Cluster=$G$10,SummaryData_CostValue),1) -> 1.297168236 | H16: =QUARTILE(IF(SummaryData_Decile=$H$10,SummaryData_CostValue),1) -> 1.143229353 | K16: 00Q | L16: NHS Blackburn with Darwen | M16: Greater Manchester Lancashire and South Cumbria | N16: No | O16: Comparator Closest 10 CCGs | P16: 1 | Q16: 12 | R16: 27075.1 | S16: 19294.88785 | T16: 1.403226606 | U16: 12 | V16: 122 | W16: 159098 | X16: 0.0007668229645 | Y16: =IF(GraphData!$N$3=-1,10000,1) -> 10000 | AF16: -0.0007668229645 | AG16: 76.68229645
B17: Average (Median) | E17: =QUARTILE(SummaryData_CostValue,2) -> 1.31323181 | F17: =QUARTILE(IF(SummaryData_SCN=$F$10,SummaryData_CostValue),2) -> 1.065282117 | G17: =QUARTILE(IF(SummaryData_Cluster=$G$10,SummaryData_CostValue),2) -> 1.429043232 | H17: =QUARTILE(IF(SummaryData_Decile=$H$10,SummaryData_CostValue),2) -> 1.475222952 | K17: 00R | L17: NHS Blackpool | M17: Greater Manchester Lancashire and South Cumbria | N17: No | O17: No | P17: 1 | Q17: 13 | R17: 12618.01 | S17: 14943.95433 | T17: 0.8443554978 | U17: 13 | V17: 166 | W17: 156790 | X17: 0.001058740991 | Y17: =IF(GraphData!$N$3=-1,10000,1) -> 10000 | AF17: -0.001058740991 | AG17: 105.8740991
B18: >25% of spending (Q2) | E18: =QUARTILE(SummaryData_CostValue,3) -> 1.732885293 | F18: =QUARTILE(IF(SummaryData_SCN=$F$10,SummaryData_CostValue),3) -> 1.485983655 | G18: =QUARTILE(IF(SummaryData_Cluster=$G$10,SummaryData_CostValue),3) -> 1.864107233 | H18: =QUARTILE(IF(SummaryData_Decile=$H$10,SummaryData_CostValue),3) -> 1.820195937 | K18: 00T | L18: NHS Bolton | M18: Greater Manchester Lancashire and South Cumbria | N18: No | O18: Comparator Closest 10 CCGs | P18: 2 | Q18: 14 | R18: 83701.49 | S18: 31304.05974 | T18: 2.673822204 | U18: 14 | V18: 210 | W18: 277783 | X18: 0.0007559857875 | Y18: =IF(GraphData!$N$3=-1,10000,1) -> 10000 | AF18: -0.0007559857875 | AG18: 75.59857875
B19: Comparison CCG | D19: =INDEX(SummaryData_CostValue,MATCH($D$11,SummaryData_CCGcode,0)) -> 1.233998317 | K19: 00V | L19: NHS Bury | M19: Greater Manchester Lancashire and South Cumbria | N19: No | O19: Comparator Closest 10 CCGs | P19: 5 | Q19: 15 | R19: 28948.57 | S19: 19739.12118 | T19: 1.466558198 | U19: 15 | V19: 130 | W19: 182021 | X19: 0.0007142033062 | Y19: =IF(GraphData!$N$3=-1,10000,1) -> 10000 | AF19: -0.0007142033062 | AG19: 71.42033062
B20: CCG rank | E20: =RANK($D19,SummaryData_CostValue,1)&" of 211" -> 97 of 211 | F20: =COUNTIF(SummaryData_SCN,$F11)-SUMPRODUCT((SummaryData_SCN=$F11)*(SummaryData_CostValue>$D19))&" of "&COUNTIF(SummaryData_SCN,$F11) -> 14 of 22 | G20: =COUNTIF(SummaryData_comparator,$G11)-SUMPRODUCT((SummaryData_comparator=$G11)*(SummaryData_CostValue>$D19))&" of "&COUNTIF(SummaryData_comparator,$G11) -> 5 of 10 | H20: =COUNTIF($P$5:$P$215,$H11)-SUMPRODUCT(($P$5:$P$215=$H11)*(SummaryData_CostValue>$D19))&" of "&COUNTIF($P$5:$P$215,$H11) -> 12 of 21 | K20: 00W | L20: NHS Central Manchester | M20: Greater Manchester Lancashire and South Cumbria | N20: No | O20: No | P20: 1 | Q20: 16 | R20: 13734.78 | S20: 30451.30374 | T20: 0.4510407869 | U20: 16 | V20: 96 | W20: 207508 | X20: 0.000462632766 | Y20: =IF(GraphData!$N$3=-1,10000,1) -> 10000 | AF20: -0.000462632766 | AG20: 46.2632766
B21: <25% of spending (Q1) | E21: =E16 -> 0.971303118 | F21: =QUARTILE(IF(SummaryData_SCN=$F$11,SummaryData_CostValue),1) -> 0.8200710571 | G21: =QUARTILE(IF(SummaryData_comparator=$G$11,SummaryData_CostValue),1) -> 1.015752314 | H21: =QUARTILE(IF(SummaryData_Decile=$H$11,SummaryData_CostValue),1) -> 0.62836324 | K21: 00X | L21: NHS Chorley and South Ribble | M21: Greater Manchester Lancashire and South Cumbria | N21: No | O21: No | P21: 6 | Q21: 17 | R21: 32788.69 | S21: 18013.82441 | T21: 1.820195937 | U21: 17 | V21: 109 | W21: 161506 | X21: 0.000674897527 | Y21: =IF(GraphData!$N$3=-1,10000,1) -> 10000 | AF21: -0.000674897527 | AG21: 67.4897527
B22: Average (Median) | E22: =E17 -> 1.31323181 | F22: =QUARTILE(IF(SummaryData_SCN=$F$11,SummaryData_CostValue),2) -> 1.065282117 | G22: =QUARTILE(IF(SummaryData_comparator=$G$11,SummaryData_CostValue),2) -> 1.318612462 | H22: =QUARTILE(IF(SummaryData_Decile=$H$11,SummaryData_CostValue),2) -> 1.109201464 | K22: 00Y | L22: NHS Oldham | M22: Greater Manchester Lancashire and South Cumbria | N22: No | O22: Comparator Closest 10 CCGs | P22: 2 | Q22: 18 | R22: 29273.49 | S22: 26391.49962 | T22: 1.109201464 | U22: 18 | V22: 175 | W22: 226007 | X22: 0.0007743123001 | Y22: =IF(GraphData!$N$3=-1,10000,1) -> 10000 | AF22: -0.0007743123001 | AG22: 77.43123001
B23: >25% of spending (Q2) | E23: =E18 -> 1.732885293 | F23: =QUARTILE(IF(SummaryData_SCN=$F$11,SummaryData_CostValue),3) -> 1.485983655 | G23: =QUARTILE(IF(SummaryData_comparator=$G$11,SummaryData_CostValue),3) -> 1.465513851 | H23: =QUARTILE(IF(SummaryData_Decile=$H$11,SummaryData_CostValue),2) -> 1.109201464 | K23: 01A | L23: NHS East Lancashire | M23: Greater Manchester Lancashire and South Cumbria | N23: No | O23: Comparator Closest 10 CCGs | P23: 3 | Q23: 19 | R23: 53837.36 | S23: 36814.87041 | T23: 1.46238081 | U23: 19 | V23: 298 | W23: 343506 | X23: 0.0008675248758 | Y23: =IF(GraphData!$N$3=-1,10000,1) -> 10000 | AF23: -0.0008675248758 | AG23: 86.75248758
B24: Saving | K24: 01C | L24: NHS Eastern Cheshire | M24: Cheshire and Merseyside | N24: No | O24: No | P24: 9 | Q24: 20 | R24: 39070.7 | S24: 19423.3898 | T24: 2.01152839 | U24: 20 | V24: 107 | W24: 183094 | X24: 0.0005843992703 | Y24: =IF(GraphData!$N$3=-1,10000,1) -> 10000 | AF24: -0.0005843992703 | AG24: 58.43992703
B25: Chosen CCG | D25: Where | E25: Difference | F25: Annually | K25: 01D | L25: NHS Heywood, Middleton and Rochdale | M25: Greater Manchester Lancashire and South Cumbria | N25: No | O25: Comparator Closest 10 CCGs | P25: 2 | Q25: 21 | R25: 23043.6 | S25: 23403.96019 | T25: 0.9846025979 | U25: 21 | V25: 178 | W25: 208462 | X25: 0.0008538726483 | Y25: =IF(GraphData!$N$3=-1,10000,1) -> 10000 | AF25: -0.0008538726483 | AG25: 85.38726483
B26: Lowest 25% | D26: =IF(E16-$D$14<0,"outside","within") -> outside | E26: =ABS(E16-$D$14) -> 1.023359893 | F26: ="£"&ROUND((INDEX(SummaryData_CostDen,MATCH($D$10,Lookup_CCGcode,0))*$E26)/1000,0)&" thousand annually" -> £11 thousand annually | G26: =(INDEX(SummaryData_CostDen,MATCH($D$10,Lookup_CCGcode,0))*$E26) -> 10683.08961 | K26: 01E | L26: NHS Greater Preston | M26: Greater Manchester Lancashire and South Cumbria | N26: No | O26: No | P26: 4 | Q26: 22 | R26: 31529.25 | S26: 22881.98286 | T26: 1.377907247 | U26: 22 | V26: 138 | W26: 195492 | X26: 0.0007059112393 | Y26: =IF(GraphData!$N$3=-1,10000,1) -> 10000 | AF26: -0.0007059112393 | AG26: 70.59112393
B27: Highest 25% | D27: =IF(E18-$D$14<0,"within","outside") -> within | E27: =ABS(E18-$D$14) -> 0.2617777174 | F27: ="£"&ROUND((INDEX(SummaryData_CostDen,MATCH($D$10,Lookup_CCGcode,0))*$E27)/1000,0)&" thousand annually" -> £3 thousand annually | G27: =(INDEX(SummaryData_CostDen,MATCH($D$10,Lookup_CCGcode,0))*$E27) -> 2732.757884 | K27: 01F | L27: NHS Halton | M27: Cheshire and Merseyside | N27: No | O27: No | P27: 2 | Q27: 23 | R27: 17517.23 | S27: 13257.0604 | T27: 1.321350999 | U27: 23 | V27: 94 | W27: 120429 | X27: 0.0007805428925 | Y27: =IF(GraphData!$N$3=-1,10000,1) -> 10000 | AF27: -0.0007805428925 | AG27: 78.05428925
B28: Comparison CCG | K28: 01G | L28: NHS Salford | M28: Greater Manchester Lancashire and South Cumbria | N28: No | O28: No | P28: 1 | Q28: 24 | R28: 40143.96 | S28: 27141.26071 | T28: 1.479074993 | U28: 24 | V28: 201 | W28: 235008 | X28: 0.0008552900327 | Y28: =IF(GraphData!$N$3=-1,10000,1) -> 10000 | AF28: -0.0008552900327 | AG28: 85.52900327
B29: Lowest 25% | D29: =IF(E21-$D$19<0,"outside","within") -> outside | E29: =ABS(E21-$D$19) -> 0.2626951989 | F29: ="£"&ROUND((INDEX(SummaryData_CostDen,MATCH($D$11,Lookup_CCGcode,0))*$E29)/1000,0)&" thousand annually" -> £10 thousand annually | G29: =(INDEX(SummaryData_CostDen,MATCH($D$11,Lookup_CCGcode,0))*$E29) -> 9671.089704 | K29: 01H | L29: NHS Cumbria | M29: Northern England | N29: No | O29: No | P29: 5 | Q29: 25 | R29: 81810.46 | S29: 47254.32744 | T29: 1.731279746 | U29: 25 | V29: 384 | W29: 472104 | X29: 0.0008133801027 | Y29: =IF(GraphData!$N$3=-1,10000,1) -> 10000 | AF29: -0.0008133801027 | AG29: 81.33801027
B30: Highest 25% | D30: =IF(E23-$D$19<0,"within","outside") -> outside | E30: =ABS(E23-$D$19) -> 0.4988869762 | F30: ="£"&ROUND((INDEX(SummaryData_CostDen,MATCH($D$11,Lookup_CCGcode,0))*$E30)/1000,0)&" thousand annually" -> £18 thousand annually | G30: =(INDEX(SummaryData_CostDen,MATCH($D$11,Lookup_CCGcode,0))*$E30) -> 18366.45938 | K30: 01J | L30: NHS Knowsley | M30: Cheshire and Merseyside | N30: No | O30: No | P30: 1 | Q30: 26 | R30: 24685.65 | S30: 15544.29647 | T30: 1.588084096 | U30: 26 | V30: 119 | W30: 149386 | X30: 0.0007965940583 | Y30: =IF(GraphData!$N$3=-1,10000,1) -> 10000 | AF30: -0.0007965940583 | AG30: 79.65940583
K31: 01K | L31: NHS Lancashire North | M31: Greater Manchester Lancashire and South Cumbria | N31: No | O31: No | P31: 6 | Q31: 27 | R31: 21441.67 | S31: 16327.40681 | T31: 1.31323181 | U31: 27 | V31: 115 | W31: 147300 | X31: 0.0007807196198 | Y31: =IF(GraphData!$N$3=-1,10000,1) -> 10000 | AF31: -0.0007807196198 | AG31: 78.07196198
B32: Outcomes | C32: No. | D32: Name | F32: Chosen value | G32: Comp value | K32: 01M | L32: NHS North Manchester | M32: Greater Manchester Lancashire and South Cumbria | N32: No | O32: No | P32: 1 | Q32: 28 | R32: 16042.57 | S32: 21458.20189 | T32: 0.7476194921 | U32: 28 | V32: 164 | W32: 181878 | X32: 0.0009017033396 | Y32: =IF(GraphData!$N$3=-1,10000,1) -> 10000 | AF32: -0.0009017033396 | AG32: 90.17033396
B33: Indicator | C33: =Summary_Outcomes!F12 -> 1 | D33: =INDEX(Lookup_OutcomeNameLower,MATCH($C$33,Lookup_OutcomeNo,0)) -> Under 75 mortality from cardiovascular disease | K33: 01N | L33: NHS South Manchester | M33: Greater Manchester Lancashire and South Cumbria | N33: No | O33: No | P33: 1 | Q33: 29 | R33: 16845.29 | S33: 20015.99045 | T33: 0.8415916284 | U33: 29 | V33: 100 | W33: 158331 | X33: 0.000631588255 | Y33: =IF(GraphData!$N$3=-1,10000,1) -> 10000 | AF33: -0.000631588255 | AG33: 63.1588255
B34: Numerator | D34: ="DataOutcome_"&INDEX(Lookup_OutcomeNamedRng,MATCH($C33,Lookup_OutcomeNo,0))&"_Num" -> DataOutcome_Ind1_Num | F34: =INDEX(SummaryData_OutcomeNum,MATCH($D$38,SummaryData_CCGcode,0)) -> 83 | G34: =INDEX(SummaryData_OutcomeNum,MATCH($D$39,SummaryData_CCGcode,0)) -> 251 | K34: 01R | L34: NHS South Cheshire | M34: Cheshire and Merseyside | N34: No | O34: No | P34: 8 | Q34: 30 | R34: 25715.2 | S34: 17581.63061 | T34: 1.462617465 | U34: 30 | V34: 142 | W34: 161357 | X34: 0.000880036193 | Y34: =IF(GraphData!$N$3=-1,10000,1) -> 10000 | AF34: -0.000880036193 | AG34: 88.0036193
B35: Denominator | D35: ="DataOutcome_"&INDEX(Lookup_OutcomeNamedRng,MATCH($C33,Lookup_OutcomeNo,0))&"_Den" -> DataOutcome_Ind1_Den | F35: =INDEX(SummaryData_OutcomeDen,MATCH($D$38,SummaryData_CCGcode,0)) -> 141517 | G35: =INDEX(SummaryData_OutcomeDen,MATCH($D$39,SummaryData_CCGcode,0)) -> 309647 | K35: 01T | L35: NHS South Sefton | M35: Cheshire and Merseyside | N35: No | O35: No | P35: 2 | Q35: 31 | R35: 22546.57 | S35: 14439.19926 | T35: 1.561483404 | U35: 31 | V35: 109 | W35: 141959 | X35: 0.0007678273304 | Y35: =IF(GraphData!$N$3=-1,10000,1) -> 10000 | AF35: -0.0007678273304 | AG35: 76.78273304
K36: 01V | L36: NHS Southport and Formby | M36: Cheshire and Merseyside | N36: No | O36: No | P36: 7 | Q36: 32 | R36: 22533.27 | S36: 10444.87179 | T36: 2.157352473 | U36: 32 | V36: 79 | W36: 107574 | X36: 0.0007343781955 | Y36: =IF(GraphData!$N$3=-1,10000,1) -> 10000 | AF36: -0.0007343781955 | AG36: 73.43781955
C37: No. | D37: CCG | E37: CCG name | F37: SCN | G37: Cluster | H37: Deciles | K37: 01W | L37: NHS Stockport | M37: Greater Manchester Lancashire and South Cumbria | N37: No | O37: No | P37: 6 | Q37: 33 | R37: 47696.97 | S37: 30593.94125 | T37: 1.559033196 | U37: 33 | V37: 184 | W37: 274507 | X37: 0.0006702925608 | Y37: =IF(GraphData!$N$3=-1,10000,1) -> 10000 | AF37: -0.0006702925608 | AG37: 67.02925608
B38: Chosen CCG | C38: =Menu_ChosenCCG -> 1 | D38: =INDEX(Lookup_CCGcode,C38) -> 02N | E38: =INDEX(Lookup_CCGname,$C38) -> NHS Airedale, Wharfedale and Craven | F38: =INDEX(Lookup_SCN,MATCH($D38,Lookup_CCGcode,0)) -> Yorkshire and Northern | G38: =INDEX(Lookup_Cluster,MATCH($D38,Lookup_CCGcode,0)) -> Closest 10 CCGs | H38: =INDEX(Lookup_Decile,MATCH($D38,Lookup_CCGcode,0)) -> 6 | K38: 01X | L38: NHS St Helens | M38: Cheshire and Merseyside | N38: No | O38: No | P38: 3 | Q38: 34 | R38: 30867.33 | S38: 18652.68133 | T38: 1.6548468 | U38: 34 | V38: 164 | W38: 177698 | X38: 0.0009229141577 | Y38: =IF(GraphData!$N$3=-1,10000,1) -> 10000 | AF38: -0.0009229141577 | AG38: 92.29141577
B39: Comparison CCG | C39: =Summary_Cost!$F$15 -> 19 | D39: =INDEX(Lookup_CCGcode,C39) -> 02R | E39: =INDEX(Lookup_CCGname,$C39) -> NHS Bradford Districts | F39: =INDEX(Lookup_SCN,MATCH($D39,Lookup_CCGcode,0)) -> Yorkshire and Northern | G39: =INDEX(Lookup_Comparator,MATCH($D39,Lookup_CCGcode,0)) -> Comparator Closest 10 CCGs | H39: =INDEX(Lookup_Decile,MATCH($D39,Lookup_CCGcode,0)) -> 2 | K39: 01Y | L39: NHS Tameside and Glossop | M39: East Midlands | N39: No | O39: No | P39: 3 | Q39: 35 | R39: 33603.09 | S39: 25016.27449 | T39: 1.343249172 | U39: 35 | V39: 242 | W39: 224851 | X39: 0.001076268284 | Y39: =IF(GraphData!$N$3=-1,10000,1) -> 10000 | AF39: -0.001076268284 | AG39: 107.6268284
K40: 02A | L40: NHS Trafford | M40: Greater Manchester Lancashire and South Cumbria | N40: No | O40: No | P40: 7 | Q40: 36 | R40: 27005.06 | S40: 24262.69292 | T40: 1.113028141 | U40: 36 | V40: 149 | W40: 217504 | X40: 0.0006850448727 | Y40: =IF(GraphData!$N$3=-1,10000,1) -> 10000 | AF40: -0.0006850448727 | AG40: 68.50448727
D41: Outcome | E41: Eng Outcome | F41: SCN Outcome | G41: Cluster Outcome | H41: Decile Outcome | K41: 02D | L41: NHS Vale Royal | M41: Cheshire and Merseyside | N41: No | O41: No | P41: 7 | Q41: 37 | R41: 8438.65 | S41: 10709.88689 | T41: 0.787930824 | U41: 37 | V41: 65 | W41: 94647 | X41: 0.0006867623908 | Y41: =IF(GraphData!$N$3=-1,10000,1) -> 10000 | AF41: -0.0006867623908 | AG41: 68.67623908
K42: 02E | L42: NHS Warrington | M42: Cheshire and Merseyside | N42: No | O42: No | P42: 6 | Q42: 38 | R42: 22583.72 | S42: 22761.11595 | T42: 0.9922061838 | U42: 38 | V42: 126 | W42: 194652 | X42: 0.0006473090438 | Y42: =IF(GraphData!$N$3=-1,10000,1) -> 10000 | AF42: -0.0006473090438 | AG42: 64.73090438
B43: Chosen CCG | D43: =INDEX(SummaryData_OutcomeValue,MATCH($D$38,SummaryData_CCGcode,0)) -> 0.000586501975 | E43: =D43*$H$3 -> -0.000586501975 | K43: 02F | L43: NHS West Cheshire | M43: Cheshire and Merseyside | N43: No | O43: No | P43: 7 | Q43: 39 | R43: 37398.5 | S43: 25154.26318 | T43: 1.486765871 | U43: 39 | V43: 154 | W43: 232979 | X43: 0.0006610037815 | Y43: =IF(GraphData!$N$3=-1,10000,1) -> 10000 | AF43: -0.0006610037815 | AG43: 66.10037815
B44: CCG rank | D44: =RANK($E43,SummaryData_OutcomeValue2) -> 77 | E44: =RANK($E43,SummaryData_OutcomeValue2)&" of 211" -> 77 of 211 | F44: =IF($H$3=1,F61,F62) -> 5 of 22 | G44: =IF(H3=1,G61,G62) -> 4 of 10 | H44: =IF(H3=1,H61,H62) -> 4 of 21 | K44: 02G | L44: NHS West Lancashire | M44: Greater Manchester Lancashire and South Cumbria | N44: No | O44: No | P44: 6 | Q44: 40 | R44: 29172.35 | S44: 10989.00775 | T44: 2.654684632 | U44: 40 | V44: 75 | W44: 102178 | X44: 0.0007340131927 | Y44: =IF(GraphData!$N$3=-1,10000,1) -> 10000 | AF44: -0.0007340131927 | AG44: 73.40131927
B45: <25% of outcome (Q1) | E45: =IF(H3=1,QUARTILE(SummaryData_OutcomeValue,1),QUARTILE(SummaryData_OutcomeValue,3)*100) -> 0.07673251474 | F45: =QUARTILE(IF(SummaryData_SCN=$F$10,SummaryData_OutcomeValue),1) -> 0.0006258930987 | G45: =QUARTILE(IF(SummaryData_Cluster=$G$10,SummaryData_OutcomeValue),1) -> 0.0005519101283 | H45: =QUARTILE(IF(SummaryData_Decile=$H$10,SummaryData_OutcomeValue),1) -> 0.0006537060366 | K45: 02H | L45: NHS Wigan Borough | M45: Greater Manchester Lancashire and South Cumbria | N45: No | O45: No | P45: 3 | Q45: 41 | R45: 75870.89 | S45: 32732.68034 | T45: 2.317894203 | U45: 41 | V45: 234 | W45: 297943 | X45: 0.000785385124 | Y45: =IF(GraphData!$N$3=-1,10000,1) -> 10000 | AF45: -0.000785385124 | AG45: 78.5385124
B46: Average (Median) | E46: =IF(H3=1,QUARTILE(SummaryData_OutcomeValue,2),QUARTILE(SummaryData_OutcomeValue,2)*100) -> 0.06598482349 | F46: =QUARTILE(IF(SummaryData_SCN=$F$10,SummaryData_OutcomeValue),2) -> 0.0007419853797 | G46: =QUARTILE(IF(SummaryData_Cluster=$G$10,SummaryData_OutcomeValue),2) -> 0.0006774564016 | H46: =QUARTILE(IF(SummaryData_Decile=$H$10,SummaryData_OutcomeValue),2) -> 0.0006929821331 | K46: 02M | L46: NHS Fylde & Wyre | M46: Greater Manchester Lancashire and South Cumbria | N46: No | O46: No | P46: 8 | Q46: 42 | R46: 16652.31 | S46: 12706.35721 | T46: 1.310549493 | U46: 42 | V46: 132 | W46: 132820 | X46: 0.000993826231 | Y46: =IF(GraphData!$N$3=-1,10000,1) -> 10000 | AF46: -0.000993826231 | AG46: 99.3826231
B47: >25% of outcome (Q2) | E47: =IF(H3=1,QUARTILE(SummaryData_OutcomeValue,3),QUARTILE(SummaryData_OutcomeValue,1)*100) -> 0.05226238815 | F47: =QUARTILE(IF(SummaryData_SCN=$F$10,SummaryData_OutcomeValue),3) -> 0.0007976138701 | G47: =QUARTILE(IF(SummaryData_Cluster=$G$10,SummaryData_OutcomeValue),3) -> 0.0007815736371 | H47: =QUARTILE(IF(SummaryData_Decile=$H$10,SummaryData_OutcomeValue),3) -> 0.0007340131927 | K47: 02N | L47: NHS Airedale, Wharfedale and Craven | M47: Yorkshire and Northern | N47: Closest 10 CCGs | O47: No | P47: 6 | Q47: 43 | R47: 30248.84 | S47: 15164.88742 | T47: 1.994663011 | U47: 43 | V47: 83 | W47: 141517 | X47: 0.000586501975 | Y47: =IF(GraphData!$N$3=-1,10000,1) -> 10000 | AF47: -0.000586501975 | AG47: 58.6501975
B48: Comparison CCG | D48: =INDEX(SummaryData_OutcomeValue,MATCH($D$39,SummaryData_CCGcode,0)) -> 0.0008106004579 | E48: =D48*$H$3 -> -0.0008106004579 | K48: 02P | L48: NHS Barnsley | M48: Yorkshire and Northern | N48: No | O48: No | P48: 3 | Q48: 44 | R48: 23390.74 | S48: 24249.49153 | T48: 0.9645868234 | U48: 44 | V48: 209 | W48: 231608 | X48: 0.0009023867915 | Y48: =IF(GraphData!$N$3=-1,10000,1) -> 10000 | AF48: -0.0009023867915 | AG48: 90.23867915
B49: CCG rank | D49: =RANK($E48,SummaryData_OutcomeValue2) -> 181 | E49: =RANK($E48,SummaryData_OutcomeValue2)&" of 211" -> 181 of 211 | F49: =IF($H$3=1,F64,F65) -> 18 of 22 | G49: =IF($H$3=1,G64,G65) -> 7 of 10 | H49: =IF($H$3=1,H64,H65) -> 17 of 21 | K49: 02Q | L49: NHS Bassetlaw | M49: Yorkshire and Northern | N49: No | O49: No | P49: 4 | Q49: 45 | R49: 15986.14 | S49: 10835.43078 | T49: 1.475358047 | U49: 45 | V49: 82 | W49: 102615 | X49: 0.0007991034449 | Y49: =IF(GraphData!$N$3=-1,10000,1) -> 10000 | AF49: -0.0007991034449 | AG49: 79.91034449
B50: <25% of outcome (Q1) | E50: =E45 -> 0.07673251474 | F50: =QUARTILE(IF(SummaryData_SCN=$F$11,SummaryData_OutcomeValue),1) -> 0.0006258930987 | G50: =QUARTILE(IF(SummaryData_comparator=$G$11,SummaryData_OutcomeValue),1) -> 0.0007362074033 | H50: =QUARTILE(IF(SummaryData_Decile=$H$11,SummaryData_OutcomeValue),1) -> 0.0004970433452 | K50: 02R | L50: NHS Bradford Districts | M50: Yorkshire and Northern | N50: No | O50: Comparator Closest 10 CCGs | P50: 2 | Q50: 46 | R50: 44499.34 | S50: 36061.10267 | T50: 1.233998317 | U50: 46 | V50: 251 | W50: 309647 | X50: 0.0008106004579 | Y50: =IF(GraphData!$N$3=-1,10000,1) -> 10000 | AF50: -0.0008106004579 | AG50: 81.06004579
B51: Average (Median) | E51: =E46 -> 0.06598482349 | F51: =QUARTILE(IF(SummaryData_SCN=$F$11,SummaryData_OutcomeValue),2) -> 0.0007419853797 | G51: =QUARTILE(IF(SummaryData_comparator=$G$11,SummaryData_OutcomeValue),2) -> 0.0007705676323 | H51: =QUARTILE(IF(SummaryData_Decile=$H$11,SummaryData_OutcomeValue),2) -> 0.0007559857875 | K51: 02T | L51: NHS Calderdale | M51: Yorkshire and Northern | N51: Closest 10 CCGs | O51: No | P51: 5 | Q51: 47 | R51: 22950.59 | S51: 23011.71036 | T51: 0.9973439455 | U51: 47 | V51: 165 | W51: 199042 | X51: 0.00082897077 | Y51: =IF(GraphData!$N$3=-1,10000,1) -> 10000 | AF51: -0.00082897077 | AG51: 82.897077
B52: >25% of outcome (Q2) | E52: =E47 -> 0.05226238815 | F52: =QUARTILE(IF(SummaryData_SCN=$F$11,SummaryData_OutcomeValue),3) -> 0.0007976138701 | G52: =QUARTILE(IF(SummaryData_comparator=$G$11,SummaryData_OutcomeValue),3) -> 0.0008224749266 | H52: =QUARTILE(IF(SummaryData_Decile=$H$11,SummaryData_OutcomeValue),2) -> 0.0007559857875 | K52: 02V | L52: NHS Leeds North | M52: Yorkshire and Northern | N52: No | O52: No | P52: 5 | Q52: 48 | R52: 17681.06 | S52: 21868.16479 | T52: 0.8085296671 | U52: 48 | V52: 99 | W52: 188671 | X52: 0.0005247229304 | Y52: =IF(GraphData!$N$3=-1,10000,1) -> 10000 | AF52: -0.0005247229304 | AG52: 52.47229304
B53: Saving | K53: 02W | L53: NHS Bradford City | M53: Yorkshire and Northern | N53: No | O53: No | P53: 1 | Q53: 49 | R53: 3053.74 | S53: 19663.09543 | T53: 0.1553031164 | U53: 49 | V53: 67 | W53: 116880 | X53: 0.0005732375086 | Y53: =IF(GraphData!$N$3=-1,10000,1) -> 10000 | AF53: -0.0005732375086 | AG53: 57.32375086
B54: Chosen CCG | D54: Where | E54: Difference | F54: Annually | K54: 02X | L54: NHS Doncaster | M54: Yorkshire and Northern | N54: No | O54: No | P54: 2 | Q54: 50 | R54: 51826.94 | S54: 29641.08201 | T54: 1.748483405 | U54: 50 | V54: 224 | W54: 284492 | X54: 0.0007873683619 | Y54: =IF(GraphData!$N$3=-1,10000,1) -> 10000 | AF54: -0.0007873683619 | AG54: 78.73683619
B55: Lowest 25% | D55: =IF(E45-$D$43<0,"outside","within") -> within | E55: =ABS(E45-$D$43) -> 0.07614601277 | K55: 02Y | L55: NHS East Riding Of Yorkshire | M55: Yorkshire and Northern | N55: No | O55: No | P55: 8 | Q55: 51 | R55: 39715.05 | S55: 26662.88651 | T55: 1.489525524 | U55: 51 | V55: 207 | W55: 270065 | X55: 0.0007664821432 | Y55: =IF(GraphData!$N$3=-1,10000,1) -> 10000 | AF55: -0.0007664821432 | AG55: 76.64821432
B56: Highest 25% | D56: =IF(E47-$D$43<0,"within","outside") -> outside | E56: =ABS(E47-$D$43) -> 0.05167588618 | K56: 03A | L56: NHS Greater Huddersfield | M56: Yorkshire and Northern | N56: No | O56: No | P56: 5 | Q56: 52 | R56: 26405.61 | S56: 25652.91547 | T56: 1.029341481 | U56: 52 | V56: 135 | W56: 223216 | X56: 0.0006047953552 | Y56: =IF(GraphData!$N$3=-1,10000,1) -> 10000 | AF56: -0.0006047953552 | AG56: 60.47953552
B57: Comparison CCG | K57: 03C | L57: NHS Leeds West | M57: Yorkshire and Northern | N57: No | O57: No | P57: 5 | Q57: 53 | R57: 30366.43 | S57: 42939.55979 | T57: 0.7071900632 | U57: 53 | V57: 192 | W57: 337601 | X57: 0.0005687186946 | Y57: =IF(GraphData!$N$3=-1,10000,1) -> 10000 | AF57: -0.0005687186946 | AG57: 56.87186946
B58: Lowest 25% | D58: =IF(E50-$D$48<0,"outside","within") -> within | E58: =ABS(E50-D48) -> 0.07592191429 | K58: 03D | L58: NHS Hambleton, Richmondshire and Whitby | M58: Northern England | N58: No | O58: No | P58: 9 | Q58: 54 | R58: 20598.48 | S58: 12490.94426 | T58: 1.649073086 | U58: 54 | V58: 80 | W58: 127653 | X58: 0.0006266989417 | Y58: =IF(GraphData!$N$3=-1,10000,1) -> 10000 | AF58: -0.0006266989417 | AG58: 62.66989417
B59: Highest 25% | D59: =IF(E52-$D$48<0,"within","outside") -> outside | E59: =E52-D48 -> 0.05145178769 | K59: 03E | L59: NHS Harrogate and Rural District | M59: Yorkshire and Northern | N59: Closest 10 CCGs | O59: No | P59: 10 | Q59: 55 | R59: 21048.4 | S59: 15245.65923 | T59: 1.380615931 | U59: 55 | V59: 78 | W59: 144343 | X59: 0.0005403795127 | Y59: =IF(GraphData!$N$3=-1,10000,1) -> 10000 | AF59: -0.0005403795127 | AG59: 54.03795127
F60: =(E48*100)*-1 -> 0.08106004579 | K60: 03F | L60: NHS Hull | M60: Yorkshire and Northern | N60: No | O60: No | P60: 1 | Q60: 56 | R60: 19967.49 | S60: 29552.51374 | T60: 0.675661305 | U60: 56 | V60: 199 | W60: 269479 | X60: 0.0007384619952 | Y60: =IF(GraphData!$N$3=-1,10000,1) -> 10000 | AF60: -0.0007384619952 | AG60: 73.84619952
B61: Formulas to change ranking system dependant on indicators polarity on summary outcomes page. | F61: =SUMPRODUCT((SummaryData_SCN=$F38)*(SummaryData_OutcomeValue>$D43))+1&" of "&COUNTIF(SummaryData_SCN,$F38) -> 18 of 22 | G61: =SUMPRODUCT((SummaryData_Cluster=$G38)*(SummaryData_OutcomeValue>$D43))+1&" of "&COUNTIF(SummaryData_Cluster,$G38) -> 7 of 10 | H61: =SUMPRODUCT(($P$5:$P$215=$H38)*(SummaryData_OutcomeValue>$D43))+1&" of "&COUNTIF($P$5:$P$215,$H38) -> 18 of 21 | K61: 03G | L61: NHS Leeds South and East | M61: Yorkshire and Northern | N61: No | O61: Comparator Closest 10 CCGs | P61: 1 | Q61: 57 | R61: 20593.47 | S61: 26999.38468 | T61: 0.7627384937 | U61: 57 | V61: 179 | W61: 245335 | X61: 0.0007296146086 | Y61: =IF(GraphData!$N$3=-1,10000,1) -> 10000 | AF61: -0.0007296146086 | AG61: 72.96146086
F62: =SUMPRODUCT((SummaryData_SCN=$F38)*(SummaryData_OutcomeValue2>$E43))+1&" of "&COUNTIF(SummaryData_SCN,$F38) -> 5 of 22 | G62: =SUMPRODUCT((SummaryData_Cluster=$G38)*(SummaryData_OutcomeValue2>$E43))+1&" of "&COUNTIF(SummaryData_Cluster,$G38) -> 4 of 10 | H62: =SUMPRODUCT(($P$5:$P$215=$H38)*(SummaryData_OutcomeValue2>$E43))+1&" of "&COUNTIF($P$5:$P$215,$H38) -> 4 of 21 | K62: 03H | L62: NHS North East Lincolnshire | M62: Yorkshire and Northern | N62: No | O62: No | P62: 3 | Q62: 58 | R62: 17287.26 | S62: 16168.12458 | T62: 1.069218629 | U62: 58 | V62: 122 | W62: 153818 | X62: 0.0007931451456 | Y62: =IF(GraphData!$N$3=-1,10000,1) -> 10000 | AF62: -0.0007931451456 | AG62: 79.31451456
K63: 03J | L63: NHS North Kirklees | M63: Yorkshire and Northern | N63: No | O63: Comparator Closest 10 CCGs | P63: 3 | Q63: 59 | R63: 14395.07 | S63: 20961.62047 | T63: 0.6867345977 | U63: 59 | V63: 127 | W63: 174635 | X63: 0.000727231082 | Y63: =IF(GraphData!$N$3=-1,10000,1) -> 10000 | AF63: -0.000727231082 | AG63: 72.7231082
B64: Formulas to change ranking system dependant on indicators polarity on summary outcomes page. | F64: =SUMPRODUCT((SummaryData_SCN=$F39)*(SummaryData_OutcomeValue>$D48))+1&" of "&COUNTIF(SummaryData_SCN,$F39) -> 5 of 22 | G64: =SUMPRODUCT((SummaryData_comparator=$G39)*(SummaryData_OutcomeValue>$D48))+1&" of "&COUNTIF(SummaryData_comparator,$G39) -> 4 of 10 | H64: =SUMPRODUCT(($P$5:$P$215=$H39)*(SummaryData_OutcomeValue>$D48))+1&" of "&COUNTIF($P$5:$P$215,$H39) -> 5 of 21 | K64: 03K | L64: NHS North Lincolnshire | M64: Yorkshire and Northern | N64: No | O64: No | P64: 5 | Q64: 60 | R64: 29152.06 | S64: 16557.06204 | T64: 1.760702469 | U64: 60 | V64: 126 | W64: 155265 | X64: 0.0008115157956 | Y64: =IF(GraphData!$N$3=-1,10000,1) -> 10000 | AF64: -0.0008115157956 | AG64: 81.15157956
F65: =SUMPRODUCT((SummaryData_SCN=$F39)*(SummaryData_OutcomeValue2>$E48))+1&" of "&COUNTIF(SummaryData_SCN,$F39) -> 18 of 22 | G65: =SUMPRODUCT((SummaryData_comparator=$G39)*(SummaryData_OutcomeValue2>$E48))+1&" of "&COUNTIF(SummaryData_comparator,$G39) -> 7 of 10 | H65: =SUMPRODUCT(($P$5:$P$215=$H39)*(SummaryData_OutcomeValue2>$E48))+1&" of "&COUNTIF($P$5:$P$215,$H39) -> 17 of 21 | K65: 03L | L65: NHS Rotherham | M65: Yorkshire and Northern | N65: No | O65: No | P65: 3 | Q65: 61 | R65: 48405.85 | S65: 25257.45497 | T65: 1.916497527 | U65: 61 | V65: 177 | W65: 236637 | X65: 0.000747981085 | Y65: =IF(GraphData!$N$3=-1,10000,1) -> 10000 | AF65: -0.000747981085 | AG65: 74.7981085
K66: 03M | L66: NHS Scarborough and Ryedale | M66: Yorkshire and Northern | N66: No | O66: No | P66: 4 | Q66: 62 | R66: 19130.39 | S66: 10261.89649 | T66: 1.864215841 | U66: 62 | V66: 114 | W66: 105607 | X66: 0.001079473899 | Y66: =IF(GraphData!$N$3=-1,10000,1) -> 10000 | AF66: -0.001079473899 | AG66: 107.9473899
B67: crude rate | K67: 03N | L67: NHS Sheffield | M67: Yorkshire and Northern | N67: No | O67: No | P67: 3 | Q67: 63 | R67: 65594.72 | S67: 61803.35578 | T67: 1.061345605 | U67: 63 | V67: 368 | W67: 533963 | X67: 0.0006891863294 | Y67: =IF(GraphData!$N$3=-1,10000,1) -> 10000 | AF67: -0.0006891863294 | AG67: 68.91863294
B68: =IF(H3=1,D43,D43*100) -> 0.0586501975 | D68: =IF(B68>B70,"higher","lower") -> lower | K68: 03Q | L68: NHS Vale Of York | M68: Yorkshire and Northern | N68: No | O68: No | P68: 9 | Q68: 64 | R68: 41484.96 | S68: 34098.96208 | T68: 1.216604772 | U68: 64 | V68: 220 | W68: 313724 | X68: 0.000701253331 | Y68: =IF(GraphData!$N$3=-1,10000,1) -> 10000 | AF68: =X68*$H$3 -> -0.000701253331 | AG68: =(X68*Y68)*10 -> 70.1253331
B69: =IF(H3=1,D48,D48*100) -> 0.08106004579 | K69: 03R | L69: NHS Wakefield | M69: =INDEX(Lookup_SCN,MATCH($K69,Lookup_CCGcode,0)) -> Yorkshire and Northern | N69: =INDEX(Lookup_Cluster,MATCH($K69,Lookup_CCGcode,0)) -> No | O69: =INDEX(Lookup_Comparator,MATCH($K69,Lookup_CCGcode,0)) -> No | P69: =INDEX(Lookup_Decile,MATCH($K69,Lookup_CCGcode,0)) -> 4 | Q69: =MATCH($K69,DataCost_CCGcode,0) -> 65 | R69: =INDEX(INDIRECT($D$6),Q69) -> 31310.88 | S69: =INDEX(INDIRECT($D$7),Q69) -> 36633.9708 | T69: =IFERROR(R69/S69,0) -> 0.8546952273 | U69: =MATCH($K69,DataCost_CCGcode,0) -> 65 | V69: =INDEX(INDIRECT($D$34),U69) -> 246 | W69: =INDEX(INDIRECT($D$35),U69) -> 329976 | X69: =(V69/W69) -> 0.0007455087643 | Y69: =IF(GraphData!$N$3=-1,10000,1) -> 10000 | AF69: -0.0007455087643 | AG69: 74.55087643
B70: =E46 -> 0.06598482349 | K70: 03T | L70: NHS Lincolnshire East | M70: East Midlands | N70: No | O70: No | P70: 4 | Q70: 66 | R70: 53000.16 | S70: 19598.26917 | T70: 2.704328609 | U70: 66 | V70: 240 | W70: 216597 | X70: 0.001108048588 | Y70: =IF(GraphData!$N$3=-1,10000,1) -> 10000 | AF70: -0.001108048588 | AG70: 110.8048588
K71: 03V | L71: NHS Corby | M71: East Midlands | N71: No | O71: No | P71: 3 | Q71: 67 | R71: 13045.95 | S71: 8169.409038 | T71: 1.596927016 | U71: 67 | V71: 60 | W71: 66498 | X71: 0.0009022827754 | Y71: =IF(GraphData!$N$3=-1,10000,1) -> 10000 | AF71: -0.0009022827754 | AG71: 90.22827754
K72: 03W | L72: NHS East Leicestershire and Rutland | M72: East Midlands | N72: No | O72: No | P72: 10 | Q72: 68 | R72: 47131.86 | S72: 31421.80235 | T72: 1.499973155 | U72: 68 | V72: 163 | W72: 290534 | X72: 0.0005610358856 | Y72: =IF(GraphData!$N$3=-1,10000,1) -> 10000 | AF72: -0.0005610358856 | AG72: 56.10358856
K73: 03X | L73: NHS Erewash | M73: East Midlands | N73: No | O73: No | P73: 5 | Q73: 69 | R73: 11173.56 | S73: 9587.5 | T73: 1.165429987 | U73: 69 | V73: 62 | W73: 88748 | X73: 0.0006986072926 | Y73: =IF(GraphData!$N$3=-1,10000,1) -> 10000 | AF73: -0.0006986072926 | AG73: 69.86072926
K74: 03Y | L74: NHS Hardwick | M74: East Midlands | N74: No | O74: No | P74: 4 | Q74: 70 | R74: 15774.05 | S74: 9439.730702 | T74: 1.671027543 | U74: 70 | V74: 81 | W74: 93198 | X74: 0.000869117363 | Y74: =IF(GraphData!$N$3=-1,10000,1) -> 10000 | AF74: -0.000869117363 | AG74: 86.9117363
K75: 04C | L75: NHS Leicester City | M75: East Midlands | N75: No | O75: No | P75: 2 | Q75: 71 | R75: 36450.99 | S75: 48616.77801 | T75: 0.7497615328 | U75: 71 | V75: 228 | W75: 355505 | X75: 0.0006413411907 | Y75: =IF(GraphData!$N$3=-1,10000,1) -> 10000 | AF75: -0.0006413411907 | AG75: 64.13411907
K76: 04D | L76: NHS Lincolnshire West | M76: East Midlands | N76: No | O76: No | P76: 6 | Q76: 72 | R76: 31313.53 | S76: 22731.26253 | T76: 1.377553489 | U76: 72 | V76: 160 | W76: 207991 | X76: 0.0007692640547 | Y76: =IF(GraphData!$N$3=-1,10000,1) -> 10000 | AF76: -0.0007692640547 | AG76: 76.92640547
K77: 04E | L77: NHS Mansfield and Ashfield | M77: East Midlands | N77: No | O77: No | P77: 3 | Q77: 73 | R77: 22595.66 | S77: 18279.40594 | T77: 1.236126605 | U77: 73 | V77: 138 | W77: 170357 | X77: 0.0008100635724 | Y77: =IF(GraphData!$N$3=-1,10000,1) -> 10000 | AF77: -0.0008100635724 | AG77: 81.00635724
K78: 04F | L78: NHS Milton Keynes | M78: East Midlands | N78: No | O78: No | P78: 8 | Q78: 74 | R78: 21020.88 | S78: 36043.25768 | T78: 0.5832125439 | U78: 74 | V78: 118 | W78: 258291 | X78: 0.0004568490578 | Y78: =IF(GraphData!$N$3=-1,10000,1) -> 10000 | AF78: -0.0004568490578 | AG78: 45.68490578
K79: 04G | L79: NHS Nene | M79: East Midlands | N79: No | O79: No | P79: 7 | Q79: 75 | R79: 66667.59 | S79: 70974.16891 | T79: 0.9393218832 | U79: 75 | V79: 349 | W79: 591939 | X79: 0.0005895877785 | Y79: =IF(GraphData!$N$3=-1,10000,1) -> 10000 | AF79: -0.0005895877785 | AG79: 58.95877785
K80: 04H | L80: NHS Newark & Sherwood | M80: East Midlands | N80: No | O80: No | P80: 6 | Q80: 76 | R80: 19587.35 | S80: 12430.44111 | T80: 1.575756631 | U80: 76 | V80: 77 | W80: 117184 | X80: 0.0006570862916 | Y80: =IF(GraphData!$N$3=-1,10000,1) -> 10000 | AF80: -0.0006570862916 | AG80: 65.70862916
K81: 04J | L81: NHS North Derbyshire | M81: East Midlands | N81: No | O81: No | P81: 7 | Q81: 77 | R81: 46459.7 | S81: 26678.68339 | T81: 1.741454004 | U81: 77 | V81: 219 | W81: 262569 | X81: 0.000834066474 | Y81: =IF(GraphData!$N$3=-1,10000,1) -> 10000 | AF81: -0.000834066474 | AG81: 83.4066474
K82: 04K | L82: NHS Nottingham City | M82: East Midlands | N82: No | O82: No | P82: 2 | Q82: 78 | R82: 27137.37 | S82: 43187.39269 | T82: 0.62836324 | U82: 78 | V82: 185 | W82: 331829 | X82: 0.00055751607 | Y82: =IF(GraphData!$N$3=-1,10000,1) -> 10000 | AF82: -0.00055751607 | AG82: 55.751607
K83: 04L | L83: NHS Nottingham North and East | M83: East Midlands | N83: No | O83: No | P83: 7 | Q83: 79 | R83: 22861.38 | S83: 14435.37009 | T83: 1.583705845 | U83: 79 | V83: 98 | W83: 133229 | X83: 0.0007355755879 | Y83: =IF(GraphData!$N$3=-1,10000,1) -> 10000 | AF83: -0.0007355755879 | AG83: 73.55755879
K84: 04M | L84: NHS Nottingham West | M84: East Midlands | N84: No | O84: No | P84: 9 | Q84: 80 | R84: 9733.14 | S84: 9196.817914 | T84: 1.058316049 | U84: 80 | V84: 67 | W84: 85218 | X84: 0.0007862188739 | Y84: =IF(GraphData!$N$3=-1,10000,1) -> 10000 | AF84: -0.0007862188739 | AG84: 78.62188739
K85: 04N | L85: NHS Rushcliffe | M85: East Midlands | N85: No | O85: No | P85: 10 | Q85: 81 | R85: 11444.51 | S85: 12413.02354 | T85: 0.9219760168 | U85: 81 | V85: 49 | W85: 110870 | X85: 0.0004419590511 | Y85: =IF(GraphData!$N$3=-1,10000,1) -> 10000 | AF85: -0.0004419590511 | AG85: 44.19590511
K86: 04Q | L86: NHS South West Lincolnshire | M86: East Midlands | N86: Closest 10 CCGs | O86: No | P86: 8 | Q86: 82 | R86: 22784.18 | S86: 12187.4823 | T86: 1.869473895 | U86: 82 | V86: 86 | W86: 117314 | X86: 0.0007330753363 | Y86: =IF(GraphData!$N$3=-1,10000,1) -> 10000 | AF86: -0.0007330753363 | AG86: 73.30753363
K87: 04R | L87: NHS Southern Derbyshire | M87: East Midlands | N87: No | O87: No | P87: 6 | Q87: 83 | R87: 61797.65 | S87: 56315.28965 | T87: 1.097351188 | U87: 83 | V87: 359 | W87: 492729 | X87: 0.0007285952319 | Y87: =IF(GraphData!$N$3=-1,10000,1) -> 10000 | AF87: -0.0007285952319 | AG87: 72.85952319
K88: 04V | L88: NHS West Leicestershire | M88: East Midlands | N88: No | O88: No | P88: 9 | Q88: 84 | R88: 43604.96 | S88: 39377.13619 | T88: 1.107367478 | U88: 84 | V88: 213 | W88: 342411 | X88: 0.0006220594549 | Y88: =IF(GraphData!$N$3=-1,10000,1) -> 10000 | AF88: -0.0006220594549 | AG88: 62.20594549
K89: 04X | L89: NHS Birmingham South and Central | M89: West Midlands | N89: No | O89: No | P89: 1 | Q89: 85 | R89: 15563.87 | S89: 30135.98015 | T89: 0.5164547469 | U89: 85 | V89: 131 | W89: 231985 | X89: 0.0005646916827 | Y89: =IF(GraphData!$N$3=-1,10000,1) -> 10000 | AF89: -0.0005646916827 | AG89: 56.46916827
K90: 04Y | L90: NHS Cannock Chase | M90: West Midlands | N90: No | O90: No | P90: 6 | Q90: 86 | R90: 18593.73 | S90: 13970.90142 | T90: 1.330889786 | U90: 86 | V90: 101 | W90: 122432 | X90: 0.0008249477261 | Y90: =IF(GraphData!$N$3=-1,10000,1) -> 10000 | AF90: -0.0008249477261 | AG90: 82.49477261
K91: 05A | L91: NHS Coventry and Rugby | M91: West Midlands | N91: No | O91: No | P91: 4 | Q91: 87 | R91: 41980.8 | S91: 52573.78511 | T91: 0.7985120324 | U91: 87 | V91: 255 | W91: 438013 | X91: 0.0005821745017 | Y91: =IF(GraphData!$N$3=-1,10000,1) -> 10000 | AF91: -0.0005821745017 | AG91: 58.21745017
K92: 05C | L92: NHS Dudley | M92: West Midlands | N92: No | O92: No | P92: 4 | Q92: 88 | R92: 48301.64 | S92: 30259.68284 | T92: 1.596237484 | U92: 88 | V92: 212 | W92: 286691 | X92: 0.0007394721146 | Y92: =IF(GraphData!$N$3=-1,10000,1) -> 10000 | AF92: -0.0007394721146 | AG92: 73.94721146
K93: 05D | L93: NHS East Staffordshire | M93: West Midlands | N93: Closest 10 CCGs | O93: No | P93: 6 | Q93: 89 | R93: 20679.44 | S93: 14017.84047 | T93: 1.475222952 | U93: 89 | V93: 88 | W93: 124521 | X93: 0.0007067081055 | Y93: =IF(GraphData!$N$3=-1,10000,1) -> 10000 | AF93: -0.0007067081055 | AG93: 70.67081055
K94: 05F | L94: NHS Herefordshire | M94: West Midlands | N94: No | O94: No | P94: 7 | Q94: 90 | R94: 19243.17 | S94: 16218.56128 | T94: 1.186490569 | U94: 90 | V94: 137 | W94: 163108 | X94: 0.0008399342767 | Y94: =IF(GraphData!$N$3=-1,10000,1) -> 10000 | AF94: -0.0008399342767 | AG94: 83.99342767
K95: 05G | L95: NHS North Staffordshire | M95: West Midlands | N95: No | O95: No | P95: 7 | Q95: 91 | R95: 41292.47 | S95: 20647.00193 | T95: 1.99992571 | U95: 91 | V95: 153 | W95: 194081 | X95: 0.0007883306455 | Y95: =IF(GraphData!$N$3=-1,10000,1) -> 10000 | AF95: -0.0007883306455 | AG95: 78.83306455
K96: 05H | L96: NHS Warwickshire North | M96: West Midlands | N96: No | O96: No | P96: 5 | Q96: 92 | R96: 20603.78 | S96: 18848.55917 | T96: 1.093122282 | U96: 92 | V96: 129 | W96: 170027 | X96: 0.0007587030295 | Y96: =IF(GraphData!$N$3=-1,10000,1) -> 10000 | AF96: -0.0007587030295 | AG96: 75.87030295
K97: 05J | L97: NHS Redditch and Bromsgrove | M97: West Midlands | N97: No | O97: No | P97: 8 | Q97: 93 | R97: 23025.44 | S97: 17697.23166 | T97: 1.301075809 | U97: 93 | V97: 91 | W97: 158689 | X97: 0.0005734486952 | Y97: =IF(GraphData!$N$3=-1,10000,1) -> 10000 | AF97: -0.0005734486952 | AG97: 57.34486952
K98: 05L | L98: NHS Sandwell and West Birmingham | M98: West Midlands | N98: No | O98: No | P98: 1 | Q98: 94 | R98: 52788.85 | S98: 61501.36674 | T98: 0.8583362094 | U98: 94 | V98: 357 | W98: 508998 | X98: 0.0007013780015 | Y98: =IF(GraphData!$N$3=-1,10000,1) -> 10000 | AF98: -0.0007013780015 | AG98: 70.13780015
K99: 05N | L99: NHS Shropshire | M99: West Midlands | N99: No | O99: No | P99: 7 | Q99: 95 | R99: 51401.18 | S99: 26876.00036 | T99: 1.912530857 | U99: 95 | V99: 209 | W99: 268500 | X99: 0.0007783985102 | Y99: =IF(GraphData!$N$3=-1,10000,1) -> 10000 | AF99: -0.0007783985102 | AG99: 77.83985102
K100: 05P | L100: NHS Solihull | M100: West Midlands | N100: No | O100: No | P100: 8 | Q100: 96 | R100: 43439.69 | S100: 23303.40497 | T100: 1.864091967 | U100: 96 | V100: 131 | W100: 216222 | X100: 0.0006058587933 | Y100: =IF(GraphData!$N$3=-1,10000,1) -> 10000 | AF100: -0.0006058587933 | AG100: 60.58587933
K101: 05Q | L101: NHS South East Staffs and Seisdon Peninsular | M101: West Midlands | N101: No | O101: No | P101: 8 | Q101: 97 | R101: 44388.19 | S101: 21637.20788 | T101: 2.051474952 | U101: 97 | V101: 133 | W101: 194998 | X101: 0.0006820582775 | Y101: =IF(GraphData!$N$3=-1,10000,1) -> 10000 | AF101: -0.0006820582775 | AG101: 68.20582775
K102: 05R | L102: NHS South Warwickshire | M102: West Midlands | N102: No | O102: No | P102: 10 | Q102: 98 | R102: 78039.87 | S102: 26733.06617 | T102: 2.919226306 | U102: 98 | V102: 158 | W102: 248644 | X102: 0.0006354466627 | Y102: =IF(GraphData!$N$3=-1,10000,1) -> 10000 | AF102: -0.0006354466627 | AG102: 63.54466627
K103: 05T | L103: NHS South Worcestershire | M103: West Midlands | N103: Closest 10 CCGs | O103: No | P103: 8 | Q103: 99 | R103: 35939.3 | S103: 28313.10027 | T103: 1.269352337 | U103: 99 | V103: 173 | W103: 266891 | X103: 0.0006482046978 | Y103: =IF(GraphData!$N$3=-1,10000,1) -> 10000 | AF103: -0.0006482046978 | AG103: 64.82046978
K104: 05V | L104: NHS Stafford and Surrounds | M104: West Midlands | N104: No | O104: No | P104: 9 | Q104: 100 | R104: 32949.41 | S104: 13847.41066 | T104: 2.379463627 | U104: 100 | V104: 87 | W104: 131720 | X104: 0.0006604919526 | Y104: =IF(GraphData!$N$3=-1,10000,1) -> 10000 | AF104: -0.0006604919526 | AG104: 66.04919526
K105: 05W | L105: NHS Stoke On Trent | M105: West Midlands | N105: No | O105: No | P105: 1 | Q105: 101 | R105: 48163.66 | S105: 27780.2775 | T105: 1.733735741 | U105: 101 | V105: 176 | W105: 259485 | X105: 0.0006782665665 | Y105: =IF(GraphData!$N$3=-1,10000,1) -> 10000 | AF105: -0.0006782665665 | AG105: 67.82665665
K106: 05X | L106: NHS Telford and Wrekin | M106: West Midlands | N106: No | O106: No | P106: 4 | Q106: 102 | R106: 14568.15 | S106: 19170.23626 | T106: 0.7599358613 | U106: 102 | V106: 108 | W106: 162753 | X106: 0.0006635822381 | Y106: =IF(GraphData!$N$3=-1,10000,1) -> 10000 | AF106: -0.0006635822381 | AG106: 66.35822381
K107: 05Y | L107: NHS Walsall | M107: West Midlands | N107: No | O107: Comparator Closest 10 CCGs | P107: 2 | Q107: 103 | R107: 43056.54 | S107: 26614.53226 | T107: 1.617783081 | U107: 103 | V107: 207 | W107: 250474 | X107: 0.0008264330829 | Y107: =IF(GraphData!$N$3=-1,10000,1) -> 10000 | AF107: -0.0008264330829 | AG107: 82.64330829
K108: 06A | L108: NHS Wolverhampton | M108: West Midlands | N108: No | O108: No | P108: 2 | Q108: 104 | R108: 34112.46 | S108: 26196.39478 | T108: 1.302181475 | U108: 104 | V108: 174 | W108: 241836 | X108: 0.0007194958567 | Y108: =IF(GraphData!$N$3=-1,10000,1) -> 10000 | AF108: -0.0007194958567 | AG108: 71.94958567
K109: 06D | L109: NHS Wyre Forest | M109: West Midlands | N109: No | O109: No | P109: 5 | Q109: 105 | R109: 10943.07 | S109: 10266.08267 | T109: 1.065944075 | U109: 105 | V109: 104 | W109: 101691 | X109: 0.001022706041 | Y109: =IF(GraphData!$N$3=-1,10000,1) -> 10000 | AF109: -0.001022706041 | AG109: 102.2706041
K110: 06F | L110: NHS Bedfordshire | M110: East of England | N110: No | O110: No | P110: 9 | Q110: 106 | R110: 59199.15 | S110: 49645.07105 | T110: 1.192447684 | U110: 106 | V110: 243 | W110: 412167 | X110: 0.0005895668503 | Y110: =IF(GraphData!$N$3=-1,10000,1) -> 10000 | AF110: -0.0005895668503 | AG110: 58.95668503
K111: 06H | L111: NHS Cambridgeshire and Peterborough | M111: East of England | N111: No | O111: No | P111: 8 | Q111: 107 | R111: 94136.41 | S111: 98248.54195 | T111: 0.9581456186 | U111: 107 | V111: 432 | W111: 814696 | X111: 0.0005302591396 | Y111: =IF(GraphData!$N$3=-1,10000,1) -> 10000 | AF111: -0.0005302591396 | AG111: 53.02591396
K112: 06K | L112: NHS East and North Hertfordshire | M112: East of England | N112: No | O112: No | P112: 9 | Q112: 108 | R112: 85196.63 | S112: 65483.71615 | T112: 1.301035357 | U112: 108 | V112: 318 | W112: 529320 | X112: 0.0006007708003 | Y112: =IF(GraphData!$N$3=-1,10000,1) -> 10000 | AF112: -0.0006007708003 | AG112: 60.07708003
K113: 06L | L113: NHS Ipswich and East Suffolk | M113: East of England | N113: No | O113: No | P113: 8 | Q113: 109 | R113: 65512.65 | S113: 37412.04103 | T113: 1.751111359 | U113: 109 | V113: 229 | W113: 353681 | X113: 0.0006474761155 | Y113: =IF(GraphData!$N$3=-1,10000,1) -> 10000 | AF113: -0.0006474761155 | AG113: 64.74761155
K114: 06M | L114: NHS Great Yarmouth and Waveney | M114: East of England | N114: Closest 10 CCGs | O114: No | P114: 4 | Q114: 110 | R114: 40700.79 | S114: 20081.89058 | T114: 2.02674095 | U114: 110 | V114: 175 | W114: 207253 | X114: 0.0008443786097 | Y114: =IF(GraphData!$N$3=-1,10000,1) -> 10000 | AF114: -0.0008443786097 | AG114: 84.43786097
K115: 06N | L115: NHS Herts Valleys | M115: East of England | N115: No | O115: No | P115: 10 | Q115: =MATCH($K115,DataCost_CCGcode,0) -> 111 | R115: =INDEX(INDIRECT($D$6),Q115) -> 96844.56 | S115: 69280.15918 | T115: 1.397868613 | U115: 111 | V115: 280 | W115: 564646 | X115: 0.0004958859179 | Y115: =IF(GraphData!$N$3=-1,10000,1) -> 10000 | AF115: -0.0004958859179 | AG115: 49.58859179
K116: 06P | L116: NHS Luton | M116: East of England | N116: No | O116: No | P116: 3 | Q116: 112 | R116: 21383.86 | S116: 29521.97578 | T116: 0.7243370213 | U116: 112 | V116: 139 | W116: 206139 | X116: 0.0006743022912 | Y116: =IF(GraphData!$N$3=-1,10000,1) -> 10000 | AF116: -0.0006743022912 | AG116: 67.43022912
K117: 06Q | L117: NHS Mid Essex | M117: East of England | N117: No | O117: No | P117: 9 | Q117: 113 | R117: 70887.78 | S117: 40316.01183 | T117: 1.758303383 | U117: 113 | V117: 212 | W117: 351360 | X117: 0.0006033697632 | Y117: =IF(GraphData!$N$3=-1,10000,1) -> 10000 | AF117: -0.0006033697632 | AG117: 60.33697632
K118: 06T | L118: NHS North East Essex | M118: East of England | N118: No | O118: No | P118: 6 | Q118: 114 | R118: 63766.64 | S118: 30556.91543 | T118: 2.086815344 | U118: 114 | V118: 207 | W118: 298709 | X118: 0.0006929821331 | Y118: =IF(GraphData!$N$3=-1,10000,1) -> 10000 | AF118: -0.0006929821331 | AG118: 69.29821331
K119: 06V | L119: NHS North Norfolk | M119: East of England | N119: No | O119: No | P119: 8 | Q119: 115 | R119: 40911.3 | S119: 12992.89795 | T119: 3.148743273 | U119: 115 | V119: 122 | W119: 146392 | X119: 0.0008333788732 | Y119: =IF(GraphData!$N$3=-1,10000,1) -> 10000 | AF119: -0.0008333788732 | AG119: 83.33788732
K120: 06W | L120: NHS Norwich | M120: East of England | N120: No | O120: No | P120: 6 | Q120: 116 | R120: 25222.55 | S120: 22062.54584 | T120: 1.143229353 | U120: 116 | V120: 95 | W120: 193153 | X120: 0.0004918380766 | Y120: =IF(GraphData!$N$3=-1,10000,1) -> 10000 | AF120: -0.0004918380766 | AG120: 49.18380766
K121: 06Y | L121: NHS South Norfolk | M121: East of England | N121: No | O121: No | P121: 9 | Q121: 117 | R121: 46882.14 | S121: 20647.22222 | T121: 2.270626988 | U121: 117 | V121: 139 | W121: 203227 | X121: 0.000683964237 | Y121: =IF(GraphData!$N$3=-1,10000,1) -> 10000 | AF121: -0.000683964237 | AG121: 68.3964237
K122: 07G | L122: NHS Thurrock | M122: East of England | N122: No | O122: No | P122: 6 | Q122: 118 | R122: 12583.13 | S122: 19836.86056 | T122: 0.6343307178 | U122: 118 | V122: 102 | W122: 154581 | X122: 0.0006598482349 | Y122: =IF(GraphData!$N$3=-1,10000,1) -> 10000 | AF122: -0.0006598482349 | AG122: 65.98482349
K123: 07H | L123: NHS West Essex | M123: East of England | N123: Closest 10 CCGs | O123: No | P123: 8 | Q123: 119 | R123: 43719.5 | S123: 31615.19529 | T123: 1.382863512 | U123: 119 | V123: 139 | W123: 272314 | X123: 0.0005104401536 | Y123: =IF(GraphData!$N$3=-1,10000,1) -> 10000 | AF123: -0.0005104401536 | AG123: 51.04401536
K124: 07J | L124: NHS West Norfolk | M124: East of England | N124: No | O124: No | P124: 6 | Q124: 120 | R124: 26036.05 | S124: 13753.48259 | T124: 1.893051439 | U124: 120 | V124: 96 | W124: 146855 | X124: 0.0006537060366 | Y124: =IF(GraphData!$N$3=-1,10000,1) -> 10000 | AF124: -0.0006537060366 | AG124: 65.37060366
K125: 07K | L125: NHS West Suffolk | M125: East of England | N125: No | O125: No | P125: 9 | Q125: 121 | R125: 35508.83 | S125: 22619.54459 | T125: 1.569829572 | U125: 121 | V125: 138 | W125: 216423 | X125: 0.0006376401769 | Y125: =IF(GraphData!$N$3=-1,10000,1) -> 10000 | AF125: -0.0006376401769 | AG125: 63.76401769
K126: 07L | L126: NHS Barking and Dagenham | M126: London | N126: No | O126: No | P126: 2 | Q126: 122 | R126: 14250.02 | S126: 27816.0576 | T126: 0.5122947401 | U126: 122 | V126: 93 | W126: 195905 | X126: 0.0004747198897 | Y126: =IF(GraphData!$N$3=-1,10000,1) -> 10000 | AF126: -0.0004747198897 | AG126: 47.47198897
K127: 07M | L127: NHS Barnet | M127: London | N127: No | O127: No | P127: 7 | Q127: 123 | R127: 55694.43 | S127: 48623.31782 | T127: 1.145426361 | U127: 123 | V127: 154 | W127: 361656 | X127: 0.0004258190103 | Y127: =IF(GraphData!$N$3=-1,10000,1) -> 10000 | AF127: -0.0004258190103 | AG127: 42.58190103
K128: 07N | L128: NHS Bexley | M128: London | N128: No | O128: No | P128: 7 | Q128: 124 | R128: 39360.73 | S128: 24889.87606 | T128: 1.581395179 | U128: 124 | V128: 109 | W128: 207718 | X128: 0.0005247499013 | Y128: =IF(GraphData!$N$3=-1,10000,1) -> 10000 | AF128: -0.0005247499013 | AG128: 52.47499013
K129: 07P | L129: NHS Brent | M129: London | N129: No | O129: No | P129: 2 | Q129: 125 | R129: 29604.44 | S129: 48670.19027 | T129: 0.6082663707 | U129: 125 | V129: 165 | W129: 331963 | X129: 0.0004970433452 | Y129: =IF(GraphData!$N$3=-1,10000,1) -> 10000 | AF129: -0.0004970433452 | AG129: 49.70433452
K130: 07Q | L130: NHS Bromley | M130: London | N130: No | O130: No | P130: 8 | Q130: 126 | R130: 52935.69 | S130: 34813.90464 | T130: 1.520532975 | U130: 126 | V130: 152 | W130: 304588 | X130: 0.0004990347617 | Y130: =IF(GraphData!$N$3=-1,10000,1) -> 10000 | AF130: -0.0004990347617 | AG130: 49.90347617
K131: 07R | L131: NHS Camden | M131: London | N131: No | O131: No | P131: 4 | Q131: 127 | R131: 19642.27 | S131: 37145.09517 | T131: 0.5287984836 | U131: 127 | V131: 89 | W131: 244964 | X131: 0.0003633186917 | Y131: =IF(GraphData!$N$3=-1,10000,1) -> 10000 | AF131: -0.0003633186917 | AG131: 36.33186917
K132: 07T | L132: NHS City and Hackney | M132: London | N132: No | O132: No | P132: 1 | Q132: 128 | R132: 14650.82 | S132: 42621.20327 | T132: 0.3437448705 | U132: 128 | V132: 129 | W132: 271782 | X132: 0.00047464512 | Y132: =IF(GraphData!$N$3=-1,10000,1) -> 10000 | AF132: =X132*$H$3 -> -0.00047464512 | AG132: =(X132*Y132)*10 -> 47.464512
K133: 07V | L133: NHS Croydon | M133: =INDEX(Lookup_SCN,MATCH($K133,Lookup_CCGcode,0)) -> London | N133: =INDEX(Lookup_Cluster,MATCH($K133,Lookup_CCGcode,0)) -> No | O133: =INDEX(Lookup_Comparator,MATCH($K133,Lookup_CCGcode,0)) -> No | P133: =INDEX(Lookup_Decile,MATCH($K133,Lookup_CCGcode,0)) -> 5 | Q133: =MATCH($K133,DataCost_CCGcode,0) -> 129 | R133: =INDEX(INDIRECT($D$6),Q133) -> 38524.06 | S133: =INDEX(INDIRECT($D$7),Q133) -> 49220.56003 | T133: =IFERROR(R133/S133,0) -> 0.782682277 | U133: =MATCH($K133,DataCost_CCGcode,0) -> 129 | V133: =INDEX(INDIRECT($D$34),U133) -> 193 | W133: =INDEX(INDIRECT($D$35),U133) -> 364234 | X133: =(V133/W133) -> 0.0005298791436 | Y133: =IF(GraphData!$N$3=-1,10000,1) -> 10000 | AF133: -0.0005298791436 | AG133: 52.98791436
K134: 07W | L134: NHS Ealing | M134: London | N134: No | O134: No | P134: 4 | Q134: 130 | R134: 41201.89 | S134: 57891.08208 | T134: 0.711713938 | U134: 130 | V134: 188 | W134: 391033 | X134: 0.0004807778372 | Y134: =IF(GraphData!$N$3=-1,10000,1) -> 10000 | AF134: -0.0004807778372 | AG134: 48.07778372
K135: 07X | L135: NHS Enfield | M135: London | N135: No | O135: No | P135: 3 | Q135: 131 | R135: 30218.18 | S135: 37651.30212 | T135: 0.8025799455 | U135: 131 | V135: 140 | W135: 291610 | X135: 0.0004800932753 | Y135: =IF(GraphData!$N$3=-1,10000,1) -> 10000 | AF135: -0.0004800932753 | AG135: 48.00932753
K136: 07Y | L136: NHS Hounslow | M136: London | N136: No | O136: No | P136: 5 | Q136: 132 | R136: 26925.26 | S136: 40855.45224 | T136: 0.6590371303 | U136: 132 | V136: 145 | W136: 278565 | X136: 0.0005205248326 | Y136: =IF(GraphData!$N$3=-1,10000,1) -> 10000 | AF136: -0.0005205248326 | AG136: 52.05248326
K137: 08A | L137: NHS Greenwich | M137: London | N137: No | O137: No | P137: 2 | Q137: 133 | R137: 24307.11 | S137: 36498.43856 | T137: 0.6659767091 | U137: 133 | V137: 110 | W137: 257294 | X137: 0.0004275264872 | Y137: =IF(GraphData!$N$3=-1,10000,1) -> 10000 | AF137: -0.0004275264872 | AG137: 42.75264872
K138: 08C | L138: NHS Hammersmith and Fulham | M138: London | N138: No | O138: No | P138: 3 | Q138: 134 | R138: 16228.64 | S138: 29580.64516 | T138: 0.5486235987 | U138: 134 | V138: 77 | W138: 195923 | X138: 0.0003930115402 | Y138: =IF(GraphData!$N$3=-1,10000,1) -> 10000 | AF138: -0.0003930115402 | AG138: 39.30115402
K139: 08D | L139: NHS Haringey | M139: London | N139: No | O139: No | P139: 1 | Q139: 135 | R139: 19872.62 | S139: 39058.18328 | T139: 0.5087952979 | U139: 135 | V139: 131 | W139: 281041 | X139: 0.0004661241598 | Y139: =IF(GraphData!$N$3=-1,10000,1) -> 10000 | AF139: -0.0004661241598 | AG139: 46.61241598
K140: 08E | L140: NHS Harrow | M140: London | N140: No | O140: No | P140: 8 | Q140: 136 | R140: 32106.96 | S140: 31114.68123 | T140: 1.031891015 | U140: 136 | V140: 116 | W140: 229868 | X140: 0.0005046374441 | Y140: =IF(GraphData!$N$3=-1,10000,1) -> 10000 | AF140: -0.0005046374441 | AG140: 50.46374441
K141: 08F | L141: NHS Havering | M141: London | N141: No | O141: No | P141: 7 | Q141: 137 | R141: 20209.77 | S141: 26732.73896 | T141: 0.7559932423 | U141: 137 | V141: 133 | W141: 234166 | X141: 0.0005679731473 | Y141: =IF(GraphData!$N$3=-1,10000,1) -> 10000 | AF141: -0.0005679731473 | AG141: 56.79731473
K142: 08G | L142: NHS Hillingdon | M142: London | N142: No | O142: No | P142: 6 | Q142: 138 | R142: 35242.57 | S142: 35943.67429 | T142: 0.9804943624 | U142: 138 | V142: 139 | W142: 270852 | X142: 0.0005131953982 | Y142: =IF(GraphData!$N$3=-1,10000,1) -> 10000 | AF142: -0.0005131953982 | AG142: 51.31953982
K143: 08H | L143: NHS Islington | M143: London | N143: No | O143: No | P143: 1 | Q143: 139 | R143: 19171.79 | S143: 30195.09946 | T143: 0.6349305133 | U143: 139 | V143: 124 | W143: 221125 | X143: 0.0005607687959 | Y143: =IF(GraphData!$N$3=-1,10000,1) -> 10000 | AF143: -0.0005607687959 | AG143: 56.07687959
K144: 08J | L144: NHS Kingston | M144: London | N144: No | O144: No | P144: 9 | Q144: 140 | R144: 24084.1 | S144: 24625.38032 | T144: 0.9780194126 | U144: 140 | V144: 72 | W144: 182901 | X144: 0.0003936555842 | Y144: =IF(GraphData!$N$3=-1,10000,1) -> 10000 | AF144: -0.0003936555842 | AG144: 39.36555842
K145: 08K | L145: NHS Lambeth | M145: London | N145: No | O145: No | P145: 2 | Q145: 141 | R145: 33483.77 | S145: 58582.05723 | T145: 0.571570402 | U145: 141 | V145: 135 | W145: 362478 | X145: 0.0003724363961 | Y145: =IF(GraphData!$N$3=-1,10000,1) -> 10000 | AF145: -0.0003724363961 | AG145: 37.24363961
K146: 08L | L146: NHS Lewisham | M146: London | N146: No | O146: No | P146: 2 | Q146: 142 | R146: 22259.83 | S146: 43188.94676 | T146: 0.5154057154 | U146: 142 | V146: 123 | W146: 290423 | X146: 0.0004235201757 | Y146: =IF(GraphData!$N$3=-1,10000,1) -> 10000 | AF146: -0.0004235201757 | AG146: 42.35201757
K147: 08M | L147: NHS Newham | M147: London | N147: No | O147: No | P147: 1 | Q147: 143 | R147: 13328.25 | S147: 57639.01242 | T147: 0.2312366128 | U147: 143 | V147: 157 | W147: 351062 | X147: 0.0004472144521 | Y147: =IF(GraphData!$N$3=-1,10000,1) -> 10000 | AF147: -0.0004472144521 | AG147: 44.72144521
K148: 08N | L148: NHS Redbridge | M148: London | N148: No | O148: No | P148: 6 | Q148: 144 | R148: 26084.65 | S148: 39507.28982 | T148: 0.6602490355 | U148: 144 | V148: 135 | W148: 273541 | X148: 0.0004935274785 | Y148: =IF(GraphData!$N$3=-1,10000,1) -> 10000 | AF148: -0.0004935274785 | AG148: 49.35274785
K149: 08P | L149: NHS Richmond | M149: London | N149: No | O149: No | P149: 10 | Q149: 145 | R149: 30017.09 | S149: 24123.73346 | T149: 1.244297034 | U149: 145 | V149: 74 | W149: 191362 | X149: 0.000386701644 | Y149: =IF(GraphData!$N$3=-1,10000,1) -> 10000 | AF149: -0.000386701644 | AG149: 38.6701644
K150: 08Q | L150: NHS Southwark | M150: London | N150: No | O150: No | P150: 2 | Q150: 146 | R150: 17673.58 | S150: 49848.51273 | T150: 0.3545457835 | U150: 146 | V150: 115 | W150: 300400 | X150: 0.0003828229028 | Y150: =IF(GraphData!$N$3=-1,10000,1) -> 10000 | AF150: -0.0003828229028 | AG150: 38.28229028
K151: 08R | L151: NHS Merton | M151: London | N151: No | O151: No | P151: 8 | Q151: 147 | R151: 31714.48 | S151: 29568.694 | T151: 1.072569522 | U151: 147 | V151: 86 | W151: 202697 | X151: 0.000424278603 | Y151: =IF(GraphData!$N$3=-1,10000,1) -> 10000 | AF151: -0.000424278603 | AG151: 42.4278603
K152: 08T | L152: NHS Sutton | M152: London | N152: No | O152: No | P152: 8 | Q152: 148 | R152: 30673.78 | S152: 21751.25189 | T152: 1.410207567 | U152: 148 | V152: 86 | W152: 172542 | X152: 0.0004984293679 | Y152: =IF(GraphData!$N$3=-1,10000,1) -> 10000 | AF152: -0.0004984293679 | AG152: 49.84293679
K153: 08V | L153: NHS Tower Hamlets | M153: London | N153: No | O153: No | P153: 1 | Q153: 149 | R153: 11829.46 | S153: 44591.31386 | T153: 0.2652861954 | U153: 149 | V153: 99 | W153: 266123 | X153: 0.0003720084322 | Y153: =IF(GraphData!$N$3=-1,10000,1) -> 10000 | AF153: -0.0003720084322 | AG153: 37.20084322
K154: 08W | L154: NHS Waltham Forest | M154: London | N154: No | O154: No | P154: 1 | Q154: 150 | R154: 18066.45 | S154: 38869.63371 | T154: 0.464795993 | U154: 150 | V154: 130 | W154: 281356 | X154: 0.0004620480814 | Y154: =IF(GraphData!$N$3=-1,10000,1) -> 10000 | AF154: -0.0004620480814 | AG154: 46.20480814
K155: 08X | L155: NHS Wandsworth | M155: London | N155: No | O155: No | P155: 5 | Q155: 151 | R155: 32248.04 | S155: 55692.18989 | T155: 0.579040617 | U155: 151 | V155: 140 | W155: 352542 | X155: 0.0003971158046 | Y155: =IF(GraphData!$N$3=-1,10000,1) -> 10000 | AF155: -0.0003971158046 | AG155: 39.71158046
K156: 08Y | L156: NHS West London (K&C & Qpp) | M156: London | N156: No | O156: No | P156: 3 | Q156: 152 | R156: 24307.89 | S156: 28735.57451 | T156: 0.8459162698 | U156: 152 | V156: 94 | W156: 214787 | X156: 0.0004376428741 | Y156: =IF(GraphData!$N$3=-1,10000,1) -> 10000 | AF156: -0.0004376428741 | AG156: 43.76428741
K157: 09A | L157: NHS Central London (Westminster) | M157: London | N157: No | O157: No | P157: 5 | Q157: 153 | R157: 21222.24 | S157: 25528.63082 | T157: 0.8313113285 | U157: 153 | V157: 59 | W157: 189431 | X157: 0.0003114590537 | Y157: =IF(GraphData!$N$3=-1,10000,1) -> 10000 | AF157: -0.0003114590537 | AG157: 31.14590537
K158: 09C | L158: NHS Ashford | M158: South East coast | N158: Closest 10 CCGs | O158: No | P158: 8 | Q158: 154 | R158: 15526.9 | S158: 13182.88356 | T158: 1.177807566 | U158: 154 | V158: 54 | W158: 114405 | X158: 0.0004720073423 | Y158: =IF(GraphData!$N$3=-1,10000,1) -> 10000 | AF158: -0.0004720073423 | AG158: 47.20073423
K159: 09D | L159: NHS Brighton and Hove | M159: South East coast | N159: No | O159: No | P159: 4 | Q159: 155 | R159: 35527.68 | S159: 34600.23028 | T159: 1.026804727 | U159: 155 | V159: 131 | W159: 282489 | X159: 0.0004637348711 | Y159: =IF(GraphData!$N$3=-1,10000,1) -> 10000 | AF159: -0.0004637348711 | AG159: 46.37348711
K160: 09E | L160: NHS Canterbury and Coastal | M160: South East coast | N160: No | O160: No | P160: 7 | Q160: 156 | R160: 35081.8 | S160: 21648.12015 | T160: 1.620547177 | U160: 156 | V160: 128 | W160: 193591 | X160: 0.0006611877618 | Y160: =IF(GraphData!$N$3=-1,10000,1) -> 10000 | AF160: -0.0006611877618 | AG160: 66.11877618
K161: 09F | L161: NHS Eastbourne, Hailsham and Seaford | M161: South East coast | N161: No | O161: No | P161: 6 | Q161: 157 | R161: 100514.74 | S161: 15256.34124 | T161: 6.588390912 | U161: 157 | V161: 122 | W161: 162587 | X161: 0.0007503674956 | Y161: =IF(GraphData!$N$3=-1,10000,1) -> 10000 | AF161: -0.0007503674956 | AG161: 75.03674956
K162: 09G | L162: NHS Coastal West Sussex | M162: South East coast | N162: No | O162: No | P162: 7 | Q162: 158 | R162: 115896.65 | S162: 41428.78801 | T162: 2.79749072 | U162: 158 | V162: 310 | W162: 432060 | X162: 0.0007174929408 | Y162: =IF(GraphData!$N$3=-1,10000,1) -> 10000 | AF162: -0.0007174929408 | AG162: 71.74929408
K163: 09H | L163: NHS Crawley | M163: South East coast | N163: No | O163: No | P163: 7 | Q163: 159 | R163: 15848.54 | S163: 15548.25312 | T163: 1.019313223 | U163: 159 | V163: 53 | W163: 118812 | X163: 0.0004460828873 | Y163: =IF(GraphData!$N$3=-1,10000,1) -> 10000 | AF163: -0.0004460828873 | AG163: 44.60828873
K164: 09J | L164: NHS Dartford, Gravesham and Swanley | M164: South East coast | N164: No | O164: No | P164: 7 | Q164: 160 | R164: 42849 | S164: 27197.6782 | T164: 1.575465364 | U164: 160 | V164: 168 | W164: 228938 | X164: 0.0007338231312 | Y164: =IF(GraphData!$N$3=-1,10000,1) -> 10000 | AF164: -0.0007338231312 | AG164: 73.38231312
K165: 09L | L165: NHS East Surrey | M165: South East coast | N165: No | O165: No | P165: 10 | Q165: 161 | R165: 21250.27 | S165: 18574.03017 | T165: 1.144085037 | U165: 161 | V165: 76 | W165: 158889 | X165: 0.0004783213438 | Y165: =IF(GraphData!$N$3=-1,10000,1) -> 10000 | AF165: -0.0004783213438 | AG165: 47.83213438
K166: 09N | L166: NHS Guildford and Waverley | M166: South East coast | N166: No | O166: No | P166: 10 | Q166: 162 | R166: 55671.85 | S166: 23167.5067 | T166: 2.403014304 | U166: 162 | V166: 83 | W166: 197585 | X166: 0.0004200723739 | Y166: =IF(GraphData!$N$3=-1,10000,1) -> 10000 | AF166: -0.0004200723739 | AG166: 42.00723739
K167: 09P | L167: NHS Hastings and Rother | M167: South East coast | N167: No | O167: No | P167: 3 | Q167: 163 | R167: 129803.48 | S167: 15022.09673 | T167: 8.640836382 | U167: 163 | V167: 136 | W167: 162484 | X167: 0.0008370054898 | Y167: =IF(GraphData!$N$3=-1,10000,1) -> 10000 | AF167: -0.0008370054898 | AG167: 83.70054898
K168: 09W | L168: NHS Medway | M168: South East coast | N168: No | O168: No | P168: 5 | Q168: 164 | R168: 34929.5 | S168: 32767.3883 | T168: 1.065983644 | U168: 164 | V168: 147 | W168: 268718 | X168: 0.0005470418803 | Y168: =IF(GraphData!$N$3=-1,10000,1) -> 10000 | AF168: -0.0005470418803 | AG168: 54.70418803
K169: 09X | L169: NHS Horsham and Mid Sussex | M169: South East coast | N169: No | O169: No | P169: 10 | Q169: 165 | R169: 33731.18 | S169: 23525.76573 | T169: 1.433797326 | U169: 165 | V169: 101 | W169: 206883 | X169: 0.0004881986437 | Y169: =IF(GraphData!$N$3=-1,10000,1) -> 10000 | AF169: -0.0004881986437 | AG169: 48.81986437
K170: 09Y | L170: NHS North West Surrey | M170: South East coast | N170: No | O170: No | P170: 10 | Q170: 166 | R170: 40705.12 | S170: 38662.65324 | T170: 1.0528279 | U170: 166 | V170: 148 | W170: 325474 | X170: 0.0004547214217 | Y170: =IF(GraphData!$N$3=-1,10000,1) -> 10000 | AF170: -0.0004547214217 | AG170: 45.47214217
K171: 10A | L171: NHS South Kent Coast | M171: South East coast | N171: Closest 10 CCGs | O171: No | P171: 5 | Q171: 167 | R171: 33642.9 | S171: 18204.96107 | T171: 1.848007247 | U171: 167 | V171: 144 | W171: 180510 | X171: 0.0007977397374 | Y171: =IF(GraphData!$N$3=-1,10000,1) -> 10000 | AF171: -0.0007977397374 | AG171: 79.77397374
K172: 10C | L172: NHS Surrey Heath | M172: South East coast | N172: No | O172: No | P172: 10 | Q172: 168 | R172: 20165.25 | S172: 9964.79564 | T172: 2.023649127 | U172: 168 | V172: 51 | W172: 84420 | X172: 0.0006041222459 | Y172: =IF(GraphData!$N$3=-1,10000,1) -> 10000 | AF172: -0.0006041222459 | AG172: 60.41222459
K173: 10D | L173: NHS Swale | M173: South East coast | N173: No | O173: No | P173: 4 | Q173: 169 | R173: 11809.41 | S173: 11060.8803 | T173: 1.06767361 | U173: 169 | V173: 75 | W173: 98849 | X173: 0.000758733017 | Y173: =IF(GraphData!$N$3=-1,10000,1) -> 10000 | AF173: -0.000758733017 | AG173: 75.8733017
K174: 10E | L174: NHS Thanet | M174: South East coast | N174: No | O174: No | P174: 3 | Q174: 170 | R174: 28020.21 | S174: 12414.5722 | T174: 2.257041929 | U174: 170 | V174: 115 | W174: 126347 | X174: 0.0009101917734 | Y174: =IF(GraphData!$N$3=-1,10000,1) -> 10000 | AF174: -0.0009101917734 | AG174: 91.01917734
K175: 10G | L175: NHS Bracknell and Ascot | M175: Thames | N175: No | O175: No | P175: 10 | Q175: 171 | R175: 19449.29 | S175: 16836.63427 | T175: 1.155176841 | U175: 171 | V175: 56 | W175: 128357 | X175: 0.0004362831789 | Y175: =IF(GraphData!$N$3=-1,10000,1) -> 10000 | AF175: -0.0004362831789 | AG175: 43.62831789
K176: 10H | L176: NHS Chiltern | M176: Thames | N176: No | O176: No | P176: 10 | Q176: 172 | R176: 59929.86 | S176: 35945.17544 | T176: 1.667257407 | U176: 172 | V176: 146 | W176: 301514 | X176: 0.0004842229548 | Y176: =IF(GraphData!$N$3=-1,10000,1) -> 10000 | AF176: -0.0004842229548 | AG176: 48.42229548
K177: 10J | L177: NHS North Hampshire | M177: Wessex | N177: No | O177: No | P177: 10 | Q177: 173 | R177: 53956.07 | S177: 24918.27144 | T177: 2.165321545 | U177: 173 | V177: 120 | W177: 202739 | X177: 0.0005918940115 | Y177: =IF(GraphData!$N$3=-1,10000,1) -> 10000 | AF177: -0.0005918940115 | AG177: 59.18940115
K178: 10K | L178: NHS Fareham and Gosport | M178: Wessex | N178: No | O178: No | P178: 9 | Q178: 174 | R178: 58921.02 | S178: 19838.00592 | T178: 2.970107995 | U178: 174 | V178: 123 | W178: 181865 | X178: 0.0006763258461 | Y178: =IF(GraphData!$N$3=-1,10000,1) -> 10000 | AF178: -0.0006763258461 | AG178: 67.63258461
K179: 10L | L179: NHS Isle Of Wight | M179: Wessex | N179: No | O179: No | P179: 5 | Q179: 175 | R179: 25745.71 | S179: 11703.35759 | T179: 2.199856733 | U179: 175 | V179: 97 | W179: 125022 | X179: 0.000775863448 | Y179: =IF(GraphData!$N$3=-1,10000,1) -> 10000 | AF179: -0.000775863448 | AG179: 77.5863448
K180: 10M | L180: NHS Newbury and District | M180: Thames | N180: No | O180: No | P180: 10 | Q180: 176 | R180: 15567.75 | S180: 12876.66779 | T180: 1.208989022 | U180: 176 | V180: 62 | W180: 106837 | X180: 0.0005803232962 | Y180: =IF(GraphData!$N$3=-1,10000,1) -> 10000 | AF180: -0.0005803232962 | AG180: 58.03232962
K181: 10N | L181: NHS North & West Reading | M181: Thames | N181: No | O181: No | P181: 9 | Q181: 177 | R181: 20199.64 | S181: 12110.27597 | T181: 1.667975201 | U181: 177 | V181: 45 | W181: 100177 | X181: 0.0004492049073 | Y181: =IF(GraphData!$N$3=-1,10000,1) -> 10000 | AF181: -0.0004492049073 | AG181: 44.92049073
K182: 10Q | L182: NHS Oxfordshire | M182: Thames | N182: No | O182: No | P182: 9 | Q182: 178 | R182: 64477.53 | S182: 78054.58638 | T182: 0.8260569044 | U182: 178 | V182: 318 | W182: 641912 | X182: 0.0004953950074 | Y182: =IF(GraphData!$N$3=-1,10000,1) -> 10000 | AF182: -0.0004953950074 | AG182: 49.53950074
K183: 10R | L183: NHS Portsmouth | M183: Wessex | N183: No | O183: No | P183: 4 | Q183: 179 | R183: 48224.65 | S183: 25186.27791 | T183: 1.914719204 | U183: 179 | V183: 163 | W183: 202952 | X183: 0.0008031455714 | Y183: =IF(GraphData!$N$3=-1,10000,1) -> 10000 | AF183: -0.0008031455714 | AG183: 80.31455714
K184: 10T | L184: NHS Slough | M184: Thames | N184: No | O184: No | P184: 4 | Q184: 180 | R184: 8169.38 | S184: 21828.125 | T184: 0.3742593558 | U184: 180 | V184: 86 | W184: 140531 | X184: 0.0006119646199 | Y184: =IF(GraphData!$N$3=-1,10000,1) -> 10000 | AF184: -0.0006119646199 | AG184: 61.19646199
K185: 10V | L185: NHS South Eastern Hampshire | M185: Wessex | N185: No | O185: No | P185: 7 | Q185: 181 | R185: 60741.17 | S185: 19133.58359 | T185: 3.174584087 | U185: 181 | V185: 115 | W185: 188463 | X185: 0.0006101993495 | Y185: =IF(GraphData!$N$3=-1,10000,1) -> 10000 | AF185: -0.0006101993495 | AG185: 61.01993495
K186: 10W | L186: NHS South Reading | M186: Thames | N186: No | O186: No | P186: 5 | Q186: 182 | R186: 10990.36 | S186: 19374.45191 | T186: 0.5672604339 | U186: 182 | V186: 60 | W186: 125233 | X186: 0.0004791069447 | Y186: =IF(GraphData!$N$3=-1,10000,1) -> 10000 | AF186: -0.0004791069447 | AG186: 47.91069447
K187: 10X | L187: NHS Southampton | M187: Wessex | N187: No | O187: No | P187: 4 | Q187: 183 | R187: 35544.81 | S187: 32183.29327 | T187: 1.104449122 | U187: 183 | V187: 142 | W187: 250604 | X187: 0.0005666310195 | Y187: =IF(GraphData!$N$3=-1,10000,1) -> 10000 | AF187: -0.0005666310195 | AG187: 56.66310195
K188: 10Y | L188: NHS Aylesbury Vale | M188: Thames | N188: No | O188: No | P188: 10 | Q188: 184 | R188: 24990.63 | S188: 22839.23489 | T188: 1.094197337 | U188: 184 | V188: 81 | W188: 186294 | X188: 0.0004347966118 | Y188: =IF(GraphData!$N$3=-1,10000,1) -> 10000 | AF188: -0.0004347966118 | AG188: 43.47966118
K189: 11A | L189: NHS West Hampshire | M189: Wessex | N189: No | O189: No | P189: 10 | Q189: 185 | R189: 104738.57 | S189: 51541.83267 | T189: 2.03210799 | U189: 185 | V189: 279 | W189: 488689 | X189: 0.0005709152447 | Y189: =IF(GraphData!$N$3=-1,10000,1) -> 10000 | AF189: -0.0005709152447 | AG189: 57.09152447
K190: 11C | L190: NHS Windsor, Ascot and Maidenhead | M190: Thames | N190: No | O190: No | P190: 10 | Q190: 186 | R190: 16663.53 | S190: 17009.57897 | T190: 0.9796556416 | U190: 186 | V190: 75 | W190: 141411 | X190: 0.0005303689246 | Y190: =IF(GraphData!$N$3=-1,10000,1) -> 10000 | AF190: -0.0005303689246 | AG190: 53.03689246
K191: 11D | L191: NHS Wokingham | M191: Thames | N191: No | O191: No | P191: 10 | Q191: 187 | R191: 29219.96 | S191: 18028.32697 | T191: 1.620780455 | U191: 187 | V191: 74 | W191: 144377 | X191: 0.0005125470123 | Y191: =IF(GraphData!$N$3=-1,10000,1) -> 10000 | AF191: -0.0005125470123 | AG191: 51.25470123
K192: 11E | L192: NHS Bath and North East Somerset | M192: South West | N192: No | O192: No | P192: 9 | Q192: 188 | R192: 29640.49 | S192: 20319.15548 | T192: 1.458746159 | U192: 188 | V192: 84 | W192: 180799 | X192: 0.0004646043396 | Y192: =IF(GraphData!$N$3=-1,10000,1) -> 10000 | AF192: -0.0004646043396 | AG192: 46.46043396
K193: 11H | L193: NHS Bristol | M193: South West | N193: No | O193: No | P193: 4 | Q193: 189 | R193: 60398.11 | S193: 57073.43566 | T193: 1.058252571 | U193: 189 | V193: 283 | W193: 455898 | X193: 0.0006207528877 | Y193: =IF(GraphData!$N$3=-1,10000,1) -> 10000 | AF193: -0.0006207528877 | AG193: 62.07528877
K194: 11J | L194: NHS Dorset | M194: Wessex | N194: No | O194: No | P194: 7 | Q194: 190 | R194: 155656.31 | S194: 67440.88089 | T194: 2.308040879 | U194: 190 | V194: 446 | W194: 683941 | X194: 0.0006521030323 | Y194: =IF(GraphData!$N$3=-1,10000,1) -> 10000 | AF194: -0.0006521030323 | AG194: 65.21030323
K195: 11M | L195: NHS Gloucestershire | M195: South West | N195: No | O195: No | P195: 8 | Q195: 191 | R195: 74202.88 | S195: 61582.134 | T195: 1.20494168 | U195: 191 | V195: 364 | W195: 564889 | X195: 0.0006443743815 | Y195: =IF(GraphData!$N$3=-1,10000,1) -> 10000 | AF195: -0.0006443743815 | AG195: 64.43743815
K196: 11N | L196: NHS Kernow | M196: South West | N196: No | O196: No | P196: 5 | Q196: 192 | R196: 95545.66 | S196: 49472.27144 | T196: 1.931297214 | U196: 192 | V196: 401 | W196: 502695 | X196: 0.0007977003949 | Y196: =IF(GraphData!$N$3=-1,10000,1) -> 10000 | AF196: =X196*$H$3 -> -0.0007977003949 | AG196: =(X196*Y196)*10 -> 79.77003949
K197: 11T | L197: NHS North Somerset | M197: =INDEX(Lookup_SCN,MATCH($K197,Lookup_CCGcode,0)) -> South West | N197: =INDEX(Lookup_Cluster,MATCH($K197,Lookup_CCGcode,0)) -> No | O197: =INDEX(Lookup_Comparator,MATCH($K197,Lookup_CCGcode,0)) -> No | P197: =INDEX(Lookup_Decile,MATCH($K197,Lookup_CCGcode,0)) -> 8 | Q197: =MATCH($K197,DataCost_CCGcode,0) -> 193 | R197: =INDEX(INDIRECT($D$6),Q197) -> 53916.92 | S197: =INDEX(INDIRECT($D$7),Q197) -> 19726.10107 | T197: =IFERROR(R197/S197,0) -> 2.733278098 | U197: =MATCH($K197,DataCost_CCGcode,0) -> 193 | V197: =INDEX(INDIRECT($D$34),U197) -> 134 | W197: =INDEX(INDIRECT($D$35),U197) -> 191791 | X197: =(V197/W197) -> 0.0006986772059 | Y197: =IF(GraphData!$N$3=-1,10000,1) -> 10000 | AF197: -0.0006986772059 | AG197: 69.86772059
K198: 11X | L198: NHS Somerset | M198: South West | N198: No | O198: No | P198: 7 | Q198: 194 | R198: 137614.07 | S198: 50034.40095 | T198: 2.75038908 | U198: 194 | V198: 344 | W198: 492394 | X198: 0.0006986275219 | Y198: =IF(GraphData!$N$3=-1,10000,1) -> 10000 | AF198: -0.0006986275219 | AG198: 69.86275219
K199: 12A | L199: NHS South Gloucestershire | M199: South West | N199: No | O199: No | P199: 10 | Q199: 195 | R199: 55584.43 | S199: 27866.47299 | T199: 1.994670442 | U199: 195 | V199: 128 | W199: 238740 | X199: 0.0005361481109 | Y199: =IF(GraphData!$N$3=-1,10000,1) -> 10000 | AF199: -0.0005361481109 | AG199: 53.61481109
K200: 12D | L200: NHS Swindon | M200: South West | N200: No | O200: No | P200: 8 | Q200: 196 | R200: 33013.42 | S200: 25977.28861 | T200: 1.270857036 | U200: 196 | V200: 128 | W200: 208993 | X200: 0.0006124607044 | Y200: =IF(GraphData!$N$3=-1,10000,1) -> 10000 | AF200: -0.0006124607044 | AG200: 61.24607044
K201: 12F | L201: NHS Wirral | M201: Cheshire and Merseyside | N201: No | O201: No | P201: 3 | Q201: 197 | R201: 35934.02 | S201: 30422.50804 | T201: 1.181165601 | U201: 197 | V201: 234 | W201: 301039 | X201: 0.0007773079236 | Y201: =IF(GraphData!$N$3=-1,10000,1) -> 10000 | AF201: -0.0007773079236 | AG201: 77.73079236
... 14 more rows

Sheet Summary_Outcomes
B1: Summary of clinical outcomes
M3: Key facts
M4: The following statements help to understand the scale of change in outcomes required to move the CCG from its current level: 1) the current position of the CCG. 2) the change required to move the CCG into the highest 50% of CCGs (those with the highest percentage of patients with cardiovascular disease meeting the given outcome), if they are not already in this position. 3) the change required to move the CCG into the highest 25% of CCGs, if they are not already in this position. 4) the number of extra patients with cardiovascular disease the CCG would need to have to equal the CCG with the highest outcome value nationally, assuming the total register size stays the same.
B5: Compare cardiovascular disease outcomes in two Clinical Commissioning Groups (CCGs) to national cardiovascular disease cluster and regional levels. The summary expenditure information on this page gives context to any changes in outcome levels a CCG may wish to consider after analysing the information in the quadrant chart and considering local factors affecting delivery of cardiovascular disease services. To use the tool, complete the fields below. The current CCG selected on the main menu is NHS Darlington. If you wish to change this, please return to the main menu.
B6: ="The current CCG selected on the main menu is "&B25&". If you wish to change this, please return to the main menu." -> The current CCG selected on the main menu is NHS Airedale, Wharfedale and Craven. If you wish to change this, please return to the main menu.
B7: Year:
F9: 4
M10: =B25 -> NHS Airedale, Wharfedale and Craven
B11: Outcome category: | L11: 1 | M11: =""&M33&". This equates to "&TEXT(SummaryData!$F$34,"#,##0")&" out of "&TEXT(SummaryData!$F$35,"#,##0")&" people. This ranks the CCG "&SummaryData!E44&" CCGs nationally for this indicator." -> The current crude rate of under 75 mortality from cardiovascular disease in NHS Airedale, Wharfedale and Craven is 58.7 per 100,000. This equates to 83 out of 141,517 people. This ranks the CCG 77 of 211 CCGs nationally for this indicator.
F12: 1 | R12: =IF(SummaryData!$D$43>=SummaryData!$E$46,""&(SummaryData!$D$33)&" in "&SummaryData!$E$38&" is in the top 50% of CCGs in England.",""&SummaryData!$D$33&" in "&SummaryData!$E$38&" is in the bottom 50% of CCGs in England. In order to achieve a percentage equivalent to that of the median (average) CCG, the CCG would need to increase the number of people by a further "&MROUND(TEXT((SummaryData!$E$46*SummaryData!$F$35)-SummaryData!$F$34,"#,##0"),10)&" assuming a static population size.") -> Under 75 mortality from cardiovascular disease in NHS Airedale, Wharfedale and Craven is in the bottom 50% of CCGs in England. In order to achieve a percentage equivalent to that of the median (average) CCG, the CCG would need to increase the number of people by a further 9260 assuming a static population size.
L13: 2 | M13: =IF(M32=1,R12,R15) -> The crude rate of under 75 mortality from cardiovascular disease in NHS Airedale, Wharfedale and Craven is in the top 50% of CCGs in England.
B14: Clinical Commissioning Group for Comparison:
F15: 3 | R15: =IF(SummaryData!$B$68<=SummaryData!$E$46,"The crude rate of "&LOWER(SummaryData!$D$33)&" in "&SummaryData!$E$38&" is in the top 50% of CCGs in England.","The crude rate of of "&LOWER(SummaryData!$D$33)&" in "&SummaryData!$E$38&" is in the bottom 50% of CCGs in England. In order to achieve a crude rate of equivalent to that of the median (average) CCG, the CCG would need to reduce the amount of "&LOWER(SummaryData!$D$33)&" by a further "&TEXT(M48,"#,##0")&" people assuming a static population size.") -> The crude rate of under 75 mortality from cardiovascular disease in NHS Airedale, Wharfedale and Craven is in the top 50% of CCGs in England.
L16: 3 | M16: =IF(M32=1,R18,R21) -> The crude rate of under 75 mortality from cardiovascular disease in NHS Airedale, Wharfedale and Craven is higher than those of the top 25% of CCGs in England. In order to achieve a crude rate equivalent to that of the median (average) CCG, the CCG would need to reduce the number of people by a further 10 people assuming a static population size.
B17: =INDEX(Lookup_OutcomeName,MATCH(F12,Lookup_OutcomeNo,0)) -> Under 75 mortality from cardiovascular disease | H17: =IF(M32=1,"Data in the table below is expressed as a percentage from the QOF register","Data in the table below is the crude rate per 100,000 people") -> Data in the table below is the crude rate per 100,000 people
E18: =IF(SummaryData!Y4=1,"Percentage of people on the QOF register *","crude rate per 100,000 people* ") -> crude rate per 100,000 people* | F18: =IF(SummaryData!Y4=1,"Percentage of people on the QOF register England","crude rate per 100,000 people England ") -> crude rate per 100,000 people England | G18: Cluster group | I18: Strategic Clinical Network | L18: 4 | M18: =IF(M32=1,R24,R27) -> In order to achieve a crude rate equal to the lowest nationally 31.1 per 100,000, the CCG would need to reduce the number of under 75 mortality from cardiovascular disease by a further 40 people assuming a static population size. | R18: =IF(SummaryData!$D$43>=SummaryData!$E$47,""&(SummaryData!$D$33)&" in "&SummaryData!$E$38&" is in the top 25% of CCGs in England.",""&SummaryData!$D$33&" in "&SummaryData!$E$38&" is lower than those of the top 25% of CCGs in England. In order to become one of highest 25% of CCGs, the CCG would need to increase the number of people with this reading by a further "&MROUND(TEXT((SummaryData!$E$47*SummaryData!$F$35)-SummaryData!$F$34,"#,##0"),10)&" assuming a static population size.") -> Under 75 mortality from cardiovascular disease in NHS Airedale, Wharfedale and Craven is lower than those of the top 25% of CCGs in England. In order to become one of highest 25% of CCGs, the CCG would need to increase the number of people with this reading by a further 7310 assuming a static population size.
G19: Chosen CCG: | H19: Comparator CCG: | I19: Chosen CCG: | J19: Comparator CCG
G20: =(SummaryData!$G$38) -> Closest 10 CCGs | H20: =(SummaryData!$G$39) -> Comparator Closest 10 CCGs | I20: =SummaryData!$F$38 -> Yorkshire and Northern | J20: =SummaryData!$F$39 -> Yorkshire and Northern | M20: =B26 -> NHS Bradford Districts
L21: 1 | M21: =""&M36&". This equates to "&TEXT(SummaryData!$G$34,"#,##0")&" out of "&TEXT(SummaryData!$G$35,"#,##0")&" people. This ranks the CCG "&SummaryData!E49&" CCGs nationally for this indicator." -> The current crude rate of under 75 mortality from cardiovascular disease in NHS Bradford Districts is 81.1 per 100,000. This equates to 251 out of 309,647 people. This ranks the CCG 181 of 211 CCGs nationally for this indicator. | R21: =IF(SummaryData!$B$68<=SummaryData!$E$47,"The crude rate of "&(LOWER(SummaryData!$D$33))&" in "&SummaryData!$E$38&" is in the top 25% of CCGs in England.","The crude rate of "&LOWER(SummaryData!$D$33)&" in "&SummaryData!$E$38&" is higher than those of the top 25% of CCGs in England. In order to achieve a crude rate equivalent to that of the median (average) CCG, the CCG would need to reduce the number of people by a further "&(TEXT(M49,"#,##0"))&" people assuming a static population size.") -> The crude rate of under 75 mortality from cardiovascular disease in NHS Airedale, Wharfedale and Craven is higher than those of the top 25% of CCGs in England. In order to achieve a crude rate equivalent to that of the median (average) CCG, the CCG would need to reduce the number of people by a further 10 people assuming a static population size.
B22: CCG which cuts off the lowest 25% of outcomes | F22: =SummaryData!E45+IF(M32=-1,SummaryData!E45*1000,SummaryData!E45*100) -> 76.80924726 | G22: =IF(GraphData!$AH$3=1,SummaryData!$G$45*100,SummaryData!$G$47*100000) -> 78.15736371 | H22: =IF(GraphData!$AH$3=1,SummaryData!$G$50*100,SummaryData!$G$52*100000) -> 82.24749266 | I22: =IF(GraphData!AH3=1,SummaryData!$F$52*100,SummaryData!$F$50*100000) -> 62.58930987 | J22: =IF(GraphData!AH3=1,SummaryData!$F$47*100,SummaryData!$F$45*100000) -> 62.58930987
B23: Average (Median) | F23: =SummaryData!E46+IF(M32=-1,SummaryData!E46*1000,SummaryData!E46*100) -> 66.05080831 | G23: =IF(GraphData!$AH$3=1,SummaryData!$G$46*100,SummaryData!$G$46*100000) -> 67.74564016 | H23: =IF(GraphData!AH3=1,SummaryData!$G$51*100,SummaryData!$G$51*100000) -> 77.05676323 | I23: =IF(GraphData!AH3=1,SummaryData!$F$46*100,SummaryData!$F$46*100000) -> 74.19853797 | J23: =IF(GraphData!AH3=1,SummaryData!$F$51*100,SummaryData!$F$51*100000) -> 74.19853797 | L23: 2 | M23: =IF(M32=1,R30,R33) -> The crude rate of under 75 mortality from cardiovascular disease in NHS Bradford Districts is in the lower 50% of CCGs in England. In order to achieve a crude rate equivalent to that of the median (average) CCG, the CCG would need to reduce the number of under 75 mortality from cardiovascular disease by a further 45 people assuming a static population size.
B24: CCG which cuts off the highest 25% of outcomes | F24: =SummaryData!E47+IF(M32=-1,SummaryData!E47*1000,SummaryData!E47*100) -> 52.31465054 | G24: =IF(GraphData!$AH$3=1,SummaryData!$G$47*100,SummaryData!$G$45*100000) -> 55.19101283 | H24: =IF(GraphData!AH3=1,SummaryData!$G$52*100,SummaryData!$G$50*100000) -> 73.62074033 | I24: =IF(GraphData!AH3=1,SummaryData!$F$50*100,SummaryData!$F$52*100000) -> 79.76138701 | J24: =IF(GraphData!AH3=1,SummaryData!$F$45*100,SummaryData!$F$47*100000) -> 79.76138701 | R24: =IF(SummaryData!$B$68=MAX(SummaryData_OutcomeValue),SummaryData!$E$38&" is currently ranked as the CCG with the highest percentage of "&LOWER(SummaryData!$D$33)&" nationally.","In order to achieve a percentage equal to the "&M45&" CCG nationally "&M41&", the CCG would need to increase the number of "&LOWER(SummaryData_OutcomeInd)&" by a further "&MROUND(TEXT((MAX(SummaryData_OutcomeValue)*SummaryData!$F$35)-SummaryData!$F$34,"#,##0"),10)&" people assuming a static population size.") -> In order to achieve a percentage equal to the lowest CCG nationally 31.1 per 100,000, the CCG would need to increase the number of under 75 mortality from cardiovascular disease by a further 70 people assuming a static population size.
B25: =INDEX(Lookup_CCGname,Menu_ChosenCCG) -> NHS Airedale, Wharfedale and Craven | E25: =IF(M32=-1,SummaryData!D43*100000,SummaryData!D43*100) -> 58.6501975 | F25: =SummaryData!E44 -> 77 of 211 | G25: =SummaryData!G44 -> 4 of 10 | I25: =SummaryData!F44 -> 5 of 22
B26: =Summary_Cost!B25 -> NHS Bradford Districts | E26: =IF(M32=-1,SummaryData!D48*100000,SummaryData!D48*100) -> 81.06004579 | F26: =SummaryData!E49 -> 181 of 211 | H26: =SummaryData!G49 -> 7 of 10 | J26: =SummaryData!F49 -> 18 of 22 | L26: 3 | M26: =IF(M32=1,R36,R41) -> The crude rate of under 75 mortality from cardiovascular disease in NHS Bradford Districts is higher than those of the top 25% of CCGs in England. In order to achieve a crude rate equivalent to that of the median (average) CCG, the CCG would need to reduce the number of under 75 mortality from cardiovascular disease by a further 90 people assuming a static population size.
B27: Note for ranking data, the ideal is to aim for a low value in the ranking system in England/cluster group/Strategic Clinical Network. | R27: =IF(SummaryData!$D$43=MIN(SummaryData_OutcomeValue),SummaryData!$E$38&" is currently ranked as the CCG with the highest crude rate of "&LOWER(SummaryData!$D$33)&" nationally.","In order to achieve a crude rate equal to the "&M45&" nationally "&M41&", the CCG would need to reduce the number of "&LOWER(SummaryData_OutcomeInd)&" by a further "&MROUND(M50,5)&" people assuming a static population size.") -> In order to achieve a crude rate equal to the lowest nationally 31.1 per 100,000, the CCG would need to reduce the number of under 75 mortality from cardiovascular disease by a further 40 people assuming a static population size.
B28: *Numerator | C28: =GraphData!AG6 -> Observed deaths (under 75 mortality cardiovascular disease CCG indicator 1.2) HSCIC Sept 2013 | L28: 4 | M28: =IF(M32=1,R45,R48) -> In order to achieve a crude rate equal to the lowest nationally 31.1 per 100,000, the CCG would need to reduce the number of under 75 mortality from cardiovascular disease by a further 155 people assuming a static population size.
B29: *Denominator | C29: =GraphData!AJ6 -> Under 75 population (under 75 mortality cardiovascular disease CCG indicator 1.2) HSCIC Sept 2013
R30: =IF(SummaryData!$D$48>=SummaryData!$E$51,""&M39&" "&(SummaryData!$D$33)&" in "&SummaryData!$E$39&" is in the top 50% of CCGs in England.",""&SummaryData!$D$33&" in "&SummaryData!$E$39&" is in the lower 50% of CCGs in England. In order to achieve a percentage equivalent to that of the median (average) CCG, the CCG would need to increase the number of people by a further "&TEXT((SummaryData!$E$51*SummaryData!$G$35)-SummaryData!$G$34,"#,##0")&" assuming a static population size.") -> Under 75 mortality from cardiovascular disease in NHS Bradford Districts is in the lower 50% of CCGs in England. In order to achieve a percentage equivalent to that of the median (average) CCG, the CCG would need to increase the number of people by a further 20,181 assuming a static population size.
M32: =GraphData!AH3 -> -1
M33: =IF(M32=-1,M35,IF(M32=1,M34)) -> The current crude rate of under 75 mortality from cardiovascular disease in NHS Airedale, Wharfedale and Craven is 58.7 per 100,000 | R33: =IF(SummaryData!$B$69<=SummaryData!$E$51,"The crude rate of "&LOWER(SummaryData!$D$33)&" in "&SummaryData!$E$39&" is in the top 50% of CCGs in England.","The crude rate of "&LOWER(SummaryData!$D$33)&" in "&SummaryData!$E$39&" is in the lower 50% of CCGs in England. In order to achieve a crude rate equivalent to that of the median (average) CCG, the CCG would need to reduce the number of "&LOWER(SummaryData!$D$33)&" by a further "&TEXT(M51,"#,##0")&" people assuming a static population size.") -> The crude rate of under 75 mortality from cardiovascular disease in NHS Bradford Districts is in the lower 50% of CCGs in England. In order to achieve a crude rate equivalent to that of the median (average) CCG, the CCG would need to reduce the number of under 75 mortality from cardiovascular disease by a further 45 people assuming a static population size.
M34: ="In "&SummaryData!$E$38&" "&LOWER(SummaryData!$D$33)&" is "&ROUND(SummaryData!$D$43*100,1)&"%" -> In NHS Airedale, Wharfedale and Craven under 75 mortality from cardiovascular disease is 0.1%
M35: ="The current crude rate of "&(LOWER(SummaryData!$D$33))&" in "&SummaryData!$E$38&" is "&ROUND(E25,1)&" per 100,000" -> The current crude rate of under 75 mortality from cardiovascular disease in NHS Airedale, Wharfedale and Craven is 58.7 per 100,000
M36: =IF(M32=-1,M38,IF(M32=1,M37)) -> The current crude rate of under 75 mortality from cardiovascular disease in NHS Bradford Districts is 81.1 per 100,000 | R36: =IF(SummaryData!$D$48>=SummaryData!$E$47,""&SummaryData!$D$33&" in "&SummaryData!$E$39&" is in the top 25% of CCGs in England.",""&SummaryData!$D$33&" in "&SummaryData!$E$39&" is lower than those of the top 25% of CCGs in England. In order to become one of highest 25% of CCGs, the CCG would need to increase the number of people with this reading by "&MROUND(TEXT((SummaryData!$E$47*SummaryData!$G$35)-SummaryData!$G$34,"#,##0"),10)&" assuming a static population size.") -> Under 75 mortality from cardiovascular disease in NHS Bradford Districts is lower than those of the top 25% of CCGs in England. In order to become one of highest 25% of CCGs, the CCG would need to increase the number of people with this reading by 15930 assuming a static population size.
M37: ="In "&SummaryData!$E$39&" "&LOWER(SummaryData!$D$33)&" is "&ROUND(SummaryData!$D$48*100,1)&"%" -> In NHS Bradford Districts under 75 mortality from cardiovascular disease is 0.1%
M38: ="The current crude rate of "&(LOWER(SummaryData!$D$33))&" in "&SummaryData!$E$39&" is "&ROUND(E26,1)&" per 100,000" -> The current crude rate of under 75 mortality from cardiovascular disease in NHS Bradford Districts is 81.1 per 100,000
M40: =IF(M32=-1,"reduce","increase") -> reduce
M41: =IF(M32=1,M42,M44) -> 31.1 per 100,000 | R41: =IF(SummaryData!$B$69<=SummaryData!$E$52,"The crude rate of "&LOWER(SummaryData!$D$33)&" in "&SummaryData!$E$39&" is in the top 25% of CCGs in England.","The crude rate of "&LOWER(SummaryData!$D$33)&" in "&SummaryData!$E$39&" is higher than those of the top 25% of CCGs in England. In order to achieve a crude rate equivalent to that of the median (average) CCG, the CCG would need to reduce the number of "&LOWER(SummaryData!$D$33)&" by a further "&TEXT(M52,"#,##0")&" people assuming a static population size.") -> The crude rate of under 75 mortality from cardiovascular disease in NHS Bradford Districts is higher than those of the top 25% of CCGs in England. In order to achieve a crude rate equivalent to that of the median (average) CCG, the CCG would need to reduce the number of under 75 mortality from cardiovascular disease by a further 90 people assuming a static population size.
M42: =TEXT(MAX(SummaryData_OutcomeValue),"0.0%") -> 0.1%
J43: Return to chart | M43: =ROUND(MIN(SummaryData_OutcomeValue)*100000,1) -> 31.1
M44: =""&M43&" per 100,000" -> 31.1 per 100,000
M45: =IF(M32=1,M47,M46) -> lowest | R45: =IF(SummaryData!$D$48=MAX(SummaryData_OutcomeValue),SummaryData!$E$39&" is currently ranked as the CCG with the highest percentage of "&(SummaryData!D33)&" nationally.","In order to achieve a percentage equal to the "&M45&" CCG nationally "&M41&". The CCG would need to increase the number of people by a further "&MROUND(TEXT((MAX(SummaryData_OutcomeValue)*SummaryData!$G$35)-SummaryData!$G$34,"#,##0"),10)&" assuming a static population size.") -> In order to achieve a percentage equal to the lowest CCG nationally 31.1 per 100,000. The CCG would need to increase the number of people by a further 90 assuming a static population size.
M46: ="lowest" -> lowest
M47: ="highest" -> highest
J48: Chosen equal median | M48: =MROUND(((E25-F23)/E25)*SummaryData!F34,5) ->  | R48: =IF(SummaryData!$D$48=MIN(SummaryData_OutcomeValue),SummaryData!$E$39&" is currently ranked as the CCG with the highest crude rate of "&(SummaryData!D33)&" nationally.","In order to achieve a crude rate equal to the "&M45&" nationally "&M41&", the CCG would need to reduce the number of "&LOWER(SummaryData_OutcomeInd)&" by a further "&MROUND(M53,5)&" people assuming a static population size.") -> In order to achieve a crude rate equal to the lowest nationally 31.1 per 100,000, the CCG would need to reduce the number of under 75 mortality from cardiovascular disease by a further 155 people assuming a static population size.
J49: Chosen top 25% | M49: =MROUND(((E25-F24)/E25)*SummaryData!F34,5) -> 10
J50: Chosen equal min value | M50: =MROUND(((E25-(MIN(SummaryData!AG4:AG215)))/E25)*SummaryData!F34,5) -> 40
J51: Comparator equal median | M51: =MROUND(((E26-F23)/E26)*SummaryData!G34,5) -> 45
J52: Comparator top 25% | M52: =MROUND(((E26-F24)/E26)*SummaryData!G34,5) -> 90
J53: Comparator equal min value | M53: =MROUND(((E26-(MIN(SummaryData!AG4:AG215)))/E26)*SummaryData!G34,5) -> 155

Sheet Graph_current
C1: Selected CCG | D1: 27 | E1: 4
C2: Comparison area | E2: 2 | F2: =IF($E$2=2,"in the closest 10 CCGs",IF($E$2=1,GraphData_ChosenCCGSCN&" Strategic Clinical Network (SCN)",IF($E$2=3,GraphData_ChosenCCGdecile&IF(GraphData_ChosenCCGdecile<4,CHOOSE(GraphData_ChosenCCGdecile,"st","nd","rd"),"th")&" most deprived CCG decile"))) -> in the closest 10 CCGs
C3: Highlighted CCG | E3: 57
B5: Outcome versus expenditure tool: cardiovascular quadrant chart | E5: =GraphData_CostInd&" compared to "&LOWER(GraphData_OutcomeInd)&" for "&GraphData_ChosenCCG&" "&"compared with other CCGs in the "&F2&"" -> Spend on anti-arrhythmic drugs compared to under 75 mortality from cardiovascular disease for NHS Airedale, Wharfedale and Craven compared with other CCGs in the in the closest 10 CCGs
C8: Expenditure
C10: Outcome
C13: Overview
C15: ="This chart shows the "&LOWER(GraphData_CostInd)&" compared to "&LOWER(GraphData_OutcomeInd)&" for "&GraphData_ChosenCCG&"." -> This chart shows the spend on anti-arrhythmic drugs compared to under 75 mortality from cardiovascular disease for NHS Airedale, Wharfedale and Craven.
M17: =IFERROR(C18,0) -> In NHS Airedale, Wharfedale and Craven the spend on anti-arrhythmic drugs was £1.99 per person* and the crude rate of under 75 mortality from cardiovascular disease was 58.7 Per 100,000. In the 2012/13 QOF, the expected cardiovascular disease prevelance for this CCG is 10.3%. | N17: =IF(M17=0,"Whoops! please select another outcome this data is not available currently","") -> 
C18: ="In "&GraphData_ChosenCCG&" the "&LOWER(GraphData_CostInd)&" was "&TEXT(GraphData!J16,"£#,##0.00")&" per "&GraphData!P7&"* and "&C53&""&LOWER(GraphData!C6)&" was "&ROUND(GraphData!N7,1)&" "&GraphData!O7&". In the 2012/13 QOF, the expected cardiovascular disease prevelance for this CCG is "&ROUND(INDEX(GraphData_DiabPrev,GraphData_ChosenCCGRefnum),1)&"%. " -> In NHS Airedale, Wharfedale and Craven the spend on anti-arrhythmic drugs was £1.99 per person* and the crude rate of under 75 mortality from cardiovascular disease was 58.7 Per 100,000. In the 2012/13 QOF, the expected cardiovascular disease prevelance for this CCG is 10.3%.
C23: Comparing with similar CCGs
C24: Your chosen CCG can be compared to similar CCGs based on; location, demographic characteristics or deprivation, by selecting a group from the list below:
C31: =IF($E$2=2,"Your chosen CCG is compared to commissioning for value "&(GraphData_ChosenCCGcluster)&":",IF($E$2=1,"Your chosen CCG is in the "&GraphData_ChosenCCGSCN&" SCN",IF($E$2=3,"Your chosen CCG is in the "&GraphData_ChosenCCGdecile&IF(GraphData_ChosenCCGdecile<4,CHOOSE(GraphData_ChosenCCGdecile,"st","nd","rd"),"th")&" most deprived CCG decile"))) -> Your chosen CCG is compared to commissioning for value Closest 10 CCGs:
C34: Identifying CCGs
C35: To locate any CCG on the chart, make a selection from the list below. The selected CCG will be highlighted on the chart with a dark circle. This will not change your chosen CCG.
C41: Click on any point in the chart in order to identify the CCG:
C42: ="Your selected CCG is: "&CHOOSE($E$1,"","",$D$1,INDEX(GraphData_CCGname,$D$1),INDEX(GraphData_CCGname,$D$1),GraphData_ChosenCCG,GraphData_ChosenCCG) -> Your selected CCG is: NHS Camden
C47: Brief quadrant chart guide | M47: =IF(ISERROR(INDEX(GraphData!C24:C251,SMALL(IF(GraphData!$D$1:$D$228=GraphData_ChosenCCGSCN,ROW(GraphData!$D$1:$D$228)),R47))),"",INDEX(GraphData!C24:C251,SMALL(IF(GraphData!$D$1:$D$228=GraphData_ChosenCCGSCN,ROW(GraphData!$D$1:$D$228)),R47))) ->  | P47: =IF(ISERROR(INDEX(GraphData!C37:C261,SMALL(IF(GraphData!$D$1:$D$228=$M$5,ROW(GraphData!$D$1:$D$228)),R56))),"",INDEX(GraphData!C37:C261,SMALL(IF(GraphData!$D$1:$D$228=$M$5,ROW(GraphData!$D$1:$D$228)),R56))) -> 
M48: =IF(ISERROR(INDEX(GraphData!C25:C252,SMALL(IF(GraphData!$D$1:$D$228=GraphData_ChosenCCGSCN,ROW(GraphData!$D$1:$D$228)),R48))),"",INDEX(GraphData!C25:C252,SMALL(IF(GraphData!$D$1:$D$228=GraphData_ChosenCCGSCN,ROW(GraphData!$D$1:$D$228)),R48))) ->  | P48: =IF(ISERROR(INDEX(GraphData!C38:C262,SMALL(IF(GraphData!$D$1:$D$228=$M$5,ROW(GraphData!$D$1:$D$228)),R57))),"",INDEX(GraphData!C38:C262,SMALL(IF(GraphData!$D$1:$D$228=$M$5,ROW(GraphData!$D$1:$D$228)),R57))) -> 
M49: =IF(ISERROR(INDEX(GraphData!C26:C253,SMALL(IF(GraphData!$D$1:$D$228=GraphData_ChosenCCGSCN,ROW(GraphData!$D$1:$D$228)),R49))),"",INDEX(GraphData!C26:C253,SMALL(IF(GraphData!$D$1:$D$228=GraphData_ChosenCCGSCN,ROW(GraphData!$D$1:$D$228)),R49))) ->  | P49: =IF(ISERROR(INDEX(GraphData!C39:C263,SMALL(IF(GraphData!$D$1:$D$228=$M$5,ROW(GraphData!$D$1:$D$228)),R58))),"",INDEX(GraphData!C39:C263,SMALL(IF(GraphData!$D$1:$D$228=$M$5,ROW(GraphData!$D$1:$D$228)),R58))) -> 
M50: =IF(ISERROR(INDEX(GraphData!C28:C255,SMALL(IF(GraphData!$D$1:$D$228=GraphData_ChosenCCGSCN,ROW(GraphData!$D$1:$D$228)),R50))),"",INDEX(GraphData!C28:C255,SMALL(IF(GraphData!$D$1:$D$228=GraphData_ChosenCCGSCN,ROW(GraphData!$D$1:$D$228)),R50))) ->  | P50: =IF(ISERROR(INDEX(GraphData!C41:C265,SMALL(IF(GraphData!$D$1:$D$228=$M$5,ROW(GraphData!$D$1:$D$228)),R60))),"",INDEX(GraphData!C41:C265,SMALL(IF(GraphData!$D$1:$D$228=$M$5,ROW(GraphData!$D$1:$D$228)),R60))) -> 
M51: =IF(ISERROR(INDEX(GraphData!C29:C256,SMALL(IF(GraphData!$D$1:$D$228=GraphData_ChosenCCGSCN,ROW(GraphData!$D$1:$D$228)),R51))),"",INDEX(GraphData!C29:C256,SMALL(IF(GraphData!$D$1:$D$228=GraphData_ChosenCCGSCN,ROW(GraphData!$D$1:$D$228)),R51))) ->  | P51: =IF(ISERROR(INDEX(GraphData!C42:C266,SMALL(IF(GraphData!$D$1:$D$228=$M$5,ROW(GraphData!$D$1:$D$228)),R61))),"",INDEX(GraphData!C42:C266,SMALL(IF(GraphData!$D$1:$D$228=$M$5,ROW(GraphData!$D$1:$D$228)),R61))) -> 
C52: ="* "&GraphData!P6&"" -> * Net ingredient cost (all items in section 2 cardiovascular disease BNF) HSCIC GP Practice Prescribing Presentation-level Data 2012 - 2013 | M52: =IF(ISERROR(INDEX(GraphData!C30:C257,SMALL(IF(GraphData!$D$1:$D$228=GraphData_ChosenCCGSCN,ROW(GraphData!$D$1:$D$228)),R52))),"",INDEX(GraphData!C30:C257,SMALL(IF(GraphData!$D$1:$D$228=GraphData_ChosenCCGSCN,ROW(GraphData!$D$1:$D$228)),R52))) -> 
C53: =IF(GraphData!N3=-1,"the crude rate of ","") -> the crude rate of | M53: =IF(ISERROR(INDEX(GraphData!C31:C258,SMALL(IF(GraphData!$D$1:$D$228=GraphData_ChosenCCGSCN,ROW(GraphData!$D$1:$D$228)),R53))),"",INDEX(GraphData!C31:C258,SMALL(IF(GraphData!$D$1:$D$228=GraphData_ChosenCCGSCN,ROW(GraphData!$D$1:$D$228)),R53))) -> 
M54: =IF(ISERROR(INDEX(GraphData!C32:C259,SMALL(IF(GraphData!$D$1:$D$228=GraphData_ChosenCCGSCN,ROW(GraphData!$D$1:$D$228)),R54))),"",INDEX(GraphData!C32:C259,SMALL(IF(GraphData!$D$1:$D$228=GraphData_ChosenCCGSCN,ROW(GraphData!$D$1:$D$228)),R54))) -> 
M55: =IF(ISERROR(INDEX(GraphData!C33:C260,SMALL(IF(GraphData!$D$1:$D$228=GraphData_ChosenCCGSCN,ROW(GraphData!$D$1:$D$228)),R55))),"",INDEX(GraphData!C33:C260,SMALL(IF(GraphData!$D$1:$D$228=GraphData_ChosenCCGSCN,ROW(GraphData!$D$1:$D$228)),R55))) -> 
M56: =IF(ISERROR(INDEX(GraphData!C34:C261,SMALL(IF(GraphData!$D$1:$D$228=GraphData_ChosenCCGSCN,ROW(GraphData!$D$1:$D$228)),R56))),"",INDEX(GraphData!C34:C261,SMALL(IF(GraphData!$D$1:$D$228=GraphData_ChosenCCGSCN,ROW(GraphData!$D$1:$D$228)),R56))) -> 
M57: =IF(ISERROR(INDEX(GraphData!C35:C262,SMALL(IF(GraphData!$D$1:$D$228=GraphData_ChosenCCGSCN,ROW(GraphData!$D$1:$D$228)),R57))),"",INDEX(GraphData!C35:C262,SMALL(IF(GraphData!$D$1:$D$228=GraphData_ChosenCCGSCN,ROW(GraphData!$D$1:$D$228)),R57))) -> 
M58: =IF(ISERROR(INDEX(GraphData!C36:C263,SMALL(IF(GraphData!$D$1:$D$228=GraphData_ChosenCCGSCN,ROW(GraphData!$D$1:$D$228)),R58))),"",INDEX(GraphData!C36:C263,SMALL(IF(GraphData!$D$1:$D$228=GraphData_ChosenCCGSCN,ROW(GraphData!$D$1:$D$228)),R58))) -> 
M59: =IF(ISERROR(INDEX(GraphData!C37:C264,SMALL(IF(GraphData!$D$1:$D$228=GraphData_ChosenCCGSCN,ROW(GraphData!$D$1:$D$228)),R59))),"",INDEX(GraphData!C37:C264,SMALL(IF(GraphData!$D$1:$D$228=GraphData_ChosenCCGSCN,ROW(GraphData!$D$1:$D$228)),R59))) -> 
M60: =IF(ISERROR(INDEX(GraphData!C38:C265,SMALL(IF(GraphData!$D$1:$D$228=GraphData_ChosenCCGSCN,ROW(GraphData!$D$1:$D$228)),R60))),"",INDEX(GraphData!C38:C265,SMALL(IF(GraphData!$D$1:$D$228=GraphData_ChosenCCGSCN,ROW(GraphData!$D$1:$D$228)),R60))) -> 
M61: =IF(ISERROR(INDEX(GraphData!C39:C266,SMALL(IF(GraphData!$D$1:$D$228=GraphData_ChosenCCGSCN,ROW(GraphData!$D$1:$D$228)),R61))),"",INDEX(GraphData!C39:C266,SMALL(IF(GraphData!$D$1:$D$228=GraphData_ChosenCCGSCN,ROW(GraphData!$D$1:$D$228)),R61))) -> 

Sheet Dashboard
B1: Outcomes Versus Expenditure Tool - Cardiovascular Dashboard
B5: Selected CCG | J5: Comparator group | R5: Year
C8: Expenditure
M10: Click here for information of about the graph | T10: =IF(Dashboard_charts_data!C4=1,"Range of costs for for CCGs in the "&SummaryData!F10&" SCN",IF(Dashboard_charts_data!C4=2,"Range of cost for 10 most similar CCGs","Range of cost for CCGs in a similar Deprivation decile")) -> Range of costs for for CCGs in the Yorkshire and Northern SCN
R11: Range of all CCGs
P13: Maximum value | S13: =Dashboard_charts_data!$AD$14 -> 8.640836382 | U13: =IF(Dashboard_charts_data!C4=1,Dashboard_charts_data!AD16,IF(Dashboard_charts_data!C4=2,Dashboard_charts_data!AD18,Dashboard_charts_data!AD20)) -> 1.994663011
B15: Number of CCGs
P16: Minimum value | S16: =Dashboard_charts_data!$AD$15 -> 0.1553031164 | U16: =IF(Dashboard_charts_data!C4=1,Dashboard_charts_data!AD17,IF(Dashboard_charts_data!C4=2,Dashboard_charts_data!AD19,Dashboard_charts_data!AD21)) -> 0.1553031164 | Y16: =""&Dashboard_charts_data!L7&"" -> rate per 100,000
P19: Selected CCG value | S19: =Dashboard_charts_data!AD13 -> 1.994663011
C21: Below average spending | L21: Above average spending
P22: Difference on 2012/13 cost and the 2013/14 cost * | U22: =VLOOKUP(Dashboard_charts_data!B2,Dashboard_charts_data!$A$10:$L$220,10,0)-VLOOKUP(Dashboard_charts_data!B2,Dashboard_charts_data!$A$10:$L$220,9,0) -> -0.2346182014
C23: =Dashboard_charts_data!AA31 -> 1 | D23: =""&SummaryData!E10&" "&Dashboard_charts_data!AB31&" in this expenditure" -> NHS Airedale, Wharfedale and Craven is in the highest quartile of its SCN group in this expenditure | H23: =IF(Dashboard_charts_data!C4=1,"Lower limit of costs for for CCGs in the "&SummaryData!F10&" SCN",IF(Dashboard_charts_data!C4=2,"Lower limit of cost for 10 most similar CCGs","Lower limit of cost for CCGs in a similar deprivation decile")) -> Lower limit of costs for for CCGs in the Yorkshire and Northern SCN | L23: =IF(Dashboard_charts_data!C4=1,"Upper limit of costs for for CCGs in the "&SummaryData!F10&" SCN",IF(Dashboard_charts_data!C4=2,"Upper limit of cost for 10 most similar CCGs","Upper limit of cost for CCGs in a similar deprivation decile")) -> Upper limit of costs for for CCGs in the Yorkshire and Northern SCN
C26: Outcomes
M27: Click here for information of about the graph | T27: =IF(Dashboard_charts_data!C4=1,"Range of percentage outcomes for for CCGs in the "&SummaryData!F10&" SCN",IF(Dashboard_charts_data!C4=2,"Range of percentage outcomes for 10 most similar CCGs","Range of percentage outcomes for CCGs in a similar Deprivation decile")) -> Range of percentage outcomes for for CCGs in the Yorkshire and Northern SCN
R28: Range of all CCGs
P30: =IF(AND(Dashboard_charts_data!C5=1,Dashboard_charts_data!B7<=7),"Maximum value is the rate per 100,000 people","Maximum value is the rate (percentage)") -> Maximum value is the rate per 100,000 people | S30: =Dashboard_charts_data!AX14 -> 110.8048588 | U30: =IF(Dashboard_charts_data!C4=1,Dashboard_charts_data!AX16,IF(Dashboard_charts_data!C4=2,Dashboard_charts_data!AX18,Dashboard_charts_data!AX20)) -> 107.9473899
B33: Number of CCGs | P33: =IF(AND(Dashboard_charts_data!C5=1,Dashboard_charts_data!B7<=7),"Minimum value is the rate per 100,000 people","Minimum value is the rate (percentage)") -> Minimum value is the rate per 100,000 people | S33: =Dashboard_charts_data!AX15 -> 31.14590537 | U33: =IF(Dashboard_charts_data!C4=1,Dashboard_charts_data!AX17,IF(Dashboard_charts_data!C4=2,Dashboard_charts_data!AX19,Dashboard_charts_data!AX21)) -> 52.47229304
P36: Selected CCG value | S36: =Dashboard_charts_data!AX13 -> 58.6501975
C39: Below average outcomes | L39: Above average outcomes | P39: Difference between 2012/13 and 2013/14 outcomes | T39: =IF(AND(Dashboard_charts_data!C5=1,Dashboard_charts_data!B7>=8),VLOOKUP(Dashboard_charts_data!B2,Dashboard_charts_data!$A$10:$L$220,12,0)-VLOOKUP(Dashboard_charts_data!B2,Dashboard_charts_data!$A$10:$L$220,11,0),IF(AND(Dashboard_charts_data!C5=2,Dashboard_charts_data!B7<=8),VLOOKUP(Dashboard_charts_data!B2,Dashboard_charts_data!$A$10:$L$220,12,0)-VLOOKUP(Dashboard_charts_data!B2,Dashboard_charts_data!$A$10:$L$220,11,0),"There is no 2013/14 data currently available to compare to this outcome")) -> There is no 2013/14 data currently available to compare to this outcome
C41: =Dashboard_charts_data!AU30 -> 3 | D41: =""&SummaryData!E10&" "&Dashboard_charts_data!AV30&" for this outcome" -> NHS Airedale, Wharfedale and Craven is in the lowest quartile of its SCN group for this outcome | H41: =IF(Dashboard_charts_data!C4=1,"Lowest "&Y16&" for CCGs in the "&SummaryData!F10&" SCN",IF(Dashboard_charts_data!C4=2,"Lowest "&Y16&" for 10 most similar CCGs","Lowest percentile for CCGs in a similar deprivation decile")) -> Lowest rate per 100,000 for CCGs in the Yorkshire and Northern SCN | L41: =IF(Dashboard_charts_data!C4=1,"Highest "&Y16&" for CCGs in the "&SummaryData!F10&" SCN",IF(Dashboard_charts_data!C4=2,"Highest "&Y16&" for 10 most similar CCGs","Highest percentile CCGs in a similar deprivation decile")) -> Highest rate per 100,000 for CCGs in the Yorkshire and Northern SCN
B46: * net ingredient cost

Sheet UserLookups
A1: Lookups for each CCG nationally
B5: CCG information
A6: CCG name (Organisation Data Service Aug 2013) | B6: CCG code | C6: CCG ONS code | D6: Commissioning Board Region | E6: Strategic Clinical Network (SCN). Where there's overlap the CCG has been put within the SCN of greates coverage | F6: 10 Closest CCGs to the selected CCG (changes on menu selection) | G6: Index of Deprivation 2010 decile (using 2012 pop) | H6: 2011 Cardiovascular disesase expected prevelance (%)
A7: NHS Airedale, Wharfedale and Craven | B7: 02N | C7: E38000001 | D7: North | E7: Yorkshire and Northern | F7: =VLOOKUP(B7,Lookup!$BJ$3:$BO$213,6,0) -> One of the 10 most similar CCGs | G7: 6 | H7: 10.304
A8: NHS Ashford | B8: 09C | C8: E38000002 | D8: South | E8: South East coast | F8: =VLOOKUP(B8,Lookup!$BJ$3:$BO$213,6,0) -> One of the 10 most similar CCGs | G8: 8 | H8: 9.301
A9: NHS Aylesbury Vale | B9: 10Y | C9: E38000003 | D9: South | E9: Thames | F9: =VLOOKUP(B9,Lookup!$BJ$3:$BO$213,6,0) -> Not similar | G9: 10 | H9: 8.783
A10: NHS Barking and Dagenham | B10: 07L | C10: E38000004 | D10: London | E10: London | F10: =VLOOKUP(B10,Lookup!$BJ$3:$BO$213,6,0) -> Not similar | G10: 2 | H10: 7.361
A11: NHS Barnet | B11: 07M | C11: E38000005 | D11: London | E11: London | F11: =VLOOKUP(B11,Lookup!$BJ$3:$BO$213,6,0) -> Not similar | G11: 7 | H11: 7.951
A12: NHS Barnsley | B12: 02P | C12: E38000006 | D12: North | E12: Yorkshire and Northern | F12: =VLOOKUP(B12,Lookup!$BJ$3:$BO$213,6,0) -> Not similar | G12: 3 | H12: 10.325
A13: NHS Basildon and Brentwood | B13: 99E | C13: E38000007 | D13: Midlands and East | E13: East of England | F13: =VLOOKUP(B13,Lookup!$BJ$3:$BO$213,6,0) -> Not similar | G13: 7 | H13: 9.422
A14: NHS Bassetlaw | B14: 02Q | C14: E38000008 | D14: North | E14: Yorkshire and Northern | F14: =VLOOKUP(B14,Lookup!$BJ$3:$BO$213,6,0) -> Not similar | G14: 4 | H14: 10.33
A15: NHS Bath and North East Somerset | B15: 11E | C15: E38000009 | D15: South | E15: South West | F15: =VLOOKUP(B15,Lookup!$BJ$3:$BO$213,6,0) -> Not similar | G15: 9 | H15: 9.757
A16: NHS Bedfordshire | B16: 06F | C16: E38000010 | D16: Midlands and East | E16: East of England | F16: =VLOOKUP(B16,Lookup!$BJ$3:$BO$213,6,0) -> Not similar | G16: 9 | H16: 8.937
A17: NHS Bexley | B17: 07N | C17: E38000011 | D17: London | E17: London | F17: =VLOOKUP(B17,Lookup!$BJ$3:$BO$213,6,0) -> Not similar | G17: 7 | H17: 9.117
A18: NHS Birmingham Crosscity | B18: 13P | C18: E38000012 | D18: Midlands and East | E18: West Midlands | F18: =VLOOKUP(B18,Lookup!$BJ$3:$BO$213,6,0) -> Not similar | G18: 1 | H18: 9.106
A19: NHS Birmingham South and Central | B19: 04X | C19: E38000013 | D19: Midlands and East | E19: West Midlands | F19: =VLOOKUP(B19,Lookup!$BJ$3:$BO$213,6,0) -> Not similar | G19: 1 | H19: 8.06
A20: NHS Blackburn with Darwen | B20: 00Q | C20: E38000014 | D20: North | E20: Greater Manchester Lancashire and South Cumbria | F20: =VLOOKUP(B20,Lookup!$BJ$3:$BO$213,6,0) -> Not similar | G20: 1 | H20: 8.783
A21: NHS Blackpool | B21: 00R | C21: E38000015 | D21: North | E21: Greater Manchester Lancashire and South Cumbria | F21: =VLOOKUP(B21,Lookup!$BJ$3:$BO$213,6,0) -> Not similar | G21: 1 | H21: 11.562
A22: NHS Bolton | B22: 00T | C22: E38000016 | D22: North | E22: Greater Manchester Lancashire and South Cumbria | F22: =VLOOKUP(B22,Lookup!$BJ$3:$BO$213,6,0) -> Not similar | G22: 2 | H22: 9.508
A23: NHS Bracknell and Ascot | B23: 10G | C23: E38000017 | D23: South | E23: Thames | F23: =VLOOKUP(B23,Lookup!$BJ$3:$BO$213,6,0) -> Not similar | G23: 10 | H23: 8.129
A24: NHS Bradford City | B24: 02W | C24: E38000018 | D24: North | E24: Yorkshire and Northern | F24: =VLOOKUP(B24,Lookup!$BJ$3:$BO$213,6,0) -> Not similar | G24: 1 | H24: 6.067
A25: NHS Bradford Districts | B25: 02R | C25: E38000019 | D25: North | E25: Yorkshire and Northern | F25: =VLOOKUP(B25,Lookup!$BJ$3:$BO$213,6,0) -> Not similar | G25: 2 | H25: 9.214
A26: NHS Brent | B26: 07P | C26: E38000020 | D26: London | E26: London | F26: =VLOOKUP(B26,Lookup!$BJ$3:$BO$213,6,0) -> Not similar | G26: 2 | H26: 7.095
A27: NHS Brighton and Hove | B27: 09D | C27: E38000021 | D27: South | E27: South East coast | F27: =VLOOKUP(B27,Lookup!$BJ$3:$BO$213,6,0) -> Not similar | G27: 4 | H27: 8.685
A28: NHS Bristol | B28: 11H | C28: E38000022 | D28: South | E28: South West | F28: =VLOOKUP(B28,Lookup!$BJ$3:$BO$213,6,0) -> Not similar | G28: 4 | H28: 8.47
A29: NHS Bromley | B29: 07Q | C29: E38000023 | D29: London | E29: London | F29: =VLOOKUP(B29,Lookup!$BJ$3:$BO$213,6,0) -> Not similar | G29: 8 | H29: 9.522
A30: NHS Bury | B30: 00V | C30: E38000024 | D30: North | E30: Greater Manchester Lancashire and South Cumbria | F30: =VLOOKUP(B30,Lookup!$BJ$3:$BO$213,6,0) -> Not similar | G30: 5 | H30: 9.399
A31: NHS Calderdale | B31: 02T | C31: E38000025 | D31: North | E31: Yorkshire and Northern | F31: =VLOOKUP(B31,Lookup!$BJ$3:$BO$213,6,0) -> One of the 10 most similar CCGs | G31: 5 | H31: 9.308
A32: NHS Cambridgeshire and Peterborough | B32: 06H | C32: E38000026 | D32: Midlands and East | E32: East of England | F32: =VLOOKUP(B32,Lookup!$BJ$3:$BO$213,6,0) -> Not similar | G32: 8 | H32: 8.916
A33: NHS Camden | B33: 07R | C33: E38000027 | D33: London | E33: London | F33: =VLOOKUP(B33,Lookup!$BJ$3:$BO$213,6,0) -> Not similar | G33: 4 | H33: 6.83
A34: NHS Cannock Chase | B34: 04Y | C34: E38000028 | D34: Midlands and East | E34: West Midlands | F34: =VLOOKUP(B34,Lookup!$BJ$3:$BO$213,6,0) -> Not similar | G34: 6 | H34: 9.485
A35: NHS Canterbury and Coastal | B35: 09E | C35: E38000029 | D35: South | E35: South East coast | F35: =VLOOKUP(B35,Lookup!$BJ$3:$BO$213,6,0) -> Not similar | G35: 7 | H35: 9.921
A36: NHS Castle Point and Rochford | B36: 99F | C36: E38000030 | D36: Midlands and East | E36: East of England | F36: =VLOOKUP(B36,Lookup!$BJ$3:$BO$213,6,0) -> Not similar | G36: 9 | H36: 10.691
A37: NHS Central London (Westminster) | B37: 09A | C37: E38000031 | D37: London | E37: London | F37: =VLOOKUP(B37,Lookup!$BJ$3:$BO$213,6,0) -> Not similar | G37: 5 | H37: 7.457
A38: NHS Central Manchester | B38: 00W | C38: E38000032 | D38: North | E38: Greater Manchester Lancashire and South Cumbria | F38: =VLOOKUP(B38,Lookup!$BJ$3:$BO$213,6,0) -> Not similar | G38: 1 | H38: 7.095
A39: NHS Chiltern | B39: 10H | C39: E38000033 | D39: South | E39: Thames | F39: =VLOOKUP(B39,Lookup!$BJ$3:$BO$213,6,0) -> Not similar | G39: 10 | H39: 9.12
A40: NHS Chorley and South Ribble | B40: 00X | C40: E38000034 | D40: North | E40: Greater Manchester Lancashire and South Cumbria | F40: =VLOOKUP(B40,Lookup!$BJ$3:$BO$213,6,0) -> Not similar | G40: 6 | H40: 9.693
A41: NHS City and Hackney | B41: 07T | C41: E38000035 | D41: London | E41: London | F41: =VLOOKUP(B41,Lookup!$BJ$3:$BO$213,6,0) -> Not similar | G41: 1 | H41: 6.848
A42: NHS Coastal West Sussex | B42: 09G | C42: E38000036 | D42: South | E42: South East coast | F42: =VLOOKUP(B42,Lookup!$BJ$3:$BO$213,6,0) -> Not similar | G42: 7 | H42: 11.873
A43: NHS Corby | B43: 03V | C43: E38000037 | D43: Midlands and East | E43: East Midlands | F43: =VLOOKUP(B43,Lookup!$BJ$3:$BO$213,6,0) -> Not similar | G43: 3 | H43: 8.63
A44: NHS Coventry and Rugby | B44: 05A | C44: E38000038 | D44: Midlands and East | E44: West Midlands | F44: =VLOOKUP(B44,Lookup!$BJ$3:$BO$213,6,0) -> Not similar | G44: 4 | H44: 8.972
A45: NHS Crawley | B45: 09H | C45: E38000039 | D45: South | E45: South East coast | F45: =VLOOKUP(B45,Lookup!$BJ$3:$BO$213,6,0) -> Not similar | G45: 7 | H45: 8.186
A46: NHS Croydon | B46: 07V | C46: E38000040 | D46: London | E46: London | F46: =VLOOKUP(B46,Lookup!$BJ$3:$BO$213,6,0) -> Not similar | G46: 5 | H46: 7.821
A47: NHS Cumbria | B47: 01H | C47: E38000041 | D47: North | E47: Northern England | F47: =VLOOKUP(B47,Lookup!$BJ$3:$BO$213,6,0) -> Not similar | G47: 5 | H47: 11.092
A48: NHS Darlington | B48: 00C | C48: E38000042 | D48: North | E48: Northern England | F48: =VLOOKUP(B48,Lookup!$BJ$3:$BO$213,6,0) -> Not similar | G48: 4 | H48: 10.186
A49: NHS Dartford, Gravesham and Swanley | B49: 09J | C49: E38000043 | D49: South | E49: South East coast | F49: =VLOOKUP(B49,Lookup!$BJ$3:$BO$213,6,0) -> Not similar | G49: 7 | H49: 9.217
A50: NHS Doncaster | B50: 02X | C50: E38000044 | D50: North | E50: Yorkshire and Northern | F50: =VLOOKUP(B50,Lookup!$BJ$3:$BO$213,6,0) -> Not similar | G50: 2 | H50: 10.462
A51: NHS Dorset | B51: 11J | C51: E38000045 | D51: South | E51: Wessex | F51: =VLOOKUP(B51,Lookup!$BJ$3:$BO$213,6,0) -> Not similar | G51: 7 | H51: 11.443
A52: NHS Dudley | B52: 05C | C52: E38000046 | D52: Midlands and East | E52: West Midlands | F52: =VLOOKUP(B52,Lookup!$BJ$3:$BO$213,6,0) -> Not similar | G52: 4 | H52: 10.405
A53: NHS Durham Dales, Easington and Sedgefield | B53: 00D | C53: E38000047 | D53: North | E53: Northern England | F53: =VLOOKUP(B53,Lookup!$BJ$3:$BO$213,6,0) -> Not similar | G53: 2 | H53: 10.959
A54: NHS Ealing | B54: 07W | C54: E38000048 | D54: London | E54: London | F54: =VLOOKUP(B54,Lookup!$BJ$3:$BO$213,6,0) -> Not similar | G54: 4 | H54: 7.042
A55: NHS East and North Hertfordshire | B55: 06K | C55: E38000049 | D55: Midlands and East | E55: East of England | F55: =VLOOKUP(B55,Lookup!$BJ$3:$BO$213,6,0) -> Not similar | G55: 9 | H55: 8.751
A56: NHS East Lancashire | B56: 01A | C56: E38000050 | D56: North | E56: Greater Manchester Lancashire and South Cumbria | F56: =VLOOKUP(B56,Lookup!$BJ$3:$BO$213,6,0) -> Not similar | G56: 3 | H56: 9.993
A57: NHS East Leicestershire and Rutland | B57: 03W | C57: E38000051 | D57: Midlands and East | E57: East Midlands | F57: =VLOOKUP(B57,Lookup!$BJ$3:$BO$213,6,0) -> Not similar | G57: 10 | H57: 10.109
A58: NHS East Riding Of Yorkshire | B58: 02Y | C58: E38000052 | D58: North | E58: Yorkshire and Northern | F58: =VLOOKUP(B58,Lookup!$BJ$3:$BO$213,6,0) -> Not similar | G58: 8 | H58: 11.287
A59: NHS East Staffordshire | B59: 05D | C59: E38000053 | D59: Midlands and East | E59: West Midlands | F59: =VLOOKUP(B59,Lookup!$BJ$3:$BO$213,6,0) -> One of the 10 most similar CCGs | G59: 6 | H59: 9.641
A60: NHS East Surrey | B60: 09L | C60: E38000054 | D60: South | E60: South East coast | F60: =VLOOKUP(B60,Lookup!$BJ$3:$BO$213,6,0) -> Not similar | G60: 10 | H60: 9.28
A61: NHS Eastbourne, Hailsham and Seaford | B61: 09F | C61: E38000055 | D61: South | E61: South East coast | F61: =VLOOKUP(B61,Lookup!$BJ$3:$BO$213,6,0) -> Not similar | G61: 6 | H61: 12.261
A62: NHS Eastern Cheshire | B62: 01C | C62: E38000056 | D62: North | E62: Cheshire and Merseyside | F62: =VLOOKUP(B62,Lookup!$BJ$3:$BO$213,6,0) -> Not similar | G62: 9 | H62: 10.449
A63: NHS Enfield | B63: 07X | C63: E38000057 | D63: London | E63: London | F63: =VLOOKUP(B63,Lookup!$BJ$3:$BO$213,6,0) -> Not similar | G63: 3 | H63: 8.179
A64: NHS Erewash | B64: 03X | C64: E38000058 | D64: Midlands and East | E64: East Midlands | F64: =VLOOKUP(B64,Lookup!$BJ$3:$BO$213,6,0) -> Not similar | G64: 5 | H64: 10
A65: NHS Fareham and Gosport | B65: 10K | C65: E38000059 | D65: South | E65: Wessex | F65: =VLOOKUP(B65,Lookup!$BJ$3:$BO$213,6,0) -> Not similar | G65: 9 | H65: 10.13
A66: NHS Fylde & Wyre | B66: 02M | C66: E38000060 | D66: North | E66: Greater Manchester Lancashire and South Cumbria | F66: =VLOOKUP(B66,Lookup!$BJ$3:$BO$213,6,0) -> Not similar | G66: 8 | H66: 11.892
A67: NHS Gateshead | B67: 00F | C67: E38000061 | D67: North | E67: Northern England | F67: =VLOOKUP(B67,Lookup!$BJ$3:$BO$213,6,0) -> Not similar | G67: 2 | H67: 10.685
A68: NHS Gloucestershire | B68: 11M | C68: E38000062 | D68: South | E68: South West | F68: =VLOOKUP(B68,Lookup!$BJ$3:$BO$213,6,0) -> Not similar | G68: 8 | H68: 10.075
A69: NHS Great Yarmouth and Waveney | B69: 06M | C69: E38000063 | D69: Midlands and East | E69: East of England | F69: =VLOOKUP(B69,Lookup!$BJ$3:$BO$213,6,0) -> One of the 10 most similar CCGs | G69: 4 | H69: 11.552
A70: NHS Greater Huddersfield | B70: 03A | C70: E38000064 | D70: North | E70: Yorkshire and Northern | F70: =VLOOKUP(B70,Lookup!$BJ$3:$BO$213,6,0) -> Not similar | G70: 5 | H70: 9.381
A71: NHS Greater Preston | B71: 01E | C71: E38000065 | D71: North | E71: Greater Manchester Lancashire and South Cumbria | F71: =VLOOKUP(B71,Lookup!$BJ$3:$BO$213,6,0) -> Not similar | G71: 4 | H71: 9.219
A72: NHS Greenwich | B72: 08A | C72: E38000066 | D72: London | E72: London | F72: =VLOOKUP(B72,Lookup!$BJ$3:$BO$213,6,0) -> Not similar | G72: 2 | H72: 7.365
A73: NHS Guildford and Waverley | B73: 09N | C73: E38000067 | D73: South | E73: South East coast | F73: =VLOOKUP(B73,Lookup!$BJ$3:$BO$213,6,0) -> Not similar | G73: 10 | H73: 9.325
A74: NHS Halton | B74: 01F | C74: E38000068 | D74: North | E74: Cheshire and Merseyside | F74: =VLOOKUP(B74,Lookup!$BJ$3:$BO$213,6,0) -> Not similar | G74: 2 | H74: 9.702
A75: NHS Hambleton, Richmondshire and Whitby | B75: 03D | C75: E38000069 | D75: North | E75: Northern England | F75: =VLOOKUP(B75,Lookup!$BJ$3:$BO$213,6,0) -> Not similar | G75: 9 | H75: 11.374
A76: NHS Hammersmith and Fulham | B76: 08C | C76: E38000070 | D76: London | E76: London | F76: =VLOOKUP(B76,Lookup!$BJ$3:$BO$213,6,0) -> Not similar | G76: 3 | H76: 6.882
A77: NHS Hardwick | B77: 03Y | C77: E38000071 | D77: Midlands and East | E77: East Midlands | F77: =VLOOKUP(B77,Lookup!$BJ$3:$BO$213,6,0) -> Not similar | G77: 4 | H77: 10.843
A78: NHS Haringey | B78: 08D | C78: E38000072 | D78: London | E78: London | F78: =VLOOKUP(B78,Lookup!$BJ$3:$BO$213,6,0) -> Not similar | G78: 1 | H78: 7.442
A79: NHS Harrogate and Rural District | B79: 03E | C79: E38000073 | D79: North | E79: Yorkshire and Northern | F79: =VLOOKUP(B79,Lookup!$BJ$3:$BO$213,6,0) -> One of the 10 most similar CCGs | G79: 10 | H79: 10.482
A80: NHS Harrow | B80: 08E | C80: E38000074 | D80: London | E80: London | F80: =VLOOKUP(B80,Lookup!$BJ$3:$BO$213,6,0) -> Not similar | G80: 8 | H80: 7.874
A81: NHS Hartlepool and Stockton-On-Tees | B81: 00K | C81: E38000075 | D81: North | E81: Northern England | F81: =VLOOKUP(B81,Lookup!$BJ$3:$BO$213,6,0) -> Not similar | G81: 3 | H81: 9.884
A82: NHS Hastings and Rother | B82: 09P | C82: E38000076 | D82: South | E82: South East coast | F82: =VLOOKUP(B82,Lookup!$BJ$3:$BO$213,6,0) -> Not similar | G82: 3 | H82: 12.219
A83: NHS Havering | B83: 08F | C83: E38000077 | D83: London | E83: London | F83: =VLOOKUP(B83,Lookup!$BJ$3:$BO$213,6,0) -> Not similar | G83: 7 | H83: 9.646
A84: NHS Herefordshire | B84: 05F | C84: E38000078 | D84: Midlands and East | E84: West Midlands | F84: =VLOOKUP(B84,Lookup!$BJ$3:$BO$213,6,0) -> Not similar | G84: 7 | H84: 11.26
A85: NHS Herts Valleys | B85: 06N | C85: E38000079 | D85: Midlands and East | E85: East of England | F85: =VLOOKUP(B85,Lookup!$BJ$3:$BO$213,6,0) -> Not similar | G85: 10 | H85: 8.795
A86: NHS Heywood, Middleton and Rochdale | B86: 01D | C86: E38000080 | D86: North | E86: Greater Manchester Lancashire and South Cumbria | F86: =VLOOKUP(B86,Lookup!$BJ$3:$BO$213,6,0) -> Not similar | G86: 2 | H86: 9.444
A87: NHS High Weald Lewes Havens | B87: 99K | C87: E38000081 | D87: South | E87: South East coast | F87: =VLOOKUP(B87,Lookup!$BJ$3:$BO$213,6,0) -> Not similar | G87: 9 | H87: 10.755
A88: NHS Hillingdon | B88: 08G | C88: E38000082 | D88: London | E88: London | F88: =VLOOKUP(B88,Lookup!$BJ$3:$BO$213,6,0) -> Not similar | G88: 6 | H88: 8.007
A89: NHS Horsham and Mid Sussex | B89: 09X | C89: E38000083 | D89: South | E89: South East coast | F89: =VLOOKUP(B89,Lookup!$BJ$3:$BO$213,6,0) -> Not similar | G89: 10 | H89: 9.664
A90: NHS Hounslow | B90: 07Y | C90: E38000084 | D90: London | E90: London | F90: =VLOOKUP(B90,Lookup!$BJ$3:$BO$213,6,0) -> Not similar | G90: 5 | H90: 7.098
A91: NHS Hull | B91: 03F | C91: E38000085 | D91: North | E91: Yorkshire and Northern | F91: =VLOOKUP(B91,Lookup!$BJ$3:$BO$213,6,0) -> Not similar | G91: 1 | H91: 9.826
A92: NHS Ipswich and East Suffolk | B92: 06L | C92: E38000086 | D92: Midlands and East | E92: East of England | F92: =VLOOKUP(B92,Lookup!$BJ$3:$BO$213,6,0) -> Not similar | G92: 8 | H92: 10.431
A93: NHS Isle Of Wight | B93: 10L | C93: E38000087 | D93: South | E93: Wessex | F93: =VLOOKUP(B93,Lookup!$BJ$3:$BO$213,6,0) -> Not similar | G93: 5 | H93: 12.092
A94: NHS Islington | B94: 08H | C94: E38000088 | D94: London | E94: London | F94: =VLOOKUP(B94,Lookup!$BJ$3:$BO$213,6,0) -> Not similar | G94: 1 | H94: 7.591
A95: NHS Kernow | B95: 11N | C95: E38000089 | D95: South | E95: South West | F95: =VLOOKUP(B95,Lookup!$BJ$3:$BO$213,6,0) -> Not similar | G95: 5 | H95: 11.288
A96: NHS Kingston | B96: 08J | C96: E38000090 | D96: London | E96: London | F96: =VLOOKUP(B96,Lookup!$BJ$3:$BO$213,6,0) -> Not similar | G96: 9 | H96: 7.888
A97: NHS Knowsley | B97: 01J | C97: E38000091 | D97: North | E97: Cheshire and Merseyside | F97: =VLOOKUP(B97,Lookup!$BJ$3:$BO$213,6,0) -> Not similar | G97: 1 | H97: 10.362
A98: NHS Lambeth | B98: 08K | C98: E38000092 | D98: London | E98: London | F98: =VLOOKUP(B98,Lookup!$BJ$3:$BO$213,6,0) -> Not similar | G98: 2 | H98: 6.465
A99: NHS Lancashire North | B99: 01K | C99: E38000093 | D99: North | E99: Greater Manchester Lancashire and South Cumbria | F99: =VLOOKUP(B99,Lookup!$BJ$3:$BO$213,6,0) -> Not similar | G99: 6 | H99: 9.899
A100: NHS Leeds North | B100: 02V | C100: E38000094 | D100: North | E100: Yorkshire and Northern | F100: =VLOOKUP(B100,Lookup!$BJ$3:$BO$213,6,0) -> Not similar | G100: 5 | H100: 9.345
A101: NHS Leeds South and East | B101: 03G | C101: E38000095 | D101: North | E101: Yorkshire and Northern | F101: =VLOOKUP(B101,Lookup!$BJ$3:$BO$213,6,0) -> Not similar | G101: 1 | H101: 9.751
A102: NHS Leeds West | B102: 03C | C102: E38000096 | D102: North | E102: Yorkshire and Northern | F102: =VLOOKUP(B102,Lookup!$BJ$3:$BO$213,6,0) -> Not similar | G102: 5 | H102: 8.405
A103: NHS Leicester City | B103: 04C | C103: E38000097 | D103: Midlands and East | E103: East Midlands | F103: =VLOOKUP(B103,Lookup!$BJ$3:$BO$213,6,0) -> Not similar | G103: 2 | H103: 7.784
A104: NHS Lewisham | B104: 08L | C104: E38000098 | D104: London | E104: London | F104: =VLOOKUP(B104,Lookup!$BJ$3:$BO$213,6,0) -> Not similar | G104: 2 | H104: 6.912
A105: NHS Lincolnshire East | B105: 03T | C105: E38000099 | D105: Midlands and East | E105: East Midlands | F105: =VLOOKUP(B105,Lookup!$BJ$3:$BO$213,6,0) -> Not similar | G105: 4 | H105: 12.364
A106: NHS Lincolnshire West | B106: 04D | C106: E38000100 | D106: Midlands and East | E106: East Midlands | F106: =VLOOKUP(B106,Lookup!$BJ$3:$BO$213,6,0) -> Not similar | G106: 6 | H106: 9.98
A107: NHS Liverpool | B107: 99A | C107: E38000101 | D107: North | E107: Cheshire and Merseyside | F107: =VLOOKUP(B107,Lookup!$BJ$3:$BO$213,6,0) -> Not similar | G107: 1 | H107: 9.818
A108: NHS Luton | B108: 06P | C108: E38000102 | D108: Midlands and East | E108: East of England | F108: =VLOOKUP(B108,Lookup!$BJ$3:$BO$213,6,0) -> Not similar | G108: 3 | H108: 7.349
A109: NHS Mansfield and Ashfield | B109: 04E | C109: E38000103 | D109: Midlands and East | E109: East Midlands | F109: =VLOOKUP(B109,Lookup!$BJ$3:$BO$213,6,0) -> Not similar | G109: 3 | H109: 10.1
A110: NHS Medway | B110: 09W | C110: E38000104 | D110: South | E110: South East coast | F110: =VLOOKUP(B110,Lookup!$BJ$3:$BO$213,6,0) -> Not similar | G110: 5 | H110: 8.684
A111: NHS Merton | B111: 08R | C111: E38000105 | D111: London | E111: London | F111: =VLOOKUP(B111,Lookup!$BJ$3:$BO$213,6,0) -> Not similar | G111: 8 | H111: 7.366
A112: NHS Mid Essex | B112: 06Q | C112: E38000106 | D112: Midlands and East | E112: East of England | F112: =VLOOKUP(B112,Lookup!$BJ$3:$BO$213,6,0) -> Not similar | G112: 9 | H112: 9.468
A113: NHS Milton Keynes | B113: 04F | C113: E38000107 | D113: Midlands and East | E113: East Midlands | F113: =VLOOKUP(B113,Lookup!$BJ$3:$BO$213,6,0) -> Not similar | G113: 8 | H113: 7.49
A114: NHS Nene | B114: 04G | C114: E38000108 | D114: Midlands and East | E114: East Midlands | F114: =VLOOKUP(B114,Lookup!$BJ$3:$BO$213,6,0) -> Not similar | G114: 7 | H114: 8.904
A115: NHS Newark & Sherwood | B115: 04H | C115: E38000109 | D115: Midlands and East | E115: East Midlands | F115: =VLOOKUP(B115,Lookup!$BJ$3:$BO$213,6,0) -> Not similar | G115: 6 | H115: 10.315
A116: NHS Newbury and District | B116: 10M | C116: E38000110 | D116: South | E116: Thames | F116: =VLOOKUP(B116,Lookup!$BJ$3:$BO$213,6,0) -> Not similar | G116: 10 | H116: 8.919
A117: NHS Newcastle North and East | B117: 00G | C117: E38000111 | D117: North | E117: Northern England | F117: =VLOOKUP(B117,Lookup!$BJ$3:$BO$213,6,0) -> Not similar | G117: 4 | H117: 8.403
A118: NHS Newcastle West | B118: 00H | C118: E38000112 | D118: North | E118: Northern England | F118: =VLOOKUP(B118,Lookup!$BJ$3:$BO$213,6,0) -> Not similar | G118: 2 | H118: 9.844
A119: NHS Newham | B119: 08M | C119: E38000113 | D119: London | E119: London | F119: =VLOOKUP(B119,Lookup!$BJ$3:$BO$213,6,0) -> Not similar | G119: 1 | H119: 6.521
A120: NHS North & West Reading | B120: 10N | C120: E38000114 | D120: South | E120: Thames | F120: =VLOOKUP(B120,Lookup!$BJ$3:$BO$213,6,0) -> Not similar | G120: 9 | H120: 8.914
A121: NHS North Derbyshire | B121: 04J | C121: E38000115 | D121: Midlands and East | E121: East Midlands | F121: =VLOOKUP(B121,Lookup!$BJ$3:$BO$213,6,0) -> Not similar | G121: 7 | H121: 10.846
A122: NHS North Durham | B122: 00J | C122: E38000116 | D122: North | E122: Northern England | F122: =VLOOKUP(B122,Lookup!$BJ$3:$BO$213,6,0) -> Not similar | G122: 6 | H122: 9.737
A123: NHS North East Essex | B123: 06T | C123: E38000117 | D123: Midlands and East | E123: East of England | F123: =VLOOKUP(B123,Lookup!$BJ$3:$BO$213,6,0) -> Not similar | G123: 6 | H123: 10.867
A124: NHS North East Hampshire and Farnham | B124: 99M | C124: E38000118 | D124: South | E124: Wessex | F124: =VLOOKUP(B124,Lookup!$BJ$3:$BO$213,6,0) -> Not similar | G124: 10 | H124: 8.616
A125: NHS North East Lincolnshire | B125: 03H | C125: E38000119 | D125: North | E125: Yorkshire and Northern | F125: =VLOOKUP(B125,Lookup!$BJ$3:$BO$213,6,0) -> Not similar | G125: 3 | H125: 10.403
A126: NHS North Hampshire | B126: 10J | C126: E38000120 | D126: South | E126: Wessex | F126: =VLOOKUP(B126,Lookup!$BJ$3:$BO$213,6,0) -> Not similar | G126: 10 | H126: 8.724
A127: NHS North Kirklees | B127: 03J | C127: E38000121 | D127: North | E127: Yorkshire and Northern | F127: =VLOOKUP(B127,Lookup!$BJ$3:$BO$213,6,0) -> Not similar | G127: 3 | H127: 8.911
A128: NHS North Lincolnshire | B128: 03K | C128: E38000122 | D128: North | E128: Yorkshire and Northern | F128: =VLOOKUP(B128,Lookup!$BJ$3:$BO$213,6,0) -> Not similar | G128: 5 | H128: 10.252
A129: NHS North Manchester | B129: 01M | C129: E38000123 | D129: North | E129: Greater Manchester Lancashire and South Cumbria | F129: =VLOOKUP(B129,Lookup!$BJ$3:$BO$213,6,0) -> Not similar | G129: 1 | H129: 8.876
A130: NHS North Norfolk | B130: 06V | C130: E38000124 | D130: Midlands and East | E130: East of England | F130: =VLOOKUP(B130,Lookup!$BJ$3:$BO$213,6,0) -> Not similar | G130: 8 | H130: 12.954
A131: NHS North Somerset | B131: 11T | C131: E38000125 | D131: South | E131: South West | F131: =VLOOKUP(B131,Lookup!$BJ$3:$BO$213,6,0) -> Not similar | G131: 8 | H131: 10.785
A132: NHS North Staffordshire | B132: 05G | C132: E38000126 | D132: Midlands and East | E132: West Midlands | F132: =VLOOKUP(B132,Lookup!$BJ$3:$BO$213,6,0) -> Not similar | G132: 7 | H132: 10.34
A133: NHS North Tyneside | B133: 99C | C133: E38000127 | D133: North | E133: Northern England | F133: =VLOOKUP(B133,Lookup!$BJ$3:$BO$213,6,0) -> Not similar | G133: 5 | H133: 10.126
A134: NHS North West Surrey | B134: 09Y | C134: E38000128 | D134: South | E134: South East coast | F134: =VLOOKUP(B134,Lookup!$BJ$3:$BO$213,6,0) -> Not similar | G134: 10 | H134: 9.136
A135: NHS Northern, Eastern and Western Devon | B135: 99P | C135: E38000129 | D135: South | E135: South West | F135: =VLOOKUP(B135,Lookup!$BJ$3:$BO$213,6,0) -> Not similar | G135: 6 | H135: 10.817
A136: NHS Northumberland | B136: 00L | C136: E38000130 | D136: North | E136: Northern England | F136: =VLOOKUP(B136,Lookup!$BJ$3:$BO$213,6,0) -> Not similar | G136: 6 | H136: 10.941
A137: NHS Norwich | B137: 06W | C137: E38000131 | D137: Midlands and East | E137: East of England | F137: =VLOOKUP(B137,Lookup!$BJ$3:$BO$213,6,0) -> Not similar | G137: 6 | H137: 9.545
A138: NHS Nottingham City | B138: 04K | C138: E38000132 | D138: Midlands and East | E138: East Midlands | F138: =VLOOKUP(B138,Lookup!$BJ$3:$BO$213,6,0) -> Not similar | G138: 2 | H138: 8.154
A139: NHS Nottingham North and East | B139: 04L | C139: E38000133 | D139: Midlands and East | E139: East Midlands | F139: =VLOOKUP(B139,Lookup!$BJ$3:$BO$213,6,0) -> Not similar | G139: 7 | H139: 10.065
A140: NHS Nottingham West | B140: 04M | C140: E38000134 | D140: Midlands and East | E140: East Midlands | F140: =VLOOKUP(B140,Lookup!$BJ$3:$BO$213,6,0) -> Not similar | G140: 9 | H140: 10.182
A141: NHS Oldham | B141: 00Y | C141: E38000135 | D141: North | E141: Greater Manchester Lancashire and South Cumbria | F141: =VLOOKUP(B141,Lookup!$BJ$3:$BO$213,6,0) -> Not similar | G141: 2 | H141: 9.129
A142: NHS Oxfordshire | B142: 10Q | C142: E38000136 | D142: South | E142: Thames | F142: =VLOOKUP(B142,Lookup!$BJ$3:$BO$213,6,0) -> Not similar | G142: 9 | H142: 8.885
A143: NHS Portsmouth | B143: 10R | C143: E38000137 | D143: South | E143: Wessex | F143: =VLOOKUP(B143,Lookup!$BJ$3:$BO$213,6,0) -> Not similar | G143: 4 | H143: 8.643
A144: NHS Redbridge | B144: 08N | C144: E38000138 | D144: London | E144: London | F144: =VLOOKUP(B144,Lookup!$BJ$3:$BO$213,6,0) -> Not similar | G144: 6 | H144: 7.339
A145: NHS Redditch and Bromsgrove | B145: 05J | C145: E38000139 | D145: Midlands and East | E145: West Midlands | F145: =VLOOKUP(B145,Lookup!$BJ$3:$BO$213,6,0) -> Not similar | G145: 8 | H145: 9.717
A146: NHS Richmond | B146: 08P | C146: E38000140 | D146: London | E146: London | F146: =VLOOKUP(B146,Lookup!$BJ$3:$BO$213,6,0) -> Not similar | G146: 10 | H146: 8.389
A147: NHS Rotherham | B147: 03L | C147: E38000141 | D147: North | E147: Yorkshire and Northern | F147: =VLOOKUP(B147,Lookup!$BJ$3:$BO$213,6,0) -> Not similar | G147: 3 | H147: 10.161
A148: NHS Rushcliffe | B148: 04N | C148: E38000142 | D148: Midlands and East | E148: East Midlands | F148: =VLOOKUP(B148,Lookup!$BJ$3:$BO$213,6,0) -> Not similar | G148: 10 | H148: 9.813
A149: NHS Salford | B149: 01G | C149: E38000143 | D149: North | E149: Greater Manchester Lancashire and South Cumbria | F149: =VLOOKUP(B149,Lookup!$BJ$3:$BO$213,6,0) -> Not similar | G149: 1 | H149: 9.217
A150: NHS Sandwell and West Birmingham | B150: 05L | C150: E38000144 | D150: Midlands and East | E150: West Midlands | F150: =VLOOKUP(B150,Lookup!$BJ$3:$BO$213,6,0) -> Not similar | G150: 1 | H150: 8.78
A151: NHS Scarborough and Ryedale | B151: 03M | C151: E38000145 | D151: North | E151: Yorkshire and Northern | F151: =VLOOKUP(B151,Lookup!$BJ$3:$BO$213,6,0) -> Not similar | G151: 4 | H151: 11.516
A152: NHS Sheffield | B152: 03N | C152: E38000146 | D152: North | E152: Yorkshire and Northern | F152: =VLOOKUP(B152,Lookup!$BJ$3:$BO$213,6,0) -> Not similar | G152: 3 | H152: 9.357
A153: NHS Shropshire | B153: 05N | C153: E38000147 | D153: Midlands and East | E153: West Midlands | F153: =VLOOKUP(B153,Lookup!$BJ$3:$BO$213,6,0) -> Not similar | G153: 7 | H153: 11.121
A154: NHS Slough | B154: 10T | C154: E38000148 | D154: South | E154: Thames | F154: =VLOOKUP(B154,Lookup!$BJ$3:$BO$213,6,0) -> Not similar | G154: 4 | H154: 6.72
A155: NHS Solihull | B155: 05P | C155: E38000149 | D155: Midlands and East | E155: West Midlands | F155: =VLOOKUP(B155,Lookup!$BJ$3:$BO$213,6,0) -> Not similar | G155: 8 | H155: 10.191
A156: NHS Somerset | B156: 11X | C156: E38000150 | D156: South | E156: South West | F156: =VLOOKUP(B156,Lookup!$BJ$3:$BO$213,6,0) -> Not similar | G156: 7 | H156: 10.959
A157: NHS South Cheshire | B157: 01R | C157: E38000151 | D157: North | E157: Cheshire and Merseyside | F157: =VLOOKUP(B157,Lookup!$BJ$3:$BO$213,6,0) -> Not similar | G157: 8 | H157: 9.984
A158: NHS South Devon and Torbay | B158: 99Q | C158: E38000152 | D158: South | E158: South West | F158: =VLOOKUP(B158,Lookup!$BJ$3:$BO$213,6,0) -> Not similar | G158: 5 | H158: 11.907
A159: NHS South East Staffs and Seisdon Peninsular | B159: 05Q | C159: E38000153 | D159: Midlands and East | E159: West Midlands | F159: =VLOOKUP(B159,Lookup!$BJ$3:$BO$213,6,0) -> Not similar | G159: 8 | H159: 9.799
A160: NHS South Eastern Hampshire | B160: 10V | C160: E38000154 | D160: South | E160: Wessex | F160: =VLOOKUP(B160,Lookup!$BJ$3:$BO$213,6,0) -> Not similar | G160: 7 | H160: 10.922
A161: NHS South Gloucestershire | B161: 12A | C161: E38000155 | D161: South | E161: South West | F161: =VLOOKUP(B161,Lookup!$BJ$3:$BO$213,6,0) -> Not similar | G161: 10 | H161: 9.294
A162: NHS South Kent Coast | B162: 10A | C162: E38000156 | D162: South | E162: South East coast | F162: =VLOOKUP(B162,Lookup!$BJ$3:$BO$213,6,0) -> One of the 10 most similar CCGs | G162: 5 | H162: 11.046
A163: NHS South Lincolnshire | B163: 99D | C163: E38000157 | D163: Midlands and East | E163: East Midlands | F163: =VLOOKUP(B163,Lookup!$BJ$3:$BO$213,6,0) -> Not similar | G163: 9 | H163: 10.792
A164: NHS South Manchester | B164: 01N | C164: E38000158 | D164: North | E164: Greater Manchester Lancashire and South Cumbria | F164: =VLOOKUP(B164,Lookup!$BJ$3:$BO$213,6,0) -> Not similar | G164: 1 | H164: 8.38
A165: NHS South Norfolk | B165: 06Y | C165: E38000159 | D165: Midlands and East | E165: East of England | F165: =VLOOKUP(B165,Lookup!$BJ$3:$BO$213,6,0) -> Not similar | G165: 9 | H165: 10.8
A166: NHS South Reading | B166: 10W | C166: E38000160 | D166: South | E166: Thames | F166: =VLOOKUP(B166,Lookup!$BJ$3:$BO$213,6,0) -> Not similar | G166: 5 | H166: 6.842
A167: NHS South Sefton | B167: 01T | C167: E38000161 | D167: North | E167: Cheshire and Merseyside | F167: =VLOOKUP(B167,Lookup!$BJ$3:$BO$213,6,0) -> Not similar | G167: 2 | H167: 10.74
A168: NHS South Tees | B168: 00M | C168: E38000162 | D168: North | E168: Northern England | F168: =VLOOKUP(B168,Lookup!$BJ$3:$BO$213,6,0) -> Not similar | G168: 2 | H168: 10.269
A169: NHS South Tyneside | B169: 00N | C169: E38000163 | D169: North | E169: Northern England | F169: =VLOOKUP(B169,Lookup!$BJ$3:$BO$213,6,0) -> Not similar | G169: 3 | H169: 10.273
A170: NHS South Warwickshire | B170: 05R | C170: E38000164 | D170: Midlands and East | E170: West Midlands | F170: =VLOOKUP(B170,Lookup!$BJ$3:$BO$213,6,0) -> Not similar | G170: 10 | H170: 10.231
A171: NHS South West Lincolnshire | B171: 04Q | C171: E38000165 | D171: Midlands and East | E171: East Midlands | F171: =VLOOKUP(B171,Lookup!$BJ$3:$BO$213,6,0) -> One of the 10 most similar CCGs | G171: 8 | H171: 10.593
A172: NHS South Worcestershire | B172: 05T | C172: E38000166 | D172: Midlands and East | E172: West Midlands | F172: =VLOOKUP(B172,Lookup!$BJ$3:$BO$213,6,0) -> One of the 10 most similar CCGs | G172: 8 | H172: 10.412
A173: NHS Southampton | B173: 10X | C173: E38000167 | D173: South | E173: Wessex | F173: =VLOOKUP(B173,Lookup!$BJ$3:$BO$213,6,0) -> Not similar | G173: 4 | H173: 8.32
A174: NHS Southend | B174: 99G | C174: E38000168 | D174: Midlands and East | E174: East of England | F174: =VLOOKUP(B174,Lookup!$BJ$3:$BO$213,6,0) -> Not similar | G174: 4 | H174: 10.056
A175: NHS Southern Derbyshire | B175: 04R | C175: E38000169 | D175: Midlands and East | E175: East Midlands | F175: =VLOOKUP(B175,Lookup!$BJ$3:$BO$213,6,0) -> Not similar | G175: 6 | H175: 9.477
A176: NHS Southport and Formby | B176: 01V | C176: E38000170 | D176: North | E176: Cheshire and Merseyside | F176: =VLOOKUP(B176,Lookup!$BJ$3:$BO$213,6,0) -> Not similar | G176: 7 | H176: 11.7
A177: NHS Southwark | B177: 08Q | C177: E38000171 | D177: London | E177: London | F177: =VLOOKUP(B177,Lookup!$BJ$3:$BO$213,6,0) -> Not similar | G177: 2 | H177: 6.522
A178: NHS St Helens | B178: 01X | C178: E38000172 | D178: North | E178: Cheshire and Merseyside | F178: =VLOOKUP(B178,Lookup!$BJ$3:$BO$213,6,0) -> Not similar | G178: 3 | H178: 10.368
A179: NHS Stafford and Surrounds | B179: 05V | C179: E38000173 | D179: Midlands and East | E179: West Midlands | F179: =VLOOKUP(B179,Lookup!$BJ$3:$BO$213,6,0) -> Not similar | G179: 9 | H179: 10.466
A180: NHS Stockport | B180: 01W | C180: E38000174 | D180: North | E180: Greater Manchester Lancashire and South Cumbria | F180: =VLOOKUP(B180,Lookup!$BJ$3:$BO$213,6,0) -> Not similar | G180: 6 | H180: 9.804
A181: NHS Stoke On Trent | B181: 05W | C181: E38000175 | D181: Midlands and East | E181: West Midlands | F181: =VLOOKUP(B181,Lookup!$BJ$3:$BO$213,6,0) -> Not similar | G181: 2 | H181: 10.09
A182: NHS Sunderland | B182: 00P | C182: E38000176 | D182: North | E182: Northern England | F182: =VLOOKUP(B182,Lookup!$BJ$3:$BO$213,6,0) -> Not similar | G182: 3 | H182: 10.269
A183: NHS Surrey Downs | B183: 99H | C183: E38000177 | D183: South | E183: South East coast | F183: =VLOOKUP(B183,Lookup!$BJ$3:$BO$213,6,0) -> Not similar | G183: 10 | H183: 9.626
A184: NHS Surrey Heath | B184: 10C | C184: E38000178 | D184: South | E184: South East coast | F184: =VLOOKUP(B184,Lookup!$BJ$3:$BO$213,6,0) -> Not similar | G184: 10 | H184: 9.175
A185: NHS Sutton | B185: 08T | C185: E38000179 | D185: London | E185: London | F185: =VLOOKUP(B185,Lookup!$BJ$3:$BO$213,6,0) -> Not similar | G185: 8 | H185: 8.587
A186: NHS Swale | B186: 10D | C186: E38000180 | D186: South | E186: South East coast | F186: =VLOOKUP(B186,Lookup!$BJ$3:$BO$213,6,0) -> Not similar | G186: 4 | H186: 9.724
A187: NHS Swindon | B187: 12D | C187: E38000181 | D187: South | E187: South West | F187: =VLOOKUP(B187,Lookup!$BJ$3:$BO$213,6,0) -> Not similar | G187: 8 | H187: 8.586
A188: NHS Tameside and Glossop | B188: 01Y | C188: E38000182 | D188: North | E188: East Midlands | F188: =VLOOKUP(B188,Lookup!$BJ$3:$BO$213,6,0) -> Not similar | G188: 3 | H188: 9.647
A189: NHS Telford and Wrekin | B189: 05X | C189: E38000183 | D189: Midlands and East | E189: West Midlands | F189: =VLOOKUP(B189,Lookup!$BJ$3:$BO$213,6,0) -> Not similar | G189: 4 | H189: 9.058
A190: NHS Thanet | B190: 10E | C190: E38000184 | D190: South | E190: South East coast | F190: =VLOOKUP(B190,Lookup!$BJ$3:$BO$213,6,0) -> Not similar | G190: 3 | H190: 11.419
A191: NHS Thurrock | B191: 07G | C191: E38000185 | D191: Midlands and East | E191: East of England | F191: =VLOOKUP(B191,Lookup!$BJ$3:$BO$213,6,0) -> Not similar | G191: 6 | H191: 8.269
A192: NHS Tower Hamlets | B192: 08V | C192: E38000186 | D192: London | E192: London | F192: =VLOOKUP(B192,Lookup!$BJ$3:$BO$213,6,0) -> Not similar | G192: 1 | H192: 6.401
A193: NHS Trafford | B193: 02A | C193: E38000187 | D193: North | E193: Greater Manchester Lancashire and South Cumbria | F193: =VLOOKUP(B193,Lookup!$BJ$3:$BO$213,6,0) -> Not similar | G193: 7 | H193: 9.395
A194: NHS Vale Of York | B194: 03Q | C194: E38000188 | D194: North | E194: Yorkshire and Northern | F194: =VLOOKUP(B194,Lookup!$BJ$3:$BO$213,6,0) -> Not similar | G194: 9 | H194: 9.731
A195: NHS Vale Royal | B195: 02D | C195: E38000189 | D195: North | E195: Cheshire and Merseyside | F195: =VLOOKUP(B195,Lookup!$BJ$3:$BO$213,6,0) -> Not similar | G195: 7 | H195: 9.548
A196: NHS Wakefield | B196: 03R | C196: E38000190 | D196: North | E196: Yorkshire and Northern | F196: =VLOOKUP(B196,Lookup!$BJ$3:$BO$213,6,0) -> Not similar | G196: 4 | H196: 9.726
A197: NHS Walsall | B197: 05Y | C197: E38000191 | D197: Midlands and East | E197: West Midlands | F197: =VLOOKUP(B197,Lookup!$BJ$3:$BO$213,6,0) -> Not similar | G197: 2 | H197: 10.198
A198: NHS Waltham Forest | B198: 08W | C198: E38000192 | D198: London | E198: London | F198: =VLOOKUP(B198,Lookup!$BJ$3:$BO$213,6,0) -> Not similar | G198: 1 | H198: 7.617
A199: NHS Wandsworth | B199: 08X | C199: E38000193 | D199: London | E199: London | F199: =VLOOKUP(B199,Lookup!$BJ$3:$BO$213,6,0) -> Not similar | G199: 5 | H199: 6.53
A200: NHS Warrington | B200: 02E | C200: E38000194 | D200: North | E200: Cheshire and Merseyside | F200: =VLOOKUP(B200,Lookup!$BJ$3:$BO$213,6,0) -> Not similar | G200: 6 | H200: 9.176
A201: NHS Warwickshire North | B201: 05H | C201: E38000195 | D201: Midlands and East | E201: West Midlands | F201: =VLOOKUP(B201,Lookup!$BJ$3:$BO$213,6,0) -> Not similar | G201: 5 | H201: 9.786
A202: NHS West Cheshire | B202: 02F | C202: E38000196 | D202: North | E202: Cheshire and Merseyside | F202: =VLOOKUP(B202,Lookup!$BJ$3:$BO$213,6,0) -> Not similar | G202: 7 | H202: 10.145
A203: NHS West Essex | B203: 07H | C203: E38000197 | D203: Midlands and East | E203: East of England | F203: =VLOOKUP(B203,Lookup!$BJ$3:$BO$213,6,0) -> One of the 10 most similar CCGs | G203: 8 | H203: 9.345
... 14 more rows

Sheet GraphData (hidden)
B1: =VLOOKUP(DataCost!A2,Lookup!BT3:BU4,2) -> 2012 - 2013 | F1: QA | G1: Change indicator to: | L1: formula for reversing polarity for graph (positive outcomes) | P1: Formula for changing C47 Graph tab outcome population | AE1: formula cells c25 and c26 in summary outcomes | AJ1: Numerator | AL1: Denominator | AS1: formulas in cells c25 and c26 summary costs
C2: Name | D2: RefNum | F2: Cost | L2: First selection | M2: =Lookup!S1 -> 1 | N2: =IF(M2=2,8,1) -> 1 | Q2: first selection | R2: =M2 -> 1 | S2: =IF(R2=1,T2,IF(R2=2,T3,IF(R2=3,T4,T5))) -> 2 | T2: =IF(AND(R2=1,R3=1),2,IF(AND(R2=1,R3=12),4,IF(AND(R2=1,R3=15),3,1))) -> 2 | V2: 1 | W2: =Summary_Cost!C28 -> Net ingredient cost (all items in section 2 cardiovascular disease BNF) HSCIC GP Practice Prescribing Presentation-level Data 2012 - 2013 | AE2: =Q2 -> first selection | AG2: =R2 -> 1 | AH2: =IF(AND(AG2=1,AG3=1),1,IF(AND(AG2=1,AG3<=7),2,3)) -> 1 | AI2: 1 | AJ2: Observed deaths (under 75 mortality cardiovascular disease CCG indicator 1.2) HSCIC Sept 2013 | AL2: Under 75 population (under 75 mortality cardiovascular disease CCG indicator 1.2) HSCIC Sept 2013 | AS2: =AE2 -> first selection | AT2: =M2 -> 1 | AU2: =IF(AND(AT2=1,AT3=1),3,IF(AND(AT2=1,AT3=12),2,IF(AND(AT2=1,AT3=14),1,4))) -> 3 | AV2: 1 | AW2: Net ingredient cost (all items in section 2 cardiovascular disease BNF) HSCIC GP Practice Prescribing Presentation-level Data 2012/13 | AX2: =W2 -> Net ingredient cost (all items in section 2 cardiovascular disease BNF) HSCIC GP Practice Prescribing Presentation-level Data 2012 - 2013
B3: Chosen CCG: | C3: =INDEX(GraphData_CCGname,D3) -> NHS Airedale, Wharfedale and Craven | D3: =Menu!L14 -> 1 | E3: =VLOOKUP(GraphData_ChosenCCGRefnum,$A$18:$B$228,2,0) -> 02N | L3: Second selection | M3: =Menu_ChosenOutcome -> 1 | N3: =IF(AND(M2=1,M3<=7),-1,1) -> -1 | Q3: second selection | R3: =Menu_ChosenCost -> 1 | S3: =IF(R3=13,2,1) -> 1 | T3: =IF(AND(R2=2,R3=9),4,1) -> 1 | V3: 2 | W3: The denominator is the number of items prescribed that year | AE3: =Q3 -> second selection | AG3: =Summary_Outcomes!F12 -> 1 | AH3: =IF(AND(AG2=1,AG3<=7),-1,1) -> -1 | AI3: 2 | AJ3: HES admissions data (emergency and elective) extract 2012/13 | AL3: ="GP registered Population all ages (QOF "&B1&")." -> GP registered Population all ages (QOF 2012 - 2013). | AS3: =AE3 -> second selection | AT3: =Summary_Cost!F12 -> 1 | AU3: =IF(AND(AT2=2,AT3=9),2,4) -> 4 | AV3: 2 | AW3: Net ingredient cost (all items in section 2 cardiovascular disease BNF) HSCIC GP Practice Prescribing Presentation-level Data 2012/14 | AX3: All people on the GP register (all ages) QOF 2012/13
B4: Highlight CCG: | C4: =INDEX(GraphData_CCGname,$D$4) -> NHS Enfield | D4: =Graph_current!$E$3 -> 57 | F4: Outcome | L4: Formula for changing outcomes tab text | T4: =IF(AND(R2=3,R3=12),3,1) -> 1 | V4: 3 | AE4: Lookup result | AI4: 3 | AJ4: ="Sum of numerators for CCG (QOF"&B1&" )" -> Sum of numerators for CCG (QOF2012 - 2013 ) | AL4: ="Sum of denominator plus sum of exceptions (QOF "&B1&")." -> Sum of denominator plus sum of exceptions (QOF 2012 - 2013). | AS4: Lookup result | AU4: =IF(AND(AT2=3,AT3=12),1,4) -> 4 | AV4: 3 | AW4: 17B: Renal problems (Programme Budget Sub Category) NHS comparators 2012/13 | AX4: All people over 18 years on the chronic kidney disease (QOF 2012/13)
B5: Cost data: | C5: =INDEX(Lookup_CostName,MATCH(D5,Lookup_CostNo,0)) -> Spend on anti-arrhythmic drugs | D5: =Menu!L17 -> 1 | L5: First selection | M5: =Lookup!S1 -> 1 | N5: =IF(AND(M2=1,M3<=7),2,1) -> 2 | T5: =IF(AND(R2=4,R3=1),2,1) -> 1 | V5: 4 | AU5: =IF(AND(AT2=4,AT3=1),3,4) -> 4 | AV5: 4 | AW5: Net ingredient cost for the selected items HSCIC GP Practice Prescribing Presentation-level Data 2012/13 | AX5: =AX2 -> Net ingredient cost (all items in section 2 cardiovascular disease BNF) HSCIC GP Practice Prescribing Presentation-level Data 2012 - 2013
B6: Outcomes data: | C6: =INDEX(Lookup_OutcomeNameLower,MATCH(D6,Lookup_OutcomeNo,0)) -> Under 75 mortality from cardiovascular disease | D6: =Menu!L19 -> 1 | F6: To help with QA you can change the outcome and cost indicators from here to update the spreadsheet | L6: Second selection | M6: =Summary_Outcomes!F12 -> 1 | P6: =VLOOKUP(S3,V2:AC3,2,0) -> Net ingredient cost (all items in section 2 cardiovascular disease BNF) HSCIC GP Practice Prescribing Presentation-level Data 2012 - 2013 | AE6: text | AG6: =VLOOKUP(AH2,AI2:AO4,2,0) -> Observed deaths (under 75 mortality cardiovascular disease CCG indicator 1.2) HSCIC Sept 2013 | AJ6: =VLOOKUP(AH2,AI2:AO4,4,0) -> Under 75 population (under 75 mortality cardiovascular disease CCG indicator 1.2) HSCIC Sept 2013 | AS6: text for cells c25 - 26 summary costs | AU6: =IF(AT2=1,AU2,IF(AT2=2,AU3,IF(AT2=3,AU4,AU5))) -> 3 | AW6: =VLOOKUP($AU$6,$AV$2:$AX$5,2,0) -> 17B: Renal problems (Programme Budget Sub Category) NHS comparators 2012/13 | AX6: =VLOOKUP($AU$6,$AV$2:$AX$5,3,0) -> All people over 18 years on the chronic kidney disease (QOF 2012/13)
B7: Comparison group: | C7: =INDEX(Lookup_ChartComparison,MATCH(D7,Lookup_OutcomeNo,0)) -> Commissioning for value most similar 10 CCGs | D7: =Graph_current!E2 -> 2 | M7: Link cell for graph data | N7: =IF(AND(M2=1,M3<=7),$N$16*100000,$N$16*100) -> 58.6501975 | O7: =IF(AND(M2=1,M3<=7),"Per 100,000","%") -> Per 100,000 | P7: =IF(R3=13,"item","person") -> person
B8: Number of CCGs | C8: =COUNTA($B$18:$B$250) -> 211
H10: Current year
H11: ="DataCost_"&INDEX(Lookup_CostNamedRng,MATCH($D5,Lookup_CostNo,0))&"_Num" -> DataCost_Ind9_Num | K11: =SUMIF((INDIRECT(H11)),"<>#N/A") -> 7967023.72 | M11: ="DataOutcome_"&INDEX(Lookup_OutcomeNamedRng,MATCH($D6,Lookup_OutcomeNo,0))&"_Num" -> DataOutcome_Ind1_Num
H12: ="DataCost_"&INDEX(Lookup_CostNamedRng,MATCH($D5,Lookup_CostNo,0))&"_Den" -> DataCost_Ind9_Den | K12: =SUM(INDIRECT(H12)) -> 6064249.946 | M12: ="DataOutcome_"&INDEX(Lookup_OutcomeNamedRng,MATCH($D6,Lookup_OutcomeNo,0))&"_Den" -> DataOutcome_Ind1_Den
H13: =C5 -> Spend on anti-arrhythmic drugs | M13: =C6 -> Under 75 mortality from cardiovascular disease | R13: All CCGs zscores | T13: ="Comparison zscores "&C7 -> Comparison zscores Commissioning for value most similar 10 CCGs
B14: CCG | C14: CCG name (Sorted alphabetically as these are used in the drop down box in the menu) | D14: SCN | E14: Cluster | F14: Deciles | G14: 2012/13 Modelled Cardio Vascular disease prevalence (%) | H14: MATCH value (to speed up calculations) | I14: Cost Value (Num/Denom) | J14: LN(value) | K14: z-score pt1 (LN(CCGvalue)-LN(Engvalue))2 | L14: z score final (LN(CCGvalue)-LN(Engvalue))/Sum of all CCGs for z-score pt1 | M14: MATCH value (to speed up calculations) | N14: Outcome value (Num/Denom) | O14: LN((value/(1-value))) | P14: z-score pt1 | Q14: z score final | R14: Cost data | S14: Outcome data | T14: Cost data | U14: Outcome data
C15: England | I15: =K11/K12 -> 1.313769022 | J15: =LN(I15) -> 0.2729001221 | K15: =SQRT(SUM($K$18:$K$229)/GraphData_CountCCG) -> 0.537308349 | L15: =(J15-J$15)/K$15 -> 0 | N15: =SUM(INDIRECT(M11))/SUM(INDIRECT(M12)) -> 0.0006394636345 | O15: =LN((N15/(1-N15))) -> -7.354241136 | P15: =SQRT(SUM($P$18:$P$229)/GraphData_CountCCG) -> 0.2488584511 | Q15: =(O15-O$15)/P$15 -> 0
A16: Chosen CCG > | B16: =INDEX(GraphData_CCGcode,D3) -> 02N | C16: =INDEX(GraphData_CCGname,MATCH(B16,GraphData_CCGcode,0)) -> NHS Airedale, Wharfedale and Craven | D16: =INDEX(GraphData_SCN,MATCH($B16,GraphData_CCGcode,0)) -> Yorkshire and Northern | E16: =INDEX(GraphData_Cluster,MATCH($B16,GraphData_CCGcode,0)) -> Closest 10 CCGs | F16: =INDEX(GraphData_Decile,MATCH($B16,GraphData_CCGcode,0)) -> 6 | G16: =VLOOKUP(B16,B18:G228,6,0) -> 10.304 | H16: =INDEX(INDIRECT($H$11),MATCH($B16,DataCost_CCGcode,0)) -> 30248.84 | I16: =INDEX(INDIRECT($H$11),MATCH($B16,DataCost_CCGcode,0))/INDEX(INDIRECT($H$12),MATCH($B16,DataCost_CCGcode,0)) -> 1.994663011 | J16: =IFERROR(I16,0) -> 1.994663011 | K16: =ISNA(L16) -> FALSE | L16: =INDEX(GraphData_CurCostzscore,MATCH($B16,GraphData_CCGcode,0)) -> 0.7771608197 | M16: =INDEX(INDIRECT($M$11),MATCH($B16,DataOutcome_CCGcode,0)) -> 83 | N16: =INDEX(INDIRECT($M$11),MATCH($B16,DataOutcome_CCGcode,0))/INDEX(INDIRECT($M$12),MATCH($B16,DataOutcome_CCGcode,0)) -> 0.000586501975 | Q16: =INDEX(GraphData_CurOutcomezscore,MATCH($B16,GraphData_CCGcode,0)) -> 0.3476141237 | R16: =IF(L16<-3,-2.99,IF(L16>3,2.99,L16)) -> 0.7771608197 | S16: =IF(Q16<-3,-2.99,IF(Q16>3,2.99,Q16)) -> 0.3476141237
A17: Highlight CCG > | B17: =INDEX(GraphData_CCGcode,$D$4) -> 07X | C17: =INDEX(GraphData_CCGname,MATCH(B17,GraphData_CCGcode,0)) -> NHS Enfield | D17: =INDEX(GraphData_SCN,MATCH($B17,GraphData_CCGcode,0)) -> London | E17: =INDEX(GraphData_Cluster,MATCH($B17,GraphData_CCGcode,0)) -> No | F17: =INDEX(GraphData_Decile,MATCH($B17,GraphData_CCGcode,0)) -> 3 | I17: =INDEX(INDIRECT($H$11),MATCH($B17,DataCost_CCGcode,0))/INDEX(INDIRECT($H$12),MATCH($B17,DataCost_CCGcode,0)) -> 0.8025799455 | L17: =INDEX(GraphData_CurCostzscore,MATCH($B17,GraphData_CCGcode,0)) -> -0.9172087712 | N17: =INDEX(INDIRECT($M$11),MATCH($B17,DataOutcome_CCGcode,0))/INDEX(INDIRECT($M$12),MATCH($B17,DataOutcome_CCGcode,0)) -> 0.0004800932753 | Q17: =INDEX(GraphData_CurOutcomezscore,MATCH($B17,GraphData_CCGcode,0)) -> 1.15249775 | R17: =IF(L17<-3,-2.99,IF(L17>3,2.99,L17)) -> -0.9172087712 | S17: =IF(Q17<-3,-2.99,IF(Q17>3,2.99,Q17)) -> 1.15249775
A18: 1 | B18: =Lookup!A3 -> 02N | C18: =Lookup!C3 -> NHS Airedale, Wharfedale and Craven | D18: =Lookup!D3 -> Yorkshire and Northern | E18: =Lookup!E3 -> Closest 10 CCGs | F18: =Lookup!F3 -> 6 | G18: 10.304 | H18: =MATCH($B18,DataCost_CCGcode,0) -> 43 | I18: =INDEX(INDIRECT($H$11),$H18)/INDEX(INDIRECT($H$12),$H18) -> 1.994663011 | J18: =LN(I18) -> 0.690475119 | K18: =IFERROR((J18-J$15)*(J18-J$15),0) -> 0.174368878 | L18: =(J18-J$15)/K$15 -> 0.7771608197 | M18: =MATCH($B18,DataOutcome_CCGcode,0) -> 43 | N18: =INDEX(INDIRECT($M$11),$M18)/INDEX(INDIRECT($M$12),$M18) -> 0.000586501975 | O18: =IF(N18=1,5,LN((N18/(1-N18)))) -> -7.440747848 | P18: =(O18-O$15)*(O18-O$15) -> 0.00748341129 | Q18: =(O18-O$15)/P$15 -> -0.3476141237 | R18: =IF(L18<-3,-2.99,IF(L18>3,2.99,L18)) -> 0.7771608197 | S18: =IF(Q18<-3,-2.99,IF(Q18>3,2.99,Q18))*$N$3 -> 0.3476141237 | T18: =CHOOSE($D$7,IF(D18=$D$16,R18,NA()),IF(E18=$E$16,R18,NA()),IF(F18=$F$16,R18,NA())) -> 0.7771608197 | U18: =CHOOSE($D$7,IF(D18=$D$16,S18,NA()),IF(E18=$E$16,S18,NA()),IF(F18=$F$16,S18,NA())) -> 0.3476141237
A19: 2 | B19: =Lookup!A4 -> 09C | C19: =Lookup!C4 -> NHS Ashford | D19: =Lookup!D4 -> South East coast | E19: =Lookup!E4 -> Closest 10 CCGs | F19: =Lookup!F4 -> 8 | G19: 9.301 | H19: 154 | I19: =INDEX(INDIRECT($H$11),$H19)/INDEX(INDIRECT($H$12),$H19) -> 1.177807566 | J19: 0.1636547154 | K19: =IFERROR((J19-J$15)*(J19-J$15),0) -> 0.0119345589 | L19: =(J19-J$15)/K$15 -> -0.2033197641 | M19: 154 | N19: 0.0004720073423 | O19: =IF(N19=1,5,LN((N19/(1-N19)))) -> -7.658043898 | P19: 0.09229611818 | Q19: =(O19-O$15)/P$15 -> -1.220785393 | R19: -0.2033197641 | S19: =IF(Q19<-3,-2.99,IF(Q19>3,2.99,Q19))*$N$3 -> 1.220785393 | T19: -0.2033197641 | U19: =CHOOSE($D$7,IF(D19=$D$16,S19,NA()),IF(E19=$E$16,S19,NA()),IF(F19=$F$16,S19,NA())) -> 1.220785393
A20: 3 | B20: =Lookup!A5 -> 10Y | C20: =Lookup!C5 -> NHS Aylesbury Vale | D20: =Lookup!D5 -> Thames | E20: =Lookup!E5 -> No | F20: =Lookup!F5 -> 10 | G20: 8.783 | H20: 184 | I20: 1.094197337 | J20: 0.09002106927 | K20: 0.03344474798 | L20: -0.3403614577 | M20: 184 | N20: 0.0004347966118 | O20: -7.740197304 | P20: 0.1489621637 | Q20: -1.550906415 | R20: -0.3403614577 | S20: 1.550906415
A21: 4 | B21: =Lookup!A6 -> 07L | C21: =Lookup!C6 -> NHS Barking and Dagenham | D21: =Lookup!D6 -> London | E21: =Lookup!E6 -> No | F21: =Lookup!F6 -> 2 | G21: 7.361 | H21: 122 | I21: 0.5122947401 | J21: -0.6688551553 | K21: 0.8869030025 | L21: -1.752727794 | M21: 122 | N21: 0.0004747198897 | O21: -7.652310801 | P21: 0.08884552526 | Q21: -1.197747811 | R21: -1.752727794 | S21: 1.197747811
A22: 5 | B22: =Lookup!A7 -> 07M | C22: =Lookup!C7 -> NHS Barnet | D22: =Lookup!D7 -> London | E22: =Lookup!E7 -> No | F22: =Lookup!F7 -> 7 | G22: 7.951 | H22: 123 | I22: 1.145426361 | J22: 0.1357769355 | K22: 0.01880276831 | L22: -0.2552039009 | M22: 123 | N22: 0.0004258190103 | O22: -7.761070251 | P22: 0.1655099286 | Q22: -1.63478119 | R22: -0.2552039009 | S22: 1.63478119
A23: 6 | B23: =Lookup!A8 -> 02P | C23: =Lookup!C8 -> NHS Barnsley | D23: =Lookup!D8 -> Yorkshire and Northern | E23: =Lookup!E8 -> No | F23: =Lookup!F8 -> 3 | G23: 10.325 | H23: 44 | I23: 0.9645868234 | J23: -0.03605543159 | K23: 0.09545353418 | L23: -0.5750060544 | M23: 44 | N23: 0.0009023867915 | O23: -7.00956452 | P23: 0.1188019694 | Q23: 1.385030785 | R23: -0.5750060544 | S23: -1.385030785
A24: 7 | B24: =Lookup!A9 -> 99E | C24: =Lookup!C9 -> NHS Basildon and Brentwood | D24: =Lookup!D9 -> East of England | E24: =Lookup!E9 -> No | F24: =Lookup!F9 -> 7 | G24: 9.422 | H24: 202 | I24: 1.319821674 | J24: 0.2774966319 | K24: 2.112790222e-05 | L24: 0.008554696379 | M24: 202 | N24: 0.0005956488876 | O24: -7.425263353 | P24: 0.005044155305 | Q24: -0.2853920238 | R24: 0.008554696379 | S24: 0.2853920238
A25: 8 | B25: =Lookup!A10 -> 02Q | C25: =Lookup!C10 -> NHS Bassetlaw | D25: =Lookup!D10 -> Yorkshire and Northern | E25: =Lookup!E10 -> No | F25: =Lookup!F10 -> 4 | G25: 10.33 | H25: 45 | I25: 1.475358047 | J25: 0.3889007041 | K25: 0.013456135 | L25: 0.2158920146 | M25: 45 | N25: 0.0007991034449 | O25: -7.13122073 | P25: 0.04973810161 | Q25: 0.8961737298 | R25: 0.2158920146 | S25: -0.8961737298
A26: 9 | B26: =Lookup!A11 -> 11E | C26: =Lookup!C11 -> NHS Bath and North East Somerset | D26: =Lookup!D11 -> South West | E26: =Lookup!E11 -> No | F26: =Lookup!F11 -> 9 | G26: 9.757 | H26: 188 | I26: 1.458746159 | J26: 0.3775772713 | K26: 0.01095730555 | L26: 0.1948176486 | M26: 188 | N26: 0.0004646043396 | O26: -7.673859685 | P26: 0.1021560168 | Q26: -1.284338738 | R26: 0.1948176486 | S26: 1.284338738
A27: 10 | B27: =Lookup!A12 -> 06F | C27: =Lookup!C12 -> NHS Bedfordshire | D27: =Lookup!D12 -> East of England | E27: =Lookup!E12 -> No | F27: =Lookup!F12 -> 9 | G27: 8.937 | H27: 106 | I27: 1.192447684 | J27: 0.176008072 | K27: 0.009388069386 | L27: -0.1803285774 | M27: 106 | N27: 0.0005895668503 | O27: -7.435532702 | P27: 0.006608318702 | Q27: -0.3266578477 | R27: -0.1803285774 | S27: 0.3266578477
A28: 11 | B28: =Lookup!A13 -> 07N | C28: =Lookup!C13 -> NHS Bexley | D28: =Lookup!D13 -> London | E28: =Lookup!E13 -> No | F28: =Lookup!F13 -> 7 | G28: 9.117 | H28: 124 | I28: 1.581395179 | J28: 0.4583074821 | K28: 0.03437588912 | L28: 0.3450669626 | M28: 124 | N28: 0.0005247499013 | O28: -7.5520639 | P28: 0.03913384586 | Q28: -0.7949208191 | R28: 0.3450669626 | S28: 0.7949208191
A29: 12 | B29: =Lookup!A14 -> 13P | C29: =Lookup!C14 -> NHS Birmingham Crosscity | D29: =Lookup!D14 -> West Midlands | E29: =Lookup!E14 -> No | F29: =Lookup!F14 -> 1 | G29: 9.106 | H29: 198 | I29: 1.179289625 | J29: 0.1649122443 | K29: 0.01166138176 | L29: -0.2009793409 | M29: 198 | N29: 0.0006594583396 | O29: -7.323432082 | P29: 0.0009491978303 | Q29: 0.1238015194 | R29: -0.2009793409 | S29: -0.1238015194
A30: 13 | B30: =Lookup!A15 -> 04X | C30: =Lookup!C15 -> NHS Birmingham South and Central | D30: =Lookup!D15 -> West Midlands | E30: =Lookup!E15 -> No | F30: =Lookup!F15 -> 1 | G30: 8.06 | H30: 85 | I30: 0.5164547469 | J30: -0.6607676092 | K30: 0.8717354325 | L30: -1.73767583 | M30: 85 | N30: 0.0005646916827 | O30: -7.478665819 | P30: 0.01548150175 | Q30: -0.4999817467 | R30: -1.73767583 | S30: 0.4999817467
A31: 14 | B31: =Lookup!A16 -> 00Q | C31: =Lookup!C16 -> NHS Blackburn with Darwen | D31: =Lookup!D16 -> Greater Manchester Lancashire and South Cumbria | E31: =Lookup!E16 -> No | F31: =Lookup!F16 -> 1 | G31: 8.783 | H31: 12 | I31: 1.403226606 | J31: 0.3387743037 | K31: 0.00433940779 | L31: 0.1226003312 | M31: 12 | N31: 0.0007668229645 | O31: -7.172487482 | P31: 0.03303439084 | Q31: 0.7303495361 | R31: 0.1226003312 | S31: -0.7303495361
A32: 15 | B32: =Lookup!A17 -> 00R | C32: =Lookup!C17 -> NHS Blackpool | D32: =Lookup!D17 -> Greater Manchester Lancashire and South Cumbria | E32: =Lookup!E17 -> No | F32: =Lookup!F17 -> 1 | G32: 11.562 | H32: 13 | I32: 0.8443554978 | J32: -0.1691816672 | K32: 0.1954363084 | L32: -0.8227711149 | M32: 13 | N32: 0.001058740991 | O32: -6.849615519 | P32: 0.2546470131 | Q32: 2.027761624 | R32: -0.8227711149 | S32: -2.027761624
A33: 16 | B33: =Lookup!A18 -> 00T | C33: =Lookup!C18 -> NHS Bolton | D33: =Lookup!D18 -> Greater Manchester Lancashire and South Cumbria | E33: =Lookup!E18 -> No | F33: =Lookup!F18 -> 2 | G33: 9.508 | H33: 14 | I33: 2.673822204 | J33: 0.9835089857 | K33: 0.504964957 | L33: 1.322534565 | M33: 14 | N33: 0.0007559857875 | O33: -7.18673171 | P33: 0.02805940781 | Q33: 0.673111262 | R33: 1.322534565 | S33: -0.673111262
A34: 17 | B34: =Lookup!A19 -> 10G | C34: =Lookup!C19 -> NHS Bracknell and Ascot | D34: =Lookup!D19 -> Thames | E34: =Lookup!E19 -> No | F34: =Lookup!F19 -> 10 | G34: 8.129 | H34: 171 | I34: 1.155176841 | J34: 0.1442534418 | K34: 0.01654996837 | L34: -0.2394280316 | M34: 171 | N34: 0.0004362831789 | O34: -7.736782654 | P34: 0.1463380131 | Q34: -1.537185161 | R34: -0.2394280316 | S34: 1.537185161
A35: 18 | B35: =Lookup!A20 -> 02W | C35: =Lookup!C20 -> NHS Bradford City | D35: =Lookup!D20 -> Yorkshire and Northern | E35: =Lookup!E20 -> No | F35: =Lookup!F20 -> 1 | G35: 6.067 | H35: 49 | I35: 0.1553031164 | J35: -1.862376482 | K35: 4.559406175 | L35: -3.974024614 | M35: 49 | N35: 0.0005732375086 | O35: -7.463637025 | P35: 0.01196746057 | Q35: -0.4395908145 | R35: -2.99 | S35: 0.4395908145
A36: 19 | B36: =Lookup!A21 -> 02R | C36: =Lookup!C21 -> NHS Bradford Districts | D36: =Lookup!D21 -> Yorkshire and Northern | E36: =Lookup!E21 -> No | F36: =Lookup!F21 -> 2 | G36: 9.214 | H36: 46 | I36: 1.233998317 | J36: 0.2102595615 | K36: 0.003923839833 | L36: -0.1165821464 | M36: 46 | N36: 0.0008106004579 | O36: -7.11692435 | P36: 0.05631925706 | Q36: 0.953621568 | R36: -0.1165821464 | S36: -0.953621568
A37: 20 | B37: =Lookup!A22 -> 07P | C37: =Lookup!C22 -> NHS Brent | D37: =Lookup!D22 -> London | E37: =Lookup!E22 -> No | F37: =Lookup!F22 -> 2 | G37: 7.095 | H37: 125 | I37: 0.6082663707 | J37: -0.4971423832 | K37: 0.5929654601 | L37: -1.433148223 | M37: 125 | N37: 0.0004970433452 | O37: -7.606336155 | P37: 0.06355189867 | Q37: -1.013005659 | R37: -1.433148223 | S37: 1.013005659
A38: 21 | B38: =Lookup!A23 -> 09D | C38: =Lookup!C23 -> NHS Brighton and Hove | D38: =Lookup!D23 -> South East coast | E38: =Lookup!E23 -> No | F38: =Lookup!F23 -> 4 | G38: 8.685 | H38: 155 | I38: 1.026804727 | J38: 0.02645177338 | K38: 0.06073678861 | L38: -0.4586721 | M38: 155 | N38: 0.0004637348711 | O38: -7.675733725 | P38: 0.1033574849 | Q38: -1.291869285 | R38: -0.4586721 | S38: 1.291869285
A39: 22 | B39: =Lookup!A24 -> 11H | C39: =Lookup!C24 -> NHS Bristol | D39: =Lookup!D24 -> South West | E39: =Lookup!E24 -> No | F39: =Lookup!F24 -> 4 | G39: 8.47 | H39: 189 | I39: 1.058252571 | J39: 0.0566190296 | K39: 0.04677751099 | L39: -0.402526953 | M39: 189 | N39: 0.0006207528877 | O39: -7.383956536 | P39: 0.0008830049987 | Q39: -0.1194068351 | R39: -0.402526953 | S39: 0.1194068351
A40: 23 | B40: =Lookup!A25 -> 07Q | C40: =Lookup!C25 -> NHS Bromley | D40: =Lookup!D25 -> London | E40: =Lookup!E25 -> No | F40: =Lookup!F25 -> 8 | G40: 9.522 | H40: 126 | I40: 1.520532975 | J40: 0.4190609149 | K40: 0.02136297734 | L40: 0.2720240492 | M40: 126 | N40: 0.0004990347617 | O40: -7.602335643 | P40: 0.06155088421 | Q40: -0.9969302049 | R40: 0.2720240492 | S40: 0.9969302049
A41: 24 | B41: =Lookup!A26 -> 00V | C41: =Lookup!C26 -> NHS Bury | D41: =Lookup!D26 -> Greater Manchester Lancashire and South Cumbria | E41: =Lookup!E26 -> No | F41: =Lookup!F26 -> 5 | G41: 9.399 | H41: 15 | I41: 1.466558198 | J41: 0.3829182939 | K41: 0.01210399811 | L41: 0.2047579792 | M41: 15 | N41: 0.0007142033062 | O41: -7.243628435 | P41: 0.01223516959 | Q41: 0.444480388 | R41: 0.2047579792 | S41: -0.444480388
A42: 25 | B42: =Lookup!A27 -> 02T | C42: =Lookup!C27 -> NHS Calderdale | D42: =Lookup!D27 -> Yorkshire and Northern | E42: =Lookup!E27 -> Closest 10 CCGs | F42: =Lookup!F27 -> 5 | G42: 9.308 | H42: 47 | I42: 0.9973439455 | J42: -0.002659588064 | K42: 0.07593315389 | L42: -0.5128520909 | M42: 47 | N42: 0.00082897077 | O42: -7.094496348 | P42: 0.06746735474 | Q42: 1.043745095 | R42: -0.5128520909 | S42: -1.043745095 | T42: -0.5128520909 | U42: -1.043745095
A43: 26 | B43: =Lookup!A28 -> 06H | C43: =Lookup!C28 -> NHS Cambridgeshire and Peterborough | D43: =Lookup!D28 -> East of England | E43: =Lookup!E28 -> No | F43: =Lookup!F28 -> 8 | G43: 8.916 | H43: 107 | I43: 0.9581456186 | J43: -0.04275550985 | K43: 0.09963847801 | L43: -0.5874757625 | M43: 107 | N43: 0.0005302591396 | O43: -7.541614328 | P43: 0.03510871328 | Q43: -0.7529307995 | R43: -0.5874757625 | S43: 0.7529307995
A44: 27 | B44: =Lookup!A29 -> 07R | C44: =Lookup!C29 -> NHS Camden | D44: =Lookup!D29 -> London | E44: =Lookup!E29 -> No | F44: =Lookup!F29 -> 4 | G44: 6.83 | H44: 127 | I44: 0.5287984836 | J44: -0.637147858 | K44: 0.8281873261 | L44: -1.693716433 | M44: 127 | N44: 0.0003633186917 | O44: -7.919866786 | P44: 0.3199323754 | Q44: -2.272881018 | R44: -1.693716433 | S44: 2.272881018
A45: 28 | B45: =Lookup!A30 -> 04Y | C45: =Lookup!C30 -> NHS Cannock Chase | D45: =Lookup!D30 -> West Midlands | E45: =Lookup!E30 -> No | F45: =Lookup!F30 -> 6 | G45: 9.485 | H45: 86 | I45: 1.330889786 | J45: 0.2858477303 | K45: 0.0001676405565 | L45: 0.02409716537 | M45: 86 | N45: 0.0008249477261 | O45: -7.099365248 | P45: 0.06496171838 | Q45: 1.02418016 | R45: 0.02409716537 | S45: -1.02418016
A46: 29 | B46: =Lookup!A31 -> 09E | C46: =Lookup!C31 -> NHS Canterbury and Coastal | D46: =Lookup!D31 -> South East coast | E46: =Lookup!E31 -> No | F46: =Lookup!F31 -> 7 | G46: 9.921 | H46: 156 | I46: 1.620547177 | J46: 0.4827638559 | K46: 0.04404278676 | L46: 0.3905834223 | M46: 156 | N46: 0.0006611877618 | O46: -7.320811295 | P46: 0.001117554282 | Q46: 0.1343327544 | R46: 0.3905834223 | S46: -0.1343327544
A47: 30 | B47: =Lookup!A32 -> 99F | C47: =Lookup!C32 -> NHS Castle Point and Rochford | D47: =Lookup!D32 -> East of England | E47: =Lookup!E32 -> No | F47: =Lookup!F32 -> 9 | G47: 10.691 | H47: 203 | I47: 2.118149679 | J47: 0.7505429148 | K47: 0.2281426373 | L47: 0.8889547195 | M47: 203 | N47: 0.0006386401877 | O47: -7.355530505 | P47: 1.662471423e-06 | Q47: -0.005181132521 | R47: 0.8889547195 | S47: 0.005181132521
A48: 31 | B48: =Lookup!A33 -> 09A | C48: =Lookup!C33 -> NHS Central London (Westminster) | D48: =Lookup!D33 -> London | E48: =Lookup!E33 -> No | F48: =Lookup!F33 -> 5 | G48: 7.457 | H48: 153 | I48: 0.8313113285 | J48: -0.184750911 | K48: 0.2094444682 | L48: -0.8517474818 | M48: 153 | N48: 0.0003114590537 | O48: -8.07393117 | P48: 0.5179537446 | Q48: -2.891965415 | R48: -0.8517474818 | S48: 2.891965415
A49: 32 | B49: =Lookup!A34 -> 00W | C49: =Lookup!C34 -> NHS Central Manchester | D49: =Lookup!D34 -> Greater Manchester Lancashire and South Cumbria | E49: =Lookup!E34 -> No | F49: =Lookup!F34 -> 1 | G49: 7.095 | H49: 16 | I49: 0.4510407869 | J49: -0.7961975069 | K49: 1.14296974 | L49: -1.989728302 | M49: 16 | N49: 0.000462632766 | O49: -7.678114241 | P49: 0.1048937881 | Q49: -1.301435027 | R49: -1.989728302 | S49: 1.301435027
A50: 33 | B50: =Lookup!A35 -> 10H | C50: =Lookup!C35 -> NHS Chiltern | D50: =Lookup!D35 -> Thames | E50: =Lookup!E35 -> No | F50: =Lookup!F35 -> 10 | G50: 9.12 | H50: 172 | I50: 1.667257407 | J50: 0.5111800052 | K50: 0.05677730269 | L50: 0.4434695339 | M50: 172 | N50: 0.0004842229548 | O50: -7.632480767 | P50: 0.07741729207 | Q50: -1.118063821 | R50: 0.4434695339 | S50: 1.118063821
A51: 34 | B51: =Lookup!A36 -> 00X | C51: =Lookup!C36 -> NHS Chorley and South Ribble | D51: =Lookup!D36 -> Greater Manchester Lancashire and South Cumbria | E51: =Lookup!E36 -> No | F51: =Lookup!F36 -> 6 | G51: 9.693 | H51: 17 | I51: 1.820195937 | J51: 0.598944153 | K51: 0.1063047101 | L51: 0.60680991 | M51: 17 | N51: 0.000674897527 | O51: -7.300274565 | P51: 0.002912390775 | Q51: 0.2168564928 | R51: 0.60680991 | S51: -0.2168564928
A52: 35 | B52: =Lookup!A37 -> 07T | C52: =Lookup!C37 -> NHS City and Hackney | D52: =Lookup!D37 -> London | E52: =Lookup!E37 -> No | F52: =Lookup!F37 -> 1 | G52: 6.848 | H52: 128 | I52: 0.3437448705 | J52: -1.067855552 | K52: 1.797625778 | L52: -2.495318893 | M52: 128 | N52: 0.00047464512 | O52: -7.652468391 | P52: 0.08893949575 | Q52: -1.198381063 | R52: -2.495318893 | S52: 1.198381063
A53: 36 | B53: =Lookup!A38 -> 09G | C53: =Lookup!C38 -> NHS Coastal West Sussex | D53: =Lookup!D38 -> South East coast | E53: =Lookup!E38 -> No | F53: =Lookup!F38 -> 7 | G53: 11.873 | H53: 158 | I53: 2.79749072 | J53: 1.028722844 | K53: 0.5712679869 | L53: 1.406683375 | M53: 158 | N53: 0.0007174929408 | O53: -7.239029699 | P53: 0.01327367532 | Q53: 0.4629597144 | R53: 1.406683375 | S53: -0.4629597144
A54: 37 | B54: =Lookup!A39 -> 03V | C54: =Lookup!C39 -> NHS Corby | D54: =Lookup!D39 -> East Midlands | E54: =Lookup!E39 -> No | F54: =Lookup!F39 -> 3 | G54: 8.63 | H54: 67 | I54: 1.596927016 | J54: 0.4680811677 | K54: 0.03809564053 | L54: 0.3632570495 | M54: 67 | N54: 0.0009022827754 | O54: -7.009679899 | P54: 0.1187224462 | Q54: 1.384567154 | R54: 0.3632570495 | S54: -1.384567154
A55: 38 | B55: =Lookup!A40 -> 05A | C55: =Lookup!C40 -> NHS Coventry and Rugby | D55: =Lookup!D40 -> West Midlands | E55: =Lookup!E40 -> No | F55: =Lookup!F40 -> 4 | G55: 8.972 | H55: 87 | I55: 0.7985120324 | J55: -0.2250052427 | K55: 0.2479097523 | L55: -0.9266659745 | M55: 87 | N55: 0.0005821745017 | O55: -7.44815798 | P55: 0.008820373612 | Q55: -0.377390616 | R55: -0.9266659745 | S55: 0.377390616
A56: 39 | B56: =Lookup!A41 -> 09H | C56: =Lookup!C41 -> NHS Crawley | D56: =Lookup!D41 -> South East coast | E56: =Lookup!E41 -> No | F56: =Lookup!F41 -> 7 | G56: 8.186 | H56: 159 | I56: 1.019313223 | J56: 0.01912909007 | K56: 0.06439973672 | L56: -0.4723005562 | M56: 159 | N56: 0.0004460828873 | O56: -7.714559595 | P56: 0.1298293919 | Q56: -1.447885163 | R56: -0.4723005562 | S56: 1.447885163
A57: 40 | B57: =Lookup!A42 -> 07V | C57: =Lookup!C42 -> NHS Croydon | D57: =Lookup!D42 -> London | E57: =Lookup!E42 -> No | F57: =Lookup!F42 -> 5 | G57: 7.821 | H57: 129 | I57: 0.782682277 | J57: -0.2450284418 | K57: 0.2682499974 | L57: -0.9639317256 | M57: 129 | N57: 0.0005298791436 | O57: -7.542331589 | P57: 0.03537801842 | Q57: -0.7558130012 | R57: -0.9639317256 | S57: 0.7558130012
A58: 41 | B58: =Lookup!A43 -> 01H | C58: =Lookup!C43 -> NHS Cumbria | D58: =Lookup!D43 -> Northern England | E58: =Lookup!E43 -> No | F58: =Lookup!F43 -> 5 | G58: 11.092 | H58: 25 | I58: 1.731279746 | J58: 0.5488608724 | K58: 0.07615433571 | L58: 0.5135984781 | M58: 25 | N58: 0.0008133801027 | O58: -7.113498316 | P58: 0.05795710555 | Q58: 0.967388567 | R58: 0.5135984781 | S58: -0.967388567
A59: 42 | B59: =Lookup!A44 -> 00C | C59: =Lookup!C44 -> NHS Darlington | D59: =Lookup!D44 -> Northern England | E59: =Lookup!E44 -> No | F59: =Lookup!F44 -> 4 | G59: 10.186 | H59: 1 | I59: 1.506509534 | J59: 0.4097954082 | K59: 0.01874031935 | L59: 0.2547797486 | M59: 1 | N59: 0.0007077721589 | O59: -7.252680303 | P59: 0.01031460284 | Q59: 0.4081068285 | R59: 0.2547797486 | S59: -0.4081068285
A60: 43 | B60: =Lookup!A45 -> 09J | C60: =Lookup!C45 -> NHS Dartford, Gravesham and Swanley | D60: =Lookup!D45 -> South East coast | E60: =Lookup!E45 -> No | F60: =Lookup!F45 -> 7 | G60: 9.217 | H60: 160 | I60: 1.575465364 | J60: 0.4545506981 | K60: 0.03299693173 | L60: 0.3380751039 | M60: 160 | N60: 0.0007338231312 | O60: -7.216508432 | P60: 0.01897029785 | Q60: 0.5534580151 | R60: 0.3380751039 | S60: -0.5534580151
A61: 44 | B61: =Lookup!A46 -> 02X | C61: =Lookup!C46 -> NHS Doncaster | D61: =Lookup!D46 -> Yorkshire and Northern | E61: =Lookup!E46 -> No | F61: =Lookup!F46 -> 2 | G61: 10.462 | H61: 50 | I61: 1.748483405 | J61: 0.5587487864 | K61: 0.08170945888 | L61: 0.5320011588 | M61: 50 | N61: 0.0007873683619 | O61: -7.146026682 | P61: 0.04335325872 | Q61: 0.8366782514 | R61: 0.5320011588 | S61: -0.8366782514
A62: 45 | B62: =Lookup!A47 -> 11J | C62: =Lookup!C47 -> NHS Dorset | D62: =Lookup!D47 -> Wessex | E62: =Lookup!E47 -> No | F62: =Lookup!F47 -> 7 | G62: 11.443 | H62: 190 | I62: 2.308040879 | J62: 0.8363990603 | K62: 0.3175310533 | L62: 1.048744058 | M62: 190 | N62: 0.0006521030323 | O62: -7.334655668 | P62: 0.0003835905627 | Q62: 0.07870123787 | R62: 1.048744058 | S62: -0.07870123787
A63: 46 | B63: =Lookup!A48 -> 05C | C63: =Lookup!C48 -> NHS Dudley | D63: =Lookup!D48 -> West Midlands | E63: =Lookup!E48 -> No | F63: =Lookup!F48 -> 4 | G63: 10.405 | H63: 88 | I63: 1.596237484 | J63: 0.4676492872 | K63: 0.0379272373 | L63: 0.3624532644 | M63: 88 | N63: 0.0007394721146 | O63: -7.208834239 | P63: 0.02114316558 | Q63: 0.5842955945 | R63: 0.3624532644 | S63: -0.5842955945
A64: 47 | B64: =Lookup!A49 -> 00D | C64: =Lookup!C49 -> NHS Durham Dales, Easington and Sedgefield | D64: =Lookup!D49 -> Northern England | E64: =Lookup!E49 -> No | F64: =Lookup!F49 -> 2 | G64: 10.959 | H64: 2 | I64: 1.884724002 | J64: 0.6337813921 | K64: 0.130235291 | L64: 0.6716464963 | M64: 2 | N64: 0.0008798910756 | O64: -7.034832158 | P64: 0.1020220955 | Q64: 1.283496611 | R64: 0.6716464963 | S64: -1.283496611
A65: 48 | B65: =Lookup!A50 -> 07W | C65: =Lookup!C50 -> NHS Ealing | D65: =Lookup!D50 -> London | E65: =Lookup!E50 -> No | F65: =Lookup!F50 -> 4 | G65: 7.042 | H65: 130 | I65: 0.711713938 | J65: -0.3400792208 | K65: 0.3757436749 | L65: -1.14083346 | M65: 130 | N65: 0.0004807778372 | O65: -7.639624378 | P65: 0.0814435949 | Q65: -1.146769342 | R65: -1.14083346 | S65: 1.146769342
A66: 49 | B66: =Lookup!A51 -> 06K | C66: =Lookup!C51 -> NHS East and North Hertfordshire | D66: =Lookup!D51 -> East of England | E66: =Lookup!E51 -> No | F66: =Lookup!F51 -> 9 | G66: 8.751 | H66: 108 | I66: 1.301035357 | J66: 0.2631603758 | K66: 9.486265929e-05 | L66: -0.01812692169 | M66: 108 | N66: 0.0006007708003 | O66: -7.416696109 | P66: 0.003900623629 | Q66: -0.2509658504 | R66: -0.01812692169 | S66: 0.2509658504
A67: 50 | B67: =Lookup!A52 -> 01A | C67: =Lookup!C52 -> NHS East Lancashire | D67: =Lookup!D52 -> Greater Manchester Lancashire and South Cumbria | E67: =Lookup!E52 -> No | F67: =Lookup!F52 -> 3 | G67: 9.993 | H67: 19 | I67: 1.46238081 | J67: 0.3800657992 | K67: 0.01148448234 | L67: 0.1994491194 | M67: 19 | N67: 0.0008675248758 | O67: -7.04899847 | P67: 0.09317308522 | Q67: 1.22657143 | R67: 0.1994491194 | S67: -1.22657143
A68: 51 | B68: =Lookup!A53 -> 03W | C68: =Lookup!C53 -> NHS East Leicestershire and Rutland | D68: =Lookup!D53 -> East Midlands | E68: =Lookup!E53 -> No | F68: =Lookup!F53 -> 10 | G68: 10.109 | H68: 68 | I68: 1.499973155 | J68: 0.405447211 | K68: 0.01756873076 | L68: 0.2466871939 | M68: 68 | N68: 0.0005610358856 | O68: -7.485164494 | P68: 0.01714092565 | Q68: -0.5260956876 | R68: 0.2466871939 | S68: 0.5260956876
A69: 52 | B69: =Lookup!A54 -> 02Y | C69: =Lookup!C54 -> NHS East Riding Of Yorkshire | D69: =Lookup!D54 -> Yorkshire and Northern | E69: =Lookup!E54 -> No | F69: =Lookup!F54 -> 8 | G69: 11.287 | H69: 51 | I69: 1.489525524 | J69: 0.3984576291 | K69: 0.01576468755 | L69: 0.2336786823 | M69: 51 | N69: 0.0007664821432 | O69: -7.17293238 | P69: 0.03287286483 | Q69: 0.7285617778 | R69: 0.2336786823 | S69: -0.7285617778
A70: 53 | B70: =Lookup!A55 -> 05D | C70: =Lookup!C55 -> NHS East Staffordshire | D70: =Lookup!D55 -> West Midlands | E70: =Lookup!E55 -> Closest 10 CCGs | F70: =Lookup!F55 -> 6 | G70: 9.641 | H70: 89 | I70: 1.475222952 | J70: 0.3888091321 | K70: 0.01343489859 | L70: 0.2157215874 | M70: 89 | N70: 0.0007067081055 | O70: -7.254185883 | P70: 0.01001105366 | Q70: 0.4020568825 | R70: 0.2157215874 | S70: -0.4020568825 | T70: 0.2157215874 | U70: -0.4020568825
A71: 54 | B71: =Lookup!A56 -> 09L | C71: =Lookup!C56 -> NHS East Surrey | D71: =Lookup!D56 -> South East coast | E71: =Lookup!E56 -> No | F71: =Lookup!F56 -> 10 | G71: 9.28 | H71: 161 | I71: 1.144085037 | J71: 0.1346052234 | K71: 0.01912547902 | L71: -0.257384608 | M71: 161 | N71: 0.0004783213438 | O71: -7.644749348 | P71: 0.08439502134 | Q71: -1.167363258 | R71: -0.257384608 | S71: 1.167363258
A72: 55 | B72: =Lookup!A57 -> 09F | C72: =Lookup!C57 -> NHS Eastbourne, Hailsham and Seaford | D72: =Lookup!D57 -> South East coast | E72: =Lookup!E57 -> No | F72: =Lookup!F57 -> 6 | G72: 12.261 | H72: 157 | I72: 6.588390912 | J72: 1.885309147 | K72: 2.599862865 | L72: 3.000900746 | M72: 157 | N72: 0.0007503674956 | O72: -7.194196828 | P72: 0.02561418045 | Q72: 0.6431138146 | R72: 2.99 | S72: -0.6431138146
A73: 56 | B73: =Lookup!A58 -> 01C | C73: =Lookup!C58 -> NHS Eastern Cheshire | D73: =Lookup!D58 -> Cheshire and Merseyside | E73: =Lookup!E58 -> No | F73: =Lookup!F58 -> 9 | G73: 10.449 | H73: 20 | I73: 2.01152839 | J73: 0.6988948259 | K73: 0.1814714877 | L73: 0.792830978 | M73: 20 | N73: 0.0005843992703 | O73: -7.444341557 | P73: 0.008118085797 | Q73: -0.362054896 | R73: 0.792830978 | S73: 0.362054896
A74: 57 | B74: =Lookup!A59 -> 07X | C74: =Lookup!C59 -> NHS Enfield | D74: =Lookup!D59 -> London | E74: =Lookup!E59 -> No | F74: =Lookup!F59 -> 3 | G74: 8.179 | H74: 131 | I74: 0.8025799455 | J74: -0.2199238084 | K74: 0.2428754265 | L74: -0.9172087712 | M74: 131 | N74: 0.0004800932753 | O74: -7.641049941 | P74: 0.0822592906 | Q74: -1.15249775 | R74: -0.9172087712 | S74: 1.15249775
A75: 58 | B75: =Lookup!A60 -> 03X | C75: =Lookup!C60 -> NHS Erewash | D75: =Lookup!D60 -> East Midlands | E75: =Lookup!E60 -> No | F75: =Lookup!F60 -> 5 | G75: 10 | H75: 69 | I75: 1.165429987 | J75: 0.1530901064 | K75: 0.01435443986 | L75: -0.2229818612 | M75: 69 | N75: 0.0006986072926 | O75: -7.265722935 | P75: 0.007835471832 | Q75: 0.3556969843 | R75: -0.2229818612 | S75: -0.3556969843
A76: 59 | B76: =Lookup!A61 -> 10K | C76: =Lookup!C61 -> NHS Fareham and Gosport | D76: =Lookup!D61 -> Wessex | E76: =Lookup!E61 -> No | F76: =Lookup!F61 -> 9 | G76: 10.13 | H76: 174 | I76: 2.970107995 | J76: 1.088598314 | K76: 0.6653635405 | L76: 1.518119332 | M76: 174 | N76: 0.0006763258461 | O76: -7.298159023 | P76: 0.003145203445 | Q76: 0.22535748 | R76: 1.518119332 | S76: -0.22535748
A77: 60 | B77: =Lookup!A62 -> 02M | C77: =Lookup!C62 -> NHS Fylde & Wyre | D77: =Lookup!D62 -> Greater Manchester Lancashire and South Cumbria | E77: =Lookup!E62 -> No | F77: =Lookup!F62 -> 8 | G77: 11.892 | H77: 42 | I77: 1.310549493 | J77: 0.2704465092 | K77: 6.020216402e-06 | L77: -0.00456648949 | M77: 42 | N77: 0.000993826231 | O77: -6.912953864 | P77: 0.1947344563 | Q77: 1.773246076 | R77: -0.00456648949 | S77: -1.773246076
A78: 61 | B78: =Lookup!A63 -> 00F | C78: =Lookup!C63 -> NHS Gateshead | D78: =Lookup!D63 -> Northern England | E78: =Lookup!E63 -> No | F78: =Lookup!F63 -> 2 | G78: 10.685 | H78: 3 | I78: 1.620404433 | J78: 0.4826757681 | K78: 0.04400582163 | L78: 0.3904194795 | M78: 3 | N78: 0.0008319689398 | O78: -7.090883135 | P78: 0.0693574369 | Q78: 1.058264247 | R78: 0.3904194795 | S78: -1.058264247
A79: 62 | B79: =Lookup!A64 -> 11M | C79: =Lookup!C64 -> NHS Gloucestershire | D79: =Lookup!D64 -> South West | E79: =Lookup!E64 -> No | F79: =Lookup!F64 -> 8 | G79: 10.075 | H79: 191 | I79: 1.20494168 | J79: 0.1864311675 | K79: 0.007476880115 | L79: -0.1609298549 | M79: 191 | N79: 0.0006443743815 | O79: -7.346586081 | P79: 5.859986747e-05 | Q79: 0.03076067939 | R79: -0.1609298549 | S79: -0.03076067939
A80: 63 | B80: =Lookup!A65 -> 06M | C80: =Lookup!C65 -> NHS Great Yarmouth and Waveney | D80: =Lookup!D65 -> East of England | E80: =Lookup!E65 -> Closest 10 CCGs | F80: =Lookup!F65 -> 4 | G80: 11.552 | H80: 110 | I80: 2.02674095 | J80: 0.7064290597 | K80: 0.1879473397 | L80: 0.8068531569 | M80: 110 | N80: 0.0008443786097 | O80: -7.076064839 | P80: 0.07738205222 | Q80: 1.117809324 | R80: 0.8068531569 | S80: -1.117809324 | T80: 0.8068531569 | U80: -1.117809324
A81: 64 | B81: =Lookup!A66 -> 03A | C81: =Lookup!C66 -> NHS Greater Huddersfield | D81: =Lookup!D66 -> Yorkshire and Northern | E81: =Lookup!E66 -> No | F81: =Lookup!F66 -> 5 | G81: 9.381 | H81: 52 | I81: 1.029341481 | J81: 0.02891925897 | K81: 0.05952666159 | L81: -0.4540797917 | M81: 52 | N81: 0.0006047953552 | O81: -7.410015435 | P81: 0.003110772406 | Q81: -0.2241205736 | R81: -0.4540797917 | S81: 0.2241205736
A82: 65 | B82: =Lookup!A67 -> 01E | C82: =Lookup!C67 -> NHS Greater Preston | D82: =Lookup!D67 -> Greater Manchester Lancashire and South Cumbria | E82: =Lookup!E67 -> No | F82: =Lookup!F67 -> 4 | G82: 9.219 | H82: =MATCH($B82,DataCost_CCGcode,0) -> 22 | I82: =INDEX(INDIRECT($H$11),$H82)/INDEX(INDIRECT($H$12),$H82) -> 1.377907247 | J82: =LN(I82) -> 0.3205658601 | K82: 0.002272022577 | L82: 0.08871207393 | M82: =MATCH($B82,DataOutcome_CCGcode,0) -> 22 | N82: =INDEX(INDIRECT($M$11),$M82)/INDEX(INDIRECT($M$12),$M82) -> 0.0007059112393 | O82: -7.255314891 | P82: =(O82-O$15)*(O82-O$15) -> 0.009786401906 | Q82: =(O82-O$15)/P$15 -> 0.3975201339 | R82: =IF(L82<-3,-2.99,IF(L82>3,2.99,L82)) -> 0.08871207393 | S82: -0.3975201339 | T82: =CHOOSE($D$7,IF(D82=$D$16,R82,NA()),IF(E82=$E$16,R82,NA()),IF(F82=$F$16,R82,NA())) ->  | U82: =CHOOSE($D$7,IF(D82=$D$16,S82,NA()),IF(E82=$E$16,S82,NA()),IF(F82=$F$16,S82,NA())) -> 
A83: 66 | B83: =Lookup!A68 -> 08A | C83: =Lookup!C68 -> NHS Greenwich | D83: =Lookup!D68 -> London | E83: =Lookup!E68 -> No | F83: =Lookup!F68 -> 2 | G83: 7.365 | H83: 133 | I83: 0.6659767091 | J83: -0.4065005804 | K83: =IFERROR((J83-J$15)*(J83-J$15),0) -> 0.4615853146 | L83: =(J83-J$15)/K$15 -> -1.26445216 | M83: 133 | N83: 0.0004275264872 | O83: =IF(N83=1,5,LN((N83/(1-N83)))) -> -7.757066695 | P83: 0.1622684312 | Q83: -1.618693509 | R83: -1.26445216 | S83: =IF(Q83<-3,-2.99,IF(Q83>3,2.99,Q83))*$N$3 -> 1.618693509
A84: 67 | B84: =Lookup!A69 -> 09N | C84: =Lookup!C69 -> NHS Guildford and Waverley | D84: =Lookup!D69 -> South East coast | E84: =Lookup!E69 -> No | F84: =Lookup!F69 -> 10 | G84: 9.325 | H84: 162 | I84: 2.403014304 | J84: 0.8767239094 | K84: 0.3646031661 | L84: 1.123793793 | M84: 162 | N84: 0.0004200723739 | O84: -7.774663382 | P84: 0.176754865 | Q84: -1.68940313 | R84: 1.123793793 | S84: 1.68940313
A85: 68 | B85: =Lookup!A70 -> 01F | C85: =Lookup!C70 -> NHS Halton | D85: =Lookup!D70 -> Cheshire and Merseyside | E85: =Lookup!E70 -> No | F85: =Lookup!F70 -> 2 | G85: 9.702 | H85: 23 | I85: 1.321350999 | J85: 0.2786546971 | K85: 3.311513296e-05 | L85: 0.01071000473 | M85: 23 | N85: 0.0007805428925 | O85: -7.154740017 | P85: 0.03980069659 | Q85: 0.8016650366 | R85: 0.01071000473 | S85: -0.8016650366
A86: 69 | B86: =Lookup!A71 -> 03D | C86: =Lookup!C71 -> NHS Hambleton, Richmondshire and Whitby | D86: =Lookup!D71 -> Northern England | E86: =Lookup!E71 -> No | F86: =Lookup!F71 -> 9 | G86: 11.374 | H86: 54 | I86: 1.649073086 | J86: 0.5002133642 | K86: 0.05167131001 | L86: 0.4230592033 | M86: 54 | N86: 0.0006266989417 | O86: -7.374417394 | P86: 0.0004070813918 | Q86: -0.08107523789 | R86: 0.4230592033 | S86: 0.08107523789
A87: 70 | B87: =Lookup!A72 -> 08C | C87: =Lookup!C72 -> NHS Hammersmith and Fulham | D87: =Lookup!D72 -> London | E87: =Lookup!E72 -> No | F87: =Lookup!F72 -> 3 | G87: 6.882 | H87: 134 | I87: 0.5486235987 | J87: -0.6003426852 | K87: 0.7625530006 | L87: -1.625217269 | M87: 134 | N87: 0.0003930115402 | O87: -7.841278493 | P87: 0.2372053874 | Q87: -1.957085866 | R87: -1.625217269 | S87: 1.957085866
A88: 71 | B88: =Lookup!A73 -> 03Y | C88: =Lookup!C73 -> NHS Hardwick | D88: =Lookup!D73 -> East Midlands | E88: =Lookup!E73 -> No | F88: =Lookup!F73 -> 4 | G88: 10.843 | H88: 70 | I88: 1.671027543 | J88: 0.5134387323 | K88: 0.057858823 | L88: 0.4476733158 | M88: 70 | N88: 0.000869117363 | O88: -7.047162891 | P88: 0.09429704836 | Q88: 1.233947424 | R88: 0.4476733158 | S88: -1.233947424
A89: 72 | B89: =Lookup!A74 -> 08D | C89: =Lookup!C74 -> NHS Haringey | D89: =Lookup!D74 -> London | E89: =Lookup!E74 -> No | F89: =Lookup!F74 -> 1 | G89: 7.442 | H89: 135 | I89: 0.5087952979 | J89: -0.6757095085 | K89: 0.8998602314 | L89: -1.765484628 | M89: 135 | N89: 0.0004661241598 | O89: -7.670592289 | P89: 0.1000780521 | Q89: -1.271209203 | R89: -1.765484628 | S89: 1.271209203
A90: 73 | B90: =Lookup!A75 -> 03E | C90: =Lookup!C75 -> NHS Harrogate and Rural District | D90: =Lookup!D75 -> Yorkshire and Northern | E90: =Lookup!E75 -> Closest 10 CCGs | F90: =Lookup!F75 -> 10 | G90: 10.482 | H90: 55 | I90: 1.380615931 | J90: 0.3225297262 | K90: 0.002463097595 | L90: 0.09236708143 | M90: 55 | N90: 0.0005403795127 | O90: -7.522698338 | P90: 0.02837782906 | Q90: -0.6769197579 | R90: 0.09236708143 | S90: 0.6769197579 | T90: 0.09236708143 | U90: 0.6769197579
A91: 74 | B91: =Lookup!A76 -> 08E | C91: =Lookup!C76 -> NHS Harrow | D91: =Lookup!D76 -> London | E91: =Lookup!E76 -> No | F91: =Lookup!F76 -> 8 | G91: 7.874 | H91: 136 | I91: 1.031891015 | J91: 0.03139305601 | K91: 0.05832566299 | L91: -0.449475737 | M91: 136 | N91: 0.0005046374441 | O91: -7.591165554 | P91: 0.05613317995 | Q91: -0.9520448963 | R91: -0.449475737 | S91: 0.9520448963
A92: 75 | B92: =Lookup!A77 -> 00K | C92: =Lookup!C77 -> NHS Hartlepool and Stockton-On-Tees | D92: =Lookup!D77 -> Northern England | E92: =Lookup!E77 -> No | F92: =Lookup!F77 -> 3 | G92: 9.884 | H92: 7 | I92: 0.9905694871 | J92: -0.009475261721 | K92: 0.07973585741 | L92: -0.5255369369 | M92: 7 | N92: 0.0006836311216 | O92: -7.287408217 | P92: 0.004466639074 | Q92: 0.2685579646 | R92: -0.5255369369 | S92: -0.2685579646
A93: 76 | B93: =Lookup!A78 -> 09P | C93: =Lookup!C78 -> NHS Hastings and Rother | D93: =Lookup!D78 -> South East coast | E93: =Lookup!E78 -> No | F93: =Lookup!F78 -> 3 | G93: 12.219 | H93: 163 | I93: 8.640836382 | J93: 2.156499382 | K93: 3.54794617 | L93: 3.50562068 | M93: 163 | N93: 0.0008370054898 | O93: -7.084842573 | P93: 0.07257558591 | Q93: 1.082537331 | R93: 2.99 | S93: -1.082537331
A94: 77 | B94: =Lookup!A79 -> 08F | C94: =Lookup!C79 -> NHS Havering | D94: =Lookup!D79 -> London | E94: =Lookup!E79 -> No | F94: =Lookup!F79 -> 7 | G94: 9.646 | H94: 137 | I94: 0.7559932423 | J94: -0.2797228417 | K94: 0.3053921401 | L94: -1.02850247 | M94: 137 | N94: 0.0005679731473 | O94: -7.472868282 | P94: 0.01407239973 | Q94: -0.4766852215 | R94: -1.02850247 | S94: 0.4766852215
A95: 78 | B95: =Lookup!A80 -> 05F | C95: =Lookup!C80 -> NHS Herefordshire | D95: =Lookup!D80 -> West Midlands | E95: =Lookup!E80 -> No | F95: =Lookup!F80 -> 7 | G95: 11.26 | H95: 90 | I95: 1.186490569 | J95: 0.1709998483 | K95: 0.01038366582 | L95: -0.1896495263 | M95: 90 | N95: 0.0008399342767 | O95: -7.081346624 | P95: 0.07447141465 | Q95: 1.096585271 | R95: -0.1896495263 | S95: -1.096585271
A96: 79 | B96: =Lookup!A81 -> 06N | C96: =Lookup!C81 -> NHS Herts Valleys | D96: =Lookup!D81 -> East of England | E96: =Lookup!E81 -> No | F96: =Lookup!F81 -> 10 | G96: 8.795 | H96: 111 | I96: 1.397868613 | J96: 0.334948657 | K96: 0.003850020683 | L96: 0.1154803104 | M96: 111 | N96: 0.0004958859179 | O96: -7.608668653 | P96: 0.06473336143 | Q96: -1.022378448 | R96: 0.1154803104 | S96: 1.022378448
A97: 80 | B97: =Lookup!A82 -> 01D | C97: =Lookup!C82 -> NHS Heywood, Middleton and Rochdale | D97: =Lookup!D82 -> Greater Manchester Lancashire and South Cumbria | E97: =Lookup!E82 -> No | F97: =Lookup!F82 -> 2 | G97: 9.444 | H97: 21 | I97: 0.9846025979 | J97: -0.01551717316 | K97: 0.08318453623 | L97: -0.5367817118 | M97: 21 | N97: 0.0008538726483 | O97: -7.064874262 | P97: 0.08373318791 | Q97: 1.162776964 | R97: -0.5367817118 | S97: -1.162776964
A98: 81 | B98: =Lookup!A83 -> 99K | C98: =Lookup!C83 -> NHS High Weald Lewes Havens | D98: =Lookup!D83 -> South East coast | E98: =Lookup!E83 -> No | F98: =Lookup!F83 -> 9 | G98: 10.755 | H98: 207 | I98: 2.673360815 | J98: 0.9833364129 | K98: 0.5047197233 | L98: 1.322213385 | M98: 207 | N98: 0.0005117605227 | O98: -7.57714188 | P98: 0.0496847417 | Q98: -0.8956928853 | R98: 1.322213385 | S98: 0.8956928853
A99: 82 | B99: =Lookup!A84 -> 08G | C99: =Lookup!C84 -> NHS Hillingdon | D99: =Lookup!D84 -> London | E99: =Lookup!E84 -> No | F99: =Lookup!F84 -> 6 | G99: 8.007 | H99: 138 | I99: 0.9804943624 | J99: -0.01969838309 | K99: 0.08561388527 | L99: -0.5445634817 | M99: 138 | N99: 0.0005131953982 | O99: -7.574340565 | P99: 0.04844375865 | Q99: -0.884436225 | R99: -0.5445634817 | S99: 0.884436225
A100: 83 | B100: =Lookup!A85 -> 09X | C100: =Lookup!C85 -> NHS Horsham and Mid Sussex | D100: =Lookup!D85 -> South East coast | E100: =Lookup!E85 -> No | F100: =Lookup!F85 -> 10 | G100: 9.664 | H100: 165 | I100: 1.433797326 | J100: 0.3603263977 | K100: 0.007643353649 | L100: 0.1627115523 | M100: 165 | N100: 0.0004881986437 | O100: -7.62429986 | P100: 0.07293171463 | Q100: -1.085190088 | R100: 0.1627115523 | S100: 1.085190088
A101: 84 | B101: =Lookup!A86 -> 07Y | C101: =Lookup!C86 -> NHS Hounslow | D101: =Lookup!D86 -> London | E101: =Lookup!E86 -> No | F101: =Lookup!F86 -> 5 | G101: 7.098 | H101: 132 | I101: 0.6590371303 | J101: -0.4169754027 | K101: 0.4759282398 | L101: -1.283947153 | M101: 132 | N101: 0.0005205248326 | O101: -7.560152302 | P101: 0.0423994081 | Q101: -0.8274228369 | R101: -1.283947153 | S101: 0.8274228369
A102: 85 | B102: =Lookup!A87 -> 03F | C102: =Lookup!C87 -> NHS Hull | D102: =Lookup!D87 -> Yorkshire and Northern | E102: =Lookup!E87 -> No | F102: =Lookup!F87 -> 1 | G102: 9.826 | H102: 56 | I102: 0.675661305 | J102: -0.3920633566 | K102: 0.442176428 | L102: -1.237582628 | M102: 56 | N102: 0.0007384619952 | O102: -7.210202185 | P102: 0.02074721948 | Q102: 0.5787987133 | R102: -1.237582628 | S102: -0.5787987133
A103: 86 | B103: =Lookup!A88 -> 06L | C103: =Lookup!C88 -> NHS Ipswich and East Suffolk | D103: =Lookup!D88 -> East of England | E103: =Lookup!E88 -> No | F103: =Lookup!F88 -> 8 | G103: 10.431 | H103: 109 | I103: 1.751111359 | J103: 0.5602506484 | K103: 0.08257032497 | L103: 0.5347963173 | M103: 109 | N103: 0.0006474761155 | O103: -7.341780967 | P103: 0.0001552558221 | Q103: 0.05006930394 | R103: 0.5347963173 | S103: -0.05006930394
A104: 87 | B104: =Lookup!A89 -> 10L | C104: =Lookup!C89 -> NHS Isle Of Wight | D104: =Lookup!D89 -> Wessex | E104: =Lookup!E89 -> No | F104: =Lookup!F89 -> 5 | G104: 12.092 | H104: 175 | I104: 2.199856733 | J104: 0.788392237 | K104: 0.2657321205 | L104: 0.9593971801 | M104: 175 | N104: 0.000775863448 | O104: -7.160757858 | P104: 0.03743577896 | Q104: 0.7774832538 | R104: 0.9593971801 | S104: -0.7774832538
A105: 88 | B105: =Lookup!A90 -> 08H | C105: =Lookup!C90 -> NHS Islington | D105: =Lookup!D90 -> London | E105: =Lookup!E90 -> No | F105: =Lookup!F90 -> 1 | G105: 7.591 | H105: 139 | I105: 0.6349305133 | J105: -0.4542397139 | K105: 0.5287323412 | L105: -1.353300833 | M105: 139 | N105: 0.0005607687959 | O105: -7.48564094 | P105: 0.01726590844 | Q105: -0.5280102133 | R105: -1.353300833 | S105: 0.5280102133
A106: 89 | B106: =Lookup!A91 -> 11N | C106: =Lookup!C91 -> NHS Kernow | D106: =Lookup!D91 -> South West | E106: =Lookup!E91 -> No | F106: =Lookup!F91 -> 5 | G106: 11.288 | H106: 192 | I106: 1.931297214 | J106: 0.6581919087 | K106: 0.1484497608 | L106: 0.7170776098 | M106: 192 | N106: 0.0007977003949 | O106: -7.132979457 | P106: 0.04895673044 | Q106: 0.8891065492 | R106: 0.7170776098 | S106: -0.8891065492
A107: 90 | B107: =Lookup!A92 -> 08J | C107: =Lookup!C92 -> NHS Kingston | D107: =Lookup!D92 -> London | E107: =Lookup!E92 -> No | F107: =Lookup!F92 -> 9 | G107: 7.888 | H107: 140 | I107: 0.9780194126 | J107: -0.02222575986 | K107: 0.08709928623 | L107: -0.5492672552 | M107: 140 | N107: 0.0003936555842 | O107: -7.83964045 | P107: 0.2356124938 | Q107: -1.950503637 | R107: -0.5492672552 | S107: 1.950503637
A108: 91 | B108: =Lookup!A93 -> 01J | C108: =Lookup!C93 -> NHS Knowsley | D108: =Lookup!D93 -> Cheshire and Merseyside | E108: =Lookup!E93 -> No | F108: =Lookup!F93 -> 1 | G108: 10.362 | H108: 26 | I108: 1.588084096 | J108: 0.4625283184 | K108: 0.03595885283 | L108: 0.3529224823 | M108: 26 | N108: 0.0007965940583 | O108: -7.134368435 | P108: 0.04834400485 | Q108: 0.8835251547 | R108: 0.3529224823 | S108: -0.8835251547
A109: 92 | B109: =Lookup!A94 -> 08K | C109: =Lookup!C94 -> NHS Lambeth | D109: =Lookup!D94 -> London | E109: =Lookup!E94 -> No | F109: =Lookup!F94 -> 2 | G109: 6.465 | H109: 141 | I109: 0.571570402 | J109: -0.5593676153 | K109: 0.6926695868 | L109: -1.548957389 | M109: 141 | N109: 0.0003724363961 | O109: -7.895071778 | P109: 0.2924977829 | Q109: -2.173246033 | R109: -1.548957389 | S109: 2.173246033
A110: 93 | B110: =Lookup!A95 -> 01K | C110: =Lookup!C95 -> NHS Lancashire North | D110: =Lookup!D95 -> Greater Manchester Lancashire and South Cumbria | E110: =Lookup!E95 -> No | F110: =Lookup!F95 -> 6 | G110: 9.899 | H110: 27 | I110: 1.31323181 | J110: 0.2724911298 | K110: 1.672747317e-07 | L110: -0.0007611873848 | M110: 27 | N110: 0.0007807196198 | O110: -7.15451345 | P110: 0.03989114872 | Q110: 0.8025754624 | R110: -0.0007611873848 | S110: -0.8025754624
A111: 94 | B111: =Lookup!A96 -> 02V | C111: =Lookup!C96 -> NHS Leeds North | D111: =Lookup!D96 -> Yorkshire and Northern | E111: =Lookup!E96 -> No | F111: =Lookup!F96 -> 5 | G111: 9.345 | H111: 48 | I111: 0.8085296671 | J111: -0.2125379067 | K111: 0.2356500798 | L111: -0.9034626575 | M111: 48 | N111: 0.0005247229304 | O111: -7.552115326 | P111: 0.03915419495 | Q111: -0.7951274665 | R111: -0.9034626575 | S111: 0.7951274665
A112: 95 | B112: =Lookup!A97 -> 03G | C112: =Lookup!C97 -> NHS Leeds South and East | D112: =Lookup!D97 -> Yorkshire and Northern | E112: =Lookup!E97 -> No | F112: =Lookup!F97 -> 1 | G112: 9.751 | H112: 57 | I112: 0.7627384937 | J112: -0.2708400408 | K112: 0.2956533648 | L112: -1.011970434 | M112: 57 | N112: 0.0007296146086 | O112: -7.222264216 | P112: 0.01741790747 | Q112: 0.5303292681 | R112: -1.011970434 | S112: -0.5303292681
A113: 96 | B113: =Lookup!A98 -> 03C | C113: =Lookup!C98 -> NHS Leeds West | D113: =Lookup!D98 -> Yorkshire and Northern | E113: =Lookup!E98 -> No | F113: =Lookup!F98 -> 5 | G113: 8.405 | H113: 53 | I113: 0.7071900632 | J113: -0.3464558186 | K113: 0.3836017814 | L113: -1.15270113 | M113: 53 | N113: 0.0005687186946 | O113: -7.471555751 | P113: 0.01376271897 | Q113: -0.4714110163 | R113: -1.15270113 | S113: 0.4714110163
A114: 97 | B114: =Lookup!A99 -> 04C | C114: =Lookup!C99 -> NHS Leicester City | D114: =Lookup!D99 -> East Midlands | E114: =Lookup!E99 -> No | F114: =Lookup!F99 -> 2 | G114: 7.784 | H114: 71 | I114: 0.7497615328 | J114: -0.2880000792 | K114: 0.3146090359 | L114: -1.043907474 | M114: 71 | N114: 0.0006413411907 | O114: -7.351307417 | P114: 8.606707345e-06 | Q114: 0.01178870566 | R114: -1.043907474 | S114: -0.01178870566
A115: 98 | B115: =Lookup!A100 -> 08L | C115: =Lookup!C100 -> NHS Lewisham | D115: =Lookup!D100 -> London | E115: =Lookup!E100 -> No | F115: =Lookup!F100 -> 2 | G115: 6.912 | H115: 142 | I115: 0.5154057154 | J115: -0.6628008917 | K115: 0.8755363872 | L115: -1.741460031 | M115: 142 | N115: 0.0004235201757 | O115: -7.766485795 | P115: 0.1699456586 | Q115: -1.656542733 | R115: -1.741460031 | S115: 1.656542733
A116: 99 | B116: =Lookup!A101 -> 03T | C116: =Lookup!C101 -> NHS Lincolnshire East | D116: =Lookup!D101 -> East Midlands | E116: =Lookup!E101 -> No | F116: =Lookup!F101 -> 4 | G116: 12.364 | H116: 66 | I116: 2.704328609 | J116: 0.9948536778 | K116: 0.5212169365 | L116: 1.343648497 | M116: 66 | N116: 0.001108048588 | O116: -6.804046177 | P116: 0.3027144931 | Q116: 2.210875125 | R116: 1.343648497 | S116: -2.210875125
A117: 100 | B117: =Lookup!A102 -> 04D | C117: =Lookup!C102 -> NHS Lincolnshire West | D117: =Lookup!D102 -> East Midlands | E117: =Lookup!E102 -> No | F117: =Lookup!F102 -> 6 | G117: 9.98 | H117: 72 | I117: 1.377553489 | J117: 0.3203090918 | K117: 0.0022476104 | L117: 0.08823419496 | M117: 72 | N117: 0.0007692640547 | O117: -7.169306713 | P117: 0.03420074072 | Q117: 0.7431309726 | R117: 0.08823419496 | S117: -0.7431309726
A118: 101 | B118: =Lookup!A103 -> 99A | C118: =Lookup!C103 -> NHS Liverpool | D118: =Lookup!D103 -> Cheshire and Merseyside | E118: =Lookup!E103 -> No | F118: =Lookup!F103 -> 1 | G118: 9.818 | H118: 199 | I118: 1.117491008 | J118: 0.1110860008 | K118: 0.02618380986 | L118: -0.3011569086 | M118: 199 | N118: 0.0007483383438 | O118: -7.196906732 | P118: 0.02475411453 | Q118: 0.6322244747 | R118: -0.3011569086 | S118: -0.6322244747
A119: 102 | B119: =Lookup!A104 -> 06P | C119: =Lookup!C104 -> NHS Luton | D119: =Lookup!D104 -> East of England | E119: =Lookup!E104 -> No | F119: =Lookup!F104 -> 3 | G119: 7.349 | H119: 112 | I119: 0.7243370213 | J119: -0.3224984958 | K119: 0.3544995143 | L119: -1.108113468 | M119: 112 | N119: 0.0006743022912 | O119: -7.301157515 | P119: 0.002817870852 | Q119: 0.2133084936 | R119: -1.108113468 | S119: -0.2133084936
A120: 103 | B120: =Lookup!A105 -> 04E | C120: =Lookup!C105 -> NHS Mansfield and Ashfield | D120: =Lookup!D105 -> East Midlands | E120: =Lookup!E105 -> No | F120: =Lookup!F105 -> 3 | G120: 10.1 | H120: 73 | I120: 1.236126605 | J120: 0.2119827847 | K120: 0.003710921999 | L120: -0.1133750063 | M120: 73 | N120: 0.0008100635724 | O120: -7.117587437 | P120: 0.05600497318 | Q120: 0.9509570515 | R120: -0.1133750063 | S120: -0.9509570515
A121: 104 | B121: =Lookup!A106 -> 09W | C121: =Lookup!C106 -> NHS Medway | D121: =Lookup!D106 -> South East coast | E121: =Lookup!E106 -> No | F121: =Lookup!F106 -> 5 | G121: 8.684 | H121: 164 | I121: 1.065983644 | J121: 0.06389798272 | K121: 0.04368189428 | L121: -0.3889798843 | M121: 164 | N121: 0.0005470418803 | O121: -7.510438003 | P121: 0.02439746134 | Q121: -0.6276534576 | R121: -0.3889798843 | S121: 0.6276534576
A122: 105 | B122: =Lookup!A107 -> 08R | C122: =Lookup!C107 -> NHS Merton | D122: =Lookup!D107 -> London | E122: =Lookup!E107 -> No | F122: =Lookup!F107 -> 8 | G122: 7.366 | H122: 147 | I122: 1.072569522 | J122: 0.07005719244 | K122: 0.04114525413 | L122: -0.3775168022 | M122: 147 | N122: 0.000424278603 | O122: -7.764695867 | P122: 0.1684730864 | Q122: -1.649350181 | R122: -0.3775168022 | S122: 1.649350181
A123: 106 | B123: =Lookup!A108 -> 06Q | C123: =Lookup!C108 -> NHS Mid Essex | D123: =Lookup!D108 -> East of England | E123: =Lookup!E108 -> No | F123: =Lookup!F108 -> 9 | G123: 9.468 | H123: 113 | I123: 1.758303383 | J123: 0.5643493573 | K123: 0.0849426567 | L123: 0.5424245422 | M123: 113 | N123: 0.0006033697632 | O123: -7.412376791 | P123: 0.003379754425 | Q123: -0.2336093274 | R123: 0.5424245422 | S123: 0.2336093274
A124: 107 | B124: =Lookup!A109 -> 04F | C124: =Lookup!C109 -> NHS Milton Keynes | D124: =Lookup!D109 -> East Midlands | E124: =Lookup!E109 -> No | F124: =Lookup!F109 -> 8 | G124: 7.49 | H124: 74 | I124: 0.5832125439 | J124: -0.5392035898 | K124: 0.6595124389 | L124: -1.511429542 | M124: 74 | N124: 0.0004568490578 | O124: -7.690700557 | P124: 0.1132049422 | Q124: -1.352011234 | R124: -1.511429542 | S124: 1.352011234
A125: 108 | B125: =Lookup!A110 -> 04G | C125: =Lookup!C110 -> NHS Nene | D125: =Lookup!D110 -> East Midlands | E125: =Lookup!E110 -> No | F125: =Lookup!F110 -> 7 | G125: 8.904 | H125: 75 | I125: 0.9393218832 | J125: -0.06259706493 | K125: 0.1125583625 | L125: -0.6244034505 | M125: 75 | N125: 0.0005895877785 | O125: -7.435497184 | P125: 0.006602545369 | Q125: -0.3265151248 | R125: -0.6244034505 | S125: 0.3265151248
A126: 109 | B126: =Lookup!A111 -> 04H | C126: =Lookup!C111 -> NHS Newark & Sherwood | D126: =Lookup!D111 -> East Midlands | E126: =Lookup!E111 -> No | F126: =Lookup!F111 -> 6 | G126: 10.315 | H126: 76 | I126: 1.575756631 | J126: 0.4547355577 | K126: 0.03306412561 | L126: 0.3384191515 | M126: 76 | N126: 0.0006570862916 | O126: -7.327037904 | P126: 0.0007400158339 | Q126: 0.1093120685 | R126: 0.3384191515 | S126: -0.1093120685
A127: 110 | B127: =Lookup!A112 -> 10M | C127: =Lookup!C112 -> NHS Newbury and District | D127: =Lookup!D112 -> Thames | E127: =Lookup!E112 -> No | F127: =Lookup!F112 -> 10 | G127: 8.919 | H127: 176 | I127: 1.208989022 | J127: 0.1897844917 | K127: 0.006908208032 | L127: -0.154688887 | M127: 176 | N127: 0.0005803232962 | O127: -7.451344711 | P127: 0.00942910422 | Q127: -0.3901960102 | R127: -0.154688887 | S127: 0.3901960102
A128: 111 | B128: =Lookup!A113 -> 00G | C128: =Lookup!C113 -> NHS Newcastle North and East | D128: =Lookup!D113 -> Northern England | E128: =Lookup!E113 -> No | F128: =Lookup!F113 -> 4 | G128: 8.403 | H128: 4 | I128: 0.3540085796 | J128: -1.03843413 | K128: 1.719597521 | L128: -2.440561839 | M128: 4 | N128: 0.0004415370925 | O128: -7.724806892 | P128: 0.1373189796 | Q128: -1.489062375 | R128: -2.440561839 | S128: 1.489062375
A129: 112 | B129: =Lookup!A114 -> 00H | C129: =Lookup!C114 -> NHS Newcastle West | D129: =Lookup!D114 -> Northern England | E129: =Lookup!E114 -> No | F129: =Lookup!F114 -> 2 | G129: 9.844 | H129: 5 | I129: 0.7370125433 | J129: -0.3051503675 | K129: 0.3341423685 | L129: -1.075826368 | M129: 5 | N129: 0.0007509223285 | O129: -7.193457131 | P129: 0.02585149618 | Q129: 0.6460861749 | R129: -1.075826368 | S129: -0.6460861749
A130: 113 | B130: =Lookup!A115 -> 08M | C130: =Lookup!C115 -> NHS Newham | D130: =Lookup!D115 -> London | E130: =Lookup!E115 -> No | F130: =Lookup!F115 -> 1 | G130: 6.521 | H130: 143 | I130: 0.2312366128 | J130: -1.464313795 | K130: 3.017912193 | L130: -3.233178714 | M130: 143 | N130: 0.0004472144521 | O130: -7.712025005 | P130: 0.1280092971 | Q130: -1.437700298 | R130: -2.99 | S130: 1.437700298
A131: 114 | B131: =Lookup!A116 -> 10N | C131: =Lookup!C116 -> NHS North & West Reading | D131: =Lookup!D116 -> Thames | E131: =Lookup!E116 -> No | F131: =Lookup!F116 -> 9 | G131: 8.914 | H131: 177 | I131: 1.667975201 | J131: 0.5116104365 | K131: 0.05698261419 | L131: 0.444270622 | M131: 177 | N131: 0.0004492049073 | O131: -7.707582105 | P131: 0.1248498402 | Q131: -1.419847175 | R131: 0.444270622 | S131: 1.419847175
A132: 115 | B132: =Lookup!A117 -> 04J | C132: =Lookup!C117 -> NHS North Derbyshire | D132: =Lookup!D117 -> East Midlands | E132: =Lookup!E117 -> No | F132: =Lookup!F117 -> 7 | G132: 10.846 | H132: 77 | I132: 1.741454004 | J132: 0.5547203987 | K132: 0.07942266827 | L132: 0.5245038107 | M132: 77 | N132: 0.000834066474 | O132: -7.088363039 | P132: 0.07069116229 | Q132: 1.068390869 | R132: 0.5245038107 | S132: -1.068390869
A133: 116 | B133: =Lookup!A118 -> 00J | C133: =Lookup!C118 -> NHS North Durham | D133: =Lookup!D118 -> Northern England | E133: =Lookup!E118 -> No | F133: =Lookup!F118 -> 6 | G133: 9.737 | H133: 6 | I133: 1.590852174 | J133: 0.4642698313 | K133: 0.03662236558 | L133: 0.356163662 | M133: 6 | N133: 0.0007602283291 | O133: -7.181131219 | P133: 0.02996704326 | Q133: 0.6956159856 | R133: 0.356163662 | S133: -0.6956159856
A134: 117 | B134: =Lookup!A119 -> 06T | C134: =Lookup!C119 -> NHS North East Essex | D134: =Lookup!D119 -> East of England | E134: =Lookup!E119 -> No | F134: =Lookup!F119 -> 6 | G134: 10.867 | H134: 114 | I134: 2.086815344 | J134: 0.7356391452 | K134: 0.2141274035 | L134: 0.8612168859 | M134: 114 | N134: 0.0006929821331 | O134: -7.273813119 | P134: 0.006468665961 | Q134: 0.3231878079 | R134: 0.8612168859 | S134: -0.3231878079
A135: 118 | B135: =Lookup!A120 -> 99M | C135: =Lookup!C120 -> NHS North East Hampshire and Farnham | D135: =Lookup!D120 -> Wessex | E135: =Lookup!E120 -> No | F135: =Lookup!F120 -> 10 | G135: 8.616 | H135: 208 | I135: 2.251578558 | J135: 0.8116315516 | K135: 0.2902315531 | L135: 1.002648536 | M135: 208 | N135: 0.0004127399051 | O135: -7.792280108 | P135: 0.1918781411 | Q135: -1.760193276 | R135: 1.002648536 | S135: 1.760193276
A136: 119 | B136: =Lookup!A121 -> 03H | C136: =Lookup!C121 -> NHS North East Lincolnshire | D136: =Lookup!D121 -> Yorkshire and Northern | E136: =Lookup!E121 -> No | F136: =Lookup!F121 -> 3 | G136: 10.403 | H136: 58 | I136: 1.069218629 | J136: 0.06692812865 | K136: 0.0424244621 | L136: -0.3833403927 | M136: 58 | N136: 0.0007931451456 | O136: -7.13871086 | P136: 0.04645329997 | Q136: 0.8660757765 | R136: -0.3833403927 | S136: -0.8660757765
A137: 120 | B137: =Lookup!A122 -> 10J | C137: =Lookup!C122 -> NHS North Hampshire | D137: =Lookup!D122 -> Wessex | E137: =Lookup!E122 -> No | F137: =Lookup!F122 -> 10 | G137: 8.724 | H137: 173 | I137: 2.165321545 | J137: 0.77256887 | K137: 0.2496688576 | L137: 0.9299478574 | M137: 173 | N137: 0.0005918940115 | O137: -7.431590904 | P137: 0.005982986688 | Q137: -0.3108183314 | R137: 0.9299478574 | S137: 0.3108183314
A138: 121 | B138: =Lookup!A123 -> 03J | C138: =Lookup!C123 -> NHS North Kirklees | D138: =Lookup!D123 -> Yorkshire and Northern | E138: =Lookup!E123 -> No | F138: =Lookup!F123 -> 3 | G138: 8.911 | H138: 59 | I138: 0.6867345977 | J138: -0.3758073821 | K138: 0.420821426 | L138: -1.207328167 | M138: 59 | N138: 0.000727231082 | O138: -7.225538778 | P138: 0.01656429685 | Q138: 0.517170934 | R138: -1.207328167 | S138: -0.517170934
A139: 122 | B139: =Lookup!A124 -> 03K | C139: =Lookup!C124 -> NHS North Lincolnshire | D139: =Lookup!D124 -> Yorkshire and Northern | E139: =Lookup!E124 -> No | F139: =Lookup!F124 -> 5 | G139: 10.252 | H139: 60 | I139: 1.760702469 | J139: 0.5657128593 | K139: 0.08573929903 | L139: 0.5449621948 | M139: 60 | N139: 0.0008115157956 | O139: -7.115794861 | P139: 0.05685662591 | Q139: 0.958160246 | R139: 0.5449621948 | S139: -0.958160246
A140: 123 | B140: =Lookup!A125 -> 01M | C140: =Lookup!C125 -> NHS North Manchester | D140: =Lookup!D125 -> Greater Manchester Lancashire and South Cumbria | E140: =Lookup!E125 -> No | F140: =Lookup!F125 -> 1 | G140: 8.876 | H140: 28 | I140: 0.7476194921 | J140: -0.2908611309 | K140: 0.3178267504 | L140: -1.049232259 | M140: 28 | N140: 0.0009017033396 | O140: -7.010322874 | P140: 0.1182797711 | Q140: 1.381983456 | R140: -1.049232259 | S140: -1.381983456
A141: 124 | B141: =Lookup!A126 -> 06V | C141: =Lookup!C126 -> NHS North Norfolk | D141: =Lookup!D126 -> East of England | E141: =Lookup!E126 -> No | F141: =Lookup!F126 -> 8 | G141: 12.954 | H141: 115 | I141: 3.148743273 | J141: 1.147003412 | K141: 0.7640565616 | L141: 1.626818738 | M141: 115 | N141: 0.0008333788732 | O141: -7.089188463 | P141: 0.07025291937 | Q141: 1.065074028 | R141: 1.626818738 | S141: -1.065074028
A142: 125 | B142: =Lookup!A127 -> 11T | C142: =Lookup!C127 -> NHS North Somerset | D142: =Lookup!D127 -> South West | E142: =Lookup!E127 -> No | F142: =Lookup!F127 -> 8 | G142: 10.785 | H142: 193 | I142: 2.733278098 | J142: 1.005501657 | K142: 0.5367050093 | L142: 1.363465758 | M142: 193 | N142: 0.0006986772059 | O142: -7.265622795 | P142: 0.007853210336 | Q142: 0.3560993829 | R142: 1.363465758 | S142: -0.3560993829
A143: 126 | B143: =Lookup!A128 -> 05G | C143: =Lookup!C128 -> NHS North Staffordshire | D143: =Lookup!D128 -> West Midlands | E143: =Lookup!E128 -> No | F143: =Lookup!F128 -> 7 | G143: 10.34 | H143: 91 | I143: 1.99992571 | J143: 0.6931100348 | K143: 0.1765763707 | L143: 0.7820647371 | M143: 91 | N143: 0.0007883306455 | O143: -7.144804314 | P143: 0.0438637825 | Q143: 0.8415901543 | R143: 0.7820647371 | S143: -0.8415901543
A144: 127 | B144: =Lookup!A129 -> 99C | C144: =Lookup!C129 -> NHS North Tyneside | D144: =Lookup!D129 -> Northern England | E144: =Lookup!E129 -> No | F144: =Lookup!F129 -> 5 | G144: 10.126 | H144: 200 | I144: 1.732034845 | J144: 0.5492969285 | K144: 0.07639519454 | L144: 0.5144100345 | M144: 200 | N144: 0.000732712563 | O144: -7.21802409 | P144: 0.01855508369 | Q144: 0.5473675726 | R144: 0.5144100345 | S144: -0.5473675726
A145: 128 | B145: =Lookup!A130 -> 09Y | C145: =Lookup!C130 -> NHS North West Surrey | D145: =Lookup!D130 -> South East coast | E145: =Lookup!E130 -> No | F145: =Lookup!F130 -> 10 | G145: 9.136 | H145: 166 | I145: 1.0528279 | J145: 0.05147978153 | K145: 0.04902696724 | L145: -0.4120917552 | M145: 166 | N145: 0.0004547214217 | O145: -7.695370762 | P145: 0.1163694216 | Q145: -1.370777743 | R145: -0.4120917552 | S145: 1.370777743
A146: 129 | B146: =Lookup!A131 -> 99P | C146: =Lookup!C131 -> NHS Northern, Eastern and Western Devon | D146: =Lookup!D131 -> South West | E146: =Lookup!E131 -> No | F146: =Lookup!F131 -> 6 | G146: 10.817 | H146: =MATCH($B146,DataCost_CCGcode,0) -> 210 | I146: =INDEX(INDIRECT($H$11),$H146)/INDEX(INDIRECT($H$12),$H146) -> 1.425414798 | J146: =LN(I146) -> 0.3544628579 | K146: 0.006652479856 | L146: 0.1517987499 | M146: =MATCH($B146,DataOutcome_CCGcode,0) -> 210 | N146: =INDEX(INDIRECT($M$11),$M146)/INDEX(INDIRECT($M$12),$M146) -> 0.0007077775662 | O146: -7.252672658 | P146: =(O146-O$15)*(O146-O$15) -> 0.0103161558 | Q146: =(O146-O$15)/P$15 -> 0.4081375495 | R146: =IF(L146<-3,-2.99,IF(L146>3,2.99,L146)) -> 0.1517987499 | S146: -0.4081375495 | T146: =CHOOSE($D$7,IF(D146=$D$16,R146,NA()),IF(E146=$E$16,R146,NA()),IF(F146=$F$16,R146,NA())) ->  | U146: =CHOOSE($D$7,IF(D146=$D$16,S146,NA()),IF(E146=$E$16,S146,NA()),IF(F146=$F$16,S146,NA())) -> 
A147: 130 | B147: =Lookup!A132 -> 00L | C147: =Lookup!C132 -> NHS Northumberland | D147: =Lookup!D132 -> Northern England | E147: =Lookup!E132 -> No | F147: =Lookup!F132 -> 6 | G147: 10.941 | H147: 8 | I147: 1.546643083 | J147: 0.4360868295 | K147: =IFERROR((J147-J$15)*(J147-J$15),0) -> 0.02662990145 | L147: =(J147-J$15)/K$15 -> 0.3037114678 | M147: 8 | N147: 0.000714597369 | O147: =IF(N147=1,5,LN((N147/(1-N147)))) -> -7.243076441 | P147: 0.01235758934 | Q147: 0.4466984915 | R147: 0.3037114678 | S147: =IF(Q147<-3,-2.99,IF(Q147>3,2.99,Q147))*$N$3 -> -0.4466984915
A148: 131 | B148: =Lookup!A133 -> 06W | C148: =Lookup!C133 -> NHS Norwich | D148: =Lookup!D133 -> East of England | E148: =Lookup!E133 -> No | F148: =Lookup!F133 -> 6 | G148: 9.545 | H148: 116 | I148: 1.143229353 | J148: 0.1338570234 | K148: 0.0193329833 | L148: -0.2587771044 | M148: 116 | N148: 0.0004918380766 | O148: -7.616869049 | P148: 0.06897342085 | Q148: -1.055330499 | R148: -0.2587771044 | S148: 1.055330499
A149: 132 | B149: =Lookup!A134 -> 04K | C149: =Lookup!C134 -> NHS Nottingham City | D149: =Lookup!D134 -> East Midlands | E149: =Lookup!E134 -> No | F149: =Lookup!F134 -> 2 | G149: 8.154 | H149: 78 | I149: 0.62836324 | J149: -0.464636872 | K149: 0.5439608178 | L149: -1.372651282 | M149: 78 | N149: 0.00055751607 | O149: -7.491461558 | P149: 0.01882944432 | Q149: -0.5513994876 | R149: -1.372651282 | S149: 0.5513994876
A150: 133 | B150: =Lookup!A135 -> 04L | C150: =Lookup!C135 -> NHS Nottingham North and East | D150: =Lookup!D135 -> East Midlands | E150: =Lookup!E135 -> No | F150: =Lookup!F135 -> 7 | G150: 10.065 | H150: 79 | I150: 1.583705845 | J150: 0.4597675725 | K150: 0.03491944401 | L150: 0.3477843788 | M150: 79 | N150: 0.0007355755879 | O150: -7.214121406 | P150: 0.01963353867 | Q150: 0.5630499153 | R150: 0.3477843788 | S150: -0.5630499153
A151: 134 | B151: =Lookup!A136 -> 04M | C151: =Lookup!C136 -> NHS Nottingham West | D151: =Lookup!D136 -> East Midlands | E151: =Lookup!E136 -> No | F151: =Lookup!F136 -> 9 | G151: 10.182 | H151: 80 | I151: 1.058316049 | J151: 0.05667901209 | K151: 0.04675156843 | L151: -0.4024153179 | M151: 80 | N151: 0.0007862188739 | O151: -7.147488811 | P151: 0.04274652404 | Q151: 0.8308029101 | R151: -0.4024153179 | S151: -0.8308029101
A152: 135 | B152: =Lookup!A137 -> 00Y | C152: =Lookup!C137 -> NHS Oldham | D152: =Lookup!D137 -> Greater Manchester Lancashire and South Cumbria | E152: =Lookup!E137 -> No | F152: =Lookup!F137 -> 2 | G152: 9.129 | H152: 18 | I152: 1.109201464 | J152: 0.1036403542 | K152: 0.02864886904 | L152: -0.3150142153 | M152: 18 | N152: 0.0007743123001 | O152: -7.162760665 | P152: 0.03666477073 | Q152: 0.7694352757 | R152: -0.3150142153 | S152: -0.7694352757
A153: 136 | B153: =Lookup!A138 -> 10Q | C153: =Lookup!C138 -> NHS Oxfordshire | D153: =Lookup!D138 -> Thames | E153: =Lookup!E138 -> No | F153: =Lookup!F138 -> 9 | G153: 8.885 | H153: 178 | I153: 0.8260569044 | J153: -0.1910916163 | K153: 0.2152883334 | L153: -0.8635483505 | M153: 178 | N153: 0.0004953950074 | O153: -7.609659601 | P153: 0.06523859233 | Q153: -1.026360423 | R153: -0.8635483505 | S153: 1.026360423
A154: 137 | B154: =Lookup!A139 -> 10R | C154: =Lookup!C139 -> NHS Portsmouth | D154: =Lookup!D139 -> Wessex | E154: =Lookup!E139 -> No | F154: =Lookup!F139 -> 4 | G154: 8.643 | H154: 179 | I154: 1.914719204 | J154: 0.6495709822 | K154: 0.1418809368 | L154: 0.7010329558 | M154: 179 | N154: 0.0008031455714 | O154: -7.126171108 | P154: 0.05201593775 | Q154: 0.9164648707 | R154: 0.7010329558 | S154: -0.9164648707
A155: 138 | B155: =Lookup!A140 -> 08N | C155: =Lookup!C140 -> NHS Redbridge | D155: =Lookup!D140 -> London | E155: =Lookup!E140 -> No | F155: =Lookup!F140 -> 6 | G155: 7.339 | H155: 144 | I155: 0.6602490355 | J155: -0.4151381886 | K155: 0.4733967171 | L155: -1.280527861 | M155: 144 | N155: 0.0004935274785 | O155: -7.61343837 | P155: 0.06718320637 | Q155: -1.041544836 | R155: -1.280527861 | S155: 1.041544836
A156: 139 | B156: =Lookup!A141 -> 05J | C156: =Lookup!C141 -> NHS Redditch and Bromsgrove | D156: =Lookup!D141 -> West Midlands | E156: =Lookup!E141 -> No | F156: =Lookup!F141 -> 8 | G156: 9.717 | H156: 93 | I156: 1.301075809 | J156: 0.2631914679 | K156: 9.425796724e-05 | L156: -0.01806905525 | M156: 93 | N156: 0.0005734486952 | O156: -7.463268471 | P156: 0.01188695984 | Q156: -0.4381098364 | R156: -0.01806905525 | S156: 0.4381098364
A157: 140 | B157: =Lookup!A142 -> 08P | C157: =Lookup!C142 -> NHS Richmond | D157: =Lookup!D142 -> London | E157: =Lookup!E142 -> No | F157: =Lookup!F142 -> 10 | G157: 8.389 | H157: 145 | I157: 1.244297034 | J157: 0.2185707393 | K157: 0.002951681837 | L157: -0.1011139747 | M157: 145 | N157: 0.000386701644 | O157: -7.857470332 | P157: 0.2532396233 | Q157: -2.022150317 | R157: -0.1011139747 | S157: 2.022150317
A158: 141 | B158: =Lookup!A143 -> 03L | C158: =Lookup!C143 -> NHS Rotherham | D158: =Lookup!D143 -> Yorkshire and Northern | E158: =Lookup!E143 -> No | F158: =Lookup!F143 -> 3 | G158: 10.161 | H158: 61 | I158: 1.916497527 | J158: 0.6504993155 | K158: 0.1425811508 | L158: 0.7027607036 | M158: 61 | N158: 0.000747981085 | O158: -7.197384607 | P158: 0.02460397073 | Q158: 0.6303042089 | R158: 0.7027607036 | S158: -0.6303042089
A159: 142 | B159: =Lookup!A144 -> 04N | C159: =Lookup!C144 -> NHS Rushcliffe | D159: =Lookup!D144 -> East Midlands | E159: =Lookup!E144 -> No | F159: =Lookup!F144 -> 10 | G159: 9.813 | H159: 81 | I159: 0.9219760168 | J159: -0.08123606791 | K159: 0.1254124411 | L159: -0.6590930343 | M159: 81 | N159: 0.0004419590511 | O159: -7.723851268 | P159: 0.1366116496 | Q159: -1.485222344 | R159: -0.6590930343 | S159: 1.485222344
A160: 143 | B160: =Lookup!A145 -> 01G | C160: =Lookup!C145 -> NHS Salford | D160: =Lookup!D145 -> Greater Manchester Lancashire and South Cumbria | E160: =Lookup!E145 -> No | F160: =Lookup!F145 -> 1 | G160: 9.217 | H160: 24 | I160: 1.479074993 | J160: 0.3914168876 | K160: 0.0140462237 | L160: 0.2205749561 | M160: 24 | N160: 0.0008552900327 | O160: -7.063214271 | P160: 0.08469663611 | Q160: 1.169447385 | R160: 0.2205749561 | S160: -1.169447385
A161: 144 | B161: =Lookup!A146 -> 05L | C161: =Lookup!C146 -> NHS Sandwell and West Birmingham | D161: =Lookup!D146 -> West Midlands | E161: =Lookup!E146 -> No | F161: =Lookup!F146 -> 1 | G161: 8.78 | H161: 94 | I161: 0.8583362094 | J161: -0.1527594039 | K161: 0.1811860321 | L161: -0.792207169 | M161: 94 | N161: 0.0007013780015 | O161: -7.26176196 | P161: 0.008552397914 | Q161: 0.3716135626 | R161: -0.792207169 | S161: -0.3716135626
A162: 145 | B162: =Lookup!A147 -> 03M | C162: =Lookup!C147 -> NHS Scarborough and Ryedale | D162: =Lookup!D147 -> Yorkshire and Northern | E162: =Lookup!E147 -> No | F162: =Lookup!F147 -> 4 | G162: 11.516 | H162: 62 | I162: 1.864215841 | J162: 0.6228405042 | K162: 0.122458271 | L162: 0.6512840954 | M162: 62 | N162: 0.001079473899 | O162: -6.830201431 | P162: 0.2746176128 | Q162: 2.105774199 | R162: 0.6512840954 | S162: -2.105774199
A163: 146 | B163: =Lookup!A148 -> 03N | C163: =Lookup!C148 -> NHS Sheffield | D163: =Lookup!D148 -> Yorkshire and Northern | E163: =Lookup!E148 -> No | F163: =Lookup!F148 -> 3 | G163: 9.357 | H163: 63 | I163: 1.061345605 | J163: 0.05953754133 | K163: 0.04552359089 | L163: -0.397095227 | M163: 63 | N163: 0.0006891863294 | O163: -7.279309465 | P163: 0.005614755305 | Q163: 0.3011015724 | R163: -0.397095227 | S163: -0.3011015724
A164: 147 | B164: =Lookup!A149 -> 05N | C164: =Lookup!C149 -> NHS Shropshire | D164: =Lookup!D149 -> West Midlands | E164: =Lookup!E149 -> No | F164: =Lookup!F149 -> 7 | G164: 11.121 | H164: 95 | I164: 1.912530857 | J164: 0.648427421 | K164: 0.1410207522 | L164: 0.6989046411 | M164: 95 | N164: 0.0007783985102 | O164: -7.157493239 | P164: 0.03870973482 | Q164: 0.7906016283 | R164: 0.6989046411 | S164: -0.7906016283
A165: 148 | B165: =Lookup!A150 -> 10T | C165: =Lookup!C150 -> NHS Slough | D165: =Lookup!D150 -> Thames | E165: =Lookup!E150 -> No | F165: =Lookup!F150 -> 4 | G165: 6.72 | H165: 180 | I165: 0.3742593558 | J165: -0.9828062573 | K165: 1.576798511 | L165: -2.337031207 | M165: 180 | N165: 0.0006119646199 | O165: -7.398223936 | P165: 0.001934486681 | Q165: -0.1767382206 | R165: -2.337031207 | S165: 0.1767382206
A166: 149 | B166: =Lookup!A151 -> 05P | C166: =Lookup!C151 -> NHS Solihull | D166: =Lookup!D151 -> West Midlands | E166: =Lookup!E151 -> No | F166: =Lookup!F151 -> 8 | G166: 10.191 | H166: 96 | I166: 1.864091967 | J166: 0.6227740536 | K166: 0.1224117679 | L166: 0.6511604223 | M166: 96 | N166: 0.0006058587933 | O166: -7.408257571 | P166: 0.002917775259 | Q166: -0.2170568645 | R166: 0.6511604223 | S166: 0.2170568645
A167: 150 | B167: =Lookup!A152 -> 11X | C167: =Lookup!C152 -> NHS Somerset | D167: =Lookup!D152 -> South West | E167: =Lookup!E152 -> No | F167: =Lookup!F152 -> 7 | G167: 10.959 | H167: 194 | I167: 2.75038908 | J167: 1.011742385 | K167: 0.5458878899 | L167: 1.375080556 | M167: 194 | N167: 0.0006986275219 | O167: -7.265693959 | P167: 0.007840602556 | Q167: 0.3558134218 | R167: 1.375080556 | S167: -0.3558134218
A168: 151 | B168: =Lookup!A153 -> 01R | C168: =Lookup!C153 -> NHS South Cheshire | D168: =Lookup!D153 -> Cheshire and Merseyside | E168: =Lookup!E153 -> No | F168: =Lookup!F153 -> 8 | G168: 9.984 | H168: 30 | I168: 1.462617465 | J168: 0.3802276152 | K168: 0.01151919076 | L168: 0.1997502798 | M168: 30 | N168: 0.000880036193 | O168: -7.034667099 | P168: 0.102127565 | Q168: 1.284159872 | R168: 0.1997502798 | S168: -1.284159872
A169: 152 | B169: =Lookup!A154 -> 99Q | C169: =Lookup!C154 -> NHS South Devon and Torbay | D169: =Lookup!D154 -> South West | E169: =Lookup!E154 -> No | F169: =Lookup!F154 -> 5 | G169: 11.907 | H169: 211 | I169: 1.453005552 | J169: 0.3736342056 | K169: 0.01014735556 | L169: 0.1874790958 | M169: 211 | N169: 0.000894348662 | O169: -7.018520108 | P169: 0.1127086088 | Q169: 1.349044112 | R169: 0.1874790958 | S169: -1.349044112
A170: 153 | B170: =Lookup!A155 -> 05Q | C170: =Lookup!C155 -> NHS South East Staffs and Seisdon Peninsular | D170: =Lookup!D155 -> West Midlands | E170: =Lookup!E155 -> No | F170: =Lookup!F155 -> 8 | G170: 9.799 | H170: 97 | I170: 2.051474952 | J170: 0.7185590234 | K170: 0.1986118562 | L170: 0.8294285806 | M170: 97 | N170: 0.0006820582775 | O170: -7.289713162 | P170: 0.00416385944 | Q170: 0.2592958922 | R170: 0.8294285806 | S170: -0.2592958922
A171: 154 | B171: =Lookup!A156 -> 10V | C171: =Lookup!C156 -> NHS South Eastern Hampshire | D171: =Lookup!D156 -> Wessex | E171: =Lookup!E156 -> No | F171: =Lookup!F156 -> 7 | G171: 10.922 | H171: 181 | I171: 3.174584087 | J171: 1.155176628 | K171: 0.778411832 | L171: 1.642030144 | M171: 181 | N171: 0.0006101993495 | O171: -7.401114466 | P171: 0.002197109085 | Q171: -0.1883533792 | R171: 1.642030144 | S171: 0.1883533792
A172: 155 | B172: =Lookup!A157 -> 12A | C172: =Lookup!C157 -> NHS South Gloucestershire | D172: =Lookup!D157 -> South West | E172: =Lookup!E157 -> No | F172: =Lookup!F157 -> 10 | G172: 9.294 | H172: 195 | I172: 1.994670442 | J172: 0.6904788447 | K172: 0.1743719895 | L172: 0.7771677536 | M172: 195 | N172: 0.0005361481109 | O172: -7.530563817 | P172: 0.03108968779 | Q172: -0.7085259919 | R172: 0.7771677536 | S172: 0.7085259919
A173: 156 | B173: =Lookup!A158 -> 10A | C173: =Lookup!C158 -> NHS South Kent Coast | D173: =Lookup!D158 -> South East coast | E173: =Lookup!E158 -> Closest 10 CCGs | F173: =Lookup!F158 -> 5 | G173: 11.046 | H173: 167 | I173: 1.848007247 | J173: 0.614107895 | K173: 0.1164227442 | L173: 0.6350315857 | M173: 167 | N173: 0.0007977397374 | O173: -7.132930099 | P173: 0.04897857499 | Q173: 0.8893048873 | R173: 0.6350315857 | S173: -0.8893048873 | T173: 0.6350315857 | U173: -0.8893048873
A174: 157 | B174: =Lookup!A159 -> 99D | C174: =Lookup!C159 -> NHS South Lincolnshire | D174: =Lookup!D159 -> East Midlands | E174: =Lookup!E159 -> No | F174: =Lookup!F159 -> 9 | G174: 10.792 | H174: 201 | I174: 2.097193627 | J174: 0.7406000827 | K174: 0.2187432531 | L174: 0.8704498291 | M174: 201 | N174: 0.000808936284 | O174: -7.118981139 | P174: 0.055347266 | Q174: 0.94535667 | R174: 0.8704498291 | S174: -0.94535667
A175: 158 | B175: =Lookup!A160 -> 01N | C175: =Lookup!C160 -> NHS South Manchester | D175: =Lookup!D160 -> Greater Manchester Lancashire and South Cumbria | E175: =Lookup!E160 -> No | F175: =Lookup!F160 -> 1 | G175: 8.38 | H175: 29 | I175: 0.8415916284 | J175: -0.1724603843 | K175: 0.1983459807 | L175: -0.8288732295 | M175: 29 | N175: 0.000631588255 | O175: -7.366641084 | P175: 0.0001537587019 | Q175: -0.04982731189 | R175: -0.8288732295 | S175: 0.04982731189
A176: 159 | B176: =Lookup!A161 -> 06Y | C176: =Lookup!C161 -> NHS South Norfolk | D176: =Lookup!D161 -> East of England | E176: =Lookup!E161 -> No | F176: =Lookup!F161 -> 9 | G176: 10.8 | H176: 117 | I176: 2.270626988 | J176: 0.8200559994 | K176: 0.299379554 | L176: 1.018327518 | M176: 117 | N176: 0.000683964237 | O176: -7.286920728 | P176: 0.004532037261 | Q176: 0.2705168628 | R176: 1.018327518 | S176: -0.2705168628
A177: 160 | B177: =Lookup!A162 -> 10W | C177: =Lookup!C162 -> NHS South Reading | D177: =Lookup!D162 -> Thames | E177: =Lookup!E162 -> No | F177: =Lookup!F162 -> 5 | G177: 6.842 | H177: 182 | I177: 0.5672604339 | J177: -0.5669367616 | K177: 0.7053259913 | L177: -1.563044545 | M177: 182 | N177: 0.0004791069447 | O177: -7.643107497 | P177: 0.08344377467 | Q177: -1.160765729 | R177: -1.563044545 | S177: 1.160765729
A178: 161 | B178: =Lookup!A163 -> 01T | C178: =Lookup!C163 -> NHS South Sefton | D178: =Lookup!D163 -> Cheshire and Merseyside | E178: =Lookup!E163 -> No | F178: =Lookup!F163 -> 2 | G178: 10.74 | H178: 31 | I178: 1.561483404 | J178: 0.4456362693 | K178: 0.02983777652 | L178: 0.3214842045 | M178: 31 | N178: 0.0007678273304 | O178: -7.171177558 | P178: 0.03351227357 | Q178: 0.735613266 | R178: 0.3214842045 | S178: -0.735613266
A179: 162 | B179: =Lookup!A164 -> 00M | C179: =Lookup!C164 -> NHS South Tees | D179: =Lookup!D164 -> Northern England | E179: =Lookup!E164 -> No | F179: =Lookup!F164 -> 2 | G179: 10.269 | H179: 9 | I179: 1.405040371 | J179: 0.3400660361 | K179: 0.004511259992 | L179: 0.1250044114 | M179: 9 | N179: 0.0007595983065 | O179: -7.181960921 | P179: 0.0296804723 | Q179: 0.6922819528 | R179: 0.1250044114 | S179: -0.6922819528
A180: 163 | B180: =Lookup!A165 -> 00N | C180: =Lookup!C165 -> NHS South Tyneside | D180: =Lookup!D165 -> Northern England | E180: =Lookup!E165 -> No | F180: =Lookup!F165 -> 3 | G180: 10.273 | H180: 10 | I180: 1.045239348 | J180: 0.04424590076 | K180: 0.05228275296 | L180: -0.4255549385 | M180: 10 | N180: 0.0008680370268 | O180: -7.048407773 | P180: 0.0935340461 | Q180: 1.228945057 | R180: -0.4255549385 | S180: -1.228945057
A181: 164 | B181: =Lookup!A166 -> 05R | C181: =Lookup!C166 -> NHS South Warwickshire | D181: =Lookup!D166 -> West Midlands | E181: =Lookup!E166 -> No | F181: =Lookup!F166 -> 10 | G181: 10.231 | H181: 98 | I181: 2.919226306 | J181: 1.071318617 | K181: 0.6374720935 | L181: 1.485959592 | M181: 98 | N181: 0.0006354466627 | O181: -7.360546752 | P181: 3.976079207e-05 | Q181: -0.02533816267 | R181: 1.485959592 | S181: 0.02533816267
A182: 165 | B182: =Lookup!A167 -> 04Q | C182: =Lookup!C167 -> NHS South West Lincolnshire | D182: =Lookup!D167 -> East Midlands | E182: =Lookup!E167 -> Closest 10 CCGs | F182: =Lookup!F167 -> 8 | G182: 10.593 | H182: 82 | I182: 1.869473895 | J182: 0.6256570515 | K182: 0.1244374512 | L182: 0.6565260526 | M182: 82 | N182: =INDEX(INDIRECT($M$11),$M182)/INDEX(INDIRECT($M$12),$M182) -> 0.0007330753363 | O182: -7.217528739 | P182: 0.01869027943 | Q182: 0.5493580636 | R182: 0.6565260526 | S182: -0.5493580636 | T182: 0.6565260526 | U182: -0.5493580636
A183: 166 | B183: =Lookup!A168 -> 05T | C183: =Lookup!C168 -> NHS South Worcestershire | D183: =Lookup!D168 -> West Midlands | E183: =Lookup!E168 -> Closest 10 CCGs | F183: =Lookup!F168 -> 8 | G183: 10.412 | H183: 99 | I183: 1.269352337 | J183: 0.2385067997 | K183: 0.001182900629 | L183: -0.06401040021 | M183: 99 | N183: 0.0006482046978 | O183: -7.340655605 | P183: 0.0001845666526 | Q183: 0.05459139903 | R183: -0.06401040021 | S183: -0.05459139903 | T183: -0.06401040021 | U183: -0.05459139903
A184: 167 | B184: =Lookup!A169 -> 10X | C184: =Lookup!C169 -> NHS Southampton | D184: =Lookup!D169 -> Wessex | E184: =Lookup!E169 -> No | F184: =Lookup!F169 -> 4 | G184: 8.32 | H184: 183 | I184: 1.104449122 | J184: 0.0993466787 | K184: 0.03012079773 | L184: -0.3230052981 | M184: 183 | N184: 0.0005666310195 | O184: -7.475235434 | P184: 0.01463962011 | Q184: -0.4861972632 | R184: -0.3230052981 | S184: 0.4861972632
A185: 168 | B185: =Lookup!A170 -> 99G | C185: =Lookup!C170 -> NHS Southend | D185: =Lookup!D170 -> East of England | E185: =Lookup!E170 -> No | F185: =Lookup!F170 -> 4 | G185: 10.056 | H185: 204 | I185: 1.587761627 | J185: 0.4623252426 | K185: 0.03588187625 | L185: 0.352544532 | M185: 204 | N185: 0.0008063655445 | O185: -7.122166698 | P185: 0.05385854461 | Q185: 0.9325559838 | R185: 0.352544532 | S185: -0.9325559838
A186: 169 | B186: =Lookup!A171 -> 04R | C186: =Lookup!C171 -> NHS Southern Derbyshire | D186: =Lookup!D171 -> East Midlands | E186: =Lookup!E171 -> No | F186: =Lookup!F171 -> 6 | G186: 9.477 | H186: 83 | I186: 1.097351188 | J186: 0.092899265 | K186: 0.03240030857 | L186: -0.3350047649 | M186: 83 | N186: 0.0007285952319 | O186: -7.223663357 | P186: 0.01705055639 | Q186: 0.5247070314 | R186: -0.3350047649 | S186: -0.5247070314
A187: 170 | B187: =Lookup!A172 -> 01V | C187: =Lookup!C172 -> NHS Southport and Formby | D187: =Lookup!D172 -> Cheshire and Merseyside | E187: =Lookup!E172 -> No | F187: =Lookup!F172 -> 7 | G187: 11.7 | H187: 32 | I187: 2.157352473 | J187: 0.7688817631 | K187: 0.2459977882 | L187: 0.9230856768 | M187: 32 | N187: 0.0007343781955 | O187: -7.215751761 | P187: 0.01917930687 | Q187: 0.5564985798 | R187: 0.9230856768 | S187: -0.5564985798
A188: 171 | B188: =Lookup!A173 -> 08Q | C188: =Lookup!C173 -> NHS Southwark | D188: =Lookup!D173 -> London | E188: =Lookup!E173 -> No | F188: =Lookup!F173 -> 2 | G188: 6.522 | H188: 146 | I188: 0.3545457835 | J188: -1.036917792 | K188: 1.715622968 | L188: -2.437739738 | M188: 146 | N188: 0.0003828229028 | O188: -7.867555174 | P188: 0.263491302 | Q188: -2.06267473 | R188: -2.437739738 | S188: 2.06267473
A189: 172 | B189: =Lookup!A174 -> 01X | C189: =Lookup!C174 -> NHS St Helens | D189: =Lookup!D174 -> Cheshire and Merseyside | E189: =Lookup!E174 -> No | F189: =Lookup!F174 -> 3 | G189: 10.368 | H189: 34 | I189: 1.6548468 | J189: 0.5037084364 | K189: 0.05327247792 | L189: 0.4295639826 | M189: 34 | N189: 0.0009229141577 | O189: -6.987050991 | P189: 0.1348286025 | Q189: 1.475497992 | R189: 0.4295639826 | S189: -1.475497992
A190: 173 | B190: =Lookup!A175 -> 05V | C190: =Lookup!C175 -> NHS Stafford and Surrounds | D190: =Lookup!D175 -> West Midlands | E190: =Lookup!E175 -> No | F190: =Lookup!F175 -> 9 | G190: 10.466 | H190: 100 | I190: 2.379463627 | J190: 0.8668750954 | K190: 0.3528062689 | L190: 1.105463882 | M190: 100 | N190: 0.0006604919526 | O190: -7.321864908 | P190: 0.001048220159 | Q190: 0.1300989706 | R190: 1.105463882 | S190: -0.1300989706
A191: 174 | B191: =Lookup!A176 -> 01W | C191: =Lookup!C176 -> NHS Stockport | D191: =Lookup!D176 -> Greater Manchester Lancashire and South Cumbria | E191: =Lookup!E176 -> No | F191: =Lookup!F176 -> 6 | G191: 9.804 | H191: 33 | I191: 1.559033196 | J191: 0.4440658829 | K191: 0.02929771766 | L191: 0.3185615134 | M191: 33 | N191: 0.0006702925608 | O191: -7.307125766 | P191: 0.002219858124 | Q191: 0.1893259809 | R191: 0.3185615134 | S191: -0.1893259809
A192: 175 | B192: =Lookup!A177 -> 05W | C192: =Lookup!C177 -> NHS Stoke On Trent | D192: =Lookup!D177 -> West Midlands | E192: =Lookup!E177 -> No | F192: =Lookup!F177 -> 1 | G192: 10.09 | H192: 101 | I192: 1.733735741 | J192: 0.5502784682 | K192: 0.07693874687 | L192: 0.5162368063 | M192: 101 | N192: 0.0006782665665 | O192: -7.295291685 | P192: 0.003475037802 | Q192: 0.2368794429 | R192: 0.5162368063 | S192: -0.2368794429
A193: 176 | B193: =Lookup!A178 -> 00P | C193: =Lookup!C178 -> NHS Sunderland | D193: =Lookup!D178 -> Northern England | E193: =Lookup!E178 -> No | F193: =Lookup!F178 -> 3 | G193: 10.269 | H193: 11 | I193: 1.026032645 | J193: 0.02569956446 | K193: 0.06110811572 | L193: -0.4600720576 | M193: 11 | N193: 0.0007857698619 | O193: -7.148060526 | P193: 0.04251044381 | Q193: 0.8285055574 | R193: -0.4600720576 | S193: -0.8285055574
A194: 177 | B194: =Lookup!A179 -> 99H | C194: =Lookup!C179 -> NHS Surrey Downs | D194: =Lookup!D179 -> South East coast | E194: =Lookup!E179 -> No | F194: =Lookup!F179 -> 10 | G194: 9.626 | H194: 205 | I194: 1.962821951 | J194: 0.6743832085 | K194: 0.1611886686 | L194: 0.7472117028 | M194: 205 | N194: 0.0004683244102 | O194: -7.665880884 | P194: 0.0971193325 | Q194: -1.252277134 | R194: 0.7472117028 | S194: 1.252277134
A195: 178 | B195: =Lookup!A180 -> 10C | C195: =Lookup!C180 -> NHS Surrey Heath | D195: =Lookup!D180 -> South East coast | E195: =Lookup!E180 -> No | F195: =Lookup!F180 -> 10 | G195: 9.175 | H195: 168 | I195: 2.023649127 | J195: 0.7049023803 | K195: 0.186625951 | L195: 0.8040118099 | M195: 168 | N195: 0.0006041222459 | O195: -7.411129682 | P195: 0.003236306649 | Q195: -0.2285980067 | R195: 0.8040118099 | S195: 0.2285980067
A196: 179 | B196: =Lookup!A181 -> 08T | C196: =Lookup!C181 -> NHS Sutton | D196: =Lookup!D181 -> London | E196: =Lookup!E181 -> No | F196: =Lookup!F181 -> 8 | G196: 8.587 | H196: 148 | I196: 1.410207567 | J196: 0.3437369039 | K196: 0.005017849643 | L196: 0.1318363689 | M196: 148 | N196: 0.0004984293679 | O196: -7.603550114 | P196: 0.06215496663 | Q196: -1.001810375 | R196: 0.1318363689 | S196: 1.001810375
A197: 180 | B197: =Lookup!A182 -> 10D | C197: =Lookup!C182 -> NHS Swale | D197: =Lookup!D182 -> South East coast | E197: =Lookup!E182 -> No | F197: =Lookup!F182 -> 4 | G197: 9.724 | H197: 169 | I197: 1.06767361 | J197: 0.06548208559 | K197: 0.04302224189 | L197: -0.386031665 | M197: 169 | N197: 0.000758733017 | O197: -7.183101578 | P197: 0.02928874841 | Q197: 0.6876983987 | R197: -0.386031665 | S197: -0.6876983987
A198: 181 | B198: =Lookup!A183 -> 12D | C198: =Lookup!C183 -> NHS Swindon | D198: =Lookup!D183 -> South West | E198: =Lookup!E183 -> No | F198: =Lookup!F183 -> 8 | G198: 8.586 | H198: 196 | I198: 1.270857036 | J198: 0.2396915042 | K198: 0.001102812305 | L198: -0.06180551261 | M198: 196 | N198: 0.0006124607044 | O198: -7.397413125 | P198: 0.001863820664 | Q198: -0.1734801015 | R198: -0.06180551261 | S198: 0.1734801015
A199: 182 | B199: =Lookup!A184 -> 01Y | C199: =Lookup!C184 -> NHS Tameside and Glossop | D199: =Lookup!D184 -> East Midlands | E199: =Lookup!E184 -> No | F199: =Lookup!F184 -> 3 | G199: 9.647 | H199: 35 | I199: 1.343249172 | J199: 0.2950914344 | K199: 0.0004924543386 | L199: 0.04130088854 | M199: 35 | N199: 0.001076268284 | O199: -6.833178666 | P199: 0.2715060981 | Q199: 2.093810631 | R199: 0.04130088854 | S199: -2.093810631
A200: 183 | B200: =Lookup!A185 -> 05X | C200: =Lookup!C185 -> NHS Telford and Wrekin | D200: =Lookup!D185 -> West Midlands | E200: =Lookup!E185 -> No | F200: =Lookup!F185 -> 4 | G200: 9.058 | H200: 102 | I200: 0.7599358613 | J200: -0.2745212423 | K200: 0.2996701502 | L200: -1.018821624 | M200: 102 | N200: 0.0006635822381 | O200: -7.317193963 | P200: 0.001372492991 | Q200: 0.1488684525 | R200: -1.018821624 | S200: -0.1488684525
A201: 184 | B201: =Lookup!A186 -> 10E | C201: =Lookup!C186 -> NHS Thanet | D201: =Lookup!D186 -> South East coast | E201: =Lookup!E186 -> No | F201: =Lookup!F186 -> 3 | G201: 11.419 | H201: 170 | I201: 2.257041929 | J201: 0.8140550751 | K201: 0.2928486832 | L201: 1.007159025 | M201: 170 | N201: 0.0009101917734 | O201: -7.000944634 | P201: 0.124818418 | Q201: 1.419668491 | R201: 1.007159025 | S201: -1.419668491
... 27 more rows

Sheet Dashboard_charts_data (hidden)
A1: Rank change | C1: =SummaryData!H3 -> -1
A2: selected ccg | B2: =SummaryData!D10 -> 02N | C2: menu selection numbers | E2: 2
A3: Selected SCN | B3: =SummaryData!F10 -> Yorkshire and Northern | C3: =SummaryData!H10 -> 6 | Q3: Chart 1 dashboard
A4: Cluster GP | B4: Closest 10 CCGs | C4: 1 | D4: =IF(C4=1,"SCN group",IF(C4=2,"10 closest CCGs","Deprivation decile")) -> SCN group | AI4: Chart 2 dashboard
A5: selected year | B5: =GraphData!B1 -> 2012 - 2013 | C5: =DataCost!A2 -> 1
A6: cost indicator | B6: =SummaryData!C5 -> 1 | C6: 2012/13 cost numerator | D6: =VLOOKUP(B6,Lookup!$BY$3:$CC$15,2,0) -> 19 | E6: 2012/13 Cost Denominator | F6: =VLOOKUP($B$6,Lookup!$BY$3:$CC$15,3,0) -> 20 | G6: 2013/14 cost numerator | H6: =VLOOKUP($B$6,Lookup!$BY$3:$CC$15,4,0) -> 45 | I6: 2013/14 Cost Denominator | J6: =VLOOKUP($B$6,Lookup!$BY$3:$CC$15,5,0) -> 46 | O6: Max factor | P6: =(AD14-AD15)/20 -> 0.4242766633 | T6: dashboard_indicator variation_value | AX6: =C4 -> 1
A7: Outcome indicator 2012/13 | B7: =Summary_Outcomes!$F$12 -> 1 | C7: 2012/13 outcome numerator | D7: =IF(C5=1,VLOOKUP($B$7,Lookup!$CD$3:$CI$17,3,0),VLOOKUP($B$7,Lookup!$CD$3:$GI$17,7,0)) -> 3 | E7: 2012/13 outcome Denominator | F7: =IF(C5=1,VLOOKUP($B$7,Lookup!$CD$3:$GI$17,4,0),VLOOKUP($B$7,Lookup!$CD$3:$GI$17,8,0)) -> 4 | G7: 2013/14 Outcome numerator | H7: =IF(C5=1,VLOOKUP($B$7,Lookup!$CD$3:$CL$17,5,0),VLOOKUP($B$7,Lookup!$CD$3:$CL$17,9,0)) -> 33 | I7: 2013/14 Outcome Denominator | J7: =IF(C5=1,VLOOKUP($B$7,Lookup!$CD$3:$CM$17,6,0),VLOOKUP($B$7,Lookup!$CD$3:$CM$17,10,0)) -> 34 | L7: =IF(AND(C5=1,B7<=7),"rate per 100,000","percentile") -> rate per 100,000
A8: Outcome indictor 2013/14 | B8: =IF(C5=2,Summary_Outcomes!$F$12+39,Summary_Outcomes!$F$12) -> 1 | E8: Costs | G8: Outcomes | I8: 2012/13 data | J8: 2013/14 data | AB8: CCG rank value | AC8: =VLOOKUP(B2,A9:H220,6,FALSE) -> 5 | AI8: Max factor | AJ8: =(AX14-AX15)/20 -> 3.982947671 | AV8: CCG rank value | AW8: =VLOOKUP(B2,A9:H220,8,FALSE) -> 7
A9: CCG | B9: SCN | C9: 10 most similar CCG | D9: Decile | E9: Value_1 | F9: Category_1 | G9: Value_2 | H9: Catergory_2 | I9: ="DataCost_"&INDEX(Lookup_CostNamedRng,MATCH($B6,Lookup_CostNo,0))&"" -> DataCost_Ind9 | J9: ="DataCost_"&INDEX(Lookup_CostNamedRng,MATCH($B6,Lookup_CostNo,0))&"" -> DataCost_Ind9 | K9: ="DataCost_"&INDEX(Lookup_CostNamedRng,MATCH($B6,Lookup_CostNo,0))&"_num" -> DataCost_Ind9_num | L9: ="DataCost_"&INDEX(Lookup_CostNamedRng,MATCH($B6,Lookup_CostNo,0))&"_den" -> DataCost_Ind9_den | O9: Min | P9: Max | Q9: Count of CCGS 1 | S9: Ranking for graph 1 | U9: Count of CCGS 2 | V9: Red marker for selected CCG | W9: Amber marker for selected CCG | X9: Green marker for selected CCG | Y9: selected max | Z9: selected min | AC9: 25% change used for CCG marker | AD9: Selected measure Max and Min | AE9: 25% of selected boundary | AF9: Previous years cost for selected CCG | AH9: Ranking for graph 2 | AI9: Min | AJ9: Max | AK9: Count of CCGS 1 | AM9: Ranking for graph 2 | AO9: Count of CCGS 2 | AP9: Red marker for selected CCG | AQ9: Amber marker for selected CCG | AR9: Green marker for selected CCG | AS9: selected max | AT9: selected min | AW9: 25% change used for CCG marker | AX9: Selected measure Max and Min | AY9: 25% of selected boundary | AZ9: Previous years Outcome for selected CCG
A10: 00C | B10: =VLOOKUP($A10,SummaryData!$K$5:$M$215,3,0) -> Northern England | C10: =VLOOKUP($A10,SummaryData!$K$5:$N$215,4,0) -> No | D10: =VLOOKUP($A10,SummaryData!$K$5:$P$215,6,0) -> 4 | E10: =VLOOKUP(A10,SummaryData!$K$4:$T$215,10,0) -> 1.506509534 | F10: =IF(E10=$AD$15,1,ROUNDUP(((E10-$AD$15)/($AD$14-$AD$15)*20),0)) -> 4 | G10: =IF(AND($C$5=1,$B$7<=7),VLOOKUP(A10,SummaryData!$K$5:$X$215,14,0)*100000,VLOOKUP(A10,SummaryData!$K$5:$X$215,14,0)*100 ) -> 70.77721589 | H10: =IF(G10=$AX$15,1,ROUNDUP(((G10-$AX$15)/($AX$14-$AX$15)*20),0)) -> 10 | I10: =VLOOKUP($A10,cost_data!$A$5:$BB$215,$D$6,0)/VLOOKUP($A10,cost_data!$A$5:$BB$215,$F$6,0) -> 1.506509534 | J10: =IFERROR(VLOOKUP($A10,cost_data!$A$5:$BB$215,$H$6,0)/VLOOKUP($A10,cost_data!$A$5:$BB$215,$J$6,0),0) -> 1.972538448 | K10: =IF(AND($C$5=1,$B$7<=7),VLOOKUP($A10,outcome_data!$A$1:$BJ$216,$D$7,0)/VLOOKUP($A10,outcome_data!$A$1:$BJ$216,$F$7,0)*100000,VLOOKUP($A10,outcome_data!$A$1:$BJ$216,$D$7,0)/VLOOKUP($A10,outcome_data!$A$1:$BJ$216,$F$7,0)*100) -> 70.77721589 | L10: =IF(AND($C$5=1,$B$7<=7),VLOOKUP($A10,outcome_data!$A$1:$BJ$216,$H$7,0)/VLOOKUP($A10,outcome_data!$A$1:$BJ$216,$J$7,0)*100000,VLOOKUP($A10,outcome_data!$A$1:$BJ$216,$H$7,0)/VLOOKUP($A10,outcome_data!$A$1:$BJ$216,$J$7,0)*100) ->  | N10: 1 | O10: =AD$15+(AD$14-AD$15)/20*(N10-1) -> 0.1553031164 | P10: =O10+$P$6 -> 0.5795797797 | Q10: =COUNTIF($F$10:$F$220,N10) -> 18 | S10: 1 | U10: =Q10 -> 18 | V10: =IF(AND($AD$13>=$AD$22,$AC$8=$S10),7,-1) -> -1 | W10: =IF(AND($AD$13>=$AD$23,$AD$13<=$AD$22,$AC$8=$S10),7,-1) -> -1 | X10: =IF(AND($AD$13<=$AD$23,$AC$8=$S10),7,-1) -> -1 | Y10: =IF($AD$11=S10,5,-1) -> -1 | Z10: =IF($AD$10=S10,5,-1) -> 5 | AB10: Lower | AC10: =AE23 -> 2 | AD10: =IF(Dashboard_charts_data!C4=1,AE17,IF(Dashboard_charts_data!C4=2,AE19,AE21)) -> 1 | AE10: =(((AD11-AD10)+1)*0.25) -> 1.25 | AH10: 1 | AI10: =AX$15+(AX$14-AX$15)/20*(AH10-1) -> 31.14590537 | AJ10: =AI10+$AJ$8 -> 35.12885304 | AK10: =COUNTIF($H$10:$H$220,AH10) -> 1 | AM10: 1 | AO10: =AK10 -> 1 | AP10: =IF(AND($AX$13>=$AX$22,$AW$8=$AM10),7,-1) -> -1 | AQ10: =IF(AND($AX$13>=$AX$23,$AX$13<$AX$22,$AW$8=$AM10),7,-1) -> -1 | AR10: =IF(AND($AX$13<=$AX$23,$AW$8=$AM10),7,-1) -> -1 | AS10: =IF($AX$11=AM10,5,-1) -> -1 | AT10: =IF($AX$10=AM10,5,-1) -> -1 | AV10: Lower | AW10: =AE23 -> 2 | AX10: =IF(C4=1,AY17,IF(C4=2,AY19,AY21)) -> 6 | AY10: =(((AX11-AX10)+1)*0.25) -> 3.75
A11: 00D | B11: =VLOOKUP($A11,SummaryData!$K$5:$M$215,3,0) -> Northern England | C11: =VLOOKUP($A11,SummaryData!$K$5:$N$215,4,0) -> No | D11: =VLOOKUP($A11,SummaryData!$K$5:$P$215,6,0) -> 2 | E11: =VLOOKUP(A11,SummaryData!$K$4:$T$215,10,0) -> 1.884724002 | F11: =IF(E11=$AD$15,1,ROUNDUP(((E11-$AD$15)/($AD$14-$AD$15)*20),0)) -> 5 | G11: =IF(AND($C$5=1,$B$7<=7),VLOOKUP(A11,SummaryData!$K$5:$X$215,14,0)*100000,VLOOKUP(A11,SummaryData!$K$5:$X$215,14,0)*100 ) -> 87.98910756 | H11: =IF(G11=$AX$15,1,ROUNDUP(((G11-$AX$15)/($AX$14-$AX$15)*20),0)) -> 15 | I11: =VLOOKUP($A11,cost_data!$A$5:$BB$215,$D$6,0)/VLOOKUP($A11,cost_data!$A$5:$BB$215,$F$6,0) -> 1.884724002 | J11: =IFERROR(VLOOKUP($A11,cost_data!$A$5:$BB$215,$H$6,0)/VLOOKUP($A11,cost_data!$A$5:$BB$215,$J$6,0),0) -> 1.833437076 | K11: =IF(AND($C$5=1,$B$7<=7),VLOOKUP($A11,outcome_data!$A$1:$BJ$216,$D$7,0)/VLOOKUP($A11,outcome_data!$A$1:$BJ$216,$F$7,0)*100000,VLOOKUP($A11,outcome_data!$A$1:$BJ$216,$D$7,0)/VLOOKUP($A11,outcome_data!$A$1:$BJ$216,$F$7,0)*100) -> 87.98910756 | L11: =IF(AND($C$5=1,$B$7<=7),VLOOKUP($A11,outcome_data!$A$1:$BJ$216,$H$7,0)/VLOOKUP($A11,outcome_data!$A$1:$BJ$216,$J$7,0)*100000,VLOOKUP($A11,outcome_data!$A$1:$BJ$216,$H$7,0)/VLOOKUP($A11,outcome_data!$A$1:$BJ$216,$J$7,0)*100) ->  | N11: 2 | O11: =AD$15+(AD$14-AD$15)/20*(N11-1) -> 0.5795797797 | P11: 1.003856443 | Q11: =COUNTIF($F$10:$F$220,N11) -> 42 | S11: 2 | U11: =Q11 -> 42 | V11: =IF(AND($AD$13>=$AD$22,$AC$8=$S11),7,-1) -> -1 | W11: =IF(AND($AD$13>=$AD$23,$AD$13<=$AD$22,$AC$8=$S11),7,-1) -> -1 | X11: =IF(AND($AD$13<=$AD$23,$AC$8=$S11),7,-1) -> -1 | Y11: -1 | Z11: -1 | AB11: Upper | AC11: =AE22 -> 4 | AD11: =IF(Dashboard_charts_data!C4=1,AE16,IF(Dashboard_charts_data!C4=2,AE18,AE20)) -> 5 | AH11: 2 | AI11: 35.12885304 | AJ11: 39.11180071 | AK11: =COUNTIF($H$10:$H$220,AH11) -> 5 | AM11: 2 | AO11: =AK11 -> 5 | AP11: =IF(AND($AX$13>=$AX$22,$AW$8=$AM11),7,-1) -> -1 | AQ11: =IF(AND($AX$13>=$AX$23,$AX$13<$AX$22,$AW$8=$AM11),7,-1) -> -1 | AR11: =IF(AND($AX$13<=$AX$23,$AW$8=$AM11),7,-1) -> -1 | AS11: =IF($AX$11=AM11,5,-1) -> -1 | AT11: -1 | AV11: Upper | AW11: =AE22 -> 4 | AX11: =IF(C4=1,AY16,IF(C4=2,AY18,AY20)) -> 20 | AZ11: =VLOOKUP(B2,$A$10:$K$220,11,0) -> 58.6501975
A12: 00F | B12: =VLOOKUP($A12,SummaryData!$K$5:$M$215,3,0) -> Northern England | C12: =VLOOKUP($A12,SummaryData!$K$5:$N$215,4,0) -> No | D12: =VLOOKUP($A12,SummaryData!$K$5:$P$215,6,0) -> 2 | E12: =VLOOKUP(A12,SummaryData!$K$4:$T$215,10,0) -> 1.620404433 | F12: 4 | G12: =IF(AND($C$5=1,$B$7<=7),VLOOKUP(A12,SummaryData!$K$5:$X$215,14,0)*100000,VLOOKUP(A12,SummaryData!$K$5:$X$215,14,0)*100 ) -> 83.19689398 | H12: 14 | I12: =VLOOKUP($A12,cost_data!$A$5:$BB$215,$D$6,0)/VLOOKUP($A12,cost_data!$A$5:$BB$215,$F$6,0) -> 1.620404433 | J12: =IFERROR(VLOOKUP($A12,cost_data!$A$5:$BB$215,$H$6,0)/VLOOKUP($A12,cost_data!$A$5:$BB$215,$J$6,0),0) -> 1.618917318 | K12: =IF(AND($C$5=1,$B$7<=7),VLOOKUP($A12,outcome_data!$A$1:$BJ$216,$D$7,0)/VLOOKUP($A12,outcome_data!$A$1:$BJ$216,$F$7,0)*100000,VLOOKUP($A12,outcome_data!$A$1:$BJ$216,$D$7,0)/VLOOKUP($A12,outcome_data!$A$1:$BJ$216,$F$7,0)*100) -> 83.19689398 | L12: =IF(AND($C$5=1,$B$7<=7),VLOOKUP($A12,outcome_data!$A$1:$BJ$216,$H$7,0)/VLOOKUP($A12,outcome_data!$A$1:$BJ$216,$J$7,0)*100000,VLOOKUP($A12,outcome_data!$A$1:$BJ$216,$H$7,0)/VLOOKUP($A12,outcome_data!$A$1:$BJ$216,$J$7,0)*100) ->  | N12: 3 | O12: 1.003856443 | P12: 1.428133106 | Q12: 59 | S12: 3 | U12: 59 | V12: -1 | W12: -1 | X12: -1 | Y12: -1 | Z12: -1 | AH12: 3 | AI12: 39.11180071 | AJ12: 43.09474838 | AK12: 9 | AM12: 3 | AO12: 9 | AP12: =IF(AND($AX$13>=$AX$22,$AW$8=$AM12),7,-1) -> -1 | AQ12: -1 | AR12: -1 | AS12: -1 | AT12: -1
A13: 00G | B13: =VLOOKUP($A13,SummaryData!$K$5:$M$215,3,0) -> Northern England | C13: =VLOOKUP($A13,SummaryData!$K$5:$N$215,4,0) -> No | D13: =VLOOKUP($A13,SummaryData!$K$5:$P$215,6,0) -> 4 | E13: =VLOOKUP(A13,SummaryData!$K$4:$T$215,10,0) -> 0.3540085796 | F13: 1 | G13: =IF(AND($C$5=1,$B$7<=7),VLOOKUP(A13,SummaryData!$K$5:$X$215,14,0)*100000,VLOOKUP(A13,SummaryData!$K$5:$X$215,14,0)*100 ) -> 44.15370925 | H13: 4 | I13: =VLOOKUP($A13,cost_data!$A$5:$BB$215,$D$6,0)/VLOOKUP($A13,cost_data!$A$5:$BB$215,$F$6,0) -> 0.3540085796 | J13: =IFERROR(VLOOKUP($A13,cost_data!$A$5:$BB$215,$H$6,0)/VLOOKUP($A13,cost_data!$A$5:$BB$215,$J$6,0),0) -> 0.6221635115 | K13: =IF(AND($C$5=1,$B$7<=7),VLOOKUP($A13,outcome_data!$A$1:$BJ$216,$D$7,0)/VLOOKUP($A13,outcome_data!$A$1:$BJ$216,$F$7,0)*100000,VLOOKUP($A13,outcome_data!$A$1:$BJ$216,$D$7,0)/VLOOKUP($A13,outcome_data!$A$1:$BJ$216,$F$7,0)*100) -> 44.15370925 | L13: =IF(AND($C$5=1,$B$7<=7),VLOOKUP($A13,outcome_data!$A$1:$BJ$216,$H$7,0)/VLOOKUP($A13,outcome_data!$A$1:$BJ$216,$J$7,0)*100000,VLOOKUP($A13,outcome_data!$A$1:$BJ$216,$H$7,0)/VLOOKUP($A13,outcome_data!$A$1:$BJ$216,$J$7,0)*100) ->  | N13: 4 | O13: 1.428133106 | P13: 1.85240977 | Q13: 47 | S13: 4 | U13: 47 | V13: -1 | W13: -1 | X13: -1 | Y13: -1 | Z13: -1 | AB13: selected value Cost | AD13: =VLOOKUP(B2,$A$10:$E$220,5,0) -> 1.994663011 | AE13: =IF(AD13=$AD$15,1,ROUNDUP(((AD13-AD$15)/(AD$14-AD$15)*20),0)) -> 5 | AF13: =VLOOKUP(B2,$A$10:$I$220,9,0) -> 1.994663011 | AH13: 4 | AI13: 43.09474838 | AJ13: 47.07769605 | AK13: 16 | AM13: 4 | AO13: 16 | AP13: -1 | AQ13: -1 | AR13: -1 | AS13: -1 | AT13: -1 | AV13: selected outcome value | AX13: =VLOOKUP(B2,$A$10:$H$220,7,0) -> 58.6501975 | AY13: =IF(AX13=$AX$15,1,ROUNDUP(((AX13-AX$15)/(AX$14-AX$15)*20),0)) -> 7
A14: 00H | B14: =VLOOKUP($A14,SummaryData!$K$5:$M$215,3,0) -> Northern England | C14: =VLOOKUP($A14,SummaryData!$K$5:$N$215,4,0) -> No | D14: =VLOOKUP($A14,SummaryData!$K$5:$P$215,6,0) -> 2 | E14: =VLOOKUP(A14,SummaryData!$K$4:$T$215,10,0) -> 0.7370125433 | F14: 2 | G14: =IF(AND($C$5=1,$B$7<=7),VLOOKUP(A14,SummaryData!$K$5:$X$215,14,0)*100000,VLOOKUP(A14,SummaryData!$K$5:$X$215,14,0)*100 ) -> 75.09223285 | H14: 12 | I14: =VLOOKUP($A14,cost_data!$A$5:$BB$215,$D$6,0)/VLOOKUP($A14,cost_data!$A$5:$BB$215,$F$6,0) -> 0.7370125433 | J14: =IFERROR(VLOOKUP($A14,cost_data!$A$5:$BB$215,$H$6,0)/VLOOKUP($A14,cost_data!$A$5:$BB$215,$J$6,0),0) -> 0.7778862351 | K14: =IF(AND($C$5=1,$B$7<=7),VLOOKUP($A14,outcome_data!$A$1:$BJ$216,$D$7,0)/VLOOKUP($A14,outcome_data!$A$1:$BJ$216,$F$7,0)*100000,VLOOKUP($A14,outcome_data!$A$1:$BJ$216,$D$7,0)/VLOOKUP($A14,outcome_data!$A$1:$BJ$216,$F$7,0)*100) -> 75.09223285 | L14: =IF(AND($C$5=1,$B$7<=7),VLOOKUP($A14,outcome_data!$A$1:$BJ$216,$H$7,0)/VLOOKUP($A14,outcome_data!$A$1:$BJ$216,$J$7,0)*100000,VLOOKUP($A14,outcome_data!$A$1:$BJ$216,$H$7,0)/VLOOKUP($A14,outcome_data!$A$1:$BJ$216,$J$7,0)*100) ->  | N14: 5 | O14: 1.85240977 | P14: 2.276686433 | Q14: 27 | S14: 5 | U14: 27 | V14: 7 | W14: -1 | X14: -1 | Y14: 5 | Z14: -1 | AB14: Range | AC14: Max | AD14: =MAX(E10:E220) -> 8.640836382 | AE14: 20 | AH14: 5 | AI14: 47.07769605 | AJ14: 51.06064373 | AK14: 18 | AM14: 5 | AO14: 18 | AP14: -1 | AQ14: -1 | AR14: -1 | AS14: -1 | AT14: -1 | AV14: Range | AW14: Max | AX14: =MAX($G$10:$G$220) -> 110.8048588 | AY14: =IF(AX14=$AX$15,1,ROUNDUP(((AX$14-AX$15)/(AX$14-AX$15)*20),0)) -> 20
A15: 00J | B15: =VLOOKUP($A15,SummaryData!$K$5:$M$215,3,0) -> Northern England | C15: =VLOOKUP($A15,SummaryData!$K$5:$N$215,4,0) -> No | D15: =VLOOKUP($A15,SummaryData!$K$5:$P$215,6,0) -> 6 | E15: =VLOOKUP(A15,SummaryData!$K$4:$T$215,10,0) -> 1.590852174 | F15: 4 | G15: =IF(AND($C$5=1,$B$7<=7),VLOOKUP(A15,SummaryData!$K$5:$X$215,14,0)*100000,VLOOKUP(A15,SummaryData!$K$5:$X$215,14,0)*100 ) -> 76.02283291 | H15: 12 | I15: =VLOOKUP($A15,cost_data!$A$5:$BB$215,$D$6,0)/VLOOKUP($A15,cost_data!$A$5:$BB$215,$F$6,0) -> 1.590852174 | J15: =IFERROR(VLOOKUP($A15,cost_data!$A$5:$BB$215,$H$6,0)/VLOOKUP($A15,cost_data!$A$5:$BB$215,$J$6,0),0) -> 1.547032033 | K15: =IF(AND($C$5=1,$B$7<=7),VLOOKUP($A15,outcome_data!$A$1:$BJ$216,$D$7,0)/VLOOKUP($A15,outcome_data!$A$1:$BJ$216,$F$7,0)*100000,VLOOKUP($A15,outcome_data!$A$1:$BJ$216,$D$7,0)/VLOOKUP($A15,outcome_data!$A$1:$BJ$216,$F$7,0)*100) -> 76.02283291 | L15: =IF(AND($C$5=1,$B$7<=7),VLOOKUP($A15,outcome_data!$A$1:$BJ$216,$H$7,0)/VLOOKUP($A15,outcome_data!$A$1:$BJ$216,$J$7,0)*100000,VLOOKUP($A15,outcome_data!$A$1:$BJ$216,$H$7,0)/VLOOKUP($A15,outcome_data!$A$1:$BJ$216,$J$7,0)*100) ->  | N15: 6 | O15: 2.276686433 | P15: 2.700963096 | Q15: 8 | S15: 6 | U15: 8 | V15: -1 | W15: -1 | X15: -1 | Y15: -1 | Z15: -1 | AB15: Range | AC15: Min | AD15: =MIN(E10:E220) -> 0.1553031164 | AE15: 1 | AH15: 6 | AI15: 51.06064373 | AJ15: 55.0435914 | AK15: 13 | AM15: 6 | AO15: 13 | AP15: -1 | AQ15: -1 | AR15: -1 | AS15: -1 | AT15: 5 | AV15: Range | AW15: Min | AX15: =MIN($G$10:$G$220) -> 31.14590537 | AY15: =IF(AX15=$AX$15,1,ROUNDUP(((AX15-AX$15)/(AX$14-AX$15)*20),0)) -> 1
A16: 00K | B16: =VLOOKUP($A16,SummaryData!$K$5:$M$215,3,0) -> Northern England | C16: =VLOOKUP($A16,SummaryData!$K$5:$N$215,4,0) -> No | D16: =VLOOKUP($A16,SummaryData!$K$5:$P$215,6,0) -> 3 | E16: =VLOOKUP(A16,SummaryData!$K$4:$T$215,10,0) -> 0.9905694871 | F16: 2 | G16: =IF(AND($C$5=1,$B$7<=7),VLOOKUP(A16,SummaryData!$K$5:$X$215,14,0)*100000,VLOOKUP(A16,SummaryData!$K$5:$X$215,14,0)*100 ) -> 68.36311216 | H16: 10 | I16: =VLOOKUP($A16,cost_data!$A$5:$BB$215,$D$6,0)/VLOOKUP($A16,cost_data!$A$5:$BB$215,$F$6,0) -> 0.9905694871 | J16: =IFERROR(VLOOKUP($A16,cost_data!$A$5:$BB$215,$H$6,0)/VLOOKUP($A16,cost_data!$A$5:$BB$215,$J$6,0),0) -> 0.8782346983 | K16: =IF(AND($C$5=1,$B$7<=7),VLOOKUP($A16,outcome_data!$A$1:$BJ$216,$D$7,0)/VLOOKUP($A16,outcome_data!$A$1:$BJ$216,$F$7,0)*100000,VLOOKUP($A16,outcome_data!$A$1:$BJ$216,$D$7,0)/VLOOKUP($A16,outcome_data!$A$1:$BJ$216,$F$7,0)*100) -> 68.36311216 | L16: =IF(AND($C$5=1,$B$7<=7),VLOOKUP($A16,outcome_data!$A$1:$BJ$216,$H$7,0)/VLOOKUP($A16,outcome_data!$A$1:$BJ$216,$J$7,0)*100000,VLOOKUP($A16,outcome_data!$A$1:$BJ$216,$H$7,0)/VLOOKUP($A16,outcome_data!$A$1:$BJ$216,$J$7,0)*100) ->  | N16: 7 | O16: 2.700963096 | P16: 3.125239759 | Q16: 6 | S16: 7 | U16: 6 | V16: -1 | W16: -1 | X16: -1 | Y16: -1 | Z16: -1 | AB16: SCN | AC16: Max | AD16: =MAX(IF(Dashboard_SCN_data=B3,Dashboard_Value1_Costs)) -> 1.994663011 | AE16: 5 | AH16: 7 | AI16: 55.0435914 | AJ16: 59.02653907 | AK16: 17 | AM16: 7 | AO16: 17 | AP16: -1 | AQ16: -1 | AR16: 7 | AS16: -1 | AT16: =IF($AX$10=AM16,5,-1) -> -1 | AV16: SCN | AW16: Max | AX16: =MAX(IF(Dashboard_SCN_data=B3,Dashboard_Value2_Outcomes)) -> 107.9473899 | AY16: =IF(AX16=$AX$15,1,ROUNDUP(((AX16-$AX$15)/($AX$14-$AX$15)*20),0)) -> 20
A17: 00L | B17: =VLOOKUP($A17,SummaryData!$K$5:$M$215,3,0) -> Northern England | C17: =VLOOKUP($A17,SummaryData!$K$5:$N$215,4,0) -> No | D17: =VLOOKUP($A17,SummaryData!$K$5:$P$215,6,0) -> 6 | E17: =VLOOKUP(A17,SummaryData!$K$4:$T$215,10,0) -> 1.546643083 | F17: 4 | G17: =IF(AND($C$5=1,$B$7<=7),VLOOKUP(A17,SummaryData!$K$5:$X$215,14,0)*100000,VLOOKUP(A17,SummaryData!$K$5:$X$215,14,0)*100 ) -> 71.4597369 | H17: 11 | I17: =VLOOKUP($A17,cost_data!$A$5:$BB$215,$D$6,0)/VLOOKUP($A17,cost_data!$A$5:$BB$215,$F$6,0) -> 1.546643083 | J17: =IFERROR(VLOOKUP($A17,cost_data!$A$5:$BB$215,$H$6,0)/VLOOKUP($A17,cost_data!$A$5:$BB$215,$J$6,0),0) -> 1.506637774 | K17: =IF(AND($C$5=1,$B$7<=7),VLOOKUP($A17,outcome_data!$A$1:$BJ$216,$D$7,0)/VLOOKUP($A17,outcome_data!$A$1:$BJ$216,$F$7,0)*100000,VLOOKUP($A17,outcome_data!$A$1:$BJ$216,$D$7,0)/VLOOKUP($A17,outcome_data!$A$1:$BJ$216,$F$7,0)*100) -> 71.4597369 | L17: =IF(AND($C$5=1,$B$7<=7),VLOOKUP($A17,outcome_data!$A$1:$BJ$216,$H$7,0)/VLOOKUP($A17,outcome_data!$A$1:$BJ$216,$J$7,0)*100000,VLOOKUP($A17,outcome_data!$A$1:$BJ$216,$H$7,0)/VLOOKUP($A17,outcome_data!$A$1:$BJ$216,$J$7,0)*100) ->  | N17: 8 | O17: 3.125239759 | P17: 3.549516423 | Q17: 2 | S17: 8 | U17: 2 | V17: -1 | W17: -1 | X17: -1 | Y17: -1 | Z17: -1 | AB17: SCN | AC17: Min | AD17: =MIN(IF(Dashboard_SCN_data=B3,Dashboard_Value1_Costs)) -> 0.1553031164 | AE17: 1 | AH17: 8 | AI17: 59.02653907 | AJ17: 63.00948674 | AK17: 13 | AM17: 8 | AO17: 13 | AP17: -1 | AQ17: -1 | AR17: -1 | AS17: -1 | AT17: -1 | AV17: SCN | AW17: Min | AX17: =MIN(IF(Dashboard_SCN_data=B3,Dashboard_Value2_Outcomes)) -> 52.47229304 | AY17: 6
A18: 00M | B18: =VLOOKUP($A18,SummaryData!$K$5:$M$215,3,0) -> Northern England | C18: =VLOOKUP($A18,SummaryData!$K$5:$N$215,4,0) -> No | D18: =VLOOKUP($A18,SummaryData!$K$5:$P$215,6,0) -> 2 | E18: =VLOOKUP(A18,SummaryData!$K$4:$T$215,10,0) -> 1.405040371 | F18: 3 | G18: =IF(AND($C$5=1,$B$7<=7),VLOOKUP(A18,SummaryData!$K$5:$X$215,14,0)*100000,VLOOKUP(A18,SummaryData!$K$5:$X$215,14,0)*100 ) -> 75.95983065 | H18: 12 | I18: =VLOOKUP($A18,cost_data!$A$5:$BB$215,$D$6,0)/VLOOKUP($A18,cost_data!$A$5:$BB$215,$F$6,0) -> 1.405040371 | J18: =IFERROR(VLOOKUP($A18,cost_data!$A$5:$BB$215,$H$6,0)/VLOOKUP($A18,cost_data!$A$5:$BB$215,$J$6,0),0) -> 1.378595323 | K18: =IF(AND($C$5=1,$B$7<=7),VLOOKUP($A18,outcome_data!$A$1:$BJ$216,$D$7,0)/VLOOKUP($A18,outcome_data!$A$1:$BJ$216,$F$7,0)*100000,VLOOKUP($A18,outcome_data!$A$1:$BJ$216,$D$7,0)/VLOOKUP($A18,outcome_data!$A$1:$BJ$216,$F$7,0)*100) -> 75.95983065 | L18: =IF(AND($C$5=1,$B$7<=7),VLOOKUP($A18,outcome_data!$A$1:$BJ$216,$H$7,0)/VLOOKUP($A18,outcome_data!$A$1:$BJ$216,$J$7,0)*100000,VLOOKUP($A18,outcome_data!$A$1:$BJ$216,$H$7,0)/VLOOKUP($A18,outcome_data!$A$1:$BJ$216,$J$7,0)*100) ->  | N18: 9 | O18: 3.549516423 | P18: 3.973793086 | Q18: 0 | S18: 9 | U18: 0 | V18: -1 | W18: -1 | X18: -1 | Y18: -1 | Z18: -1 | AB18: Closest 10 | AC18: Max | AD18: =MAX(IF(Dashboard_10similar_code=$B$4,Dashboard_Value1_Costs)) -> 2.02674095 | AE18: 5 | AH18: 9 | AI18: 63.00948674 | AJ18: 66.99243441 | AK18: 18 | AM18: 9 | AO18: 18 | AP18: -1 | AQ18: -1 | AR18: -1 | AS18: -1 | AT18: -1 | AV18: Closest 10 | AW18: Max | AX18: =MAX(IF(Dashboard_10similar_code=$B$4,Dashboard_Value2_Outcomes)) -> 84.43786097 | AY18: 14
A19: 00N | B19: =VLOOKUP($A19,SummaryData!$K$5:$M$215,3,0) -> Northern England | C19: =VLOOKUP($A19,SummaryData!$K$5:$N$215,4,0) -> No | D19: =VLOOKUP($A19,SummaryData!$K$5:$P$215,6,0) -> 3 | E19: =VLOOKUP(A19,SummaryData!$K$4:$T$215,10,0) -> 1.045239348 | F19: 3 | G19: =IF(AND($C$5=1,$B$7<=7),VLOOKUP(A19,SummaryData!$K$5:$X$215,14,0)*100000,VLOOKUP(A19,SummaryData!$K$5:$X$215,14,0)*100 ) -> 86.80370268 | H19: 14 | I19: =VLOOKUP($A19,cost_data!$A$5:$BB$215,$D$6,0)/VLOOKUP($A19,cost_data!$A$5:$BB$215,$F$6,0) -> 1.045239348 | J19: =IFERROR(VLOOKUP($A19,cost_data!$A$5:$BB$215,$H$6,0)/VLOOKUP($A19,cost_data!$A$5:$BB$215,$J$6,0),0) -> 1.161164673 | K19: =IF(AND($C$5=1,$B$7<=7),VLOOKUP($A19,outcome_data!$A$1:$BJ$216,$D$7,0)/VLOOKUP($A19,outcome_data!$A$1:$BJ$216,$F$7,0)*100000,VLOOKUP($A19,outcome_data!$A$1:$BJ$216,$D$7,0)/VLOOKUP($A19,outcome_data!$A$1:$BJ$216,$F$7,0)*100) -> 86.80370268 | L19: =IF(AND($C$5=1,$B$7<=7),VLOOKUP($A19,outcome_data!$A$1:$BJ$216,$H$7,0)/VLOOKUP($A19,outcome_data!$A$1:$BJ$216,$J$7,0)*100000,VLOOKUP($A19,outcome_data!$A$1:$BJ$216,$H$7,0)/VLOOKUP($A19,outcome_data!$A$1:$BJ$216,$J$7,0)*100) ->  | N19: 10 | O19: 3.973793086 | P19: 4.398069749 | Q19: 0 | S19: 10 | U19: 0 | V19: -1 | W19: -1 | X19: -1 | Y19: -1 | Z19: -1 | AB19: Closest 10 | AC19: Min | AD19: =MIN(IF(Dashboard_10similar_code=$B$4,Dashboard_Value1_Costs)) -> 0.9973439455 | AE19: 2 | AH19: 10 | AI19: 66.99243441 | AJ19: 70.97538208 | AK19: 21 | AM19: 10 | AO19: 21 | AP19: -1 | AQ19: -1 | AR19: -1 | AS19: -1 | AT19: -1 | AV19: Closest 10 | AW19: Min | AX19: =MIN(IF(Dashboard_10similar_code=$B$4,Dashboard_Value2_Outcomes)) -> 47.20073423 | AY19: 5
A20: 00P | B20: =VLOOKUP($A20,SummaryData!$K$5:$M$215,3,0) -> Northern England | C20: =VLOOKUP($A20,SummaryData!$K$5:$N$215,4,0) -> No | D20: =VLOOKUP($A20,SummaryData!$K$5:$P$215,6,0) -> 3 | E20: =VLOOKUP(A20,SummaryData!$K$4:$T$215,10,0) -> 1.026032645 | F20: 3 | G20: =IF(AND($C$5=1,$B$7<=7),VLOOKUP(A20,SummaryData!$K$5:$X$215,14,0)*100000,VLOOKUP(A20,SummaryData!$K$5:$X$215,14,0)*100 ) -> 78.57698619 | H20: 12 | I20: =VLOOKUP($A20,cost_data!$A$5:$BB$215,$D$6,0)/VLOOKUP($A20,cost_data!$A$5:$BB$215,$F$6,0) -> 1.026032645 | J20: =IFERROR(VLOOKUP($A20,cost_data!$A$5:$BB$215,$H$6,0)/VLOOKUP($A20,cost_data!$A$5:$BB$215,$J$6,0),0) -> 1.220263312 | K20: =IF(AND($C$5=1,$B$7<=7),VLOOKUP($A20,outcome_data!$A$1:$BJ$216,$D$7,0)/VLOOKUP($A20,outcome_data!$A$1:$BJ$216,$F$7,0)*100000,VLOOKUP($A20,outcome_data!$A$1:$BJ$216,$D$7,0)/VLOOKUP($A20,outcome_data!$A$1:$BJ$216,$F$7,0)*100) -> 78.57698619 | L20: =IF(AND($C$5=1,$B$7<=7),VLOOKUP($A20,outcome_data!$A$1:$BJ$216,$H$7,0)/VLOOKUP($A20,outcome_data!$A$1:$BJ$216,$J$7,0)*100000,VLOOKUP($A20,outcome_data!$A$1:$BJ$216,$H$7,0)/VLOOKUP($A20,outcome_data!$A$1:$BJ$216,$J$7,0)*100) ->  | N20: 11 | O20: 4.398069749 | P20: 4.822346413 | Q20: 0 | S20: 11 | U20: 0 | V20: -1 | W20: -1 | X20: -1 | Y20: -1 | Z20: -1 | AB20: Decile | AC20: Max | AD20: =MAX(IF(Dashbaord_Decile_code=$C$3,Dashboard_Value1_Costs)) -> 6.588390912 | AE20: 16 | AH20: 11 | AI20: 70.97538208 | AJ20: 74.95832975 | AK20: 18 | AM20: 11 | AO20: 18 | AP20: -1 | AQ20: -1 | AR20: -1 | AS20: -1 | AT20: -1 | AV20: Decile | AW20: Max | AX20: =MAX(IF(Dashbaord_Decile_code=$C$3,Dashboard_Value2_Outcomes)) -> 82.49477261 | AY20: 13
A21: 00Q | B21: =VLOOKUP($A21,SummaryData!$K$5:$M$215,3,0) -> Greater Manchester Lancashire and South Cumbria | C21: =VLOOKUP($A21,SummaryData!$K$5:$N$215,4,0) -> No | D21: =VLOOKUP($A21,SummaryData!$K$5:$P$215,6,0) -> 1 | E21: =VLOOKUP(A21,SummaryData!$K$4:$T$215,10,0) -> 1.403226606 | F21: 3 | G21: =IF(AND($C$5=1,$B$7<=7),VLOOKUP(A21,SummaryData!$K$5:$X$215,14,0)*100000,VLOOKUP(A21,SummaryData!$K$5:$X$215,14,0)*100 ) -> 76.68229645 | H21: 12 | I21: =VLOOKUP($A21,cost_data!$A$5:$BB$215,$D$6,0)/VLOOKUP($A21,cost_data!$A$5:$BB$215,$F$6,0) -> 1.403226606 | J21: =IFERROR(VLOOKUP($A21,cost_data!$A$5:$BB$215,$H$6,0)/VLOOKUP($A21,cost_data!$A$5:$BB$215,$J$6,0),0) -> 1.398948555 | K21: =IF(AND($C$5=1,$B$7<=7),VLOOKUP($A21,outcome_data!$A$1:$BJ$216,$D$7,0)/VLOOKUP($A21,outcome_data!$A$1:$BJ$216,$F$7,0)*100000,VLOOKUP($A21,outcome_data!$A$1:$BJ$216,$D$7,0)/VLOOKUP($A21,outcome_data!$A$1:$BJ$216,$F$7,0)*100) -> 76.68229645 | L21: =IF(AND($C$5=1,$B$7<=7),VLOOKUP($A21,outcome_data!$A$1:$BJ$216,$H$7,0)/VLOOKUP($A21,outcome_data!$A$1:$BJ$216,$J$7,0)*100000,VLOOKUP($A21,outcome_data!$A$1:$BJ$216,$H$7,0)/VLOOKUP($A21,outcome_data!$A$1:$BJ$216,$J$7,0)*100) ->  | N21: 12 | O21: 4.822346413 | P21: 5.246623076 | Q21: 0 | S21: 12 | U21: =Q21 -> 0 | V21: -1 | W21: -1 | X21: -1 | Y21: -1 | Z21: -1 | AB21: Decile | AC21: Min | AD21: =MIN(IF(Dashbaord_Decile_code=$C$3,Dashboard_Value1_Costs)) -> 0.6343307178 | AE21: 2 | AH21: 12 | AI21: 74.95832975 | AJ21: 78.94127742 | AK21: 22 | AM21: 12 | AO21: =AK21 -> 22 | AP21: -1 | AQ21: -1 | AR21: -1 | AS21: -1 | AT21: -1 | AV21: Decile | AW21: Min | AX21: =MIN(IF(Dashbaord_Decile_code=$C$3,Dashboard_Value2_Outcomes)) -> 49.18380766 | AY21: 5
A22: 00R | B22: =VLOOKUP($A22,SummaryData!$K$5:$M$215,3,0) -> Greater Manchester Lancashire and South Cumbria | C22: =VLOOKUP($A22,SummaryData!$K$5:$N$215,4,0) -> No | D22: =VLOOKUP($A22,SummaryData!$K$5:$P$215,6,0) -> 1 | E22: =VLOOKUP(A22,SummaryData!$K$4:$T$215,10,0) -> 0.8443554978 | F22: 2 | G22: =IF(AND($C$5=1,$B$7<=7),VLOOKUP(A22,SummaryData!$K$5:$X$215,14,0)*100000,VLOOKUP(A22,SummaryData!$K$5:$X$215,14,0)*100 ) -> 105.8740991 | H22: 19 | I22: =VLOOKUP($A22,cost_data!$A$5:$BB$215,$D$6,0)/VLOOKUP($A22,cost_data!$A$5:$BB$215,$F$6,0) -> 0.8443554978 | J22: =IFERROR(VLOOKUP($A22,cost_data!$A$5:$BB$215,$H$6,0)/VLOOKUP($A22,cost_data!$A$5:$BB$215,$J$6,0),0) -> 0.7407496667 | K22: =IF(AND($C$5=1,$B$7<=7),VLOOKUP($A22,outcome_data!$A$1:$BJ$216,$D$7,0)/VLOOKUP($A22,outcome_data!$A$1:$BJ$216,$F$7,0)*100000,VLOOKUP($A22,outcome_data!$A$1:$BJ$216,$D$7,0)/VLOOKUP($A22,outcome_data!$A$1:$BJ$216,$F$7,0)*100) -> 105.8740991 | L22: =IF(AND($C$5=1,$B$7<=7),VLOOKUP($A22,outcome_data!$A$1:$BJ$216,$H$7,0)/VLOOKUP($A22,outcome_data!$A$1:$BJ$216,$J$7,0)*100000,VLOOKUP($A22,outcome_data!$A$1:$BJ$216,$H$7,0)/VLOOKUP($A22,outcome_data!$A$1:$BJ$216,$J$7,0)*100) ->  | N22: 13 | O22: 5.246623076 | P22: 5.670899739 | Q22: 0 | S22: 13 | U22: =Q22 -> 0 | V22: -1 | W22: -1 | X22: -1 | Y22: -1 | Z22: -1 | AC22: upper quartile | AD22: =IF($C$4=1,SummaryData!F18,IF($C$4=2,SummaryData!G18,SummaryData!H18)) -> 1.485983655 | AE22: =IF(AD22=$AD$15,20,ROUNDUP(((AD22-AD$15)/(AD$14-AD$15)*20),0)) -> 4 | AH22: 13 | AI22: 78.94127742 | AJ22: 82.92422509 | AK22: 15 | AM22: 13 | AO22: =AK22 -> 15 | AP22: -1 | AQ22: -1 | AR22: -1 | AS22: -1 | AT22: -1 | AU22: =C1 -> -1 | AW22: upper quartile | AX22: =IF($C$4=1,SummaryData!F47,IF($C$4=2,SummaryData!G47,SummaryData!H47))*AW26 -> 79.76138701 | AY22: =IF(AX22=$AX$14,20,ROUNDUP(((AX22-AX$15)/(AX$14-AX$15)*20),0)) -> 13
A23: 00T | B23: =VLOOKUP($A23,SummaryData!$K$5:$M$215,3,0) -> Greater Manchester Lancashire and South Cumbria | C23: =VLOOKUP($A23,SummaryData!$K$5:$N$215,4,0) -> No | D23: =VLOOKUP($A23,SummaryData!$K$5:$P$215,6,0) -> 2 | E23: =VLOOKUP(A23,SummaryData!$K$4:$T$215,10,0) -> 2.673822204 | F23: 6 | G23: =IF(AND($C$5=1,$B$7<=7),VLOOKUP(A23,SummaryData!$K$5:$X$215,14,0)*100000,VLOOKUP(A23,SummaryData!$K$5:$X$215,14,0)*100 ) -> 75.59857875 | H23: 12 | I23: =VLOOKUP($A23,cost_data!$A$5:$BB$215,$D$6,0)/VLOOKUP($A23,cost_data!$A$5:$BB$215,$F$6,0) -> 2.673822204 | J23: =IFERROR(VLOOKUP($A23,cost_data!$A$5:$BB$215,$H$6,0)/VLOOKUP($A23,cost_data!$A$5:$BB$215,$J$6,0),0) -> 3.167832115 | K23: =IF(AND($C$5=1,$B$7<=7),VLOOKUP($A23,outcome_data!$A$1:$BJ$216,$D$7,0)/VLOOKUP($A23,outcome_data!$A$1:$BJ$216,$F$7,0)*100000,VLOOKUP($A23,outcome_data!$A$1:$BJ$216,$D$7,0)/VLOOKUP($A23,outcome_data!$A$1:$BJ$216,$F$7,0)*100) -> 75.59857875 | L23: =IF(AND($C$5=1,$B$7<=7),VLOOKUP($A23,outcome_data!$A$1:$BJ$216,$H$7,0)/VLOOKUP($A23,outcome_data!$A$1:$BJ$216,$J$7,0)*100000,VLOOKUP($A23,outcome_data!$A$1:$BJ$216,$H$7,0)/VLOOKUP($A23,outcome_data!$A$1:$BJ$216,$J$7,0)*100) ->  | N23: 14 | O23: 5.670899739 | P23: 6.095176402 | Q23: 0 | S23: 14 | U23: 0 | V23: -1 | W23: -1 | X23: -1 | Y23: -1 | Z23: -1 | AC23: lower quartile | AD23: =IF($C$4=1,SummaryData!F16,IF($C$4=2,SummaryData!G16,SummaryData!H16)) -> 0.8200710571 | AE23: =IF(AD23=$AD$15,1,ROUNDUP(((AD23-AD$15)/(AD$14-AD$15)*20),0)) -> 2 | AH23: 14 | AI23: 82.92422509 | AJ23: 86.90717277 | AK23: 10 | AM23: 14 | AO23: 10 | AP23: -1 | AQ23: -1 | AR23: -1 | AS23: =IF($AX$11=AM23,5,-1) -> -1 | AT23: -1 | AW23: lower quartile | AX23: =IF($C$4=1,SummaryData!F45,IF($C$4=2,SummaryData!G45,SummaryData!H45))*AW26 -> 62.58930987 | AY23: =IF(AX23=$AX$15,1,ROUNDUP(((AX23-AX$15)/(AX$14-AX$15)*20),0)) -> 8
A24: 00V | B24: =VLOOKUP($A24,SummaryData!$K$5:$M$215,3,0) -> Greater Manchester Lancashire and South Cumbria | C24: =VLOOKUP($A24,SummaryData!$K$5:$N$215,4,0) -> No | D24: =VLOOKUP($A24,SummaryData!$K$5:$P$215,6,0) -> 5 | E24: =VLOOKUP(A24,SummaryData!$K$4:$T$215,10,0) -> 1.466558198 | F24: 4 | G24: =IF(AND($C$5=1,$B$7<=7),VLOOKUP(A24,SummaryData!$K$5:$X$215,14,0)*100000,VLOOKUP(A24,SummaryData!$K$5:$X$215,14,0)*100 ) -> 71.42033062 | H24: 11 | I24: =VLOOKUP($A24,cost_data!$A$5:$BB$215,$D$6,0)/VLOOKUP($A24,cost_data!$A$5:$BB$215,$F$6,0) -> 1.466558198 | J24: =IFERROR(VLOOKUP($A24,cost_data!$A$5:$BB$215,$H$6,0)/VLOOKUP($A24,cost_data!$A$5:$BB$215,$J$6,0),0) -> 1.240342197 | K24: =IF(AND($C$5=1,$B$7<=7),VLOOKUP($A24,outcome_data!$A$1:$BJ$216,$D$7,0)/VLOOKUP($A24,outcome_data!$A$1:$BJ$216,$F$7,0)*100000,VLOOKUP($A24,outcome_data!$A$1:$BJ$216,$D$7,0)/VLOOKUP($A24,outcome_data!$A$1:$BJ$216,$F$7,0)*100) -> 71.42033062 | L24: =IF(AND($C$5=1,$B$7<=7),VLOOKUP($A24,outcome_data!$A$1:$BJ$216,$H$7,0)/VLOOKUP($A24,outcome_data!$A$1:$BJ$216,$J$7,0)*100000,VLOOKUP($A24,outcome_data!$A$1:$BJ$216,$H$7,0)/VLOOKUP($A24,outcome_data!$A$1:$BJ$216,$J$7,0)*100) ->  | N24: 15 | O24: 6.095176402 | P24: 6.519453066 | Q24: 0 | S24: 15 | U24: 0 | V24: -1 | W24: -1 | X24: -1 | Y24: -1 | Z24: -1 | AC24: 2012/13 value | AE24: =VLOOKUP(B2,A10:M220,9,0)/VLOOKUP(B2,A10:M220,10,0) -> 1.133302402 | AH24: 15 | AI24: 86.90717277 | AJ24: 90.89012044 | AK24: 7 | AM24: 15 | AO24: 7 | AP24: -1 | AQ24: -1 | AR24: -1 | AS24: -1 | AT24: -1
A25: 00W | B25: =VLOOKUP($A25,SummaryData!$K$5:$M$215,3,0) -> Greater Manchester Lancashire and South Cumbria | C25: =VLOOKUP($A25,SummaryData!$K$5:$N$215,4,0) -> No | D25: =VLOOKUP($A25,SummaryData!$K$5:$P$215,6,0) -> 1 | E25: =VLOOKUP(A25,SummaryData!$K$4:$T$215,10,0) -> 0.4510407869 | F25: 1 | G25: =IF(AND($C$5=1,$B$7<=7),VLOOKUP(A25,SummaryData!$K$5:$X$215,14,0)*100000,VLOOKUP(A25,SummaryData!$K$5:$X$215,14,0)*100 ) -> 46.2632766 | H25: 4 | I25: =VLOOKUP($A25,cost_data!$A$5:$BB$215,$D$6,0)/VLOOKUP($A25,cost_data!$A$5:$BB$215,$F$6,0) -> 0.4510407869 | J25: =IFERROR(VLOOKUP($A25,cost_data!$A$5:$BB$215,$H$6,0)/VLOOKUP($A25,cost_data!$A$5:$BB$215,$J$6,0),0) -> 0.4385336589 | K25: =IF(AND($C$5=1,$B$7<=7),VLOOKUP($A25,outcome_data!$A$1:$BJ$216,$D$7,0)/VLOOKUP($A25,outcome_data!$A$1:$BJ$216,$F$7,0)*100000,VLOOKUP($A25,outcome_data!$A$1:$BJ$216,$D$7,0)/VLOOKUP($A25,outcome_data!$A$1:$BJ$216,$F$7,0)*100) -> 46.2632766 | L25: =IF(AND($C$5=1,$B$7<=7),VLOOKUP($A25,outcome_data!$A$1:$BJ$216,$H$7,0)/VLOOKUP($A25,outcome_data!$A$1:$BJ$216,$J$7,0)*100000,VLOOKUP($A25,outcome_data!$A$1:$BJ$216,$H$7,0)/VLOOKUP($A25,outcome_data!$A$1:$BJ$216,$J$7,0)*100) ->  | N25: 16 | O25: 6.519453066 | P25: 6.943729729 | Q25: 1 | S25: 16 | U25: 1 | V25: -1 | W25: -1 | X25: -1 | Y25: -1 | Z25: -1 | AC25: 2013/14 value | AE25: =VLOOKUP(B2,A10:M221,11,0)/VLOOKUP(B2,A10:M221,12,0) ->  | AH25: 16 | AI25: 90.89012044 | AJ25: 94.87306811 | AK25: 2 | AM25: 16 | AO25: 2 | AP25: -1 | AQ25: -1 | AR25: -1 | AS25: -1 | AT25: -1
A26: 00X | B26: =VLOOKUP($A26,SummaryData!$K$5:$M$215,3,0) -> Greater Manchester Lancashire and South Cumbria | C26: =VLOOKUP($A26,SummaryData!$K$5:$N$215,4,0) -> No | D26: =VLOOKUP($A26,SummaryData!$K$5:$P$215,6,0) -> 6 | E26: =VLOOKUP(A26,SummaryData!$K$4:$T$215,10,0) -> 1.820195937 | F26: 4 | G26: =IF(AND($C$5=1,$B$7<=7),VLOOKUP(A26,SummaryData!$K$5:$X$215,14,0)*100000,VLOOKUP(A26,SummaryData!$K$5:$X$215,14,0)*100 ) -> 67.4897527 | H26: 10 | I26: =VLOOKUP($A26,cost_data!$A$5:$BB$215,$D$6,0)/VLOOKUP($A26,cost_data!$A$5:$BB$215,$F$6,0) -> 1.820195937 | J26: =IFERROR(VLOOKUP($A26,cost_data!$A$5:$BB$215,$H$6,0)/VLOOKUP($A26,cost_data!$A$5:$BB$215,$J$6,0),0) -> 1.614506785 | K26: =IF(AND($C$5=1,$B$7<=7),VLOOKUP($A26,outcome_data!$A$1:$BJ$216,$D$7,0)/VLOOKUP($A26,outcome_data!$A$1:$BJ$216,$F$7,0)*100000,VLOOKUP($A26,outcome_data!$A$1:$BJ$216,$D$7,0)/VLOOKUP($A26,outcome_data!$A$1:$BJ$216,$F$7,0)*100) -> 67.4897527 | L26: =IF(AND($C$5=1,$B$7<=7),VLOOKUP($A26,outcome_data!$A$1:$BJ$216,$H$7,0)/VLOOKUP($A26,outcome_data!$A$1:$BJ$216,$J$7,0)*100000,VLOOKUP($A26,outcome_data!$A$1:$BJ$216,$H$7,0)/VLOOKUP($A26,outcome_data!$A$1:$BJ$216,$J$7,0)*100) ->  | N26: 17 | O26: 6.943729729 | P26: 7.368006392 | Q26: 0 | S26: 17 | U26: 0 | V26: -1 | W26: -1 | X26: -1 | Y26: -1 | Z26: -1 | AC26: difference | AE26: =AE24-AE25 ->  | AH26: 17 | AI26: 94.87306811 | AJ26: 98.85601578 | AK26: 0 | AM26: 17 | AO26: 0 | AP26: -1 | AQ26: -1 | AR26: -1 | AS26: -1 | AT26: -1 | AW26: =IF(AU22=1,100,100000) -> 100000
A27: 00Y | B27: =VLOOKUP($A27,SummaryData!$K$5:$M$215,3,0) -> Greater Manchester Lancashire and South Cumbria | C27: =VLOOKUP($A27,SummaryData!$K$5:$N$215,4,0) -> No | D27: =VLOOKUP($A27,SummaryData!$K$5:$P$215,6,0) -> 2 | E27: =VLOOKUP(A27,SummaryData!$K$4:$T$215,10,0) -> 1.109201464 | F27: 3 | G27: =IF(AND($C$5=1,$B$7<=7),VLOOKUP(A27,SummaryData!$K$5:$X$215,14,0)*100000,VLOOKUP(A27,SummaryData!$K$5:$X$215,14,0)*100 ) -> 77.43123001 | H27: 12 | I27: =VLOOKUP($A27,cost_data!$A$5:$BB$215,$D$6,0)/VLOOKUP($A27,cost_data!$A$5:$BB$215,$F$6,0) -> 1.109201464 | J27: =IFERROR(VLOOKUP($A27,cost_data!$A$5:$BB$215,$H$6,0)/VLOOKUP($A27,cost_data!$A$5:$BB$215,$J$6,0),0) -> 1.038881964 | K27: =IF(AND($C$5=1,$B$7<=7),VLOOKUP($A27,outcome_data!$A$1:$BJ$216,$D$7,0)/VLOOKUP($A27,outcome_data!$A$1:$BJ$216,$F$7,0)*100000,VLOOKUP($A27,outcome_data!$A$1:$BJ$216,$D$7,0)/VLOOKUP($A27,outcome_data!$A$1:$BJ$216,$F$7,0)*100) -> 77.43123001 | L27: =IF(AND($C$5=1,$B$7<=7),VLOOKUP($A27,outcome_data!$A$1:$BJ$216,$H$7,0)/VLOOKUP($A27,outcome_data!$A$1:$BJ$216,$J$7,0)*100000,VLOOKUP($A27,outcome_data!$A$1:$BJ$216,$H$7,0)/VLOOKUP($A27,outcome_data!$A$1:$BJ$216,$J$7,0)*100) ->  | N27: 18 | O27: 7.368006392 | P27: 7.792283056 | Q27: 0 | S27: 18 | U27: 0 | V27: -1 | W27: -1 | X27: -1 | Y27: -1 | Z27: -1 | AH27: 18 | AI27: 98.85601578 | AJ27: 102.8389635 | AK27: 2 | AM27: 18 | AO27: 2 | AP27: -1 | AQ27: -1 | AR27: -1 | AS27: -1 | AT27: -1 | AV27: 3 | AW27: highest quartile
A28: 01A | B28: =VLOOKUP($A28,SummaryData!$K$5:$M$215,3,0) -> Greater Manchester Lancashire and South Cumbria | C28: =VLOOKUP($A28,SummaryData!$K$5:$N$215,4,0) -> No | D28: =VLOOKUP($A28,SummaryData!$K$5:$P$215,6,0) -> 3 | E28: =VLOOKUP(A28,SummaryData!$K$4:$T$215,10,0) -> 1.46238081 | F28: 4 | G28: =IF(AND($C$5=1,$B$7<=7),VLOOKUP(A28,SummaryData!$K$5:$X$215,14,0)*100000,VLOOKUP(A28,SummaryData!$K$5:$X$215,14,0)*100 ) -> 86.75248758 | H28: 14 | I28: =VLOOKUP($A28,cost_data!$A$5:$BB$215,$D$6,0)/VLOOKUP($A28,cost_data!$A$5:$BB$215,$F$6,0) -> 1.46238081 | J28: =IFERROR(VLOOKUP($A28,cost_data!$A$5:$BB$215,$H$6,0)/VLOOKUP($A28,cost_data!$A$5:$BB$215,$J$6,0),0) -> 1.678108852 | K28: =IF(AND($C$5=1,$B$7<=7),VLOOKUP($A28,outcome_data!$A$1:$BJ$216,$D$7,0)/VLOOKUP($A28,outcome_data!$A$1:$BJ$216,$F$7,0)*100000,VLOOKUP($A28,outcome_data!$A$1:$BJ$216,$D$7,0)/VLOOKUP($A28,outcome_data!$A$1:$BJ$216,$F$7,0)*100) -> 86.75248758 | L28: =IF(AND($C$5=1,$B$7<=7),VLOOKUP($A28,outcome_data!$A$1:$BJ$216,$H$7,0)/VLOOKUP($A28,outcome_data!$A$1:$BJ$216,$J$7,0)*100000,VLOOKUP($A28,outcome_data!$A$1:$BJ$216,$H$7,0)/VLOOKUP($A28,outcome_data!$A$1:$BJ$216,$J$7,0)*100) ->  | N28: 19 | O28: 7.792283056 | P28: 8.216559719 | Q28: 0 | S28: 19 | U28: 0 | V28: -1 | W28: -1 | X28: -1 | Y28: -1 | Z28: -1 | AB28: 3 | AC28: lowest quartile | AH28: 19 | AI28: 102.8389635 | AJ28: 106.8219111 | AK28: 1 | AM28: 19 | AO28: 1 | AP28: -1 | AQ28: -1 | AR28: -1 | AS28: =IF($AX$11=AM28,5,-1) -> -1 | AT28: -1 | AV28: 2 | AW28: middle
A29: 01C | B29: =VLOOKUP($A29,SummaryData!$K$5:$M$215,3,0) -> Cheshire and Merseyside | C29: =VLOOKUP($A29,SummaryData!$K$5:$N$215,4,0) -> No | D29: =VLOOKUP($A29,SummaryData!$K$5:$P$215,6,0) -> 9 | E29: =VLOOKUP(A29,SummaryData!$K$4:$T$215,10,0) -> 2.01152839 | F29: 5 | G29: =IF(AND($C$5=1,$B$7<=7),VLOOKUP(A29,SummaryData!$K$5:$X$215,14,0)*100000,VLOOKUP(A29,SummaryData!$K$5:$X$215,14,0)*100 ) -> 58.43992703 | H29: 7 | I29: =VLOOKUP($A29,cost_data!$A$5:$BB$215,$D$6,0)/VLOOKUP($A29,cost_data!$A$5:$BB$215,$F$6,0) -> 2.01152839 | J29: =IFERROR(VLOOKUP($A29,cost_data!$A$5:$BB$215,$H$6,0)/VLOOKUP($A29,cost_data!$A$5:$BB$215,$J$6,0),0) -> 1.830088353 | K29: =IF(AND($C$5=1,$B$7<=7),VLOOKUP($A29,outcome_data!$A$1:$BJ$216,$D$7,0)/VLOOKUP($A29,outcome_data!$A$1:$BJ$216,$F$7,0)*100000,VLOOKUP($A29,outcome_data!$A$1:$BJ$216,$D$7,0)/VLOOKUP($A29,outcome_data!$A$1:$BJ$216,$F$7,0)*100) -> 58.43992703 | L29: =IF(AND($C$5=1,$B$7<=7),VLOOKUP($A29,outcome_data!$A$1:$BJ$216,$H$7,0)/VLOOKUP($A29,outcome_data!$A$1:$BJ$216,$J$7,0)*100000,VLOOKUP($A29,outcome_data!$A$1:$BJ$216,$H$7,0)/VLOOKUP($A29,outcome_data!$A$1:$BJ$216,$J$7,0)*100) ->  | N29: 20 | O29: 8.216559719 | P29: 8.640836382 | Q29: 1 | S29: 20 | U29: 1 | V29: -1 | W29: -1 | X29: -1 | Y29: -1 | Z29: -1 | AB29: 2 | AC29: middle | AH29: 20 | AI29: 106.8219111 | AJ29: 110.8048588 | AK29: 3 | AM29: 20 | AO29: 3 | AP29: -1 | AQ29: -1 | AR29: =IF(AND($AX$13<=$AX$23,$AW$8=$AM29),7,-1) -> -1 | AS29: 5 | AT29: -1 | AV29: 1 | AW29: lowest quartile
A30: 01D | B30: =VLOOKUP($A30,SummaryData!$K$5:$M$215,3,0) -> Greater Manchester Lancashire and South Cumbria | C30: =VLOOKUP($A30,SummaryData!$K$5:$N$215,4,0) -> No | D30: =VLOOKUP($A30,SummaryData!$K$5:$P$215,6,0) -> 2 | E30: =VLOOKUP(A30,SummaryData!$K$4:$T$215,10,0) -> 0.9846025979 | F30: 2 | G30: =IF(AND($C$5=1,$B$7<=7),VLOOKUP(A30,SummaryData!$K$5:$X$215,14,0)*100000,VLOOKUP(A30,SummaryData!$K$5:$X$215,14,0)*100 ) -> 85.38726483 | H30: 14 | I30: =VLOOKUP($A30,cost_data!$A$5:$BB$215,$D$6,0)/VLOOKUP($A30,cost_data!$A$5:$BB$215,$F$6,0) -> 0.9846025979 | J30: =IFERROR(VLOOKUP($A30,cost_data!$A$5:$BB$215,$H$6,0)/VLOOKUP($A30,cost_data!$A$5:$BB$215,$J$6,0),0) -> 0.9808077196 | K30: =IF(AND($C$5=1,$B$7<=7),VLOOKUP($A30,outcome_data!$A$1:$BJ$216,$D$7,0)/VLOOKUP($A30,outcome_data!$A$1:$BJ$216,$F$7,0)*100000,VLOOKUP($A30,outcome_data!$A$1:$BJ$216,$D$7,0)/VLOOKUP($A30,outcome_data!$A$1:$BJ$216,$F$7,0)*100) -> 85.38726483 | L30: =IF(AND($C$5=1,$B$7<=7),VLOOKUP($A30,outcome_data!$A$1:$BJ$216,$H$7,0)/VLOOKUP($A30,outcome_data!$A$1:$BJ$216,$J$7,0)*100000,VLOOKUP($A30,outcome_data!$A$1:$BJ$216,$H$7,0)/VLOOKUP($A30,outcome_data!$A$1:$BJ$216,$J$7,0)*100) ->  | AB30: 1 | AC30: highest quartile | AP30: =SUMIF(AP10:AP29,">0") -> 0 | AQ30: =SUMIF(AQ10:AQ29,">0") -> 0 | AR30: =SUMIF(AR10:AR29,">0") -> 7 | AU30: =IF(AP30>1,1,IF(AQ30>1,2,3)) -> 3 | AV30: ="is in the "&IF(AU30=1,AW27,IF(AU30=2,AW28,AW29))&" of its "&D4&"" -> is in the lowest quartile of its SCN group
A31: 01E | B31: =VLOOKUP($A31,SummaryData!$K$5:$M$215,3,0) -> Greater Manchester Lancashire and South Cumbria | C31: =VLOOKUP($A31,SummaryData!$K$5:$N$215,4,0) -> No | D31: =VLOOKUP($A31,SummaryData!$K$5:$P$215,6,0) -> 4 | E31: =VLOOKUP(A31,SummaryData!$K$4:$T$215,10,0) -> 1.377907247 | F31: 3 | G31: =IF(AND($C$5=1,$B$7<=7),VLOOKUP(A31,SummaryData!$K$5:$X$215,14,0)*100000,VLOOKUP(A31,SummaryData!$K$5:$X$215,14,0)*100 ) -> 70.59112393 | H31: 10 | I31: =VLOOKUP($A31,cost_data!$A$5:$BB$215,$D$6,0)/VLOOKUP($A31,cost_data!$A$5:$BB$215,$F$6,0) -> 1.377907247 | J31: =IFERROR(VLOOKUP($A31,cost_data!$A$5:$BB$215,$H$6,0)/VLOOKUP($A31,cost_data!$A$5:$BB$215,$J$6,0),0) -> 1.320003967 | K31: =IF(AND($C$5=1,$B$7<=7),VLOOKUP($A31,outcome_data!$A$1:$BJ$216,$D$7,0)/VLOOKUP($A31,outcome_data!$A$1:$BJ$216,$F$7,0)*100000,VLOOKUP($A31,outcome_data!$A$1:$BJ$216,$D$7,0)/VLOOKUP($A31,outcome_data!$A$1:$BJ$216,$F$7,0)*100) -> 70.59112393 | L31: =IF(AND($C$5=1,$B$7<=7),VLOOKUP($A31,outcome_data!$A$1:$BJ$216,$H$7,0)/VLOOKUP($A31,outcome_data!$A$1:$BJ$216,$J$7,0)*100000,VLOOKUP($A31,outcome_data!$A$1:$BJ$216,$H$7,0)/VLOOKUP($A31,outcome_data!$A$1:$BJ$216,$J$7,0)*100) ->  | V31: =SUMIF(V10:V29,">0") -> 7 | W31: =SUMIF(W10:W29,">0") -> 0 | X31: =SUMIF(X10:X29,">0") -> 0 | AA31: =IF(V31>1,1,IF(W31>1,2,3)) -> 1 | AB31: ="is in the "&IF(AA31=1,AC30,IF(AA31=2,AC29,AC28))&" of its "&D4&"" -> is in the highest quartile of its SCN group
